Workbook

Sheet Home
K1: =+Translations!A399 -> CALCULATION TOOL
A2: =Translations!A411 -> ECONOMIC CALCULATION TOOL FOR SMALL MODULAR DISTRICT HEATING AND COOLING PROJECTS
G6: =+Translations!A400 -> Select language: | K6: English
G8: =+Translations!A401 -> Mode: | K8: =+Translations!A406 -> ECONOMY: Financial module only
G10: =+Translations!A402 -> Project name: | K10: PROJECT 1
G12: =+Translations!A403 -> Project start year: | K12: 2017
G14: =+Translations!A404 -> Project life time: | K14: 10 years
G16: Project description
L19: Skupina FABRIKA d.o.o.
L20: info@skupina-fabrika.com

Sheet Investment and financing
B3: =+Translations!A5 -> INVESTMENT AND FINANCING
B4: =+Translations!A6 -> Investment cost
B5: =+Translations!A7 -> TOTAL | D5: =SUM(D6:E11) -> 0 | F5: =SUM(F6:F11) -> 0
B6: =+Translations!A8 -> Equipment/Machinery | F6: =IF(ISERROR(D6/$D$5),0,D6/$D$5) -> 0
B7: =+Translations!A9 -> Buildings and construction works | F7: 0
B8: =+Translations!A10 -> Plot | F8: 0
B9: =+Translations!A11 -> Project and investment documentation | F9: 0
B10: =+Translations!A12 -> Intangible assets (patents, licenses, software) | F10: 0
B11: =+Translations!A13 -> Initial working capital | D11: =SUM(D6+D7+D8+D9+D10)*J11 -> 0 | F11: 0 | H11: =+Translations!A14 -> % of investment | J11: 0
B13: =+Translations!A15 -> Financing sources
B14: =+Translations!A7 -> TOTAL | D14: =SUM(D15:E20) -> 0 | F14: =SUM(F15:F20) -> 0
B15: =+Translations!A16 -> Private equity | D15: =IF((D5-D20-D19-D18-D17-D16)<0,0,(D5-D20-D19-D18-D17-D16)) -> 0 | F15: =IF(ISERROR(D15/$D$14),0,D15/$D$14) -> 0
B16: =+Translations!A17 -> Loan 1 | F16: 0 | H16: =+Translations!A22 -> Interest rate | J16: 0.05 | K16: =+Translations!A23 -> Loan duration in months | N16: 60 | P16: =+Translations!A24 -> Repayment start year | R16: 2016
B17: =+Translations!A18 -> Loan 2 | F17: 0 | H17: =+Translations!A22 -> Interest rate | J17: 0.05 | K17: =+Translations!A23 -> Loan duration in months | N17: 120 | P17: =+Translations!A24 -> Repayment start year | R17: 2016
B18: =+Translations!A19 -> Loan 3 | F18: 0 | H18: =+Translations!A22 -> Interest rate | J18: 0.05 | K18: =+Translations!A23 -> Loan duration in months | N18: 60 | P18: =+Translations!A24 -> Repayment start year | R18: 2016
B19: =+Translations!A20 -> Connection fees | F19: 0
B20: =+Translations!A21 -> Investment subsidies | F20: 0 | H20: =+Translations!A25 -> Payment delay in months | L20: =+Translations!A26 -> Bridging loan interest rate | P20: 0.05

Sheet Operating costs
B3: =+Translations!A28 -> ANNUAL COSTS - COST DEFINITION
B4: =+Translations!A29 -> Operating costs
B5: =+Translations!A30 -> Cost of biomass
B6: =+Translations!A31 -> Type of biomass | C6: Wood chips | E6: =+Translations!A36 -> Water content | G6: 0 | H6: =+Translations!A37 -> Heating value | J6: 18 | K6: MJ/kg
B7: =+Translations!A38 -> Price | D7: €/t | E7: =+C7/((J6*(1-G6)-2.44*G6)/3.6) -> 0 | F7: €/MWh | G7: =+Translations!A39 -> PRICE constant y2y change | J7: Yes | K7: 0 | L7: %
B8: =+Translations!A42 -> Volume | D8: =+Translations!A44 -> t/year | G8: =+Translations!A43 -> VOLUME constant y2y change | J8: Yes | K8: 0 | L8: %
B9: =+Translations!A45 -> Biomass | C9: =+Translations!A46 -> Year | D9: =+Home!K12 -> 2017 | E9: =+D9+1 -> 2018 | F9: =+E9+1 -> 2019 | G9: =+F9+1 -> 2020 | H9: =+G9+1 -> 2021 | I9: =+H9+1 -> 2022 | J9: =+I9+1 -> 2023 | K9: =+J9+1 -> 2024 | L9: =+K9+1 -> 2025 | M9: =+L9+1 -> 2026 | N9: =+M9+1 -> 2027 | O9: =+N9+1 -> 2028 | P9: =+O9+1 -> 2029 | Q9: =+P9+1 -> 2030 | R9: 2031 | S9: 2032 | T9: 2033 | U9: 2034 | V9: 2035 | W9: 2036
C10: =+Translations!A47 -> Price in €/MWh | D10: =+E7 -> 0 | E10: =D10*(1+(K7/100)) -> 0 | F10: =E10*(1+(K7/100)) -> 0 | G10: =F10*(1+(K7/100)) -> 0 | H10: =G10*(1+(K7/100)) -> 0 | I10: =H10*(1+(K7/100)) -> 0 | J10: =I10*(1+(K7/100)) -> 0 | K10: =J10*(1+(K7/100)) -> 0 | L10: =K10*(1+(K7/100)) -> 0 | M10: =L10*(1+(K7/100)) -> 0 | N10: =M10*(1+(K7/100)) -> 0 | O10: =N10*(1+(K7/100)) -> 0 | P10: =O10*(1+(K7/100)) -> 0 | Q10: =P10*(1+(K7/100)) -> 0 | R10: =Q10*(1+(K7/100)) -> 0 | S10: =R10*(1+(K7/100)) -> 0 | T10: =S10*(1+(K7/100)) -> 0 | U10: =T10*(1+(K7/100)) -> 0 | V10: =U10*(1+(K7/100)) -> 0 | W10: =V10*(1+(K7/100)) -> 0
C11: =+Translations!A48 -> Volume in MWh | D11: =IF(ISERROR(C7/E7*C8),0,C7/E7*C8) -> 0 | E11: =D11*(1+(K8/100)) -> 0 | F11: =E11*(1+(K8/100)) -> 0 | G11: =F11*(1+(K8/100)) -> 0 | H11: =G11*(1+(K8/100)) -> 0 | I11: =H11*(1+(K8/100)) -> 0 | J11: =I11*(1+(K8/100)) -> 0 | K11: =J11*(1+(K8/100)) -> 0 | L11: =K11*(1+(K8/100)) -> 0 | M11: =L11*(1+(K8/100)) -> 0 | N11: =M11*(1+(K8/100)) -> 0 | O11: =N11*(1+(K8/100)) -> 0 | P11: =O11*(1+(K8/100)) -> 0 | Q11: =P11*(1+(K8/100)) -> 0 | R11: =Q11*(1+(K8/100)) -> 0 | S11: =R11*(1+(K8/100)) -> 0 | T11: =S11*(1+(K8/100)) -> 0 | U11: =T11*(1+(K8/100)) -> 0 | V11: =U11*(1+(K8/100)) -> 0 | W11: =V11*(1+(K8/100)) -> 0
C12: =+Translations!A49 -> Cost in € | D12: =+D10*D11 -> 0 | E12: =+E10*E11 -> 0 | F12: 0 | G12: 0 | H12: 0 | I12: 0 | J12: 0 | K12: 0 | L12: 0 | M12: 0 | N12: 0 | O12: 0 | P12: 0 | Q12: 0 | R12: 0 | S12: 0 | T12: 0 | U12: 0 | V12: 0 | W12: =+W11*W10 -> 0
B14: =+Translations!A50 -> Cost of natural gas
B15: =+Translations!A38 -> Price | D15: €/m3 | E15: =+C15/9.8*1000 -> 0 | F15: €/MWh | G15: =+Translations!A39 -> PRICE constant y2y change | J15: Yes | K15: 0 | L15: %
B16: =+Translations!A42 -> Volume | D16: =+Translations!A51 -> m3/year | G16: =+Translations!A43 -> VOLUME constant y2y change | J16: Yes | K16: 0 | L16: %
B17: =+Translations!A52 -> Natural gas | C17: =+Translations!A46 -> Year | D17: =+Home!K12 -> 2017 | E17: =+D17+1 -> 2018 | F17: =+E17+1 -> 2019 | G17: =+F17+1 -> 2020 | H17: =+G17+1 -> 2021 | I17: =+H17+1 -> 2022 | J17: =+I17+1 -> 2023 | K17: =+J17+1 -> 2024 | L17: =+K17+1 -> 2025 | M17: =+L17+1 -> 2026 | N17: =+M17+1 -> 2027 | O17: =+N17+1 -> 2028 | P17: =+O17+1 -> 2029 | Q17: =+P17+1 -> 2030 | R17: 2031 | S17: 2032 | T17: 2033 | U17: 2034 | V17: 2035 | W17: 2036
C18: =+Translations!A53 -> Price in €/m3 | D18: =+C15 -> 0 | E18: =D18*(1+(K15/100)) -> 0 | F18: =E18*(1+(K15/100)) -> 0 | G18: =F18*(1+(K15/100)) -> 0 | H18: =G18*(1+(K15/100)) -> 0 | I18: =H18*(1+(K15/100)) -> 0 | J18: =I18*(1+(K15/100)) -> 0 | K18: =J18*(1+(K15/100)) -> 0 | L18: =K18*(1+(K15/100)) -> 0 | M18: =L18*(1+(K15/100)) -> 0 | N18: =M18*(1+(K15/100)) -> 0 | O18: =N18*(1+(K15/100)) -> 0 | P18: =O18*(1+(K15/100)) -> 0 | Q18: =P18*(1+(K15/100)) -> 0 | R18: =Q18*(1+(K15/100)) -> 0 | S18: =R18*(1+(K15/100)) -> 0 | T18: =S18*(1+(K15/100)) -> 0 | U18: =T18*(1+(K15/100)) -> 0 | V18: =U18*(1+(K15/100)) -> 0 | W18: =V18*(1+(K15/100)) -> 0
C19: =+Translations!A54 -> Volume in m3 | D19: =+C16 -> 0 | E19: =D19*(1+(K16/100)) -> 0 | F19: =E19*(1+(K16/100)) -> 0 | G19: =F19*(1+(K16/100)) -> 0 | H19: =G19*(1+(K16/100)) -> 0 | I19: =H19*(1+(K16/100)) -> 0 | J19: =I19*(1+(K16/100)) -> 0 | K19: =J19*(1+(K16/100)) -> 0 | L19: =K19*(1+(K16/100)) -> 0 | M19: =L19*(1+(K16/100)) -> 0 | N19: =M19*(1+(K16/100)) -> 0 | O19: =N19*(1+(K16/100)) -> 0 | P19: =O19*(1+(K16/100)) -> 0 | Q19: =P19*(1+(K16/100)) -> 0 | R19: =Q19*(1+(K16/100)) -> 0 | S19: =R19*(1+(K16/100)) -> 0 | T19: =S19*(1+(K16/100)) -> 0 | U19: =T19*(1+(K16/100)) -> 0 | V19: =U19*(1+(K16/100)) -> 0 | W19: =V19*(1+(K16/100)) -> 0
C20: =+Translations!A49 -> Cost in € | D20: =D18*D19 -> 0 | E20: =E18*E19 -> 0 | F20: 0 | G20: 0 | H20: 0 | I20: 0 | J20: 0 | K20: 0 | L20: 0 | M20: 0 | N20: 0 | O20: 0 | P20: 0 | Q20: 0 | R20: 0 | S20: 0 | T20: 0 | U20: 0 | V20: 0 | W20: =W18*W19 -> 0
B22: =+Translations!A55 -> Cost of heating oil
B23: =+Translations!A38 -> Price | D23: €/l | E23: =+C23/10*1000 -> 0 | F23: €/MWh | G23: =+Translations!A39 -> PRICE constant y2y change | J23: Yes | K23: 0 | L23: %
B24: =+Translations!A42 -> Volume | D24: =+Translations!A56 -> l/year | G24: =+Translations!A43 -> VOLUME constant y2y change | J24: Yes | K24: 0 | L24: %
B25: =+Translations!A57 -> Heating oil | C25: =+Translations!A46 -> Year | D25: =+Home!K12 -> 2017 | E25: =+D25+1 -> 2018 | F25: =+E25+1 -> 2019 | G25: =+F25+1 -> 2020 | H25: =+G25+1 -> 2021 | I25: =+H25+1 -> 2022 | J25: =+I25+1 -> 2023 | K25: =+J25+1 -> 2024 | L25: =+K25+1 -> 2025 | M25: =+L25+1 -> 2026 | N25: =+M25+1 -> 2027 | O25: =+N25+1 -> 2028 | P25: =+O25+1 -> 2029 | Q25: =+P25+1 -> 2030 | R25: =+Q25+1 -> 2031 | S25: =+R25+1 -> 2032 | T25: =+S25+1 -> 2033 | U25: =+T25+1 -> 2034 | V25: =+U25+1 -> 2035 | W25: =+V25+1 -> 2036
C26: =+Translations!A58 -> Price in €/l | D26: =+C23 -> 0 | E26: =D26*(1+(K23/100)) -> 0 | F26: =E26*(1+(K23/100)) -> 0 | G26: =F26*(1+(K23/100)) -> 0 | H26: =G26*(1+(K23/100)) -> 0 | I26: =H26*(1+(K23/100)) -> 0 | J26: =I26*(1+(K23/100)) -> 0 | K26: =J26*(1+(K23/100)) -> 0 | L26: =K26*(1+(K23/100)) -> 0 | M26: =L26*(1+(K23/100)) -> 0 | N26: =M26*(1+(K23/100)) -> 0 | O26: =N26*(1+(K23/100)) -> 0 | P26: =O26*(1+(K23/100)) -> 0 | Q26: =P26*(1+(K23/100)) -> 0 | R26: =Q26*(1+(K23/100)) -> 0 | S26: =R26*(1+(K23/100)) -> 0 | T26: =S26*(1+(K23/100)) -> 0 | U26: =T26*(1+(K23/100)) -> 0 | V26: =U26*(1+(K23/100)) -> 0 | W26: =V26*(1+(K23/100)) -> 0
C27: =+Translations!A59 -> Volume in l | D27: =+C24 -> 0 | E27: =D27*(1+(K24/100)) -> 0 | F27: =E27*(1+(K24/100)) -> 0 | G27: =F27*(1+(K24/100)) -> 0 | H27: =G27*(1+(K24/100)) -> 0 | I27: =H27*(1+(K24/100)) -> 0 | J27: =I27*(1+(K24/100)) -> 0 | K27: =J27*(1+(K24/100)) -> 0 | L27: =K27*(1+(K24/100)) -> 0 | M27: =L27*(1+(K24/100)) -> 0 | N27: =M27*(1+(K24/100)) -> 0 | O27: =N27*(1+(K24/100)) -> 0 | P27: =O27*(1+(K24/100)) -> 0 | Q27: =P27*(1+(K24/100)) -> 0 | R27: =Q27*(1+(K24/100)) -> 0 | S27: =R27*(1+(K24/100)) -> 0 | T27: =S27*(1+(K24/100)) -> 0 | U27: =T27*(1+(K24/100)) -> 0 | V27: =U27*(1+(K24/100)) -> 0 | W27: =V27*(1+(K24/100)) -> 0
C28: =+Translations!A49 -> Cost in € | D28: =D26*D27 -> 0 | E28: =E26*E27 -> 0 | F28: 0 | G28: 0 | H28: 0 | I28: 0 | J28: 0 | K28: 0 | L28: 0 | M28: 0 | N28: 0 | O28: 0 | P28: 0 | Q28: 0 | R28: 0 | S28: 0 | T28: 0 | U28: 0 | V28: 0 | W28: =W26*W27 -> 0
B30: =+Translations!A60 -> Cost of electricity
B31: =+Translations!A38 -> Price | C31: 0 | D31: €/MWh | G31: =+Translations!A39 -> PRICE constant y2y change | J31: Yes | K31: 0 | L31: %
B32: =+Translations!A42 -> Volume | C32: 0 | D32: =+Translations!A61 -> MWh/year | G32: =+Translations!A43 -> VOLUME constant y2y change | J32: Yes | K32: 0 | L32: %
B33: =+Translations!A62 -> Electricity | C33: =+Translations!A46 -> Year | D33: =+Home!K12 -> 2017 | E33: =+D33+1 -> 2018 | F33: =+E33+1 -> 2019 | G33: =+F33+1 -> 2020 | H33: =+G33+1 -> 2021 | I33: =+H33+1 -> 2022 | J33: =+I33+1 -> 2023 | K33: =+J33+1 -> 2024 | L33: =+K33+1 -> 2025 | M33: =+L33+1 -> 2026 | N33: =+M33+1 -> 2027 | O33: =+N33+1 -> 2028 | P33: =+O33+1 -> 2029 | Q33: =+P33+1 -> 2030 | R33: =+Q33+1 -> 2031 | S33: =+R33+1 -> 2032 | T33: =+S33+1 -> 2033 | U33: =+T33+1 -> 2034 | V33: =+U33+1 -> 2035 | W33: =+V33+1 -> 2036
C34: =+Translations!A47 -> Price in €/MWh | D34: =+C31 -> 0 | E34: =D34*(1+(K31/100)) -> 0 | F34: =E34*(1+(K31/100)) -> 0 | G34: =F34*(1+(K31/100)) -> 0 | H34: =G34*(1+(K31/100)) -> 0 | I34: =H34*(1+(K31/100)) -> 0 | J34: =I34*(1+(K31/100)) -> 0 | K34: =J34*(1+(K31/100)) -> 0 | L34: =K34*(1+(K31/100)) -> 0 | M34: =L34*(1+(K31/100)) -> 0 | N34: =M34*(1+(K31/100)) -> 0 | O34: =N34*(1+(K31/100)) -> 0 | P34: =O34*(1+(K31/100)) -> 0 | Q34: =P34*(1+(K31/100)) -> 0 | R34: =Q34*(1+(K31/100)) -> 0 | S34: =R34*(1+(K31/100)) -> 0 | T34: =S34*(1+(K31/100)) -> 0 | U34: =T34*(1+(K31/100)) -> 0 | V34: =U34*(1+(K31/100)) -> 0 | W34: =V34*(1+(K31/100)) -> 0
C35: =+Translations!A48 -> Volume in MWh | D35: =+C32 -> 0 | E35: =D35*(1+(K32/100)) -> 0 | F35: =E35*(1+(K32/100)) -> 0 | G35: =F35*(1+(K32/100)) -> 0 | H35: =G35*(1+(K32/100)) -> 0 | I35: =H35*(1+(K32/100)) -> 0 | J35: =I35*(1+(K32/100)) -> 0 | K35: =J35*(1+(K32/100)) -> 0 | L35: =K35*(1+(K32/100)) -> 0 | M35: =L35*(1+(K32/100)) -> 0 | N35: =M35*(1+(K32/100)) -> 0 | O35: =N35*(1+(K32/100)) -> 0 | P35: =O35*(1+(K32/100)) -> 0 | Q35: =P35*(1+(K32/100)) -> 0 | R35: =Q35*(1+(K32/100)) -> 0 | S35: =R35*(1+(K32/100)) -> 0 | T35: =S35*(1+(K32/100)) -> 0 | U35: =T35*(1+(K32/100)) -> 0 | V35: =U35*(1+(K32/100)) -> 0 | W35: =V35*(1+(K32/100)) -> 0
C36: =+Translations!A49 -> Cost in € | D36: =D34*D35 -> 0 | E36: =E34*E35 -> 0 | F36: 0 | G36: 0 | H36: 0 | I36: 0 | J36: 0 | K36: 0 | L36: 0 | M36: 0 | N36: 0 | O36: 0 | P36: 0 | Q36: 0 | R36: 0 | S36: 0 | T36: 0 | U36: 0 | V36: 0 | W36: =W34*W35 -> 0
B38: =+Translations!A63 -> Cost of waste heat acquisition
B39: =+Translations!A38 -> Price | C39: 0 | D39: €/MWh | G39: =+Translations!A39 -> PRICE constant y2y change | J39: Yes | K39: 0 | L39: %
B40: =+Translations!A42 -> Volume | C40: 0 | D40: =+Translations!A61 -> MWh/year | G40: =+Translations!A43 -> VOLUME constant y2y change | J40: Yes | K40: 0 | L40: %
B41: =+Translations!A64 -> Waste heat | C41: =+Translations!A46 -> Year | D41: =+Home!K12 -> 2017 | E41: =+D41+1 -> 2018 | F41: =+E41+1 -> 2019 | G41: =+F41+1 -> 2020 | H41: =+G41+1 -> 2021 | I41: =+H41+1 -> 2022 | J41: =+I41+1 -> 2023 | K41: =+J41+1 -> 2024 | L41: =+K41+1 -> 2025 | M41: =+L41+1 -> 2026 | N41: =+M41+1 -> 2027 | O41: =+N41+1 -> 2028 | P41: =+O41+1 -> 2029 | Q41: =+P41+1 -> 2030 | R41: =+Q41+1 -> 2031 | S41: =+R41+1 -> 2032 | T41: =+S41+1 -> 2033 | U41: =+T41+1 -> 2034 | V41: =+U41+1 -> 2035 | W41: =+V41+1 -> 2036
C42: =+Translations!A47 -> Price in €/MWh | D42: =+C39 -> 0 | E42: =D42*(1+(K39/100)) -> 0 | F42: =E42*(1+(K39/100)) -> 0 | G42: =F42*(1+(K39/100)) -> 0 | H42: =G42*(1+(K39/100)) -> 0 | I42: =H42*(1+(K39/100)) -> 0 | J42: =I42*(1+(K39/100)) -> 0 | K42: =J42*(1+(K39/100)) -> 0 | L42: =K42*(1+(K39/100)) -> 0 | M42: =L42*(1+(K39/100)) -> 0 | N42: =M42*(1+(K39/100)) -> 0 | O42: =N42*(1+(K39/100)) -> 0 | P42: =O42*(1+(K39/100)) -> 0 | Q42: =P42*(1+(K39/100)) -> 0 | R42: =Q42*(1+(K39/100)) -> 0 | S42: =R42*(1+(K39/100)) -> 0 | T42: =S42*(1+(K39/100)) -> 0 | U42: =T42*(1+(K39/100)) -> 0 | V42: =U42*(1+(K39/100)) -> 0 | W42: =V42*(1+(K39/100)) -> 0
C43: =+Translations!A48 -> Volume in MWh | D43: =+C40 -> 0 | E43: =D43*(1+(K40/100)) -> 0 | F43: =E43*(1+(K40/100)) -> 0 | G43: =F43*(1+(K40/100)) -> 0 | H43: =G43*(1+(K40/100)) -> 0 | I43: =H43*(1+(K40/100)) -> 0 | J43: =I43*(1+(K40/100)) -> 0 | K43: =J43*(1+(K40/100)) -> 0 | L43: =K43*(1+(K40/100)) -> 0 | M43: =L43*(1+(K40/100)) -> 0 | N43: =M43*(1+(K40/100)) -> 0 | O43: =N43*(1+(K40/100)) -> 0 | P43: =O43*(1+(K40/100)) -> 0 | Q43: =P43*(1+(K40/100)) -> 0 | R43: =Q43*(1+(K40/100)) -> 0 | S43: =R43*(1+(K40/100)) -> 0 | T43: =S43*(1+(K40/100)) -> 0 | U43: =T43*(1+(K40/100)) -> 0 | V43: =U43*(1+(K40/100)) -> 0 | W43: =V43*(1+(K40/100)) -> 0
C44: =+Translations!A49 -> Cost in € | D44: =D42*D43 -> 0 | E44: =E42*E43 -> 0 | F44: 0 | G44: 0 | H44: 0 | I44: 0 | J44: 0 | K44: 0 | L44: 0 | M44: 0 | N44: 0 | O44: 0 | P44: 0 | Q44: 0 | R44: 0 | S44: 0 | T44: 0 | U44: 0 | V44: 0 | W44: =W42*W43 -> 0
B46: =+Translations!A65 -> Cost of operation and maintainance
B47: =+Translations!A66 -> % of investment | C47: No | D47: 4 | E47: % | G47: =+Translations!A67 -> constant y2y change | J47: Yes | K47: 0 | L47: %
B48: =+Translations!A68 -> Operation and maintainance | C48: =+Translations!A46 -> Year | D48: =+Home!K12 -> 2017 | E48: =+D48+1 -> 2018 | F48: =+E48+1 -> 2019 | G48: =+F48+1 -> 2020 | H48: =+G48+1 -> 2021 | I48: =+H48+1 -> 2022 | J48: =+I48+1 -> 2023 | K48: =+J48+1 -> 2024 | L48: =+K48+1 -> 2025 | M48: =+L48+1 -> 2026 | N48: =+M48+1 -> 2027 | O48: =+N48+1 -> 2028 | P48: =+O48+1 -> 2029 | Q48: =+P48+1 -> 2030 | R48: =+Q48+1 -> 2031 | S48: =+R48+1 -> 2032 | T48: =+S48+1 -> 2033 | U48: =+T48+1 -> 2034 | V48: =+U48+1 -> 2035 | W48: =+V48+1 -> 2036
C49: =+Translations!A49 -> Cost in € | D49: 0 | E49: =D49*(1+(K47/100)) -> 0 | F49: =E49*(1+(K47/100)) -> 0 | G49: =F49*(1+(K47/100)) -> 0 | H49: =G49*(1+(K47/100)) -> 0 | I49: =H49*(1+(K47/100)) -> 0 | J49: =I49*(1+(K47/100)) -> 0 | K49: =J49*(1+(K47/100)) -> 0 | L49: =K49*(1+(K47/100)) -> 0 | M49: =L49*(1+(K47/100)) -> 0 | N49: =M49*(1+(K47/100)) -> 0 | O49: =N49*(1+(K47/100)) -> 0 | P49: =O49*(1+(K47/100)) -> 0 | Q49: =P49*(1+(K47/100)) -> 0 | R49: =Q49*(1+(K47/100)) -> 0 | S49: =R49*(1+(K47/100)) -> 0 | T49: =S49*(1+(K47/100)) -> 0 | U49: =T49*(1+(K47/100)) -> 0 | V49: =U49*(1+(K47/100)) -> 0 | W49: =V49*(1+(K47/100)) -> 0
B52: =+Translations!A69 -> Cost of services
B53: =+Translations!A70 -> Cost of management, insurance and lease
B54: =+Translations!A66 -> % of investment | C54: No | D54: 3 | E54: % | G54: =+Translations!A67 -> constant y2y change | J54: Yes | K54: 2 | L54: %
B55: =+Translations!A71 -> Management, insurance and lease | C55: =+Translations!A46 -> Year | D55: =+Home!K12 -> 2017 | E55: =+D55+1 -> 2018 | F55: =+E55+1 -> 2019 | G55: =+F55+1 -> 2020 | H55: =+G55+1 -> 2021 | I55: =+H55+1 -> 2022 | J55: =+I55+1 -> 2023 | K55: =+J55+1 -> 2024 | L55: =+K55+1 -> 2025 | M55: =+L55+1 -> 2026 | N55: =+M55+1 -> 2027 | O55: =+N55+1 -> 2028 | P55: =+O55+1 -> 2029 | Q55: =+P55+1 -> 2030 | R55: =+Q55+1 -> 2031 | S55: =+R55+1 -> 2032 | T55: =+S55+1 -> 2033 | U55: =+T55+1 -> 2034 | V55: =+U55+1 -> 2035 | W55: =+V55+1 -> 2036
C56: =+Translations!A49 -> Cost in € | E56: =D56*(1+(K54/100)) -> 0 | F56: =E56*(1+(K54/100)) -> 0 | G56: =F56*(1+(K54/100)) -> 0 | H56: =G56*(1+(K54/100)) -> 0 | I56: =H56*(1+(K54/100)) -> 0 | J56: =I56*(1+(K54/100)) -> 0 | K56: =J56*(1+(K54/100)) -> 0 | L56: =K56*(1+(K54/100)) -> 0 | M56: =L56*(1+(K54/100)) -> 0 | N56: =M56*(1+(K54/100)) -> 0 | O56: =N56*(1+(K54/100)) -> 0 | P56: =O56*(1+(K54/100)) -> 0 | Q56: =P56*(1+(K54/100)) -> 0 | R56: =Q56*(1+(K54/100)) -> 0 | S56: =R56*(1+(K54/100)) -> 0 | T56: =S56*(1+(K54/100)) -> 0 | U56: =T56*(1+(K54/100)) -> 0 | V56: =U56*(1+(K54/100)) -> 0 | W56: =V56*(1+(K54/100)) -> 0
B58: =+Translations!A72 -> Cost of promotional activities
B59: =+Translations!A73 -> Promotional activities | C59: =+Translations!A46 -> Year | D59: =+Home!K12 -> 2017 | E59: =+D59+1 -> 2018 | F59: =+E59+1 -> 2019 | G59: =+F59+1 -> 2020 | H59: =+G59+1 -> 2021 | I59: =+H59+1 -> 2022 | J59: =+I59+1 -> 2023 | K59: =+J59+1 -> 2024 | L59: =+K59+1 -> 2025 | M59: =+L59+1 -> 2026 | N59: =+M59+1 -> 2027 | O59: =+N59+1 -> 2028 | P59: =+O59+1 -> 2029 | Q59: =+P59+1 -> 2030 | R59: =+Q59+1 -> 2031 | S59: =+R59+1 -> 2032 | T59: =+S59+1 -> 2033 | U59: =+T59+1 -> 2034 | V59: =+U59+1 -> 2035 | W59: =+V59+1 -> 2036
C60: =+Translations!A49 -> Cost in € | N60: 5000 | O60: 5000 | P60: 5000 | Q60: 5000 | R60: 5000 | S60: 5000 | T60: 5000 | U60: 5000 | V60: 5000 | W60: 5000
B62: =+Translations!A74 -> Cost of other services
B63: =+Translations!A75 -> Other services | C63: =+Translations!A46 -> Year | D63: =+Home!K12 -> 2017 | E63: =+D63+1 -> 2018 | F63: =+E63+1 -> 2019 | G63: =+F63+1 -> 2020 | H63: =+G63+1 -> 2021 | I63: =+H63+1 -> 2022 | J63: =+I63+1 -> 2023 | K63: =+J63+1 -> 2024 | L63: =+K63+1 -> 2025 | M63: =+L63+1 -> 2026 | N63: =+M63+1 -> 2027 | O63: =+N63+1 -> 2028 | P63: =+O63+1 -> 2029 | Q63: =+P63+1 -> 2030 | R63: =+Q63+1 -> 2031 | S63: =+R63+1 -> 2032 | T63: =+S63+1 -> 2033 | U63: =+T63+1 -> 2034 | V63: =+U63+1 -> 2035 | W63: =+V63+1 -> 2036
C64: =+Translations!A49 -> Cost in € | N64: 0 | O64: 0 | P64: 0 | Q64: 0 | R64: 0 | S64: 0 | T64: 0 | U64: 0 | V64: 0 | W64: 0
B66: =+Translations!A76 -> Labour
B67: =+Translations!A77 -> Cost of labour
B68: =+Translations!A78 -> y2y salary cost change | D68: % | E68: =+Translations!A79 -> constant amount of employees | H68: Yes
B69: =+Translations!A80 -> Employment activities | C69: =+Translations!A46 -> Year | D69: =+Home!K12 -> 2017 | E69: =+D69+1 -> 2018 | F69: =+E69+1 -> 2019 | G69: =+F69+1 -> 2020 | H69: =+G69+1 -> 2021 | I69: =+H69+1 -> 2022 | J69: =+I69+1 -> 2023 | K69: =+J69+1 -> 2024 | L69: =+K69+1 -> 2025 | M69: =+L69+1 -> 2026 | N69: =+M69+1 -> 2027 | O69: =+N69+1 -> 2028 | P69: =+O69+1 -> 2029 | Q69: =+P69+1 -> 2030 | R69: =+Q69+1 -> 2031 | S69: =+R69+1 -> 2032 | T69: =+S69+1 -> 2033 | U69: =+T69+1 -> 2034 | V69: =+U69+1 -> 2035 | W69: =+V69+1 -> 2036
B70: =+Translations!A81 -> Number of new employees | C70: =+Translations!A85 -> Amount | E70: 0 | F70: 0 | G70: 0 | H70: 0 | I70: 0 | J70: 0 | K70: 0 | L70: 0 | M70: 0 | N70: 0 | O70: 0 | P70: 0 | Q70: 0 | R70: 0 | S70: 0 | T70: 0 | U70: 0 | V70: 0 | W70: 0
B71: =+Translations!A82 -> Average yearly salary cost per new employee | C71: =+Translations!A49 -> Cost in € | E71: 0 | F71: 0 | G71: 0 | H71: 0 | I71: 0 | J71: 0 | K71: 0 | L71: 0 | M71: 0 | N71: 0 | O71: 0 | P71: 0 | Q71: 0 | R71: 0 | S71: 0 | T71: 0 | U71: 0 | V71: 0 | W71: 0
B72: =+Translations!A83 -> Total yearly salary cost of all employees | C72: =+Translations!A49 -> Cost in € | D72: =+D70*D71 -> 0 | E72: =+(D72*(1+($C$68/100)))+(E70*E71) -> 0 | F72: =+(E72*(1+($C$68/100)))+(F70*F71) -> 0 | G72: =+(F72*(1+($C$68/100)))+(G70*G71) -> 0 | H72: 0 | I72: 0 | J72: 0 | K72: 0 | L72: 0 | M72: 0 | N72: 0 | O72: 0 | P72: 0 | Q72: 0 | R72: 0 | S72: 0 | T72: 0 | U72: 0 | V72: 0 | W72: 0
B73: =+Translations!A84 -> Total number of employees | C73: =+Translations!A85 -> Amount | D73: =SUM(D70) -> 0 | E73: =SUM(D70:E70) -> 0 | F73: =SUM(D70:F70) -> 0 | G73: =SUM(D70:G70) -> 0 | H73: =SUM(D70:H70) -> 0 | I73: =SUM(D70:I70) -> 0 | J73: =SUM(D70:J70) -> 0 | K73: =SUM(D70:K70) -> 0 | L73: =SUM(D70:L70) -> 0 | M73: =SUM(D70:M70) -> 0 | N73: =SUM(D70:N70) -> 0 | O73: =SUM(D70:O70) -> 0 | P73: =SUM(D70:P70) -> 0 | Q73: =SUM(D70:Q70) -> 0 | R73: =SUM(D70:R70) -> 0 | S73: =SUM(D70:S70) -> 0 | T73: =SUM(D70:T70) -> 0 | U73: =SUM(D70:U70) -> 0 | V73: =SUM(D70:V70) -> 0 | W73: =SUM(D70:W70) -> 0
B75: =+Translations!A86 -> Other expenses and losses
B76: =+Translations!A87 -> Other costs | C76: =+Translations!A46 -> Year | D76: =+Home!K12 -> 2017 | E76: =+D76+1 -> 2018 | F76: =+E76+1 -> 2019 | G76: =+F76+1 -> 2020 | H76: =+G76+1 -> 2021 | I76: =+H76+1 -> 2022 | J76: =+I76+1 -> 2023 | K76: =+J76+1 -> 2024 | L76: =+K76+1 -> 2025 | M76: =+L76+1 -> 2026 | N76: =+M76+1 -> 2027 | O76: =+N76+1 -> 2028 | P76: =+O76+1 -> 2029 | Q76: =+P76+1 -> 2030 | R76: =+Q76+1 -> 2031 | S76: =+R76+1 -> 2032 | T76: =+S76+1 -> 2033 | U76: =+T76+1 -> 2034 | V76: =+U76+1 -> 2035 | W76: =+V76+1 -> 2036
C77: =+Translations!A49 -> Cost in € | N77: 0 | O77: 0 | P77: 0 | Q77: 0 | R77: 0 | S77: 0 | T77: 0 | U77: 0 | V77: 0 | W77: 0

Sheet Revenues
B4: =+Translations!A89 -> ANNUAL REVENUES - REVENUE DEFINITION
B5: =+Translations!A90 -> Operating revenues
B6: =+Translations!A91 -> Electricity revenues
B7: =+Translations!A92 -> Average electricity price | D7: €/MWh | G7: =+Translations!A39 -> PRICE constant y2y change | J7: Yes | K7: 0 | L7: %
B8: =+Translations!A42 -> Volume | D8: =+Translations!A61 -> MWh/year | G8: =+Translations!A43 -> VOLUME constant y2y change | J8: Yes | K8: 0 | L8: %
B9: =+Translations!A62 -> Electricity | C9: =+Translations!A46 -> Year | D9: =+Home!K12 -> 2017 | E9: =+D9+1 -> 2018 | F9: =+E9+1 -> 2019 | G9: =+F9+1 -> 2020 | H9: =+G9+1 -> 2021 | I9: =+H9+1 -> 2022 | J9: =+I9+1 -> 2023 | K9: =+J9+1 -> 2024 | L9: =+K9+1 -> 2025 | M9: =+L9+1 -> 2026 | N9: =+M9+1 -> 2027 | O9: =+N9+1 -> 2028 | P9: =+O9+1 -> 2029 | Q9: =+P9+1 -> 2030 | R9: =+Q9+1 -> 2031 | S9: =+R9+1 -> 2032 | T9: =+S9+1 -> 2033 | U9: =+T9+1 -> 2034 | V9: =+U9+1 -> 2035 | W9: =+V9+1 -> 2036
C10: =+Translations!A47 -> Price in €/MWh | D10: =+$C$7 -> 0 | E10: =D10*(1+(K7/100)) -> 0 | F10: =E10*(1+(K7/100)) -> 0 | G10: =F10*(1+(K7/100)) -> 0 | H10: =G10*(1+(K7/100)) -> 0 | I10: =H10*(1+(K7/100)) -> 0 | J10: =I10*(1+(K7/100)) -> 0 | K10: =J10*(1+(K7/100)) -> 0 | L10: =K10*(1+(K7/100)) -> 0 | M10: =L10*(1+(K7/100)) -> 0 | N10: =M10*(1+(K7/100)) -> 0 | O10: =N10*(1+(K7/100)) -> 0 | P10: =O10*(1+(K7/100)) -> 0 | Q10: =P10*(1+(K7/100)) -> 0 | R10: =Q10*(1+(K7/100)) -> 0 | S10: =R10*(1+(K7/100)) -> 0 | T10: =S10*(1+(K7/100)) -> 0 | U10: =T10*(1+(K7/100)) -> 0 | V10: =U10*(1+(K7/100)) -> 0 | W10: =V10*(1+(K7/100)) -> 0
C11: =+Translations!A48 -> Volume in MWh | D11: =+C8 -> 0 | E11: =D11*(1+(K8/100)) -> 0 | F11: =E11*(1+(K8/100)) -> 0 | G11: =F11*(1+(K8/100)) -> 0 | H11: =G11*(1+(K8/100)) -> 0 | I11: =H11*(1+(K8/100)) -> 0 | J11: =I11*(1+(K8/100)) -> 0 | K11: =J11*(1+(K8/100)) -> 0 | L11: =K11*(1+(K8/100)) -> 0 | M11: =L11*(1+(K8/100)) -> 0 | N11: =M11*(1+(K8/100)) -> 0 | O11: =N11*(1+(K8/100)) -> 0 | P11: =O11*(1+(K8/100)) -> 0 | Q11: =P11*(1+(K8/100)) -> 0 | R11: =Q11*(1+(K8/100)) -> 0 | S11: =R11*(1+(K8/100)) -> 0 | T11: =S11*(1+(K8/100)) -> 0 | U11: =T11*(1+(K8/100)) -> 0 | V11: =U11*(1+(K8/100)) -> 0 | W11: =V11*(1+(K8/100)) -> 0
C12: =+Translations!A93 -> Revenues in € | D12: =+D10*D11 -> 0 | E12: =+E10*E11 -> 0 | F12: 0 | G12: 0 | H12: 0 | I12: 0 | J12: 0 | K12: 0 | L12: 0 | M12: 0 | N12: 0 | O12: 0 | P12: 0 | Q12: 0 | R12: 0 | S12: 0 | T12: 0 | U12: 0 | V12: 0 | W12: =+W10*W11 -> 0
B14: =+Translations!A94 -> Heat revenues
B15: =+Translations!A95 -> Heat price model | D15: Direct input of the heat price
B17: =+Translations!A100 -> Thermal energy price - Calculation from basic price, metering price and consumption
B18: =+Translations!A117 -> Customer type | C18: =+Translations!A118 -> Average connection power kW | D18: =+Translations!A119 -> Basic price (fixed) €/kW/year | E18: =+Translations!A120 -> Metering price €/year | F18: =+Translations!A121 -> Consumption price (variable) €/MWh | H18: =+Translations!A113 -> % of heat sold | I18: =+Translations!A122 -> Average consumption per consumer MWh/year | K18: =+Translations!A123 -> Average heat price €/MWh | M18: =+Translations!A114 -> Total demand MWh/year
B19: Households | H19: =IF(ISERROR(M19/(SUM($M$19:$M$23))),0,M19/(SUM($M$19:$M$23))) -> 0 | K19: =IF(ISERROR((((D19*C19)+E19+(F19*I19))/I19)),0,(((D19*C19)+E19+(F19*I19))/I19)) -> 0
B20: Public | H20: =IF(ISERROR(M20/(SUM($M$19:$M$23))),0,M20/(SUM($M$19:$M$23))) -> 0 | K20: =IF(ISERROR((((D20*C20)+E20+(F20*I20))/I20)),0,(((D20*C20)+E20+(F20*I20))/I20)) -> 0
B21: Industrial small | H21: =IF(ISERROR(M21/(SUM($M$19:$M$23))),0,M21/(SUM($M$19:$M$23))) -> 0 | K21: =IF(ISERROR((((D21*C21)+E21+(F21*I21))/I21)),0,(((D21*C21)+E21+(F21*I21))/I21)) -> 0
B22: Industrial medium | H22: =IF(ISERROR(M22/(SUM($M$19:$M$23))),0,M22/(SUM($M$19:$M$23))) -> 0 | K22: =IF(ISERROR((((D22*C22)+E22+(F22*I22))/I22)),0,(((D22*C22)+E22+(F22*I22))/I22)) -> 0
B23: Industrial large | H23: =IF(ISERROR(M23/(SUM($M$19:$M$23))),0,M23/(SUM($M$19:$M$23))) -> 0 | K23: =IF(ISERROR((((D23*C23)+E23+(F23*I23))/I23)),0,(((D23*C23)+E23+(F23*I23))/I23)) -> 0
B24: Average heat price | C24: =+((K19*H19)+(K20*H20)+(K21*H21)+(K22*H22)+(K23*H23)) -> 0 | E24: €/MWh
B26: =+Translations!A101 -> Thermal energy price - Calculation on the basis of price discount for larger consumption
B27: =+Translations!A103 -> Category | C27: =+Translations!A109 -> Lower limit from MWh/year | E27: =+Translations!A110 -> Upper limit up to MWh/year | G27: =+Translations!A111 -> Price discount factor | I27: =+Translations!A112 -> Price €/MWh | K27: =+Translations!A113 -> % of heat sold | M27: =+Translations!A114 -> Total demand MWh/year
B28: =+Translations!A104 -> Class 1 | C28: 0 | G28: 0 | K28: =IF(ISERROR(M28/(SUM($M$28:$M$32))),0,M28/(SUM($M$28:$M$32))) -> 0
B29: =+Translations!A105 -> Class 2 | C29: =+E28+1 -> 1 | I29: =+I28*(1-G29) -> 0 | K29: =IF(ISERROR(M29/(SUM($M$28:$M$32))),0,M29/(SUM($M$28:$M$32))) -> 0
B30: =+Translations!A106 -> Class 3 | C30: =+E29+1 -> 1 | I30: =+I28*(1-G30) -> 0 | K30: =IF(ISERROR(M30/(SUM($M$28:$M$32))),0,M30/(SUM($M$28:$M$32))) -> 0
B31: =+Translations!A107 -> Class 4 | C31: =+E30+1 -> 1 | I31: =+I28*(1-G31) -> 0 | K31: =IF(ISERROR(M31/(SUM($M$28:$M$32))),0,M31/(SUM($M$28:$M$32))) -> 0
B32: =+Translations!A108 -> Class 5 | C32: =+E31+1 -> 1 | E32: ∞ | I32: =+I28*(1-G32) -> 0 | K32: =IF(ISERROR(M32/(SUM($M$28:$M$32))),0,M32/(SUM($M$28:$M$32))) -> 0
B33: Average heat price | C33: =+(I28*K28)+(I29*K29)+(I30*K30)+(I31*K31)+(I32*K32) -> 0 | E33: €/MWh
B35: =+Translations!A99 -> Thermal energy price - Direct input of the heat price
B36: =+Translations!A115 -> Average heat price | D36: €/MWh | G36: =+Translations!A39 -> PRICE constant y2y change | J36: Yes | K36: 0 | L36: %
B37: =+Translations!A116 -> Total amount of heat sold | D37: =+Translations!A61 -> MWh/year | G37: =+Translations!A43 -> VOLUME constant y2y change | J37: Yes | K37: 0 | L37: %
B38: =+Translations!A124 -> Heat | C38: =+Translations!A46 -> Year | D38: =+Home!K12 -> 2017 | E38: =+D38+1 -> 2018 | F38: =+E38+1 -> 2019 | G38: =+F38+1 -> 2020 | H38: =+G38+1 -> 2021 | I38: =+H38+1 -> 2022 | J38: =+I38+1 -> 2023 | K38: =+J38+1 -> 2024 | L38: =+K38+1 -> 2025 | M38: =+L38+1 -> 2026 | N38: =+M38+1 -> 2027 | O38: =+N38+1 -> 2028 | P38: =+O38+1 -> 2029 | Q38: =+P38+1 -> 2030 | R38: =+Q38+1 -> 2031 | S38: =+R38+1 -> 2032 | T38: =+S38+1 -> 2033 | U38: =+T38+1 -> 2034 | V38: =+U38+1 -> 2035 | W38: =+V38+1 -> 2036
C39: =+Translations!A47 -> Price in €/MWh | D39: =C36 -> 0 | E39: =D39*(1+(K36/100)) -> 0 | F39: =E39*(1+(K36/100)) -> 0 | G39: =F39*(1+(K36/100)) -> 0 | H39: =G39*(1+(K36/100)) -> 0 | I39: =H39*(1+(K36/100)) -> 0 | J39: =I39*(1+(K36/100)) -> 0 | K39: =J39*(1+(K36/100)) -> 0 | L39: =K39*(1+(K36/100)) -> 0 | M39: =L39*(1+(K36/100)) -> 0 | N39: =M39*(1+(K36/100)) -> 0 | O39: =N39*(1+(K36/100)) -> 0 | P39: =O39*(1+(K36/100)) -> 0 | Q39: =P39*(1+(K36/100)) -> 0 | R39: =Q39*(1+(K36/100)) -> 0 | S39: =R39*(1+(K36/100)) -> 0 | T39: =S39*(1+(K36/100)) -> 0 | U39: =T39*(1+(K36/100)) -> 0 | V39: =U39*(1+(K36/100)) -> 0 | W39: =V39*(1+(K36/100)) -> 0
C40: =+Translations!A48 -> Volume in MWh | D40: =+C37 -> 0 | E40: =D40*(1+(K37/100)) -> 0 | F40: =E40*(1+(K37/100)) -> 0 | G40: =F40*(1+(K37/100)) -> 0 | H40: =G40*(1+(K37/100)) -> 0 | I40: =H40*(1+(K37/100)) -> 0 | J40: =I40*(1+(K37/100)) -> 0 | K40: =J40*(1+(K37/100)) -> 0 | L40: =K40*(1+(K37/100)) -> 0 | M40: =L40*(1+(K37/100)) -> 0 | N40: =M40*(1+(K37/100)) -> 0 | O40: =N40*(1+(K37/100)) -> 0 | P40: =O40*(1+(K37/100)) -> 0 | Q40: =P40*(1+(K37/100)) -> 0 | R40: =Q40*(1+(K37/100)) -> 0 | S40: =R40*(1+(K37/100)) -> 0 | T40: =S40*(1+(K37/100)) -> 0 | U40: =T40*(1+(K37/100)) -> 0 | V40: =U40*(1+(K37/100)) -> 0 | W40: =V40*(1+(K37/100)) -> 0
C41: =+Translations!A93 -> Revenues in € | D41: =+D39*D40 -> 0 | E41: =+E39*E40 -> 0 | F41: 0 | G41: 0 | H41: 0 | I41: 0 | J41: 0 | K41: 0 | L41: 0 | M41: 0 | N41: 0 | O41: 0 | P41: 0 | Q41: 0 | R41: 0 | S41: 0 | T41: 0 | U41: 0 | V41: 0 | W41: =+W39*W40 -> 0
B43: =+Translations!A125 -> Operating subsidies, aids and other sources of operating revenues
B44: =+Translations!A126 -> Operating subsidies | C44: =+Translations!A46 -> Year | D44: =+Home!K12 -> 2017 | E44: =+D44+1 -> 2018 | F44: =+E44+1 -> 2019 | G44: =+F44+1 -> 2020 | H44: =+G44+1 -> 2021 | I44: =+H44+1 -> 2022 | J44: =+I44+1 -> 2023 | K44: =+J44+1 -> 2024 | L44: =+K44+1 -> 2025 | M44: =+L44+1 -> 2026 | N44: =+M44+1 -> 2027 | O44: =+N44+1 -> 2028 | P44: =+O44+1 -> 2029 | Q44: =+P44+1 -> 2030 | R44: =+Q44+1 -> 2031 | S44: =+R44+1 -> 2032 | T44: =+S44+1 -> 2033 | U44: =+T44+1 -> 2034 | V44: =+U44+1 -> 2035 | W44: =+V44+1 -> 2036
C45: =+Translations!A93 -> Revenues in € | N45: 5000 | O45: 5000 | P45: 5000 | Q45: 5000 | R45: 5000 | S45: 5000 | T45: 5000 | U45: 5000 | V45: 5000 | W45: 5000
B47: =+Translations!A127 -> Other sources of revenues
B48: =+Translations!A128 -> Revenues from financial activities
B49: =+Translations!A129 -> Financial revenues | C49: =+Translations!A46 -> Year | D49: =+Home!K12 -> 2017 | E49: =+D49+1 -> 2018 | F49: =+E49+1 -> 2019 | G49: =+F49+1 -> 2020 | H49: =+G49+1 -> 2021 | I49: =+H49+1 -> 2022 | J49: =+I49+1 -> 2023 | K49: =+J49+1 -> 2024 | L49: =+K49+1 -> 2025 | M49: =+L49+1 -> 2026 | N49: =+M49+1 -> 2027 | O49: =+N49+1 -> 2028 | P49: =+O49+1 -> 2029 | Q49: =+P49+1 -> 2030 | R49: =+Q49+1 -> 2031 | S49: =+R49+1 -> 2032 | T49: =+S49+1 -> 2033 | U49: =+T49+1 -> 2034 | V49: =+U49+1 -> 2035 | W49: =+V49+1 -> 2036
C50: =+Translations!A93 -> Revenues in € | N50: 100 | O50: 100 | P50: 100 | Q50: 100 | R50: 100 | S50: 100 | T50: 100 | U50: 100 | V50: 100 | W50: 100
B52: =+Translations!A130 -> Other revenues and gains
B53: =+Translations!A131 -> Other revenues | C53: =+Translations!A46 -> Year | D53: =+Home!K12 -> 2017 | E53: =+D53+1 -> 2018 | F53: =+E53+1 -> 2019 | G53: =+F53+1 -> 2020 | H53: =+G53+1 -> 2021 | I53: =+H53+1 -> 2022 | J53: =+I53+1 -> 2023 | K53: =+J53+1 -> 2024 | L53: =+K53+1 -> 2025 | M53: =+L53+1 -> 2026 | N53: =+M53+1 -> 2027 | O53: =+N53+1 -> 2028 | P53: =+O53+1 -> 2029 | Q53: =+P53+1 -> 2030 | R53: =+Q53+1 -> 2031 | S53: =+R53+1 -> 2032 | T53: =+S53+1 -> 2033 | U53: =+T53+1 -> 2034 | V53: =+U53+1 -> 2035 | W53: =+V53+1 -> 2036
C54: =+Translations!A93 -> Revenues in € | N54: 100 | O54: 100 | P54: 100 | Q54: 100 | R54: 100 | S54: 100 | T54: 100 | U54: 100 | V54: 100 | W54: 100

Sheet Other parameters
B3: =+Translations!A133 -> OTHER PROJECT PARAMETERS
B4: =+Translations!A134 -> Cash conversion cycle
B5: =+Translations!A135 -> Average days of inventory | C5: 60 | D5: =+Translations!A146 -> days
B6: =+Translations!A136 -> Accounts receivable collection period | C6: 30 | D6: =+Translations!A146 -> days
B7: =+Translations!A137 -> Days payable | C7: 30 | D7: =+Translations!A146 -> days
B8: =+Translations!A138 -> Annual depreciation rates
B9: =+Translations!A139 -> Intangible assets | C9: 0.1
B10: =+Translations!A140 -> Buildings and constructions | C10: 0.05
B11: =+Translations!A141 -> Equipment, plant, vehicles, mechanization | C11: 0.05
B12: =+Translations!A142 -> Profitability calculation
B13: =+Translations!A143 -> Discount rate | C13: 0.04
B14: =+Translations!A144 -> Taxation
B15: =+Translations!A145 -> Corporate income tax | C15: 0.2

Sheet Investment_and_Financing
E7: =+Translations!A149 -> Projected investment cost in € | F7: =+Translations!A166 -> Value | G7: =+Translations!A167 -> Share %
E9: =+Translations!A150 -> 1. Buildings and construction works | F9: =+'Investment and financing'!D7 -> 0 | G9: =IF(ISERROR(F9/F17),0,F9/F17) -> 0
E10: =+Translations!A151 -> 2. Plot | F10: =+'Investment and financing'!D8 -> 0 | G10: =IF(ISERROR(F10/F17),0,F10/F17) -> 0
E11: =+Translations!A152 -> 3. Equipment/Machinery | F11: =+'Investment and financing'!D6 -> 0 | G11: =IF(ISERROR(F11/F17),0,F11/F17) -> 0
E12: =+Translations!A153 -> A. PROPERTY, PLANT AND EQUIPMENT | F12: =SUM(F9:F11) -> 0 | G12: =IF(ISERROR(F12/F17),0,F12/F17) -> 0
E13: =+Translations!A154 -> B. PROJECT AND INVESTMENT DOCUMENTATION | F13: =+'Investment and financing'!D9 -> 0 | G13: =IF(ISERROR(F13/F17),0,F13/F17) -> 0
E14: =+Translations!A155 -> C. INTANGIBLE ASSETS | F14: =+'Investment and financing'!D10 -> 0 | G14: =IF(ISERROR(F14/F17),0,F14/F17) -> 0
E15: =+Translations!A156 -> D. INVESTMENT COST (A+B+C) | F15: =F12+F13+F14 -> 0 | G15: =IF(ISERROR(F15/F17),0,F15/F17) -> 0
E16: =+Translations!A157 -> E. INITIAL WORKING CAPITAL | F16: =+'Investment and financing'!D11 -> 0 | G16: =IF(ISERROR(F16/F17),0,F16/F17) -> 0
E17: =+Translations!A158 -> F. TOTAL INVESTMENT COST (D+E) | F17: =+F15+F16 -> 0 | G17: =G12+G13+G14+G16 -> 0
E21: =+Translations!A159 -> Sources of investment cost financing in € | F21: =+Translations!A166 -> Value | G21: =+Translations!A167 -> Share %
E23: =+Translations!A160 -> A. PRIVATE EQUITY | F23: =+'Investment and financing'!D15 -> 0 | G23: =IF(ISERROR(F23/F28),0,F23/F28) -> 0
E24: =+Translations!A161 -> B. BANK LOANS | F24: =+'Investment and financing'!D16+'Investment and financing'!D17+'Investment and financing'!D18 -> 0 | G24: =IF(ISERROR(F24/F28),0,F24/F28) -> 0
E25: =+Translations!A162 -> C. CONNECTION FEES | F25: =+'Investment and financing'!D19 -> 0 | G25: =IF(ISERROR(F25/F28),0,F25/F28) -> 0
E26: =+Translations!A163 -> D. INVESTMENT SUBSIDIES | F26: =+'Investment and financing'!D20 -> 0 | G26: =IF(ISERROR(F26/F28),0,F26/F28) -> 0
E27: =+Translations!A164 -> Bridging loan | F27: =IF('Investment and financing'!K20>0,F26,"0") -> 0
E28: =+Translations!A165 -> E. TOTAL FINANCING (A+B+C+D) | F28: =+F23+F24+F25+F26 -> 0 | G28: =G23+G24+G25+G26 -> 0
E29: =IF(AND(F29=0,G29=0),"","NEUSKLAJEN SALDO (VIRI - INVESTICIJA)") -> 
E31: 1.3. Subvencija
E33: Izplačilo subvencije po zaključeni investiciji v EUR | G33: Znesek
E35: 1. Subvencija za stroške investicije (C. iz 1.2) | G35: =SUM(#REF!) -> 
E36: 2. Subvencija za stroške obratnih sredstev (D. iz 1.2) | G36: =SUM(#REF!) -> 
E37: A. SKUPAJ subvencija pri Slovenskem podjetniškem skladu | G37: =G35+G36 -> 

Sheet Revenues_
H5: 1
E7: =+Translations!A169 -> Source of revenue in € | F7: =+Home!K12 -> 2017 | G7: =+F7+1 -> 2018 | H7: =+G7+1 -> 2019 | I7: 2020 | J7: 2021 | K7: 2022 | L7: 2023 | M7: 2024 | N7: 2025 | O7: 2026 | P7: 2027 | Q7: 2028 | R7: 2029 | S7: 2030 | T7: 2031 | U7: 2032 | V7: 2033 | W7: 2034 | X7: 2035 | Y7: 2036
E9: =+Translations!A170 -> 1. ELECTRICITY REVENUES | F9: =+Revenues!D12 -> 0 | G9: =+Revenues!E12 -> 0 | H9: =+Revenues!F12 -> 0 | I9: =+Revenues!G12 -> 0 | J9: =+Revenues!H12 -> 0 | K9: =+Revenues!I12 -> 0 | L9: =+Revenues!J12 -> 0 | M9: =+Revenues!K12 -> 0 | N9: =+Revenues!L12 -> 0 | O9: =+Revenues!M12 -> 0 | P9: =+Revenues!N12 -> 0 | Q9: =+Revenues!O12 -> 0 | R9: =+Revenues!P12 -> 0 | S9: =+Revenues!Q12 -> 0 | T9: =+Revenues!R12 -> 0 | U9: =+Revenues!S12 -> 0 | V9: =+Revenues!T12 -> 0 | W9: =+Revenues!U12 -> 0 | X9: =+Revenues!V12 -> 0 | Y9: =+Revenues!W12 -> 0
E10: =+Translations!A171 -> 2. HEAT REVENUES | F10: =+Revenues!D41*$H$5 -> 0 | G10: =+Revenues!E41*$H$5 -> 0 | H10: =+Revenues!F41*$H$5 -> 0 | I10: =+Revenues!G41*$H$5 -> 0 | J10: =+Revenues!H41*$H$5 -> 0 | K10: =+Revenues!I41*$H$5 -> 0 | L10: =+Revenues!J41*$H$5 -> 0 | M10: =+Revenues!K41*$H$5 -> 0 | N10: =+Revenues!L41*$H$5 -> 0 | O10: =+Revenues!M41*$H$5 -> 0 | P10: =+Revenues!N41*$H$5 -> 0 | Q10: =+Revenues!O41*$H$5 -> 0 | R10: =+Revenues!P41*$H$5 -> 0 | S10: =+Revenues!Q41*$H$5 -> 0 | T10: =+Revenues!R41*$H$5 -> 0 | U10: =+Revenues!S41*$H$5 -> 0 | V10: =+Revenues!T41*$H$5 -> 0 | W10: =+Revenues!U41*$H$5 -> 0 | X10: =+Revenues!V41*$H$5 -> 0 | Y10: =+Revenues!W41*$H$5 -> 0
E11: =+Translations!A172 -> 3. OPERATING SUBSIDIES | F11: =+Revenues!D45 -> 0 | G11: =+Revenues!E45 -> 0 | H11: =+Revenues!F45 -> 0 | I11: =+Revenues!G45 -> 0 | J11: =+Revenues!H45 -> 0 | K11: =+Revenues!I45 -> 0 | L11: =+Revenues!J45 -> 0 | M11: =+Revenues!K45 -> 0 | N11: =+Revenues!L45 -> 0 | O11: =+Revenues!M45 -> 0 | P11: =+Revenues!N45 -> 5000 | Q11: =+Revenues!O45 -> 5000 | R11: =+Revenues!P45 -> 5000 | S11: =+Revenues!Q45 -> 5000 | T11: =+Revenues!R45 -> 5000 | U11: =+Revenues!S45 -> 5000 | V11: =+Revenues!T45 -> 5000 | W11: =+Revenues!U45 -> 5000 | X11: =+Revenues!V45 -> 5000 | Y11: =+Revenues!W45 -> 5000
E12: =+Translations!A173 -> A. GROSS OPERATING REVENUES | F12: =SUM(F9:F11) -> 0 | G12: =SUM(G9:G11) -> 0 | H12: 0 | I12: 0 | J12: 0 | K12: 0 | L12: 0 | M12: 0 | N12: 0 | O12: 0 | P12: 5000 | Q12: 5000 | R12: 5000 | S12: 5000 | T12: 5000 | U12: 5000 | V12: 5000 | W12: 5000 | X12: 5000 | Y12: 5000
E13: =+Translations!A174 -> 1. INVESTMENT SUBSIDIES | F13: =+Liabilities_and_Equity!G70 -> 0 | G13: =+Liabilities_and_Equity!H70 -> 0 | H13: =+Liabilities_and_Equity!I70 -> 0 | I13: =+Liabilities_and_Equity!J70 -> 0 | J13: =+Liabilities_and_Equity!K70 -> 0 | K13: =+Liabilities_and_Equity!L70 -> 0 | L13: =+Liabilities_and_Equity!M70 -> 0 | M13: =+Liabilities_and_Equity!N70 -> 0 | N13: =+Liabilities_and_Equity!O70 -> 0 | O13: =+Liabilities_and_Equity!P70 -> 0 | P13: =+Liabilities_and_Equity!Q70 -> 0 | Q13: =+Liabilities_and_Equity!R70 -> 0 | R13: =+Liabilities_and_Equity!S70 -> 0 | S13: =+Liabilities_and_Equity!T70 -> 0 | T13: =+Liabilities_and_Equity!U70 -> 0 | U13: =+Liabilities_and_Equity!V70 -> 0 | V13: =+Liabilities_and_Equity!W70 -> 0 | W13: =+Liabilities_and_Equity!X70 -> 0 | X13: =+Liabilities_and_Equity!Y70 -> 0 | Y13: =+Liabilities_and_Equity!Z70 -> 0
E14: =+Translations!A175 -> 2. FINANCIAL REVENUES | F14: =+Revenues!D50 -> 0 | G14: =+Revenues!E50 -> 0 | H14: =+Revenues!F50 -> 0 | I14: =+Revenues!G50 -> 0 | J14: =+Revenues!H50 -> 0 | K14: =+Revenues!I50 -> 0 | L14: =+Revenues!J50 -> 0 | M14: =+Revenues!K50 -> 0 | N14: =+Revenues!L50 -> 0 | O14: =+Revenues!M50 -> 0 | P14: =+Revenues!N50 -> 100 | Q14: =+Revenues!O50 -> 100 | R14: =+Revenues!P50 -> 100 | S14: =+Revenues!Q50 -> 100 | T14: =+Revenues!R50 -> 100 | U14: =+Revenues!S50 -> 100 | V14: =+Revenues!T50 -> 100 | W14: =+Revenues!U50 -> 100 | X14: =+Revenues!V50 -> 100 | Y14: =+Revenues!W50 -> 100
E15: =+Translations!A176 -> 3. OTHER REVENUES | F15: =+Revenues!D54 -> 0 | G15: =+Revenues!E54 -> 0 | H15: =+Revenues!F54 -> 0 | I15: =+Revenues!G54 -> 0 | J15: =+Revenues!H54 -> 0 | K15: =+Revenues!I54 -> 0 | L15: =+Revenues!J54 -> 0 | M15: =+Revenues!K54 -> 0 | N15: =+Revenues!L54 -> 0 | O15: =+Revenues!M54 -> 0 | P15: =+Revenues!N54 -> 100 | Q15: =+Revenues!O54 -> 100 | R15: =+Revenues!P54 -> 100 | S15: =+Revenues!Q54 -> 100 | T15: =+Revenues!R54 -> 100 | U15: =+Revenues!S54 -> 100 | V15: =+Revenues!T54 -> 100 | W15: =+Revenues!U54 -> 100 | X15: =+Revenues!V54 -> 100 | Y15: =+Revenues!W54 -> 100
E16: =+Translations!A177 -> B. OTHER SOURCES OF REVENUES | F16: =SUM(F13:F15) -> 0 | G16: =SUM(G13:G15) -> 0 | H16: 0 | I16: 0 | J16: 0 | K16: 0 | L16: 0 | M16: 0 | N16: 0 | O16: 0 | P16: 200 | Q16: 200 | R16: 200 | S16: 200 | T16: 200 | U16: 200 | V16: 200 | W16: 200 | X16: 200 | Y16: 200
E17: =+Translations!A178 -> C. TOTAL REVENUES (A + B) | F17: =+F12+F16 -> 0 | G17: =+G12+G16 -> 0 | H17: 0 | I17: 0 | J17: 0 | K17: 0 | L17: 0 | M17: 0 | N17: 0 | O17: 0 | P17: 5200 | Q17: 5200 | R17: 5200 | S17: 5200 | T17: 5200 | U17: 5200 | V17: 5200 | W17: 5200 | X17: 5200 | Y17: 5200

Sheet Operating_costs
G5: 1
E7: =+Translations!A180 -> Cost type in € | G7: =+Home!K12 -> 2017 | H7: =+G7+1 -> 2018 | I7: =+H7+1 -> 2019 | J7: 2020 | K7: 2021 | L7: 2022 | M7: 2023 | N7: 2024 | O7: 2025 | P7: 2026 | Q7: 2027 | R7: 2028 | S7: 2029 | T7: 2030 | U7: 2031 | V7: 2032 | W7: 2033 | X7: 2034 | Y7: 2035 | Z7: 2036
E9: =+Translations!A181 -> 1. Energy source costs | G9: =+'Operating costs'!D12+'Operating costs'!D20+'Operating costs'!D28+'Operating costs'!D36+'Operating costs'!D44 -> 0 | H9: =+'Operating costs'!E12+'Operating costs'!E20+'Operating costs'!E28+'Operating costs'!E36+'Operating costs'!E44 -> 0 | I9: =+'Operating costs'!F12+'Operating costs'!F20+'Operating costs'!F28+'Operating costs'!F36+'Operating costs'!F44 -> 0 | J9: =+'Operating costs'!G12+'Operating costs'!G20+'Operating costs'!G28+'Operating costs'!G36+'Operating costs'!G44 -> 0 | K9: =+'Operating costs'!H12+'Operating costs'!H20+'Operating costs'!H28+'Operating costs'!H36+'Operating costs'!H44 -> 0 | L9: =+'Operating costs'!I12+'Operating costs'!I20+'Operating costs'!I28+'Operating costs'!I36+'Operating costs'!I44 -> 0 | M9: =+'Operating costs'!J12+'Operating costs'!J20+'Operating costs'!J28+'Operating costs'!J36+'Operating costs'!J44 -> 0 | N9: =+'Operating costs'!K12+'Operating costs'!K20+'Operating costs'!K28+'Operating costs'!K36+'Operating costs'!K44 -> 0 | O9: =+'Operating costs'!L12+'Operating costs'!L20+'Operating costs'!L28+'Operating costs'!L36+'Operating costs'!L44 -> 0 | P9: =+'Operating costs'!M12+'Operating costs'!M20+'Operating costs'!M28+'Operating costs'!M36+'Operating costs'!M44 -> 0 | Q9: =+'Operating costs'!N12+'Operating costs'!N20+'Operating costs'!N28+'Operating costs'!N36+'Operating costs'!N44 -> 0 | R9: =+'Operating costs'!O12+'Operating costs'!O20+'Operating costs'!O28+'Operating costs'!O36+'Operating costs'!O44 -> 0 | S9: =+'Operating costs'!P12+'Operating costs'!P20+'Operating costs'!P28+'Operating costs'!P36+'Operating costs'!P44 -> 0 | T9: =+'Operating costs'!Q12+'Operating costs'!Q20+'Operating costs'!Q28+'Operating costs'!Q36+'Operating costs'!Q44 -> 0 | U9: =+'Operating costs'!R12+'Operating costs'!R20+'Operating costs'!R28+'Operating costs'!R36+'Operating costs'!R44 -> 0 | V9: =+'Operating costs'!S12+'Operating costs'!S20+'Operating costs'!S28+'Operating costs'!S36+'Operating costs'!S44 -> 0 | W9: =+'Operating costs'!T12+'Operating costs'!T20+'Operating costs'!T28+'Operating costs'!T36+'Operating costs'!T44 -> 0 | X9: =+'Operating costs'!U12+'Operating costs'!U20+'Operating costs'!U28+'Operating costs'!U36+'Operating costs'!U44 -> 0 | Y9: =+'Operating costs'!V12+'Operating costs'!V20+'Operating costs'!V28+'Operating costs'!V36+'Operating costs'!V44 -> 0 | Z9: =+'Operating costs'!W12+'Operating costs'!W20+'Operating costs'!W28+'Operating costs'!W36+'Operating costs'!W44 -> 0
E10: =+Translations!A182 -> 2. Operation and maintainance costs | G10: =+'Operating costs'!D49 -> 0 | H10: =+'Operating costs'!E49 -> 0 | I10: =+'Operating costs'!F49 -> 0 | J10: =+'Operating costs'!G49 -> 0 | K10: =+'Operating costs'!H49 -> 0 | L10: =+'Operating costs'!I49 -> 0 | M10: =+'Operating costs'!J49 -> 0 | N10: =+'Operating costs'!K49 -> 0 | O10: =+'Operating costs'!L49 -> 0 | P10: =+'Operating costs'!M49 -> 0 | Q10: =+'Operating costs'!N49 -> 0 | R10: =+'Operating costs'!O49 -> 0 | S10: =+'Operating costs'!P49 -> 0 | T10: =+'Operating costs'!Q49 -> 0 | U10: =+'Operating costs'!R49 -> 0 | V10: =+'Operating costs'!S49 -> 0 | W10: =+'Operating costs'!T49 -> 0 | X10: =+'Operating costs'!U49 -> 0 | Y10: =+'Operating costs'!V49 -> 0 | Z10: =+'Operating costs'!W49 -> 0
E11: =+Translations!A183 -> A. TOTAL OPERATING COSTS (1+2) | G11: =SUM(G9:G10)*$G$5 -> 0 | H11: 0 | I11: 0 | J11: 0 | K11: 0 | L11: 0 | M11: 0 | N11: 0 | O11: 0 | P11: 0 | Q11: 0 | R11: 0 | S11: 0 | T11: 0 | U11: 0 | V11: 0 | W11: 0 | X11: 0 | Y11: 0 | Z11: 0
E12: =+Translations!A184 -> 1. Cost of management, insurance and lease | G12: =+'Operating costs'!D56 -> 0 | H12: =+'Operating costs'!E56 -> 0 | I12: =+'Operating costs'!F56 -> 0 | J12: =+'Operating costs'!G56 -> 0 | K12: =+'Operating costs'!H56 -> 0 | L12: =+'Operating costs'!I56 -> 0 | M12: =+'Operating costs'!J56 -> 0 | N12: =+'Operating costs'!K56 -> 0 | O12: =+'Operating costs'!L56 -> 0 | P12: =+'Operating costs'!M56 -> 0 | Q12: =+'Operating costs'!N56 -> 0 | R12: =+'Operating costs'!O56 -> 0 | S12: =+'Operating costs'!P56 -> 0 | T12: =+'Operating costs'!Q56 -> 0 | U12: =+'Operating costs'!R56 -> 0 | V12: =+'Operating costs'!S56 -> 0 | W12: =+'Operating costs'!T56 -> 0 | X12: =+'Operating costs'!U56 -> 0 | Y12: =+'Operating costs'!V56 -> 0 | Z12: =+'Operating costs'!W56 -> 0
E13: =+Translations!A185 -> 2. Cost of promotional activities | G13: =+'Operating costs'!D60 -> 0 | H13: =+'Operating costs'!E60 -> 0 | I13: =+'Operating costs'!F60 -> 0 | J13: =+'Operating costs'!G60 -> 0 | K13: =+'Operating costs'!H60 -> 0 | L13: =+'Operating costs'!I60 -> 0 | M13: =+'Operating costs'!J60 -> 0 | N13: =+'Operating costs'!K60 -> 0 | O13: =+'Operating costs'!L60 -> 0 | P13: =+'Operating costs'!M60 -> 0 | Q13: =+'Operating costs'!N60 -> 5000 | R13: =+'Operating costs'!O60 -> 5000 | S13: =+'Operating costs'!P60 -> 5000 | T13: =+'Operating costs'!Q60 -> 5000 | U13: =+'Operating costs'!R60 -> 5000 | V13: =+'Operating costs'!S60 -> 5000 | W13: =+'Operating costs'!T60 -> 5000 | X13: =+'Operating costs'!U60 -> 5000 | Y13: =+'Operating costs'!V60 -> 5000 | Z13: =+'Operating costs'!W60 -> 5000
E14: =+Translations!A186 -> 3. Cost of other services | G14: =+'Operating costs'!D64 -> 0 | H14: =+'Operating costs'!E64 -> 0 | I14: =+'Operating costs'!F64 -> 0 | J14: =+'Operating costs'!G64 -> 0 | K14: =+'Operating costs'!H64 -> 0 | L14: =+'Operating costs'!I64 -> 0 | M14: =+'Operating costs'!J64 -> 0 | N14: =+'Operating costs'!K64 -> 0 | O14: =+'Operating costs'!L64 -> 0 | P14: =+'Operating costs'!M64 -> 0 | Q14: =+'Operating costs'!N64 -> 0 | R14: =+'Operating costs'!O64 -> 0 | S14: =+'Operating costs'!P64 -> 0 | T14: =+'Operating costs'!Q64 -> 0 | U14: =+'Operating costs'!R64 -> 0 | V14: =+'Operating costs'!S64 -> 0 | W14: =+'Operating costs'!T64 -> 0 | X14: =+'Operating costs'!U64 -> 0 | Y14: =+'Operating costs'!V64 -> 0 | Z14: =+'Operating costs'!W64 -> 0
E15: =+Translations!A187 -> B. TOTAL COSTS OF SERVICES (1+2+3) | G15: =SUM(G12:G14)*$G$5 -> 0 | H15: 0 | I15: 0 | J15: 0 | K15: 0 | L15: 0 | M15: 0 | N15: 0 | O15: 0 | P15: 0 | Q15: 5000 | R15: 5000 | S15: 5000 | T15: 5000 | U15: 5000 | V15: 5000 | W15: 5000 | X15: 5000 | Y15: 5000 | Z15: 5000
E16: =+Translations!A188 -> C. COSTS OF LABOUR | G16: =+'Operating costs'!D72 -> 0 | H16: =+'Operating costs'!E72 -> 0 | I16: =+'Operating costs'!F72 -> 0 | J16: =+'Operating costs'!G72 -> 0 | K16: =+'Operating costs'!H72 -> 0 | L16: =+'Operating costs'!I72 -> 0 | M16: =+'Operating costs'!J72 -> 0 | N16: =+'Operating costs'!K72 -> 0 | O16: =+'Operating costs'!L72 -> 0 | P16: =+'Operating costs'!M72 -> 0 | Q16: =+'Operating costs'!N72 -> 0 | R16: =+'Operating costs'!O72 -> 0 | S16: =+'Operating costs'!P72 -> 0 | T16: =+'Operating costs'!Q72 -> 0 | U16: =+'Operating costs'!R72 -> 0 | V16: =+'Operating costs'!S72 -> 0 | W16: =+'Operating costs'!T72 -> 0 | X16: =+'Operating costs'!U72 -> 0 | Y16: =+'Operating costs'!V72 -> 0 | Z16: =+'Operating costs'!W72 -> 0
E17: =+Translations!A189 -> D. DEPRECIATION AND AMORTIZATION COSTS | G17: =+Assets!G48 -> 0 | H17: =+Assets!H48 -> 0 | I17: =+Assets!I48 -> 0 | J17: =+Assets!J48 -> 0 | K17: =+Assets!K48 -> 0 | L17: =+Assets!L48 -> 0 | M17: =+Assets!M48 -> 0 | N17: =+Assets!N48 -> 0 | O17: =+Assets!O48 -> 0 | P17: =+Assets!P48 -> 0 | Q17: =+Assets!Q48 -> 0 | R17: =+Assets!R48 -> 0 | S17: =+Assets!S48 -> 0 | T17: =+Assets!T48 -> 0 | U17: =+Assets!U48 -> 0 | V17: =+Assets!V48 -> 0 | W17: =+Assets!W48 -> 0 | X17: =+Assets!X48 -> 0 | Y17: =+Assets!Y48 -> 0 | Z17: =+Assets!Z48 -> 0
E18: =+Translations!A190 -> E. FINANCIAL COSTS | G18: =+Liabilities_and_Equity!G52 -> 0 | H18: =+Liabilities_and_Equity!H52 -> 0 | I18: =+Liabilities_and_Equity!I52 -> 0 | J18: =+Liabilities_and_Equity!J52 -> 0 | K18: =+Liabilities_and_Equity!K52 -> 0 | L18: =+Liabilities_and_Equity!L52 -> 0 | M18: =+Liabilities_and_Equity!M52 -> 0 | N18: =+Liabilities_and_Equity!N52 -> 0 | O18: =+Liabilities_and_Equity!O52 -> 0 | P18: =+Liabilities_and_Equity!P52 -> 0 | Q18: =+Liabilities_and_Equity!Q52 -> 0 | R18: =+Liabilities_and_Equity!R52 -> 0 | S18: =+Liabilities_and_Equity!S52 -> 0 | T18: =+Liabilities_and_Equity!T52 -> 0 | U18: =+Liabilities_and_Equity!U52 -> 0 | V18: =+Liabilities_and_Equity!V52 -> 0 | W18: =+Liabilities_and_Equity!W52 -> 0 | X18: =+Liabilities_and_Equity!X52 -> 0 | Y18: =+Liabilities_and_Equity!Y52 -> 0 | Z18: =+Liabilities_and_Equity!Z52 -> 0
E19: =+Translations!A191 -> F. OTHER EXPENSES AND LOSSES | G19: =+'Operating costs'!D77 -> 0 | H19: =+'Operating costs'!E77 -> 0 | I19: =+'Operating costs'!F77 -> 0 | J19: =+'Operating costs'!G77 -> 0 | K19: =+'Operating costs'!H77 -> 0 | L19: =+'Operating costs'!I77 -> 0 | M19: =+'Operating costs'!J77 -> 0 | N19: =+'Operating costs'!K77 -> 0 | O19: =+'Operating costs'!L77 -> 0 | P19: =+'Operating costs'!M77 -> 0 | Q19: =+'Operating costs'!N77 -> 0 | R19: =+'Operating costs'!O77 -> 0 | S19: =+'Operating costs'!P77 -> 0 | T19: =+'Operating costs'!Q77 -> 0 | U19: =+'Operating costs'!R77 -> 0 | V19: =+'Operating costs'!S77 -> 0 | W19: =+'Operating costs'!T77 -> 0 | X19: =+'Operating costs'!U77 -> 0 | Y19: =+'Operating costs'!V77 -> 0 | Z19: =+'Operating costs'!W77 -> 0
E20: =+Translations!A192 -> G. INCOME TAXES | G20: =+Income_statement!E31 -> 0 | H20: =+Income_statement!F31 -> 0 | I20: =+Income_statement!G31 -> 0 | J20: =+Income_statement!H31 -> 0 | K20: =+Income_statement!I31 -> 0 | L20: =+Income_statement!J31 -> 0 | M20: =+Income_statement!K31 -> 0 | N20: =+Income_statement!L31 -> 0 | O20: =+Income_statement!M31 -> 0 | P20: =+Income_statement!N31 -> 0 | Q20: =+Income_statement!O31 -> 40 | R20: =+Income_statement!P31 -> 40 | S20: =+Income_statement!Q31 -> 40 | T20: =+Income_statement!R31 -> 40 | U20: =+Income_statement!S31 -> 40 | V20: =+Income_statement!T31 -> 40 | W20: =+Income_statement!U31 -> 40 | X20: =+Income_statement!V31 -> 40 | Y20: =+Income_statement!W31 -> 40 | Z20: =+Income_statement!X31 -> 40
E21: =+Translations!A193 -> H. TOTAL COSTS (A+B+C+D+E+F+G) | G21: =+G11+G15+G16+G17+G18+G19+G20 -> 0 | H21: =+H11+H15+H16+H17+H18+H19+H20 -> 0 | I21: 0 | J21: 0 | K21: 0 | L21: 0 | M21: 0 | N21: 0 | O21: 0 | P21: 0 | Q21: 5040 | R21: 5040 | S21: 5040 | T21: 5040 | U21: 5040 | V21: 5040 | W21: 5040 | X21: 5040 | Y21: 5040 | Z21: 5040

Sheet Assets
E11: =+Translations!A195 -> Inventories in stock and resources needed in € | G11: =+Home!K12 -> 2017 | H11: =+G11+1 -> 2018 | I11: =+H11+1 -> 2019 | J11: 2020 | K11: 2021 | L11: 2022 | M11: 2023 | N11: 2024 | O11: 2025 | P11: 2026 | Q11: 2027 | R11: 2028 | S11: 2029 | T11: 2030 | U11: 2031 | V11: 2032 | W11: 2033 | X11: 2034 | Y11: 2035 | Z11: 2036
H12: plan | I12: plan | J12: plan | K12: plan | L12: plan | M12: plan | N12: plan | O12: plan | P12: plan | Q12: plan | R12: plan | S12: plan | T12: plan | U12: plan | V12: plan | W12: plan | X12: plan | Y12: plan | Z12: plan
E13: =+Translations!A196 -> A. Average days of inventory | G13: =+'Other parameters'!C5 -> 60
E14: =+Translations!A197 -> B. Inventory turnover ratio | G14: =IF(ISERROR(365/G13),0,365/G13) -> 6.083333333
E15: =+Translations!A198 -> C. INVENTORIES IN STOCK ON 31ST OF DECEMBER | G15: =IF(ISERROR(('Operating costs'!D12+'Operating costs'!D20+'Operating costs'!D28+'Operating costs'!D49)/365*$G$13),0,('Operating costs'!D12+'Operating costs'!D20+'Operating costs'!D28+'Operating costs'!D49)/365*$G$13) -> 0 | H15: =IF(ISERROR(('Operating costs'!E12+'Operating costs'!E20+'Operating costs'!E28+'Operating costs'!E49)/365*$G$13),0,('Operating costs'!E12+'Operating costs'!E20+'Operating costs'!E28+'Operating costs'!E49)/365*$G$13) -> 0 | I15: =IF(ISERROR(('Operating costs'!F12+'Operating costs'!F20+'Operating costs'!F28+'Operating costs'!F49)/365*$G$13),0,('Operating costs'!F12+'Operating costs'!F20+'Operating costs'!F28+'Operating costs'!F49)/365*$G$13) -> 0 | J15: =IF(ISERROR(('Operating costs'!G12+'Operating costs'!G20+'Operating costs'!G28+'Operating costs'!G49)/365*$G$13),0,('Operating costs'!G12+'Operating costs'!G20+'Operating costs'!G28+'Operating costs'!G49)/365*$G$13) -> 0 | K15: =IF(ISERROR(('Operating costs'!H12+'Operating costs'!H20+'Operating costs'!H28+'Operating costs'!H49)/365*$G$13),0,('Operating costs'!H12+'Operating costs'!H20+'Operating costs'!H28+'Operating costs'!H49)/365*$G$13) -> 0 | L15: =IF(ISERROR(('Operating costs'!I12+'Operating costs'!I20+'Operating costs'!I28+'Operating costs'!I49)/365*$G$13),0,('Operating costs'!I12+'Operating costs'!I20+'Operating costs'!I28+'Operating costs'!I49)/365*$G$13) -> 0 | M15: =IF(ISERROR(('Operating costs'!J12+'Operating costs'!J20+'Operating costs'!J28+'Operating costs'!J49)/365*$G$13),0,('Operating costs'!J12+'Operating costs'!J20+'Operating costs'!J28+'Operating costs'!J49)/365*$G$13) -> 0 | N15: =IF(ISERROR(('Operating costs'!K12+'Operating costs'!K20+'Operating costs'!K28+'Operating costs'!K49)/365*$G$13),0,('Operating costs'!K12+'Operating costs'!K20+'Operating costs'!K28+'Operating costs'!K49)/365*$G$13) -> 0 | O15: =IF(ISERROR(('Operating costs'!L12+'Operating costs'!L20+'Operating costs'!L28+'Operating costs'!L49)/365*$G$13),0,('Operating costs'!L12+'Operating costs'!L20+'Operating costs'!L28+'Operating costs'!L49)/365*$G$13) -> 0 | P15: =IF(ISERROR(('Operating costs'!M12+'Operating costs'!M20+'Operating costs'!M28+'Operating costs'!M49)/365*$G$13),0,('Operating costs'!M12+'Operating costs'!M20+'Operating costs'!M28+'Operating costs'!M49)/365*$G$13) -> 0 | Q15: =IF(ISERROR(('Operating costs'!N12+'Operating costs'!N20+'Operating costs'!N28+'Operating costs'!N49)/365*$G$13),0,('Operating costs'!N12+'Operating costs'!N20+'Operating costs'!N28+'Operating costs'!N49)/365*$G$13) -> 0 | R15: =IF(ISERROR(('Operating costs'!O12+'Operating costs'!O20+'Operating costs'!O28+'Operating costs'!O49)/365*$G$13),0,('Operating costs'!O12+'Operating costs'!O20+'Operating costs'!O28+'Operating costs'!O49)/365*$G$13) -> 0 | S15: =IF(ISERROR(('Operating costs'!P12+'Operating costs'!P20+'Operating costs'!P28+'Operating costs'!P49)/365*$G$13),0,('Operating costs'!P12+'Operating costs'!P20+'Operating costs'!P28+'Operating costs'!P49)/365*$G$13) -> 0 | T15: =IF(ISERROR(('Operating costs'!Q12+'Operating costs'!Q20+'Operating costs'!Q28+'Operating costs'!Q49)/365*$G$13),0,('Operating costs'!Q12+'Operating costs'!Q20+'Operating costs'!Q28+'Operating costs'!Q49)/365*$G$13) -> 0 | U15: =IF(ISERROR(('Operating costs'!R12+'Operating costs'!R20+'Operating costs'!R28+'Operating costs'!R49)/365*$G$13),0,('Operating costs'!R12+'Operating costs'!R20+'Operating costs'!R28+'Operating costs'!R49)/365*$G$13) -> 0 | V15: =IF(ISERROR(('Operating costs'!S12+'Operating costs'!S20+'Operating costs'!S28+'Operating costs'!S49)/365*$G$13),0,('Operating costs'!S12+'Operating costs'!S20+'Operating costs'!S28+'Operating costs'!S49)/365*$G$13) -> 0 | W15: =IF(ISERROR(('Operating costs'!T12+'Operating costs'!T20+'Operating costs'!T28+'Operating costs'!T49)/365*$G$13),0,('Operating costs'!T12+'Operating costs'!T20+'Operating costs'!T28+'Operating costs'!T49)/365*$G$13) -> 0 | X15: =IF(ISERROR(('Operating costs'!U12+'Operating costs'!U20+'Operating costs'!U28+'Operating costs'!U49)/365*$G$13),0,('Operating costs'!U12+'Operating costs'!U20+'Operating costs'!U28+'Operating costs'!U49)/365*$G$13) -> 0 | Y15: =IF(ISERROR(('Operating costs'!V12+'Operating costs'!V20+'Operating costs'!V28+'Operating costs'!V49)/365*$G$13),0,('Operating costs'!V12+'Operating costs'!V20+'Operating costs'!V28+'Operating costs'!V49)/365*$G$13) -> 0 | Z15: =IF(ISERROR(('Operating costs'!W12+'Operating costs'!W20+'Operating costs'!W28+'Operating costs'!W49)/365*$G$13),0,('Operating costs'!W12+'Operating costs'!W20+'Operating costs'!W28+'Operating costs'!W49)/365*$G$13) -> 0
E16: =+Translations!A199 -> D. RESOURCES NEEDED TO FINANCE INVENTORIES | G16: =IF(ISERROR(G15/$G$14),0,G15/$G$14) -> 0 | H16: =IF(ISERROR(H15/$G$14),0,H15/$G$14) -> 0 | I16: 0 | J16: 0 | K16: 0 | L16: 0 | M16: 0 | N16: 0 | O16: 0 | P16: 0 | Q16: 0 | R16: 0 | S16: 0 | T16: 0 | U16: 0 | V16: 0 | W16: 0 | X16: 0 | Y16: 0 | Z16: 0
E24: =+Translations!A200 -> Accounts receivable and resources needed in € | G24: =+Home!K12 -> 2017 | H24: =+G24+1 -> 2018 | I24: =+H24+1 -> 2019 | J24: 2020 | K24: 2021 | L24: 2022 | M24: 2023 | N24: 2024 | O24: 2025 | P24: 2026 | Q24: 2027 | R24: 2028 | S24: 2029 | T24: 2030 | U24: 2031 | V24: 2032 | W24: 2033 | X24: 2034 | Y24: 2035 | Z24: 2036
H25: plan | I25: plan | J25: plan | K25: plan | L25: plan | M25: plan | N25: plan | O25: plan | P25: plan | Q25: plan | R25: plan | S25: plan | T25: plan | U25: plan | V25: plan | W25: plan | X25: plan | Y25: plan | Z25: plan
E26: =+Translations!A201 -> A. Accounts receivable collection period | G26: =+'Other parameters'!C6 -> 30
E27: =+Translations!A202 -> B. Accounts receivable turnover ratio | G27: =IF(ISERROR(365/G26),0,365/G26) -> 12.16666667
E28: =+Translations!A203 -> C. ACCOUNTS RECEIVABLE ON 31ST OF DECEMBER | G28: =IF(ISERROR(Revenues_!F12/$G$27),0,Revenues_!F12/$G$27) -> 0 | H28: =IF(ISERROR(Revenues_!G12/$G$27),0,Revenues_!G12/$G$27) -> 0 | I28: =IF(ISERROR(Revenues_!H12/$G$27),0,Revenues_!H12/$G$27) -> 0 | J28: =IF(ISERROR(Revenues_!I12/$G$27),0,Revenues_!I12/$G$27) -> 0 | K28: =IF(ISERROR(Revenues_!J12/$G$27),0,Revenues_!J12/$G$27) -> 0 | L28: =IF(ISERROR(Revenues_!K12/$G$27),0,Revenues_!K12/$G$27) -> 0 | M28: =IF(ISERROR(Revenues_!L12/$G$27),0,Revenues_!L12/$G$27) -> 0 | N28: =IF(ISERROR(Revenues_!M12/$G$27),0,Revenues_!M12/$G$27) -> 0 | O28: =IF(ISERROR(Revenues_!N12/$G$27),0,Revenues_!N12/$G$27) -> 0 | P28: =IF(ISERROR(Revenues_!O12/$G$27),0,Revenues_!O12/$G$27) -> 0 | Q28: =IF(ISERROR(Revenues_!P12/$G$27),0,Revenues_!P12/$G$27) -> 410.9589041 | R28: =IF(ISERROR(Revenues_!Q12/$G$27),0,Revenues_!Q12/$G$27) -> 410.9589041 | S28: =IF(ISERROR(Revenues_!R12/$G$27),0,Revenues_!R12/$G$27) -> 410.9589041 | T28: =IF(ISERROR(Revenues_!S12/$G$27),0,Revenues_!S12/$G$27) -> 410.9589041 | U28: =IF(ISERROR(Revenues_!T12/$G$27),0,Revenues_!T12/$G$27) -> 410.9589041 | V28: =IF(ISERROR(Revenues_!U12/$G$27),0,Revenues_!U12/$G$27) -> 410.9589041 | W28: =IF(ISERROR(Revenues_!V12/$G$27),0,Revenues_!V12/$G$27) -> 410.9589041 | X28: =IF(ISERROR(Revenues_!W12/$G$27),0,Revenues_!W12/$G$27) -> 410.9589041 | Y28: =IF(ISERROR(Revenues_!X12/$G$27),0,Revenues_!X12/$G$27) -> 410.9589041 | Z28: =IF(ISERROR(Revenues_!Y12/$G$27),0,Revenues_!Y12/$G$27) -> 410.9589041
E29: =+Translations!A204 -> D. RESOURCES NEEDED TO FINANCE THE ACCOUNTS RECEIVABLE | G29: =IF(ISERROR(G28/$G$27),0,G28/$G$27) -> 0 | H29: =IF(ISERROR(H28/$G$27),0,H28/$G$27) -> 0 | I29: 0 | J29: 0 | K29: 0 | L29: 0 | M29: 0 | N29: 0 | O29: 0 | P29: 0 | Q29: 33.77744417 | R29: 33.77744417 | S29: 33.77744417 | T29: 33.77744417 | U29: 33.77744417 | V29: 33.77744417 | W29: 33.77744417 | X29: 33.77744417 | Y29: 33.77744417 | Z29: 33.77744417
E31: =+Translations!A205 -> E. LONG-TERM ACCOUNTS RECEIVABLE ON 31ST OF DECEMBER | G31: 0 | H31: 0 | I31: 0 | J31: 0 | K31: 0 | L31: 0 | M31: 0 | N31: 0 | O31: 0 | P31: 0 | Q31: 0 | R31: 0 | S31: 0 | T31: 0 | U31: 0 | V31: 0 | W31: 0 | X31: 0 | Y31: 0 | Z31: 0
E36: =+Translations!A206 -> Annual depreciation rates in % Calculation of planned depreciation
E37: =+Translations!A207 -> A. INTANGIBLE ASSETS | J37: =+'Other parameters'!C9 -> 0.1
E38: =+Translations!A208 -> B. PROPERTY, PLANT AND EQUIPMENT
E39: =+Translations!A209 -> 1. Buildings and constructions | J39: =+'Other parameters'!C10 -> 0.05
E40: =+Translations!A210 -> 2. Equipment, plant, vehicles, mechanization | J40: =+'Other parameters'!C11 -> 0.05
E42: =+Translations!A211 -> Depreciation cost in € | G42: =+Home!K12 -> 2017 | H42: =+G42+1 -> 2018 | I42: =+H42+1 -> 2019 | J42: 2020 | K42: 2021 | L42: 2022 | M42: 2023 | N42: 2024 | O42: 2025 | P42: 2026 | Q42: 2027 | R42: 2028 | S42: 2029 | T42: 2030 | U42: 2031 | V42: 2032 | W42: 2033 | X42: 2034 | Y42: 2035 | Z42: 2036
H43: plan | I43: plan | J43: plan | K43: plan | L43: plan | M43: plan | N43: plan | O43: plan | P43: plan | Q43: plan | R43: plan | S43: plan | T43: plan | U43: plan | V43: plan | W43: plan | X43: plan | Y43: plan | Z43: plan
E44: =+Translations!A207 -> A. INTANGIBLE ASSETS | G44: =+$J$37*Investment_and_Financing!$F$14 -> 0 | H44: =IF(G52>$J$37*Investment_and_Financing!$F$14,$J$37*Investment_and_Financing!$F$14,G52) -> 0 | I44: =IF(H52>$J$37*Investment_and_Financing!$F$14,$J$37*Investment_and_Financing!$F$14,H52) -> 0 | J44: =IF(I52>$J$37*Investment_and_Financing!$F$14,$J$37*Investment_and_Financing!$F$14,I52) -> 0 | K44: =IF(J52>$J$37*Investment_and_Financing!$F$14,$J$37*Investment_and_Financing!$F$14,J52) -> 0 | L44: =IF(K52>$J$37*Investment_and_Financing!$F$14,$J$37*Investment_and_Financing!$F$14,K52) -> 0 | M44: =IF(L52>$J$37*Investment_and_Financing!$F$14,$J$37*Investment_and_Financing!$F$14,L52) -> 0 | N44: =IF(M52>$J$37*Investment_and_Financing!$F$14,$J$37*Investment_and_Financing!$F$14,M52) -> 0 | O44: =IF(N52>$J$37*Investment_and_Financing!$F$14,$J$37*Investment_and_Financing!$F$14,N52) -> 0 | P44: =IF(O52>$J$37*Investment_and_Financing!$F$14,$J$37*Investment_and_Financing!$F$14,O52) -> 0 | Q44: =IF(P52>$J$37*Investment_and_Financing!$F$14,$J$37*Investment_and_Financing!$F$14,P52) -> 0 | R44: =IF(Q52>$J$37*Investment_and_Financing!$F$14,$J$37*Investment_and_Financing!$F$14,Q52) -> 0 | S44: =IF(R52>$J$37*Investment_and_Financing!$F$14,$J$37*Investment_and_Financing!$F$14,R52) -> 0 | T44: =IF(S52>$J$37*Investment_and_Financing!$F$14,$J$37*Investment_and_Financing!$F$14,S52) -> 0 | U44: =IF(T52>$J$37*Investment_and_Financing!$F$14,$J$37*Investment_and_Financing!$F$14,T52) -> 0 | V44: =IF(U52>$J$37*Investment_and_Financing!$F$14,$J$37*Investment_and_Financing!$F$14,U52) -> 0 | W44: =IF(V52>$J$37*Investment_and_Financing!$F$14,$J$37*Investment_and_Financing!$F$14,V52) -> 0 | X44: =IF(W52>$J$37*Investment_and_Financing!$F$14,$J$37*Investment_and_Financing!$F$14,W52) -> 0 | Y44: =IF(X52>$J$37*Investment_and_Financing!$F$14,$J$37*Investment_and_Financing!$F$14,X52) -> 0 | Z44: =IF(Y52>$J$37*Investment_and_Financing!$F$14,$J$37*Investment_and_Financing!$F$14,Y52) -> 0
E45: =+Translations!A209 -> 1. Buildings and constructions | G45: =+$J$39*Investment_and_Financing!F9 -> 0 | H45: =IF(G53>$J$39*Investment_and_Financing!$F$9,$J$39*Investment_and_Financing!$F$9,G53) -> 0 | I45: =IF(H53>$J$39*Investment_and_Financing!$F$9,$J$39*Investment_and_Financing!$F$9,H53) -> 0 | J45: =IF(I53>$J$39*Investment_and_Financing!$F$9,$J$39*Investment_and_Financing!$F$9,I53) -> 0 | K45: =IF(J53>$J$39*Investment_and_Financing!$F$9,$J$39*Investment_and_Financing!$F$9,J53) -> 0 | L45: =IF(K53>$J$39*Investment_and_Financing!$F$9,$J$39*Investment_and_Financing!$F$9,K53) -> 0 | M45: =IF(L53>$J$39*Investment_and_Financing!$F$9,$J$39*Investment_and_Financing!$F$9,L53) -> 0 | N45: =IF(M53>$J$39*Investment_and_Financing!$F$9,$J$39*Investment_and_Financing!$F$9,M53) -> 0 | O45: =IF(N53>$J$39*Investment_and_Financing!$F$9,$J$39*Investment_and_Financing!$F$9,N53) -> 0 | P45: =IF(O53>$J$39*Investment_and_Financing!$F$9,$J$39*Investment_and_Financing!$F$9,O53) -> 0 | Q45: =IF(P53>$J$39*Investment_and_Financing!$F$9,$J$39*Investment_and_Financing!$F$9,P53) -> 0 | R45: =IF(Q53>$J$39*Investment_and_Financing!$F$9,$J$39*Investment_and_Financing!$F$9,Q53) -> 0 | S45: =IF(R53>$J$39*Investment_and_Financing!$F$9,$J$39*Investment_and_Financing!$F$9,R53) -> 0 | T45: =IF(S53>$J$39*Investment_and_Financing!$F$9,$J$39*Investment_and_Financing!$F$9,S53) -> 0 | U45: =IF(T53>$J$39*Investment_and_Financing!$F$9,$J$39*Investment_and_Financing!$F$9,T53) -> 0 | V45: =IF(U53>$J$39*Investment_and_Financing!$F$9,$J$39*Investment_and_Financing!$F$9,U53) -> 0 | W45: =IF(V53>$J$39*Investment_and_Financing!$F$9,$J$39*Investment_and_Financing!$F$9,V53) -> 0 | X45: =IF(W53>$J$39*Investment_and_Financing!$F$9,$J$39*Investment_and_Financing!$F$9,W53) -> 0 | Y45: =IF(X53>$J$39*Investment_and_Financing!$F$9,$J$39*Investment_and_Financing!$F$9,X53) -> 0 | Z45: =IF(Y53>$J$39*Investment_and_Financing!$F$9,$J$39*Investment_and_Financing!$F$9,Y53) -> 0
E46: =+Translations!A210 -> 2. Equipment, plant, vehicles, mechanization | G46: =+$J$40*(Investment_and_Financing!F11+Investment_and_Financing!F13) -> 0 | H46: =IF((G54-Investment_and_Financing!$F$10)>($J$40*(Investment_and_Financing!$F$11+Investment_and_Financing!$F$13)),($J$40*(Investment_and_Financing!$F$11+Investment_and_Financing!$F$13)),G54-Investment_and_Financing!$F$10) -> 0 | I46: =IF((H54-Investment_and_Financing!$F$10)>($J$40*(Investment_and_Financing!$F$11+Investment_and_Financing!$F$13)),($J$40*(Investment_and_Financing!$F$11+Investment_and_Financing!$F$13)),H54-Investment_and_Financing!$F$10) -> 0 | J46: =IF((I54-Investment_and_Financing!$F$10)>($J$40*(Investment_and_Financing!$F$11+Investment_and_Financing!$F$13)),($J$40*(Investment_and_Financing!$F$11+Investment_and_Financing!$F$13)),I54-Investment_and_Financing!$F$10) -> 0 | K46: =IF((J54-Investment_and_Financing!$F$10)>($J$40*(Investment_and_Financing!$F$11+Investment_and_Financing!$F$13)),($J$40*(Investment_and_Financing!$F$11+Investment_and_Financing!$F$13)),J54-Investment_and_Financing!$F$10) -> 0 | L46: =IF((K54-Investment_and_Financing!$F$10)>($J$40*(Investment_and_Financing!$F$11+Investment_and_Financing!$F$13)),($J$40*(Investment_and_Financing!$F$11+Investment_and_Financing!$F$13)),K54-Investment_and_Financing!$F$10) -> 0 | M46: =IF((L54-Investment_and_Financing!$F$10)>($J$40*(Investment_and_Financing!$F$11+Investment_and_Financing!$F$13)),($J$40*(Investment_and_Financing!$F$11+Investment_and_Financing!$F$13)),L54-Investment_and_Financing!$F$10) -> 0 | N46: =IF((M54-Investment_and_Financing!$F$10)>($J$40*(Investment_and_Financing!$F$11+Investment_and_Financing!$F$13)),($J$40*(Investment_and_Financing!$F$11+Investment_and_Financing!$F$13)),M54-Investment_and_Financing!$F$10) -> 0 | O46: =IF((N54-Investment_and_Financing!$F$10)>($J$40*(Investment_and_Financing!$F$11+Investment_and_Financing!$F$13)),($J$40*(Investment_and_Financing!$F$11+Investment_and_Financing!$F$13)),N54-Investment_and_Financing!$F$10) -> 0 | P46: =IF((O54-Investment_and_Financing!$F$10)>($J$40*(Investment_and_Financing!$F$11+Investment_and_Financing!$F$13)),($J$40*(Investment_and_Financing!$F$11+Investment_and_Financing!$F$13)),O54-Investment_and_Financing!$F$10) -> 0 | Q46: =IF((P54-Investment_and_Financing!$F$10)>($J$40*(Investment_and_Financing!$F$11+Investment_and_Financing!$F$13)),($J$40*(Investment_and_Financing!$F$11+Investment_and_Financing!$F$13)),P54-Investment_and_Financing!$F$10) -> 0 | R46: =IF((Q54-Investment_and_Financing!$F$10)>($J$40*(Investment_and_Financing!$F$11+Investment_and_Financing!$F$13)),($J$40*(Investment_and_Financing!$F$11+Investment_and_Financing!$F$13)),Q54-Investment_and_Financing!$F$10) -> 0 | S46: =IF((R54-Investment_and_Financing!$F$10)>($J$40*(Investment_and_Financing!$F$11+Investment_and_Financing!$F$13)),($J$40*(Investment_and_Financing!$F$11+Investment_and_Financing!$F$13)),R54-Investment_and_Financing!$F$10) -> 0 | T46: =IF((S54-Investment_and_Financing!$F$10)>($J$40*(Investment_and_Financing!$F$11+Investment_and_Financing!$F$13)),($J$40*(Investment_and_Financing!$F$11+Investment_and_Financing!$F$13)),S54-Investment_and_Financing!$F$10) -> 0 | U46: =IF((T54-Investment_and_Financing!$F$10)>($J$40*(Investment_and_Financing!$F$11+Investment_and_Financing!$F$13)),($J$40*(Investment_and_Financing!$F$11+Investment_and_Financing!$F$13)),T54-Investment_and_Financing!$F$10) -> 0 | V46: =IF((U54-Investment_and_Financing!$F$10)>($J$40*(Investment_and_Financing!$F$11+Investment_and_Financing!$F$13)),($J$40*(Investment_and_Financing!$F$11+Investment_and_Financing!$F$13)),U54-Investment_and_Financing!$F$10) -> 0 | W46: =IF((V54-Investment_and_Financing!$F$10)>($J$40*(Investment_and_Financing!$F$11+Investment_and_Financing!$F$13)),($J$40*(Investment_and_Financing!$F$11+Investment_and_Financing!$F$13)),V54-Investment_and_Financing!$F$10) -> 0 | X46: =IF((W54-Investment_and_Financing!$F$10)>($J$40*(Investment_and_Financing!$F$11+Investment_and_Financing!$F$13)),($J$40*(Investment_and_Financing!$F$11+Investment_and_Financing!$F$13)),W54-Investment_and_Financing!$F$10) -> 0 | Y46: =IF((X54-Investment_and_Financing!$F$10)>($J$40*(Investment_and_Financing!$F$11+Investment_and_Financing!$F$13)),($J$40*(Investment_and_Financing!$F$11+Investment_and_Financing!$F$13)),X54-Investment_and_Financing!$F$10) -> 0 | Z46: =IF((Y54-Investment_and_Financing!$F$10)>($J$40*(Investment_and_Financing!$F$11+Investment_and_Financing!$F$13)),($J$40*(Investment_and_Financing!$F$11+Investment_and_Financing!$F$13)),Y54-Investment_and_Financing!$F$10) -> 0
E47: =+Translations!A212 -> B. TOTAL PROPERTY, PLANT AND EQUIPMENT (1+2) | G47: =SUM(G45:G46) -> 0 | H47: 0 | I47: 0 | J47: 0 | K47: 0 | L47: 0 | M47: 0 | N47: 0 | O47: 0 | P47: 0 | Q47: 0 | R47: 0 | S47: 0 | T47: 0 | U47: 0 | V47: =SUM(V45:V46) -> 0 | W47: 0 | X47: 0 | Y47: 0 | Z47: 0
E48: =+Translations!A213 -> C. TOTAL (A+B) | G48: =G44+G47 -> 0 | H48: 0 | I48: 0 | J48: 0 | K48: 0 | L48: 0 | M48: 0 | N48: 0 | O48: 0 | P48: 0 | Q48: 0 | R48: 0 | S48: 0 | T48: 0 | U48: 0 | V48: =V44+V47 -> 0 | W48: 0 | X48: 0 | Y48: 0 | Z48: 0
E50: =+Translations!A214 -> Fixes assets value on 31st of December in € | G50: =+Home!K12 -> 2017 | H50: =+G50+1 -> 2018 | I50: =+H50+1 -> 2019 | J50: 2020 | K50: 2021 | L50: 2022 | M50: 2023 | N50: 2024 | O50: 2025 | P50: 2026 | Q50: 2027 | R50: 2028 | S50: 2029 | T50: 2030 | U50: 2031 | V50: 2032 | W50: 2033 | X50: 2034 | Y50: 2035 | Z50: 2036
H51: plan | I51: plan | J51: plan | K51: plan | L51: plan | M51: plan | N51: plan | O51: plan | P51: plan | Q51: plan | R51: plan | S51: plan | T51: plan | U51: plan | V51: plan | W51: plan | X51: plan | Y51: plan | Z51: plan
E52: =+Translations!A207 -> A. INTANGIBLE ASSETS | G52: =+Investment_and_Financing!F14-G44 -> 0 | H52: =+G52-H44 -> 0 | I52: =+H52-I44 -> 0 | J52: 0 | K52: 0 | L52: 0 | M52: 0 | N52: 0 | O52: 0 | P52: 0 | Q52: 0 | R52: 0 | S52: 0 | T52: 0 | U52: 0 | V52: 0 | W52: 0 | X52: 0 | Y52: 0 | Z52: 0
E53: =+Translations!A209 -> 1. Buildings and constructions | G53: =+Investment_and_Financing!F9-G45 -> 0 | H53: =+G53-H45 -> 0 | I53: 0 | J53: 0 | K53: 0 | L53: 0 | M53: 0 | N53: 0 | O53: 0 | P53: 0 | Q53: 0 | R53: 0 | S53: 0 | T53: 0 | U53: 0 | V53: 0 | W53: 0 | X53: 0 | Y53: 0 | Z53: 0
E54: =+Translations!A210 -> 2. Equipment, plant, vehicles, mechanization | G54: =+Investment_and_Financing!F11+Investment_and_Financing!F10+Investment_and_Financing!F13-G46 -> 0 | H54: =+G54-H46 -> 0 | I54: 0 | J54: 0 | K54: 0 | L54: 0 | M54: 0 | N54: 0 | O54: 0 | P54: 0 | Q54: 0 | R54: 0 | S54: 0 | T54: 0 | U54: 0 | V54: 0 | W54: 0 | X54: 0 | Y54: 0 | Z54: 0
E55: =+Translations!A212 -> B. TOTAL PROPERTY, PLANT AND EQUIPMENT (1+2) | G55: =SUM(G53:G54) -> 0 | H55: 0 | I55: 0 | J55: 0 | K55: 0 | L55: 0 | M55: 0 | N55: 0 | O55: 0 | P55: 0 | Q55: 0 | R55: 0 | S55: 0 | T55: 0 | U55: 0 | V55: =SUM(V53:V54) -> 0 | W55: 0 | X55: 0 | Y55: 0 | Z55: 0
E56: =+Translations!A213 -> C. TOTAL (A+B) | G56: =G52+G55 -> 0 | H56: 0 | I56: 0 | J56: 0 | K56: 0 | L56: 0 | M56: 0 | N56: 0 | O56: 0 | P56: 0 | Q56: 0 | R56: 0 | S56: 0 | T56: 0 | U56: 0 | V56: =V52+V55 -> 0 | W56: 0 | X56: 0 | Y56: 0 | Z56: 0

Sheet Liabilities_and_Equity
E9: =+Translations!A216 -> Accounts payable and deliveries financed by suppliers in € | G9: =+Home!K12 -> 2017 | H9: =+G9+1 -> 2018 | I9: =+H9+1 -> 2019 | J9: 2020 | K9: 2021 | L9: 2022 | M9: 2023 | N9: 2024 | O9: 2025 | P9: 2026 | Q9: 2027 | R9: 2028 | S9: 2029 | T9: 2030 | U9: 2031 | V9: 2032 | W9: 2033 | X9: 2034 | Y9: 2035 | Z9: 2036
H10: plan | I10: plan | J10: plan | K10: plan | L10: plan | M10: plan | N10: plan | O10: plan | P10: plan | Q10: plan | R10: plan | S10: plan | T10: plan | U10: plan | V10: plan | W10: plan | X10: plan | Y10: plan | Z10: plan
E11: =+Translations!A217 -> A. Days payable | G11: =+'Other parameters'!C7 -> 30
E12: =+Translations!A218 -> B. Accounts payable turnover ratio | G12: =IF(ISERROR(365/G11),0,365/G11) -> 12.16666667
E13: =+Translations!A219 -> C. ACCOUNTS PAYABLE ON 31ST OF DECEMBER | G13: =IF(ISERROR((Operating_costs!G11+Operating_costs!G15)/$G$12),0,(Operating_costs!G11+Operating_costs!G15)/$G$12) -> 0 | H13: =IF(ISERROR((Operating_costs!H11+Operating_costs!H15)/$G$12),0,(Operating_costs!H11+Operating_costs!H15)/$G$12) -> 0 | I13: =IF(ISERROR((Operating_costs!I11+Operating_costs!I15)/$G$12),0,(Operating_costs!I11+Operating_costs!I15)/$G$12) -> 0 | J13: =IF(ISERROR((Operating_costs!J11+Operating_costs!J15)/$G$12),0,(Operating_costs!J11+Operating_costs!J15)/$G$12) -> 0 | K13: =IF(ISERROR((Operating_costs!K11+Operating_costs!K15)/$G$12),0,(Operating_costs!K11+Operating_costs!K15)/$G$12) -> 0 | L13: =IF(ISERROR((Operating_costs!L11+Operating_costs!L15)/$G$12),0,(Operating_costs!L11+Operating_costs!L15)/$G$12) -> 0 | M13: =IF(ISERROR((Operating_costs!M11+Operating_costs!M15)/$G$12),0,(Operating_costs!M11+Operating_costs!M15)/$G$12) -> 0 | N13: =IF(ISERROR((Operating_costs!N11+Operating_costs!N15)/$G$12),0,(Operating_costs!N11+Operating_costs!N15)/$G$12) -> 0 | O13: =IF(ISERROR((Operating_costs!O11+Operating_costs!O15)/$G$12),0,(Operating_costs!O11+Operating_costs!O15)/$G$12) -> 0 | P13: =IF(ISERROR((Operating_costs!P11+Operating_costs!P15)/$G$12),0,(Operating_costs!P11+Operating_costs!P15)/$G$12) -> 0 | Q13: =IF(ISERROR((Operating_costs!Q11+Operating_costs!Q15)/$G$12),0,(Operating_costs!Q11+Operating_costs!Q15)/$G$12) -> 410.9589041 | R13: =IF(ISERROR((Operating_costs!R11+Operating_costs!R15)/$G$12),0,(Operating_costs!R11+Operating_costs!R15)/$G$12) -> 410.9589041 | S13: =IF(ISERROR((Operating_costs!S11+Operating_costs!S15)/$G$12),0,(Operating_costs!S11+Operating_costs!S15)/$G$12) -> 410.9589041 | T13: =IF(ISERROR((Operating_costs!T11+Operating_costs!T15)/$G$12),0,(Operating_costs!T11+Operating_costs!T15)/$G$12) -> 410.9589041 | U13: =IF(ISERROR((Operating_costs!U11+Operating_costs!U15)/$G$12),0,(Operating_costs!U11+Operating_costs!U15)/$G$12) -> 410.9589041 | V13: =IF(ISERROR((Operating_costs!V11+Operating_costs!V15)/$G$12),0,(Operating_costs!V11+Operating_costs!V15)/$G$12) -> 410.9589041 | W13: =IF(ISERROR((Operating_costs!W11+Operating_costs!W15)/$G$12),0,(Operating_costs!W11+Operating_costs!W15)/$G$12) -> 410.9589041 | X13: =IF(ISERROR((Operating_costs!X11+Operating_costs!X15)/$G$12),0,(Operating_costs!X11+Operating_costs!X15)/$G$12) -> 410.9589041 | Y13: =IF(ISERROR((Operating_costs!Y11+Operating_costs!Y15)/$G$12),0,(Operating_costs!Y11+Operating_costs!Y15)/$G$12) -> 410.9589041 | Z13: =IF(ISERROR((Operating_costs!Z11+Operating_costs!Z15)/$G$12),0,(Operating_costs!Z11+Operating_costs!Z15)/$G$12) -> 410.9589041
E14: =+Translations!A220 -> D. DELIVERIES FINANCED BY SUPPLIERS | G14: =IF(ISERROR(G13/$G$12),0,G13/$G$12) -> 0 | H14: =IF(ISERROR(H13/$G$12),0,H13/$G$12) -> 0 | I14: 0 | J14: 0 | K14: 0 | L14: 0 | M14: 0 | N14: 0 | O14: 0 | P14: 0 | Q14: 33.77744417 | R14: 33.77744417 | S14: 33.77744417 | T14: 33.77744417 | U14: 33.77744417 | V14: 33.77744417 | W14: 33.77744417 | X14: 33.77744417 | Y14: 33.77744417 | Z14: 33.77744417
E16: =+Translations!A221 -> E. LONG-TERM ACCOUNTS PAYABLE ON 31ST OF DECEMBER | G16: 0 | H16: 0 | I16: 0 | J16: 0 | K16: 0 | L16: 0 | M16: 0 | N16: 0 | O16: 0 | P16: 0 | Q16: 0 | R16: 0 | S16: 0 | T16: 0 | U16: 0 | V16: 0 | W16: 0 | X16: 0 | Y16: 0 | Z16: 0
E20: =+Translations!A222 -> Working capital requirements in € | G20: =+Home!K12 -> 2017 | H20: =+G20+1 -> 2018 | I20: =+H20+1 -> 2019 | J20: 2020 | K20: 2021 | L20: 2022 | M20: 2023 | N20: 2024 | O20: 2025 | P20: 2026 | Q20: 2027 | R20: 2028 | S20: 2029 | T20: 2030 | U20: 2031 | V20: 2032 | W20: 2033 | X20: 2034 | Y20: 2035 | Z20: 2036
H21: plan | I21: plan | J21: plan | K21: plan | L21: plan | M21: plan | N21: plan | O21: plan | P21: plan | Q21: plan | R21: plan | S21: plan | T21: plan | U21: plan | V21: plan | W21: plan | X21: plan | Y21: plan | Z21: plan
E22: =+Translations!A223 -> 1. Resources needed to finance inventories | G22: =+Assets!G16 -> 0 | H22: =+Assets!H16 -> 0 | I22: =+Assets!I16 -> 0 | J22: =+Assets!J16 -> 0 | K22: =+Assets!K16 -> 0 | L22: =+Assets!L16 -> 0 | M22: =+Assets!M16 -> 0 | N22: =+Assets!N16 -> 0 | O22: =+Assets!O16 -> 0 | P22: =+Assets!P16 -> 0 | Q22: =+Assets!Q16 -> 0 | R22: =+Assets!R16 -> 0 | S22: =+Assets!S16 -> 0 | T22: =+Assets!T16 -> 0 | U22: =+Assets!U16 -> 0 | V22: =+Assets!V16 -> 0 | W22: =+Assets!W16 -> 0 | X22: =+Assets!X16 -> 0 | Y22: =+Assets!Y16 -> 0 | Z22: =+Assets!Z16 -> 0
E23: =+Translations!A224 -> 2. Resources needed to finance the accounts receivable | G23: =+Assets!G29 -> 0 | H23: =+Assets!H29 -> 0 | I23: =+Assets!I29 -> 0 | J23: =+Assets!J29 -> 0 | K23: =+Assets!K29 -> 0 | L23: =+Assets!L29 -> 0 | M23: =+Assets!M29 -> 0 | N23: =+Assets!N29 -> 0 | O23: =+Assets!O29 -> 0 | P23: =+Assets!P29 -> 0 | Q23: =+Assets!Q29 -> 33.77744417 | R23: =+Assets!R29 -> 33.77744417 | S23: =+Assets!S29 -> 33.77744417 | T23: =+Assets!T29 -> 33.77744417 | U23: =+Assets!U29 -> 33.77744417 | V23: =+Assets!V29 -> 33.77744417 | W23: =+Assets!W29 -> 33.77744417 | X23: =+Assets!X29 -> 33.77744417 | Y23: =+Assets!Y29 -> 33.77744417 | Z23: =+Assets!Z29 -> 33.77744417
E24: =+Translations!A225 -> 3. Deliveries financed by suppliers | G24: =+G14 -> 0 | H24: 0 | I24: 0 | J24: 0 | K24: 0 | L24: 0 | M24: 0 | N24: 0 | O24: 0 | P24: 0 | Q24: 33.77744417 | R24: 33.77744417 | S24: 33.77744417 | T24: 33.77744417 | U24: 33.77744417 | V24: 33.77744417 | W24: 33.77744417 | X24: 33.77744417 | Y24: 33.77744417 | Z24: 33.77744417
E25: =+Translations!A226 -> A. WORKING CAPITAL SURPLUS (+) OR DEFICIT (-) (3-2-1) | G25: =G24-G23-G22 -> 0 | H25: 0 | I25: 0 | J25: 0 | K25: 0 | L25: 0 | M25: 0 | N25: 0 | O25: 0 | P25: 0 | Q25: 0 | R25: 0 | S25: 0 | T25: 0 | U25: 0 | V25: =V24-V23-V22 -> 0 | W25: 0 | X25: 0 | Y25: 0 | Z25: 0
E30: =+Translations!A227 -> Debt financing | F30: =+Translations!A228 -> Prinicpal in € | G30: =+Translations!A229 -> Interest rate | I30: =+Translations!A230 -> Repayment starting year | K30: =+Translations!A231 -> Number of instalments
E32: =+Translations!A232 -> Loan 1 | F32: =+IF('Investment and financing'!N16=0,0,'Investment and financing'!D16) -> 0 | G32: =+IF('Investment and financing'!N16=0,"",'Investment and financing'!J16) -> 0.05 | I32: =+IF('Investment and financing'!N16=0,"",'Investment and financing'!R16) -> 2016 | K32: =+IF('Investment and financing'!N16=0,"",'Investment and financing'!N16) -> 60
E33: =+Translations!A233 -> Loan 2 | F33: =+IF('Investment and financing'!N17=0,0,'Investment and financing'!D17) -> 0 | G33: =+IF('Investment and financing'!N17=0,"",'Investment and financing'!J17) -> 0.05 | I33: =+IF('Investment and financing'!N17=0,"",'Investment and financing'!R17) -> 2016 | K33: =+IF('Investment and financing'!N17=0,"",'Investment and financing'!N17) -> 120
E34: =+Translations!A234 -> Loan 3 | F34: =+IF('Investment and financing'!N18=0,0,'Investment and financing'!D18) -> 0 | G34: =+IF('Investment and financing'!N18=0,"",'Investment and financing'!J18) -> 0.05 | I34: =+IF('Investment and financing'!N18=0,"",'Investment and financing'!R18) -> 2016 | K34: =+IF('Investment and financing'!N18=0,"",'Investment and financing'!N18) -> 60
E35: =+Translations!A235 -> Bridge financing | F35: =+Translations!A228 -> Prinicpal in € | G35: =+Translations!A229 -> Interest rate | I35: =+Translations!A236 -> Payment due after | K35: =+Translations!A231 -> Number of instalments
E37: =+Translations!A237 -> Bridge financing loan | F37: =IF('Investment and financing'!K20>0,'Investment and financing'!D20,0) -> 0 | G37: =IF('Investment and financing'!K20>0,'Investment and financing'!P20,"") ->  | I37: =IF('Investment and financing'!K20>0,'Investment and financing'!K20,"") ->  | J37: =IF('Investment and financing'!K20>0,Translations!A238,"") ->  | K37: =IF('Investment and financing'!K20>0,1,"") -> 
E38: =+Translations!A239 -> TOTAL LOANS in € | F38: =SUM(F32:F37) -> 0
E40: =+Translations!A240 -> Trend of loans and payment of principal and interest in € | G40: =+Home!K12 -> 2017 | H40: =+G40+1 -> 2018 | I40: =+H40+1 -> 2019 | J40: 2020 | K40: 2021 | L40: 2022 | M40: 2023 | N40: 2024 | O40: 2025 | P40: 2026 | Q40: 2027 | R40: 2028 | S40: 2029 | T40: 2030 | U40: 2031 | V40: 2032 | W40: 2033 | X40: 2034 | Y40: 2035 | Z40: 2036
H41: plan | I41: plan | J41: plan | K41: plan | L41: plan | M41: plan | N41: plan | O41: plan | P41: plan | Q41: plan | R41: plan | S41: plan | T41: plan | U41: plan | V41: plan | W41: plan | X41: plan | Y41: plan | Z41: plan
E42: =+Translations!A241 -> A. TOTAL LOAN BALANCE ON 31ST OF DECEMBER | G42: =SUM(F32:F34)+F37-G47 -> 0 | H42: =+G42-H47 -> 0 | I42: 0 | J42: 0 | K42: 0 | L42: 0 | M42: 0 | N42: 0 | O42: 0 | P42: 0 | Q42: 0 | R42: 0 | S42: 0 | T42: 0 | U42: 0 | V42: 0 | W42: 0 | X42: 0 | Y42: 0 | Z42: 0
E43: =+Translations!A242 -> Annual Loan 1 payments | G43: =IF(ISERROR(VLOOKUP(G40,'Loan 1'!$A$7:$G$266,7,FALSE)),0,VLOOKUP(G40,'Loan 1'!$A$7:$G$266,7,FALSE)) -> 0 | H43: =IF(ISERROR(VLOOKUP(H40,'Loan 1'!$A$7:$G$266,7,FALSE)),0,VLOOKUP(H40,'Loan 1'!$A$7:$G$266,7,FALSE)) -> 0 | I43: =IF(ISERROR(VLOOKUP(I40,'Loan 1'!$A$7:$G$266,7,FALSE)),0,VLOOKUP(I40,'Loan 1'!$A$7:$G$266,7,FALSE)) -> 0 | J43: =IF(ISERROR(VLOOKUP(J40,'Loan 1'!$A$7:$G$266,7,FALSE)),0,VLOOKUP(J40,'Loan 1'!$A$7:$G$266,7,FALSE)) -> 0 | K43: =IF(ISERROR(VLOOKUP(K40,'Loan 1'!$A$7:$G$266,7,FALSE)),0,VLOOKUP(K40,'Loan 1'!$A$7:$G$266,7,FALSE)) -> 0 | L43: =IF(ISERROR(VLOOKUP(L40,'Loan 1'!$A$7:$G$266,7,FALSE)),0,VLOOKUP(L40,'Loan 1'!$A$7:$G$266,7,FALSE)) -> 0 | M43: =IF(ISERROR(VLOOKUP(M40,'Loan 1'!$A$7:$G$266,7,FALSE)),0,VLOOKUP(M40,'Loan 1'!$A$7:$G$266,7,FALSE)) -> 0 | N43: =IF(ISERROR(VLOOKUP(N40,'Loan 1'!$A$7:$G$266,7,FALSE)),0,VLOOKUP(N40,'Loan 1'!$A$7:$G$266,7,FALSE)) -> 0 | O43: =IF(ISERROR(VLOOKUP(O40,'Loan 1'!$A$7:$G$266,7,FALSE)),0,VLOOKUP(O40,'Loan 1'!$A$7:$G$266,7,FALSE)) -> 0 | P43: =IF(ISERROR(VLOOKUP(P40,'Loan 1'!$A$7:$G$266,7,FALSE)),0,VLOOKUP(P40,'Loan 1'!$A$7:$G$266,7,FALSE)) -> 0 | Q43: =IF(ISERROR(VLOOKUP(Q40,'Loan 1'!$A$7:$G$266,7,FALSE)),0,VLOOKUP(Q40,'Loan 1'!$A$7:$G$266,7,FALSE)) -> 0 | R43: =IF(ISERROR(VLOOKUP(R40,'Loan 1'!$A$7:$G$266,7,FALSE)),0,VLOOKUP(R40,'Loan 1'!$A$7:$G$266,7,FALSE)) -> 0 | S43: =IF(ISERROR(VLOOKUP(S40,'Loan 1'!$A$7:$G$266,7,FALSE)),0,VLOOKUP(S40,'Loan 1'!$A$7:$G$266,7,FALSE)) -> 0 | T43: =IF(ISERROR(VLOOKUP(T40,'Loan 1'!$A$7:$G$266,7,FALSE)),0,VLOOKUP(T40,'Loan 1'!$A$7:$G$266,7,FALSE)) -> 0 | U43: =IF(ISERROR(VLOOKUP(U40,'Loan 1'!$A$7:$G$266,7,FALSE)),0,VLOOKUP(U40,'Loan 1'!$A$7:$G$266,7,FALSE)) -> 0 | V43: =IF(ISERROR(VLOOKUP(V40,'Loan 1'!$A$7:$G$266,7,FALSE)),0,VLOOKUP(V40,'Loan 1'!$A$7:$G$266,7,FALSE)) -> 0 | W43: =IF(ISERROR(VLOOKUP(W40,'Loan 1'!$A$7:$G$266,7,FALSE)),0,VLOOKUP(W40,'Loan 1'!$A$7:$G$266,7,FALSE)) -> 0 | X43: =IF(ISERROR(VLOOKUP(X40,'Loan 1'!$A$7:$G$266,7,FALSE)),0,VLOOKUP(X40,'Loan 1'!$A$7:$G$266,7,FALSE)) -> 0 | Y43: =IF(ISERROR(VLOOKUP(Y40,'Loan 1'!$A$7:$G$266,7,FALSE)),0,VLOOKUP(Y40,'Loan 1'!$A$7:$G$266,7,FALSE)) -> 0 | Z43: =IF(ISERROR(VLOOKUP(Z40,'Loan 1'!$A$7:$G$266,7,FALSE)),0,VLOOKUP(Z40,'Loan 1'!$A$7:$G$266,7,FALSE)) -> 0
E44: =+Translations!A243 -> Annual Loan 2 payments | G44: =IF(ISERROR(VLOOKUP(G40,'Loan 2'!$A$7:$G$266,7,FALSE)),0,VLOOKUP(G40,'Loan 2'!$A$7:$G$266,7,FALSE)) -> 0 | H44: =IF(ISERROR(VLOOKUP(H40,'Loan 2'!$A$7:$G$266,7,FALSE)),0,VLOOKUP(H40,'Loan 2'!$A$7:$G$266,7,FALSE)) -> 0 | I44: =IF(ISERROR(VLOOKUP(I40,'Loan 2'!$A$7:$G$266,7,FALSE)),0,VLOOKUP(I40,'Loan 2'!$A$7:$G$266,7,FALSE)) -> 0 | J44: =IF(ISERROR(VLOOKUP(J40,'Loan 2'!$A$7:$G$266,7,FALSE)),0,VLOOKUP(J40,'Loan 2'!$A$7:$G$266,7,FALSE)) -> 0 | K44: =IF(ISERROR(VLOOKUP(K40,'Loan 2'!$A$7:$G$266,7,FALSE)),0,VLOOKUP(K40,'Loan 2'!$A$7:$G$266,7,FALSE)) -> 0 | L44: =IF(ISERROR(VLOOKUP(L40,'Loan 2'!$A$7:$G$266,7,FALSE)),0,VLOOKUP(L40,'Loan 2'!$A$7:$G$266,7,FALSE)) -> 0 | M44: =IF(ISERROR(VLOOKUP(M40,'Loan 2'!$A$7:$G$266,7,FALSE)),0,VLOOKUP(M40,'Loan 2'!$A$7:$G$266,7,FALSE)) -> 0 | N44: =IF(ISERROR(VLOOKUP(N40,'Loan 2'!$A$7:$G$266,7,FALSE)),0,VLOOKUP(N40,'Loan 2'!$A$7:$G$266,7,FALSE)) -> 0 | O44: =IF(ISERROR(VLOOKUP(O40,'Loan 2'!$A$7:$G$266,7,FALSE)),0,VLOOKUP(O40,'Loan 2'!$A$7:$G$266,7,FALSE)) -> 0 | P44: =IF(ISERROR(VLOOKUP(P40,'Loan 2'!$A$7:$G$266,7,FALSE)),0,VLOOKUP(P40,'Loan 2'!$A$7:$G$266,7,FALSE)) -> 0 | Q44: =IF(ISERROR(VLOOKUP(Q40,'Loan 2'!$A$7:$G$266,7,FALSE)),0,VLOOKUP(Q40,'Loan 2'!$A$7:$G$266,7,FALSE)) -> 0 | R44: =IF(ISERROR(VLOOKUP(R40,'Loan 2'!$A$7:$G$266,7,FALSE)),0,VLOOKUP(R40,'Loan 2'!$A$7:$G$266,7,FALSE)) -> 0 | S44: =IF(ISERROR(VLOOKUP(S40,'Loan 2'!$A$7:$G$266,7,FALSE)),0,VLOOKUP(S40,'Loan 2'!$A$7:$G$266,7,FALSE)) -> 0 | T44: =IF(ISERROR(VLOOKUP(T40,'Loan 2'!$A$7:$G$266,7,FALSE)),0,VLOOKUP(T40,'Loan 2'!$A$7:$G$266,7,FALSE)) -> 0 | U44: =IF(ISERROR(VLOOKUP(U40,'Loan 2'!$A$7:$G$266,7,FALSE)),0,VLOOKUP(U40,'Loan 2'!$A$7:$G$266,7,FALSE)) -> 0 | V44: =IF(ISERROR(VLOOKUP(V40,'Loan 2'!$A$7:$G$266,7,FALSE)),0,VLOOKUP(V40,'Loan 2'!$A$7:$G$266,7,FALSE)) -> 0 | W44: =IF(ISERROR(VLOOKUP(W40,'Loan 2'!$A$7:$G$266,7,FALSE)),0,VLOOKUP(W40,'Loan 2'!$A$7:$G$266,7,FALSE)) -> 0 | X44: =IF(ISERROR(VLOOKUP(X40,'Loan 2'!$A$7:$G$266,7,FALSE)),0,VLOOKUP(X40,'Loan 2'!$A$7:$G$266,7,FALSE)) -> 0 | Y44: =IF(ISERROR(VLOOKUP(Y40,'Loan 2'!$A$7:$G$266,7,FALSE)),0,VLOOKUP(Y40,'Loan 2'!$A$7:$G$266,7,FALSE)) -> 0 | Z44: =IF(ISERROR(VLOOKUP(Z40,'Loan 2'!$A$7:$G$266,7,FALSE)),0,VLOOKUP(Z40,'Loan 2'!$A$7:$G$266,7,FALSE)) -> 0
E45: =+Translations!A244 -> Annual Loan 3 payments | G45: =IF(ISERROR(VLOOKUP(G40,'Loan 3'!$A$7:$G$266,7,FALSE)),0,VLOOKUP(G40,'Loan 3'!$A$7:$G$266,7,FALSE)) -> 0 | H45: =IF(ISERROR(VLOOKUP(H40,'Loan 3'!$A$7:$G$266,7,FALSE)),0,VLOOKUP(H40,'Loan 3'!$A$7:$G$266,7,FALSE)) -> 0 | I45: =IF(ISERROR(VLOOKUP(I40,'Loan 3'!$A$7:$G$266,7,FALSE)),0,VLOOKUP(I40,'Loan 3'!$A$7:$G$266,7,FALSE)) -> 0 | J45: =IF(ISERROR(VLOOKUP(J40,'Loan 3'!$A$7:$G$266,7,FALSE)),0,VLOOKUP(J40,'Loan 3'!$A$7:$G$266,7,FALSE)) -> 0 | K45: =IF(ISERROR(VLOOKUP(K40,'Loan 3'!$A$7:$G$266,7,FALSE)),0,VLOOKUP(K40,'Loan 3'!$A$7:$G$266,7,FALSE)) -> 0 | L45: =IF(ISERROR(VLOOKUP(L40,'Loan 3'!$A$7:$G$266,7,FALSE)),0,VLOOKUP(L40,'Loan 3'!$A$7:$G$266,7,FALSE)) -> 0 | M45: =IF(ISERROR(VLOOKUP(M40,'Loan 3'!$A$7:$G$266,7,FALSE)),0,VLOOKUP(M40,'Loan 3'!$A$7:$G$266,7,FALSE)) -> 0 | N45: =IF(ISERROR(VLOOKUP(N40,'Loan 3'!$A$7:$G$266,7,FALSE)),0,VLOOKUP(N40,'Loan 3'!$A$7:$G$266,7,FALSE)) -> 0 | O45: =IF(ISERROR(VLOOKUP(O40,'Loan 3'!$A$7:$G$266,7,FALSE)),0,VLOOKUP(O40,'Loan 3'!$A$7:$G$266,7,FALSE)) -> 0 | P45: =IF(ISERROR(VLOOKUP(P40,'Loan 3'!$A$7:$G$266,7,FALSE)),0,VLOOKUP(P40,'Loan 3'!$A$7:$G$266,7,FALSE)) -> 0 | Q45: =IF(ISERROR(VLOOKUP(Q40,'Loan 3'!$A$7:$G$266,7,FALSE)),0,VLOOKUP(Q40,'Loan 3'!$A$7:$G$266,7,FALSE)) -> 0 | R45: =IF(ISERROR(VLOOKUP(R40,'Loan 3'!$A$7:$G$266,7,FALSE)),0,VLOOKUP(R40,'Loan 3'!$A$7:$G$266,7,FALSE)) -> 0 | S45: =IF(ISERROR(VLOOKUP(S40,'Loan 3'!$A$7:$G$266,7,FALSE)),0,VLOOKUP(S40,'Loan 3'!$A$7:$G$266,7,FALSE)) -> 0 | T45: =IF(ISERROR(VLOOKUP(T40,'Loan 3'!$A$7:$G$266,7,FALSE)),0,VLOOKUP(T40,'Loan 3'!$A$7:$G$266,7,FALSE)) -> 0 | U45: =IF(ISERROR(VLOOKUP(U40,'Loan 3'!$A$7:$G$266,7,FALSE)),0,VLOOKUP(U40,'Loan 3'!$A$7:$G$266,7,FALSE)) -> 0 | V45: =IF(ISERROR(VLOOKUP(V40,'Loan 3'!$A$7:$G$266,7,FALSE)),0,VLOOKUP(V40,'Loan 3'!$A$7:$G$266,7,FALSE)) -> 0 | W45: =IF(ISERROR(VLOOKUP(W40,'Loan 3'!$A$7:$G$266,7,FALSE)),0,VLOOKUP(W40,'Loan 3'!$A$7:$G$266,7,FALSE)) -> 0 | X45: =IF(ISERROR(VLOOKUP(X40,'Loan 3'!$A$7:$G$266,7,FALSE)),0,VLOOKUP(X40,'Loan 3'!$A$7:$G$266,7,FALSE)) -> 0 | Y45: =IF(ISERROR(VLOOKUP(Y40,'Loan 3'!$A$7:$G$266,7,FALSE)),0,VLOOKUP(Y40,'Loan 3'!$A$7:$G$266,7,FALSE)) -> 0 | Z45: =IF(ISERROR(VLOOKUP(Z40,'Loan 3'!$A$7:$G$266,7,FALSE)),0,VLOOKUP(Z40,'Loan 3'!$A$7:$G$266,7,FALSE)) -> 0
E46: =+Translations!A245 -> Bridge financing loan payments | G46: =IF(ISERROR(VLOOKUP(G40,'Bridge financing loan'!$A$7:$F$136,6,FALSE)),0,VLOOKUP(G40,'Bridge financing loan'!$A$7:$F$136,6,FALSE)) -> 0 | H46: =IF(ISERROR(VLOOKUP(H40,'Bridge financing loan'!$A$7:$F$136,6,FALSE)),0,VLOOKUP(H40,'Bridge financing loan'!$A$7:$F$136,6,FALSE)) -> 0 | I46: =IF(ISERROR(VLOOKUP(I40,'Bridge financing loan'!$A$7:$F$136,6,FALSE)),0,VLOOKUP(I40,'Bridge financing loan'!$A$7:$F$136,6,FALSE)) -> 0 | J46: =IF(ISERROR(VLOOKUP(J40,'Bridge financing loan'!$A$7:$F$136,6,FALSE)),0,VLOOKUP(J40,'Bridge financing loan'!$A$7:$F$136,6,FALSE)) -> 0 | K46: =IF(ISERROR(VLOOKUP(K40,'Bridge financing loan'!$A$7:$F$136,6,FALSE)),0,VLOOKUP(K40,'Bridge financing loan'!$A$7:$F$136,6,FALSE)) -> 0 | L46: =IF(ISERROR(VLOOKUP(L40,'Bridge financing loan'!$A$7:$F$136,6,FALSE)),0,VLOOKUP(L40,'Bridge financing loan'!$A$7:$F$136,6,FALSE)) -> 0 | M46: =IF(ISERROR(VLOOKUP(M40,'Bridge financing loan'!$A$7:$F$136,6,FALSE)),0,VLOOKUP(M40,'Bridge financing loan'!$A$7:$F$136,6,FALSE)) -> 0 | N46: =IF(ISERROR(VLOOKUP(N40,'Bridge financing loan'!$A$7:$F$136,6,FALSE)),0,VLOOKUP(N40,'Bridge financing loan'!$A$7:$F$136,6,FALSE)) -> 0 | O46: =IF(ISERROR(VLOOKUP(O40,'Bridge financing loan'!$A$7:$F$136,6,FALSE)),0,VLOOKUP(O40,'Bridge financing loan'!$A$7:$F$136,6,FALSE)) -> 0 | P46: =IF(ISERROR(VLOOKUP(P40,'Bridge financing loan'!$A$7:$F$136,6,FALSE)),0,VLOOKUP(P40,'Bridge financing loan'!$A$7:$F$136,6,FALSE)) -> 0 | Q46: =IF(ISERROR(VLOOKUP(Q40,'Bridge financing loan'!$A$7:$F$136,6,FALSE)),0,VLOOKUP(Q40,'Bridge financing loan'!$A$7:$F$136,6,FALSE)) -> 0 | R46: =IF(ISERROR(VLOOKUP(R40,'Bridge financing loan'!$A$7:$F$136,6,FALSE)),0,VLOOKUP(R40,'Bridge financing loan'!$A$7:$F$136,6,FALSE)) -> 0 | S46: =IF(ISERROR(VLOOKUP(S40,'Bridge financing loan'!$A$7:$F$136,6,FALSE)),0,VLOOKUP(S40,'Bridge financing loan'!$A$7:$F$136,6,FALSE)) -> 0 | T46: =IF(ISERROR(VLOOKUP(T40,'Bridge financing loan'!$A$7:$F$136,6,FALSE)),0,VLOOKUP(T40,'Bridge financing loan'!$A$7:$F$136,6,FALSE)) -> 0 | U46: =IF(ISERROR(VLOOKUP(U40,'Bridge financing loan'!$A$7:$F$136,6,FALSE)),0,VLOOKUP(U40,'Bridge financing loan'!$A$7:$F$136,6,FALSE)) -> 0 | V46: =IF(ISERROR(VLOOKUP(V40,'Bridge financing loan'!$A$7:$F$136,6,FALSE)),0,VLOOKUP(V40,'Bridge financing loan'!$A$7:$F$136,6,FALSE)) -> 0 | W46: =IF(ISERROR(VLOOKUP(W40,'Bridge financing loan'!$A$7:$F$136,6,FALSE)),0,VLOOKUP(W40,'Bridge financing loan'!$A$7:$F$136,6,FALSE)) -> 0 | X46: =IF(ISERROR(VLOOKUP(X40,'Bridge financing loan'!$A$7:$F$136,6,FALSE)),0,VLOOKUP(X40,'Bridge financing loan'!$A$7:$F$136,6,FALSE)) -> 0 | Y46: =IF(ISERROR(VLOOKUP(Y40,'Bridge financing loan'!$A$7:$F$136,6,FALSE)),0,VLOOKUP(Y40,'Bridge financing loan'!$A$7:$F$136,6,FALSE)) -> 0 | Z46: =IF(ISERROR(VLOOKUP(Z40,'Bridge financing loan'!$A$7:$F$136,6,FALSE)),0,VLOOKUP(Z40,'Bridge financing loan'!$A$7:$F$136,6,FALSE)) -> 0
E47: =+Translations!A246 -> B. TOTAL ANNUAL LOAN PAYMENTS | G47: =SUM(G43:G46) -> 0 | H47: =SUM(H43:H46) -> 0 | I47: 0 | J47: 0 | K47: 0 | L47: 0 | M47: 0 | N47: 0 | O47: 0 | P47: 0 | Q47: 0 | R47: 0 | S47: 0 | T47: 0 | U47: 0 | V47: 0 | W47: 0 | X47: 0 | Y47: 0 | Z47: 0
E48: =+Translations!A247 -> Annual payments of interests on Loan 1 | G48: =IF(ISERROR(VLOOKUP(G40,'Loan 1'!$A$7:$G$266,6,FALSE)),0,VLOOKUP(G40,'Loan 1'!$A$7:$G$266,6,FALSE)) -> 0 | H48: =IF(ISERROR(VLOOKUP(H40,'Loan 1'!$A$7:$G$266,6,FALSE)),0,VLOOKUP(H40,'Loan 1'!$A$7:$G$266,6,FALSE)) -> 0 | I48: =IF(ISERROR(VLOOKUP(I40,'Loan 1'!$A$7:$G$266,6,FALSE)),0,VLOOKUP(I40,'Loan 1'!$A$7:$G$266,6,FALSE)) -> 0 | J48: =IF(ISERROR(VLOOKUP(J40,'Loan 1'!$A$7:$G$266,6,FALSE)),0,VLOOKUP(J40,'Loan 1'!$A$7:$G$266,6,FALSE)) -> 0 | K48: =IF(ISERROR(VLOOKUP(K40,'Loan 1'!$A$7:$G$266,6,FALSE)),0,VLOOKUP(K40,'Loan 1'!$A$7:$G$266,6,FALSE)) -> 0 | L48: =IF(ISERROR(VLOOKUP(L40,'Loan 1'!$A$7:$G$266,6,FALSE)),0,VLOOKUP(L40,'Loan 1'!$A$7:$G$266,6,FALSE)) -> 0 | M48: =IF(ISERROR(VLOOKUP(M40,'Loan 1'!$A$7:$G$266,6,FALSE)),0,VLOOKUP(M40,'Loan 1'!$A$7:$G$266,6,FALSE)) -> 0 | N48: =IF(ISERROR(VLOOKUP(N40,'Loan 1'!$A$7:$G$266,6,FALSE)),0,VLOOKUP(N40,'Loan 1'!$A$7:$G$266,6,FALSE)) -> 0 | O48: =IF(ISERROR(VLOOKUP(O40,'Loan 1'!$A$7:$G$266,6,FALSE)),0,VLOOKUP(O40,'Loan 1'!$A$7:$G$266,6,FALSE)) -> 0 | P48: =IF(ISERROR(VLOOKUP(P40,'Loan 1'!$A$7:$G$266,6,FALSE)),0,VLOOKUP(P40,'Loan 1'!$A$7:$G$266,6,FALSE)) -> 0 | Q48: =IF(ISERROR(VLOOKUP(Q40,'Loan 1'!$A$7:$G$266,6,FALSE)),0,VLOOKUP(Q40,'Loan 1'!$A$7:$G$266,6,FALSE)) -> 0 | R48: =IF(ISERROR(VLOOKUP(R40,'Loan 1'!$A$7:$G$266,6,FALSE)),0,VLOOKUP(R40,'Loan 1'!$A$7:$G$266,6,FALSE)) -> 0 | S48: =IF(ISERROR(VLOOKUP(S40,'Loan 1'!$A$7:$G$266,6,FALSE)),0,VLOOKUP(S40,'Loan 1'!$A$7:$G$266,6,FALSE)) -> 0 | T48: =IF(ISERROR(VLOOKUP(T40,'Loan 1'!$A$7:$G$266,6,FALSE)),0,VLOOKUP(T40,'Loan 1'!$A$7:$G$266,6,FALSE)) -> 0 | U48: =IF(ISERROR(VLOOKUP(U40,'Loan 1'!$A$7:$G$266,6,FALSE)),0,VLOOKUP(U40,'Loan 1'!$A$7:$G$266,6,FALSE)) -> 0 | V48: =IF(ISERROR(VLOOKUP(V40,'Loan 1'!$A$7:$G$266,6,FALSE)),0,VLOOKUP(V40,'Loan 1'!$A$7:$G$266,6,FALSE)) -> 0 | W48: =IF(ISERROR(VLOOKUP(W40,'Loan 1'!$A$7:$G$266,6,FALSE)),0,VLOOKUP(W40,'Loan 1'!$A$7:$G$266,6,FALSE)) -> 0 | X48: =IF(ISERROR(VLOOKUP(X40,'Loan 1'!$A$7:$G$266,6,FALSE)),0,VLOOKUP(X40,'Loan 1'!$A$7:$G$266,6,FALSE)) -> 0 | Y48: =IF(ISERROR(VLOOKUP(Y40,'Loan 1'!$A$7:$G$266,6,FALSE)),0,VLOOKUP(Y40,'Loan 1'!$A$7:$G$266,6,FALSE)) -> 0 | Z48: =IF(ISERROR(VLOOKUP(Z40,'Loan 1'!$A$7:$G$266,6,FALSE)),0,VLOOKUP(Z40,'Loan 1'!$A$7:$G$266,6,FALSE)) -> 0
E49: =+Translations!A248 -> Annual payments of interests on Loan 2 | G49: =IF(ISERROR(VLOOKUP(G40,'Loan 2'!$A$7:$G$266,6,FALSE)),0,VLOOKUP(G40,'Loan 2'!$A$7:$G$266,6,FALSE)) -> 0 | H49: =IF(ISERROR(VLOOKUP(H40,'Loan 2'!$A$7:$G$266,6,FALSE)),0,VLOOKUP(H40,'Loan 2'!$A$7:$G$266,6,FALSE)) -> 0 | I49: =IF(ISERROR(VLOOKUP(I40,'Loan 2'!$A$7:$G$266,6,FALSE)),0,VLOOKUP(I40,'Loan 2'!$A$7:$G$266,6,FALSE)) -> 0 | J49: =IF(ISERROR(VLOOKUP(J40,'Loan 2'!$A$7:$G$266,6,FALSE)),0,VLOOKUP(J40,'Loan 2'!$A$7:$G$266,6,FALSE)) -> 0 | K49: =IF(ISERROR(VLOOKUP(K40,'Loan 2'!$A$7:$G$266,6,FALSE)),0,VLOOKUP(K40,'Loan 2'!$A$7:$G$266,6,FALSE)) -> 0 | L49: =IF(ISERROR(VLOOKUP(L40,'Loan 2'!$A$7:$G$266,6,FALSE)),0,VLOOKUP(L40,'Loan 2'!$A$7:$G$266,6,FALSE)) -> 0 | M49: =IF(ISERROR(VLOOKUP(M40,'Loan 2'!$A$7:$G$266,6,FALSE)),0,VLOOKUP(M40,'Loan 2'!$A$7:$G$266,6,FALSE)) -> 0 | N49: =IF(ISERROR(VLOOKUP(N40,'Loan 2'!$A$7:$G$266,6,FALSE)),0,VLOOKUP(N40,'Loan 2'!$A$7:$G$266,6,FALSE)) -> 0 | O49: =IF(ISERROR(VLOOKUP(O40,'Loan 2'!$A$7:$G$266,6,FALSE)),0,VLOOKUP(O40,'Loan 2'!$A$7:$G$266,6,FALSE)) -> 0 | P49: =IF(ISERROR(VLOOKUP(P40,'Loan 2'!$A$7:$G$266,6,FALSE)),0,VLOOKUP(P40,'Loan 2'!$A$7:$G$266,6,FALSE)) -> 0 | Q49: =IF(ISERROR(VLOOKUP(Q40,'Loan 2'!$A$7:$G$266,6,FALSE)),0,VLOOKUP(Q40,'Loan 2'!$A$7:$G$266,6,FALSE)) -> 0 | R49: =IF(ISERROR(VLOOKUP(R40,'Loan 2'!$A$7:$G$266,6,FALSE)),0,VLOOKUP(R40,'Loan 2'!$A$7:$G$266,6,FALSE)) -> 0 | S49: =IF(ISERROR(VLOOKUP(S40,'Loan 2'!$A$7:$G$266,6,FALSE)),0,VLOOKUP(S40,'Loan 2'!$A$7:$G$266,6,FALSE)) -> 0 | T49: =IF(ISERROR(VLOOKUP(T40,'Loan 2'!$A$7:$G$266,6,FALSE)),0,VLOOKUP(T40,'Loan 2'!$A$7:$G$266,6,FALSE)) -> 0 | U49: =IF(ISERROR(VLOOKUP(U40,'Loan 2'!$A$7:$G$266,6,FALSE)),0,VLOOKUP(U40,'Loan 2'!$A$7:$G$266,6,FALSE)) -> 0 | V49: =IF(ISERROR(VLOOKUP(V40,'Loan 2'!$A$7:$G$266,6,FALSE)),0,VLOOKUP(V40,'Loan 2'!$A$7:$G$266,6,FALSE)) -> 0 | W49: =IF(ISERROR(VLOOKUP(W40,'Loan 2'!$A$7:$G$266,6,FALSE)),0,VLOOKUP(W40,'Loan 2'!$A$7:$G$266,6,FALSE)) -> 0 | X49: =IF(ISERROR(VLOOKUP(X40,'Loan 2'!$A$7:$G$266,6,FALSE)),0,VLOOKUP(X40,'Loan 2'!$A$7:$G$266,6,FALSE)) -> 0 | Y49: =IF(ISERROR(VLOOKUP(Y40,'Loan 2'!$A$7:$G$266,6,FALSE)),0,VLOOKUP(Y40,'Loan 2'!$A$7:$G$266,6,FALSE)) -> 0 | Z49: =IF(ISERROR(VLOOKUP(Z40,'Loan 2'!$A$7:$G$266,6,FALSE)),0,VLOOKUP(Z40,'Loan 2'!$A$7:$G$266,6,FALSE)) -> 0
E50: =+Translations!A249 -> Annual payments of interests on Loan 3 | G50: =IF(ISERROR(VLOOKUP(G40,'Loan 3'!$A$7:$G$266,6,FALSE)),0,VLOOKUP(G40,'Loan 3'!$A$7:$G$266,6,FALSE)) -> 0 | H50: =IF(ISERROR(VLOOKUP(H40,'Loan 3'!$A$7:$G$266,6,FALSE)),0,VLOOKUP(H40,'Loan 3'!$A$7:$G$266,6,FALSE)) -> 0 | I50: =IF(ISERROR(VLOOKUP(I40,'Loan 3'!$A$7:$G$266,6,FALSE)),0,VLOOKUP(I40,'Loan 3'!$A$7:$G$266,6,FALSE)) -> 0 | J50: =IF(ISERROR(VLOOKUP(J40,'Loan 3'!$A$7:$G$266,6,FALSE)),0,VLOOKUP(J40,'Loan 3'!$A$7:$G$266,6,FALSE)) -> 0 | K50: =IF(ISERROR(VLOOKUP(K40,'Loan 3'!$A$7:$G$266,6,FALSE)),0,VLOOKUP(K40,'Loan 3'!$A$7:$G$266,6,FALSE)) -> 0 | L50: =IF(ISERROR(VLOOKUP(L40,'Loan 3'!$A$7:$G$266,6,FALSE)),0,VLOOKUP(L40,'Loan 3'!$A$7:$G$266,6,FALSE)) -> 0 | M50: =IF(ISERROR(VLOOKUP(M40,'Loan 3'!$A$7:$G$266,6,FALSE)),0,VLOOKUP(M40,'Loan 3'!$A$7:$G$266,6,FALSE)) -> 0 | N50: =IF(ISERROR(VLOOKUP(N40,'Loan 3'!$A$7:$G$266,6,FALSE)),0,VLOOKUP(N40,'Loan 3'!$A$7:$G$266,6,FALSE)) -> 0 | O50: =IF(ISERROR(VLOOKUP(O40,'Loan 3'!$A$7:$G$266,6,FALSE)),0,VLOOKUP(O40,'Loan 3'!$A$7:$G$266,6,FALSE)) -> 0 | P50: =IF(ISERROR(VLOOKUP(P40,'Loan 3'!$A$7:$G$266,6,FALSE)),0,VLOOKUP(P40,'Loan 3'!$A$7:$G$266,6,FALSE)) -> 0 | Q50: =IF(ISERROR(VLOOKUP(Q40,'Loan 3'!$A$7:$G$266,6,FALSE)),0,VLOOKUP(Q40,'Loan 3'!$A$7:$G$266,6,FALSE)) -> 0 | R50: =IF(ISERROR(VLOOKUP(R40,'Loan 3'!$A$7:$G$266,6,FALSE)),0,VLOOKUP(R40,'Loan 3'!$A$7:$G$266,6,FALSE)) -> 0 | S50: =IF(ISERROR(VLOOKUP(S40,'Loan 3'!$A$7:$G$266,6,FALSE)),0,VLOOKUP(S40,'Loan 3'!$A$7:$G$266,6,FALSE)) -> 0 | T50: =IF(ISERROR(VLOOKUP(T40,'Loan 3'!$A$7:$G$266,6,FALSE)),0,VLOOKUP(T40,'Loan 3'!$A$7:$G$266,6,FALSE)) -> 0 | U50: =IF(ISERROR(VLOOKUP(U40,'Loan 3'!$A$7:$G$266,6,FALSE)),0,VLOOKUP(U40,'Loan 3'!$A$7:$G$266,6,FALSE)) -> 0 | V50: =IF(ISERROR(VLOOKUP(V40,'Loan 3'!$A$7:$G$266,6,FALSE)),0,VLOOKUP(V40,'Loan 3'!$A$7:$G$266,6,FALSE)) -> 0 | W50: =IF(ISERROR(VLOOKUP(W40,'Loan 3'!$A$7:$G$266,6,FALSE)),0,VLOOKUP(W40,'Loan 3'!$A$7:$G$266,6,FALSE)) -> 0 | X50: =IF(ISERROR(VLOOKUP(X40,'Loan 3'!$A$7:$G$266,6,FALSE)),0,VLOOKUP(X40,'Loan 3'!$A$7:$G$266,6,FALSE)) -> 0 | Y50: =IF(ISERROR(VLOOKUP(Y40,'Loan 3'!$A$7:$G$266,6,FALSE)),0,VLOOKUP(Y40,'Loan 3'!$A$7:$G$266,6,FALSE)) -> 0 | Z50: =IF(ISERROR(VLOOKUP(Z40,'Loan 3'!$A$7:$G$266,6,FALSE)),0,VLOOKUP(Z40,'Loan 3'!$A$7:$G$266,6,FALSE)) -> 0
E51: =+Translations!A250 -> Annual payments of interests on bridge financing loan | G51: =IF(ISERROR(VLOOKUP(G40,'Bridge financing loan'!$A$7:$F$136,5,FALSE)),0,VLOOKUP(G40,'Bridge financing loan'!$A$7:$F$136,5,FALSE)) -> 0 | H51: =IF(ISERROR(VLOOKUP(H40,'Bridge financing loan'!$A$7:$F$136,5,FALSE)),0,VLOOKUP(H40,'Bridge financing loan'!$A$7:$F$136,5,FALSE)) -> 0 | I51: =IF(ISERROR(VLOOKUP(I40,'Bridge financing loan'!$A$7:$F$136,5,FALSE)),0,VLOOKUP(I40,'Bridge financing loan'!$A$7:$F$136,5,FALSE)) -> 0 | J51: =IF(ISERROR(VLOOKUP(J40,'Bridge financing loan'!$A$7:$F$136,5,FALSE)),0,VLOOKUP(J40,'Bridge financing loan'!$A$7:$F$136,5,FALSE)) -> 0 | K51: =IF(ISERROR(VLOOKUP(K40,'Bridge financing loan'!$A$7:$F$136,5,FALSE)),0,VLOOKUP(K40,'Bridge financing loan'!$A$7:$F$136,5,FALSE)) -> 0 | L51: =IF(ISERROR(VLOOKUP(L40,'Bridge financing loan'!$A$7:$F$136,5,FALSE)),0,VLOOKUP(L40,'Bridge financing loan'!$A$7:$F$136,5,FALSE)) -> 0 | M51: =IF(ISERROR(VLOOKUP(M40,'Bridge financing loan'!$A$7:$F$136,5,FALSE)),0,VLOOKUP(M40,'Bridge financing loan'!$A$7:$F$136,5,FALSE)) -> 0 | N51: =IF(ISERROR(VLOOKUP(N40,'Bridge financing loan'!$A$7:$F$136,5,FALSE)),0,VLOOKUP(N40,'Bridge financing loan'!$A$7:$F$136,5,FALSE)) -> 0 | O51: =IF(ISERROR(VLOOKUP(O40,'Bridge financing loan'!$A$7:$F$136,5,FALSE)),0,VLOOKUP(O40,'Bridge financing loan'!$A$7:$F$136,5,FALSE)) -> 0 | P51: =IF(ISERROR(VLOOKUP(P40,'Bridge financing loan'!$A$7:$F$136,5,FALSE)),0,VLOOKUP(P40,'Bridge financing loan'!$A$7:$F$136,5,FALSE)) -> 0 | Q51: =IF(ISERROR(VLOOKUP(Q40,'Bridge financing loan'!$A$7:$F$136,5,FALSE)),0,VLOOKUP(Q40,'Bridge financing loan'!$A$7:$F$136,5,FALSE)) -> 0 | R51: =IF(ISERROR(VLOOKUP(R40,'Bridge financing loan'!$A$7:$F$136,5,FALSE)),0,VLOOKUP(R40,'Bridge financing loan'!$A$7:$F$136,5,FALSE)) -> 0 | S51: =IF(ISERROR(VLOOKUP(S40,'Bridge financing loan'!$A$7:$F$136,5,FALSE)),0,VLOOKUP(S40,'Bridge financing loan'!$A$7:$F$136,5,FALSE)) -> 0 | T51: =IF(ISERROR(VLOOKUP(T40,'Bridge financing loan'!$A$7:$F$136,5,FALSE)),0,VLOOKUP(T40,'Bridge financing loan'!$A$7:$F$136,5,FALSE)) -> 0 | U51: =IF(ISERROR(VLOOKUP(U40,'Bridge financing loan'!$A$7:$F$136,5,FALSE)),0,VLOOKUP(U40,'Bridge financing loan'!$A$7:$F$136,5,FALSE)) -> 0 | V51: =IF(ISERROR(VLOOKUP(V40,'Bridge financing loan'!$A$7:$F$136,5,FALSE)),0,VLOOKUP(V40,'Bridge financing loan'!$A$7:$F$136,5,FALSE)) -> 0 | W51: =IF(ISERROR(VLOOKUP(W40,'Bridge financing loan'!$A$7:$F$136,5,FALSE)),0,VLOOKUP(W40,'Bridge financing loan'!$A$7:$F$136,5,FALSE)) -> 0 | X51: =IF(ISERROR(VLOOKUP(X40,'Bridge financing loan'!$A$7:$F$136,5,FALSE)),0,VLOOKUP(X40,'Bridge financing loan'!$A$7:$F$136,5,FALSE)) -> 0 | Y51: =IF(ISERROR(VLOOKUP(Y40,'Bridge financing loan'!$A$7:$F$136,5,FALSE)),0,VLOOKUP(Y40,'Bridge financing loan'!$A$7:$F$136,5,FALSE)) -> 0 | Z51: =IF(ISERROR(VLOOKUP(Z40,'Bridge financing loan'!$A$7:$F$136,5,FALSE)),0,VLOOKUP(Z40,'Bridge financing loan'!$A$7:$F$136,5,FALSE)) -> 0
E52: =+Translations!A251 -> C. TOTAL ANNUAL PAYMENTS OF INTERESTS ON LOANS | G52: =SUM(G48:G51) -> 0 | H52: =SUM(H48:H51) -> 0 | I52: 0 | J52: 0 | K52: 0 | L52: 0 | M52: 0 | N52: 0 | O52: 0 | P52: 0 | Q52: 0 | R52: 0 | S52: 0 | T52: 0 | U52: 0 | V52: 0 | W52: 0 | X52: 0 | Y52: 0 | Z52: 0
E56: =+Translations!A252 -> Shareholders equity in € on 31st of December | G56: =+Home!K12 -> 2017 | H56: =+G56+1 -> 2018 | I56: =+H56+1 -> 2019 | J56: 2020 | K56: 2021 | L56: 2022 | M56: 2023 | N56: 2024 | O56: 2025 | P56: 2026 | Q56: 2027 | R56: 2028 | S56: 2029 | T56: 2030 | U56: 2031 | V56: 2032 | W56: 2033 | X56: 2034 | Y56: 2035 | Z56: 2036
H57: plan | I57: plan | J57: plan | K57: plan | L57: plan | M57: plan | N57: plan | O57: plan | P57: plan | Q57: plan | R57: plan | S57: plan | T57: plan | U57: plan | V57: plan | W57: plan | X57: plan | Y57: plan | Z57: plan
E58: =+Translations!A253 -> 1. Owner's equity | G58: =+Investment_and_Financing!F23+Investment_and_Financing!F25 -> 0 | H58: =G60 -> 0 | I58: =H60 -> 0 | J58: 0 | K58: 0 | L58: =K60 -> 0 | M58: =L60 -> 0 | N58: 0 | O58: 0 | P58: =O60 -> 0 | Q58: =P60 -> 0 | R58: 160 | S58: 320 | T58: 480 | U58: 640 | V58: 800 | W58: 960 | X58: 1120 | Y58: 1280 | Z58: 1440
E59: =+Translations!A254 -> 2. Retained earnings | G59: =+Income_statement!E32 -> 0 | H59: =+Income_statement!F32 -> 0 | I59: =+Income_statement!G32 -> 0 | J59: =+Income_statement!H32 -> 0 | K59: =+Income_statement!I32 -> 0 | L59: =+Income_statement!J32 -> 0 | M59: =+Income_statement!K32 -> 0 | N59: =+Income_statement!L32 -> 0 | O59: =+Income_statement!M32 -> 0 | P59: =+Income_statement!N32 -> 0 | Q59: =+Income_statement!O32 -> 160 | R59: =+Income_statement!P32 -> 160 | S59: =+Income_statement!Q32 -> 160 | T59: =+Income_statement!R32 -> 160 | U59: =+Income_statement!S32 -> 160 | V59: =+Income_statement!T32 -> 160 | W59: =+Income_statement!U32 -> 160 | X59: =+Income_statement!V32 -> 160 | Y59: =+Income_statement!W32 -> 160 | Z59: =+Income_statement!X32 -> 160
E60: =+Translations!A255 -> TOTAL EQUITY (1 to 2) | G60: =SUM(G58:G59) -> 0 | H60: 0 | I60: 0 | J60: 0 | K60: 0 | L60: 0 | M60: 0 | N60: 0 | O60: 0 | P60: 0 | Q60: 160 | R60: 320 | S60: 480 | T60: 640 | U60: 800 | V60: =SUM(V58:V59) -> 960 | W60: 1120 | X60: 1280 | Y60: 1440 | Z60: 1600
E64: =+Translations!A256 -> Acquisition and consumption of investment subsidies in € | G64: =+Home!K12 -> 2017 | H64: =+G64+1 -> 2018 | I64: =+H64+1 -> 2019 | J64: 2020 | K64: 2021 | L64: 2022 | M64: 2023 | N64: 2024 | O64: 2025 | P64: 2026 | Q64: 2027 | R64: 2028 | S64: 2029 | T64: 2030 | U64: 2031 | V64: 2032 | W64: 2033 | X64: 2034 | Y64: 2035 | Z64: 2036
H65: plan | I65: plan | J65: plan | K65: plan | L65: plan | M65: plan | N65: plan | O65: plan | P65: plan | Q65: plan | R65: plan | S65: plan | T65: plan | U65: plan | V65: plan | W65: plan | X65: plan | Y65: plan | Z65: plan
E66: =+Translations!A257 -> 1. Subsidies | G66: =+Investment_and_Financing!F26 -> 0
E67: =+Translations!A258 -> 2. Subsidized fixed assets on 31st of December | G67: =+Investment_and_Financing!F9+Investment_and_Financing!F11+Investment_and_Financing!F13+Investment_and_Financing!F14 -> 0 | H67: =+G67-G69 -> 0 | I67: 0 | J67: 0 | K67: 0 | L67: 0 | M67: 0 | N67: 0 | O67: 0 | P67: 0 | Q67: 0 | R67: 0 | S67: 0 | T67: 0 | U67: 0 | V67: 0 | W67: 0 | X67: 0 | Y67: 0 | Z67: 0
E68: =+Translations!A259 -> 3. Share of subsidies in subsidized fixed assets | G68: =IF(ISERROR(G66/G67),0,G66/G67) -> 0
E69: =+Translations!A260 -> 4. Depreciation cost | G69: =+Assets!G48 -> 0 | H69: =+Assets!H48 -> 0 | I69: =+Assets!I48 -> 0 | J69: =+Assets!J48 -> 0 | K69: =+Assets!K48 -> 0 | L69: =+Assets!L48 -> 0 | M69: =+Assets!M48 -> 0 | N69: =+Assets!N48 -> 0 | O69: =+Assets!O48 -> 0 | P69: =+Assets!P48 -> 0 | Q69: =+Assets!Q48 -> 0 | R69: =+Assets!R48 -> 0 | S69: =+Assets!S48 -> 0 | T69: =+Assets!T48 -> 0 | U69: =+Assets!U48 -> 0 | V69: =+Assets!V48 -> 0 | W69: =+Assets!W48 -> 0 | X69: =+Assets!X48 -> 0 | Y69: =+Assets!Y48 -> 0 | Z69: =+Assets!Z48 -> 0
E70: =+Translations!A261 -> 5. Other sources of revenues | G70: =G69*G68 -> 0 | H70: =IF(G70>G71,G71,G70) -> 0 | I70: =IF(H70>H71,H71,H70) -> 0 | J70: 0 | K70: 0 | L70: 0 | M70: 0 | N70: 0 | O70: 0 | P70: 0 | Q70: 0 | R70: 0 | S70: 0 | T70: 0 | U70: 0 | V70: 0 | W70: 0 | X70: 0 | Y70: 0 | Z70: 0
E71: =+Translations!A262 -> LONG-TERM ACCRUED COSTS AND DEFERRED REVENUES ON 31ST OF DECEMBER | G71: =+G66-G70 -> 0 | H71: =+G71-H70 -> 0 | I71: =+H71-I70 -> 0 | J71: 0 | K71: 0 | L71: 0 | M71: 0 | N71: 0 | O71: 0 | P71: 0 | Q71: 0 | R71: 0 | S71: 0 | T71: 0 | U71: 0 | V71: 0 | W71: 0 | X71: 0 | Y71: 0 | Z71: 0

Sheet Income_statement
C5: =+Translations!A264 -> Income statement in € | E5: =+Home!K12 -> 2017 | F5: =+E5+1 -> 2018 | G5: =+F5+1 -> 2019 | H5: 2020 | I5: 2021 | J5: 2022 | K5: 2023 | L5: 2024 | M5: 2025 | N5: 2026 | O5: 2027 | P5: 2028 | Q5: 2029 | R5: 2030 | S5: 2031 | T5: 2032 | U5: 2033 | V5: 2034 | W5: 2035 | X5: 2036
F6: plan | G6: plan | H6: plan | I6: plan | J6: plan | K6: plan | L6: plan | M6: plan | N6: plan | O6: plan | P6: plan | Q6: plan | R6: plan | S6: plan | T6: plan | U6: plan | V6: plan | W6: plan | X6: plan
C7: =+Translations!A265 -> 1. Total operating income | E7: =+Revenues_!F12 -> 0 | F7: =+Revenues_!G12 -> 0 | G7: =+Revenues_!H12 -> 0 | H7: =+Revenues_!I12 -> 0 | I7: =+Revenues_!J12 -> 0 | J7: =+Revenues_!K12 -> 0 | K7: =+Revenues_!L12 -> 0 | L7: =+Revenues_!M12 -> 0 | M7: =+Revenues_!N12 -> 0 | N7: =+Revenues_!O12 -> 0 | O7: =+Revenues_!P12 -> 5000 | P7: =+Revenues_!Q12 -> 5000 | Q7: =+Revenues_!R12 -> 5000 | R7: =+Revenues_!S12 -> 5000 | S7: =+Revenues_!T12 -> 5000 | T7: =+Revenues_!U12 -> 5000 | U7: =+Revenues_!V12 -> 5000 | V7: =+Revenues_!W12 -> 5000 | W7: =+Revenues_!X12 -> 5000 | X7: =+Revenues_!Y12 -> 5000
C8: =+Translations!A266 -> 2. Investment subsidies | E8: =+Revenues_!F13 -> 0 | F8: =+Revenues_!G13 -> 0 | G8: =+Revenues_!H13 -> 0 | H8: =+Revenues_!I13 -> 0 | I8: =+Revenues_!J13 -> 0 | J8: =+Revenues_!K13 -> 0 | K8: =+Revenues_!L13 -> 0 | L8: =+Revenues_!M13 -> 0 | M8: =+Revenues_!N13 -> 0 | N8: =+Revenues_!O13 -> 0 | O8: =+Revenues_!P13 -> 0 | P8: =+Revenues_!Q13 -> 0 | Q8: =+Revenues_!R13 -> 0 | R8: =+Revenues_!S13 -> 0 | S8: =+Revenues_!T13 -> 0 | T8: =+Revenues_!U13 -> 0 | U8: =+Revenues_!V13 -> 0 | V8: =+Revenues_!W13 -> 0 | W8: =+Revenues_!X13 -> 0 | X8: =+Revenues_!Y13 -> 0
C9: =+Translations!A267 -> 3. Total cost of goods and services | E9: =+Operating_costs!G11+Operating_costs!G15 -> 0 | F9: =+Operating_costs!H11+Operating_costs!H15 -> 0 | G9: =+Operating_costs!I11+Operating_costs!I15 -> 0 | H9: =+Operating_costs!J11+Operating_costs!J15 -> 0 | I9: =+Operating_costs!K11+Operating_costs!K15 -> 0 | J9: =+Operating_costs!L11+Operating_costs!L15 -> 0 | K9: =+Operating_costs!M11+Operating_costs!M15 -> 0 | L9: =+Operating_costs!N11+Operating_costs!N15 -> 0 | M9: =+Operating_costs!O11+Operating_costs!O15 -> 0 | N9: =+Operating_costs!P11+Operating_costs!P15 -> 0 | O9: =+Operating_costs!Q11+Operating_costs!Q15 -> 5000 | P9: =+Operating_costs!R11+Operating_costs!R15 -> 5000 | Q9: =+Operating_costs!S11+Operating_costs!S15 -> 5000 | R9: =+Operating_costs!T11+Operating_costs!T15 -> 5000 | S9: =+Operating_costs!U11+Operating_costs!U15 -> 5000 | T9: =+Operating_costs!V11+Operating_costs!V15 -> 5000 | U9: =+Operating_costs!W11+Operating_costs!W15 -> 5000 | V9: =+Operating_costs!X11+Operating_costs!X15 -> 5000 | W9: =+Operating_costs!Y11+Operating_costs!Y15 -> 5000 | X9: =+Operating_costs!Z11+Operating_costs!Z15 -> 5000
C10: =+Translations!A268 -> a) Total operating costs | E10: =SUM(E11:E12) -> 0 | F10: 0 | G10: 0 | H10: 0 | I10: 0 | J10: 0 | K10: 0 | L10: 0 | M10: 0 | N10: 0 | O10: 0 | P10: 0 | Q10: 0 | R10: 0 | S10: 0 | T10: 0 | U10: 0 | V10: 0 | W10: 0 | X10: 0
C11: =+Translations!A269 -> 1. Energy source costs | E11: =+Operating_costs!G9 -> 0 | F11: =+Operating_costs!H9 -> 0 | G11: =+Operating_costs!I9 -> 0 | H11: =+Operating_costs!J9 -> 0 | I11: =+Operating_costs!K9 -> 0 | J11: =+Operating_costs!L9 -> 0 | K11: =+Operating_costs!M9 -> 0 | L11: =+Operating_costs!N9 -> 0 | M11: =+Operating_costs!O9 -> 0 | N11: =+Operating_costs!P9 -> 0 | O11: =+Operating_costs!Q9 -> 0 | P11: =+Operating_costs!R9 -> 0 | Q11: =+Operating_costs!S9 -> 0 | R11: =+Operating_costs!T9 -> 0 | S11: =+Operating_costs!U9 -> 0 | T11: =+Operating_costs!V9 -> 0 | U11: =+Operating_costs!W9 -> 0 | V11: =+Operating_costs!X9 -> 0 | W11: =+Operating_costs!Y9 -> 0 | X11: =+Operating_costs!Z9 -> 0
C12: =+Translations!A270 -> 2. Operation and maintainance costs | E12: =+Operating_costs!G10 -> 0 | F12: =+Operating_costs!H10 -> 0 | G12: =+Operating_costs!I10 -> 0 | H12: =+Operating_costs!J10 -> 0 | I12: =+Operating_costs!K10 -> 0 | J12: =+Operating_costs!L10 -> 0 | K12: =+Operating_costs!M10 -> 0 | L12: =+Operating_costs!N10 -> 0 | M12: =+Operating_costs!O10 -> 0 | N12: =+Operating_costs!P10 -> 0 | O12: =+Operating_costs!Q10 -> 0 | P12: =+Operating_costs!R10 -> 0 | Q12: =+Operating_costs!S10 -> 0 | R12: =+Operating_costs!T10 -> 0 | S12: =+Operating_costs!U10 -> 0 | T12: =+Operating_costs!V10 -> 0 | U12: =+Operating_costs!W10 -> 0 | V12: =+Operating_costs!X10 -> 0 | W12: =+Operating_costs!Y10 -> 0 | X12: =+Operating_costs!Z10 -> 0
C13: =+Translations!A271 -> b) Total cost of operating services | E13: =SUM(E14:E16) -> 0 | F13: 0 | G13: 0 | H13: 0 | I13: 0 | J13: 0 | K13: 0 | L13: 0 | M13: 0 | N13: 0 | O13: 5000 | P13: 5000 | Q13: 5000 | R13: 5000 | S13: 5000 | T13: 5000 | U13: 5000 | V13: 5000 | W13: 5000 | X13: 5000
C14: =+Translations!A272 -> 1. Cost of management, insurance and lease | E14: =+Operating_costs!G12 -> 0 | F14: =+Operating_costs!H12 -> 0 | G14: =+Operating_costs!I12 -> 0 | H14: =+Operating_costs!J12 -> 0 | I14: =+Operating_costs!K12 -> 0 | J14: =+Operating_costs!L12 -> 0 | K14: =+Operating_costs!M12 -> 0 | L14: =+Operating_costs!N12 -> 0 | M14: =+Operating_costs!O12 -> 0 | N14: =+Operating_costs!P12 -> 0 | O14: =+Operating_costs!Q12 -> 0 | P14: =+Operating_costs!R12 -> 0 | Q14: =+Operating_costs!S12 -> 0 | R14: =+Operating_costs!T12 -> 0 | S14: =+Operating_costs!U12 -> 0 | T14: =+Operating_costs!V12 -> 0 | U14: =+Operating_costs!W12 -> 0 | V14: =+Operating_costs!X12 -> 0 | W14: =+Operating_costs!Y12 -> 0 | X14: =+Operating_costs!Z12 -> 0
C15: =+Translations!A273 -> 2. Cost of promotional activities | E15: =+Operating_costs!G13 -> 0 | F15: =+Operating_costs!H13 -> 0 | G15: =+Operating_costs!I13 -> 0 | H15: =+Operating_costs!J13 -> 0 | I15: =+Operating_costs!K13 -> 0 | J15: =+Operating_costs!L13 -> 0 | K15: =+Operating_costs!M13 -> 0 | L15: =+Operating_costs!N13 -> 0 | M15: =+Operating_costs!O13 -> 0 | N15: =+Operating_costs!P13 -> 0 | O15: =+Operating_costs!Q13 -> 5000 | P15: =+Operating_costs!R13 -> 5000 | Q15: =+Operating_costs!S13 -> 5000 | R15: =+Operating_costs!T13 -> 5000 | S15: =+Operating_costs!U13 -> 5000 | T15: =+Operating_costs!V13 -> 5000 | U15: =+Operating_costs!W13 -> 5000 | V15: =+Operating_costs!X13 -> 5000 | W15: =+Operating_costs!Y13 -> 5000 | X15: =+Operating_costs!Z13 -> 5000
C16: =+Translations!A274 -> 3. Cost of other services | E16: =+Operating_costs!G14 -> 0 | F16: =+Operating_costs!H14 -> 0 | G16: =+Operating_costs!I14 -> 0 | H16: =+Operating_costs!J14 -> 0 | I16: =+Operating_costs!K14 -> 0 | J16: =+Operating_costs!L14 -> 0 | K16: =+Operating_costs!M14 -> 0 | L16: =+Operating_costs!N14 -> 0 | M16: =+Operating_costs!O14 -> 0 | N16: =+Operating_costs!P14 -> 0 | O16: =+Operating_costs!Q14 -> 0 | P16: =+Operating_costs!R14 -> 0 | Q16: =+Operating_costs!S14 -> 0 | R16: =+Operating_costs!T14 -> 0 | S16: =+Operating_costs!U14 -> 0 | T16: =+Operating_costs!V14 -> 0 | U16: =+Operating_costs!W14 -> 0 | V16: =+Operating_costs!X14 -> 0 | W16: =+Operating_costs!Y14 -> 0 | X16: =+Operating_costs!Z14 -> 0
C17: =+Translations!A275 -> 4. Cost of labour | E17: =+Operating_costs!G16 -> 0 | F17: =+Operating_costs!H16 -> 0 | G17: =+Operating_costs!I16 -> 0 | H17: =+Operating_costs!J16 -> 0 | I17: =+Operating_costs!K16 -> 0 | J17: =+Operating_costs!L16 -> 0 | K17: =+Operating_costs!M16 -> 0 | L17: =+Operating_costs!N16 -> 0 | M17: =+Operating_costs!O16 -> 0 | N17: =+Operating_costs!P16 -> 0 | O17: =+Operating_costs!Q16 -> 0 | P17: =+Operating_costs!R16 -> 0 | Q17: =+Operating_costs!S16 -> 0 | R17: =+Operating_costs!T16 -> 0 | S17: =+Operating_costs!U16 -> 0 | T17: =+Operating_costs!V16 -> 0 | U17: =+Operating_costs!W16 -> 0 | V17: =+Operating_costs!X16 -> 0 | W17: =+Operating_costs!Y16 -> 0 | X17: =+Operating_costs!Z16 -> 0
C18: =+Translations!A276 -> EBITDA | E18: =IFERROR((E7+E8-E9-E17)/(E7+E8),0) -> 0 | F18: =IFERROR((F7+F8-F9-F17)/(F7+F8),0) -> 0 | G18: 0 | H18: 0 | I18: 0 | J18: 0 | K18: 0 | L18: 0 | M18: 0 | N18: 0 | O18: 0 | P18: 0 | Q18: 0 | R18: 0 | S18: 0 | T18: 0 | U18: 0 | V18: 0 | W18: 0 | X18: 0
C19: =+Translations!A277 -> 5. Depreciation and amortization | D19: 0 | E19: =+E20+E21 -> 0 | F19: =+F20+F21 -> 0 | G19: 0 | H19: 0 | I19: 0 | J19: 0 | K19: 0 | L19: 0 | M19: 0 | N19: 0 | O19: 0 | P19: 0 | Q19: 0 | R19: 0 | S19: 0 | T19: =+T20+T21 -> 0 | U19: 0 | V19: 0 | W19: 0 | X19: 0
C20: =+Translations!A278 -> 1. Intangible assets | E20: =+Assets!G44 -> 0 | F20: =+Assets!H44 -> 0 | G20: =+Assets!I44 -> 0 | H20: =+Assets!J44 -> 0 | I20: =+Assets!K44 -> 0 | J20: =+Assets!L44 -> 0 | K20: =+Assets!M44 -> 0 | L20: =+Assets!N44 -> 0 | M20: =+Assets!O44 -> 0 | N20: =+Assets!P44 -> 0 | O20: =+Assets!Q44 -> 0 | P20: =+Assets!R44 -> 0 | Q20: =+Assets!S44 -> 0 | R20: =+Assets!T44 -> 0 | S20: =+Assets!U44 -> 0 | T20: =+Assets!V44 -> 0 | U20: =+Assets!W44 -> 0 | V20: =+Assets!X44 -> 0 | W20: =+Assets!Y44 -> 0 | X20: =+Assets!Z44 -> 0
C21: =+Translations!A279 -> 2. Property, plant and equipment | E21: =SUM(E22:E23) -> 0 | F21: =SUM(F22:F23) -> 0 | G21: 0 | H21: 0 | I21: 0 | J21: 0 | K21: 0 | L21: 0 | M21: 0 | N21: 0 | O21: 0 | P21: 0 | Q21: 0 | R21: 0 | S21: 0 | T21: 0 | U21: 0 | V21: 0 | W21: 0 | X21: 0
C22: =+Translations!A280 -> 2.1. Buildings and constructions | E22: =+Assets!G45 -> 0 | F22: =+Assets!H45 -> 0 | G22: =+Assets!I45 -> 0 | H22: =+Assets!J45 -> 0 | I22: =+Assets!K45 -> 0 | J22: =+Assets!L45 -> 0 | K22: =+Assets!M45 -> 0 | L22: =+Assets!N45 -> 0 | M22: =+Assets!O45 -> 0 | N22: =+Assets!P45 -> 0 | O22: =+Assets!Q45 -> 0 | P22: =+Assets!R45 -> 0 | Q22: =+Assets!S45 -> 0 | R22: =+Assets!T45 -> 0 | S22: =+Assets!U45 -> 0 | T22: =+Assets!V45 -> 0 | U22: =+Assets!W45 -> 0 | V22: =+Assets!X45 -> 0 | W22: =+Assets!Y45 -> 0 | X22: =+Assets!Z45 -> 0
C23: =+Translations!A281 -> 2.2. Equipment, plant, vehicles, mechanization | E23: =+Assets!G46 -> 0 | F23: =+Assets!H46 -> 0 | G23: =+Assets!I46 -> 0 | H23: =+Assets!J46 -> 0 | I23: =+Assets!K46 -> 0 | J23: =+Assets!L46 -> 0 | K23: =+Assets!M46 -> 0 | L23: =+Assets!N46 -> 0 | M23: =+Assets!O46 -> 0 | N23: =+Assets!P46 -> 0 | O23: =+Assets!Q46 -> 0 | P23: =+Assets!R46 -> 0 | Q23: =+Assets!S46 -> 0 | R23: =+Assets!T46 -> 0 | S23: =+Assets!U46 -> 0 | T23: =+Assets!V46 -> 0 | U23: =+Assets!W46 -> 0 | V23: =+Assets!X46 -> 0 | W23: =+Assets!Y46 -> 0 | X23: =+Assets!Z46 -> 0
C24: =+Translations!A282 -> EBIT | E24: =IFERROR((E7+E8-E9-E17-E19)/(E7+E8),0) -> 0 | F24: =IFERROR((F7+F8-F9-F17-F19)/(F7+F8),0) -> 0 | G24: 0 | H24: 0 | I24: 0 | J24: 0 | K24: 0 | L24: 0 | M24: 0 | N24: 0 | O24: 0 | P24: 0 | Q24: 0 | R24: 0 | S24: 0 | T24: 0 | U24: 0 | V24: 0 | W24: 0 | X24: 0
C25: =+Translations!A283 -> 6. Revenues from financial activities | E25: =+Revenues_!F14 -> 0 | F25: =+Revenues_!G14 -> 0 | G25: =+Revenues_!H14 -> 0 | H25: =+Revenues_!I14 -> 0 | I25: =+Revenues_!J14 -> 0 | J25: =+Revenues_!K14 -> 0 | K25: =+Revenues_!L14 -> 0 | L25: =+Revenues_!M14 -> 0 | M25: =+Revenues_!N14 -> 0 | N25: =+Revenues_!O14 -> 0 | O25: =+Revenues_!P14 -> 100 | P25: =+Revenues_!Q14 -> 100 | Q25: =+Revenues_!R14 -> 100 | R25: =+Revenues_!S14 -> 100 | S25: =+Revenues_!T14 -> 100 | T25: =+Revenues_!U14 -> 100 | U25: =+Revenues_!V14 -> 100 | V25: =+Revenues_!W14 -> 100 | W25: =+Revenues_!X14 -> 100 | X25: =+Revenues_!Y14 -> 100
C26: =+Translations!A284 -> 7. Financial costs | E26: =+Operating_costs!G18 -> 0 | F26: =+Operating_costs!H18 -> 0 | G26: =+Operating_costs!I18 -> 0 | H26: =+Operating_costs!J18 -> 0 | I26: =+Operating_costs!K18 -> 0 | J26: =+Operating_costs!L18 -> 0 | K26: =+Operating_costs!M18 -> 0 | L26: =+Operating_costs!N18 -> 0 | M26: =+Operating_costs!O18 -> 0 | N26: =+Operating_costs!P18 -> 0 | O26: =+Operating_costs!Q18 -> 0 | P26: =+Operating_costs!R18 -> 0 | Q26: =+Operating_costs!S18 -> 0 | R26: =+Operating_costs!T18 -> 0 | S26: =+Operating_costs!U18 -> 0 | T26: =+Operating_costs!V18 -> 0 | U26: =+Operating_costs!W18 -> 0 | V26: =+Operating_costs!X18 -> 0 | W26: =+Operating_costs!Y18 -> 0 | X26: =+Operating_costs!Z18 -> 0
C27: =+Translations!A285 -> 8. Other revenues and gains | E27: =+Revenues_!F15 -> 0 | F27: =+Revenues_!G15 -> 0 | G27: =+Revenues_!H15 -> 0 | H27: =+Revenues_!I15 -> 0 | I27: =+Revenues_!J15 -> 0 | J27: =+Revenues_!K15 -> 0 | K27: =+Revenues_!L15 -> 0 | L27: =+Revenues_!M15 -> 0 | M27: =+Revenues_!N15 -> 0 | N27: =+Revenues_!O15 -> 0 | O27: =+Revenues_!P15 -> 100 | P27: =+Revenues_!Q15 -> 100 | Q27: =+Revenues_!R15 -> 100 | R27: =+Revenues_!S15 -> 100 | S27: =+Revenues_!T15 -> 100 | T27: =+Revenues_!U15 -> 100 | U27: =+Revenues_!V15 -> 100 | V27: =+Revenues_!W15 -> 100 | W27: =+Revenues_!X15 -> 100 | X27: =+Revenues_!Y15 -> 100
C28: =+Translations!A286 -> 9. Other expenses and losses | E28: =+Operating_costs!G19 -> 0 | F28: =+Operating_costs!H19 -> 0 | G28: =+Operating_costs!I19 -> 0 | H28: =+Operating_costs!J19 -> 0 | I28: =+Operating_costs!K19 -> 0 | J28: =+Operating_costs!L19 -> 0 | K28: =+Operating_costs!M19 -> 0 | L28: =+Operating_costs!N19 -> 0 | M28: =+Operating_costs!O19 -> 0 | N28: =+Operating_costs!P19 -> 0 | O28: =+Operating_costs!Q19 -> 0 | P28: =+Operating_costs!R19 -> 0 | Q28: =+Operating_costs!S19 -> 0 | R28: =+Operating_costs!T19 -> 0 | S28: =+Operating_costs!U19 -> 0 | T28: =+Operating_costs!V19 -> 0 | U28: =+Operating_costs!W19 -> 0 | V28: =+Operating_costs!X19 -> 0 | W28: =+Operating_costs!Y19 -> 0 | X28: =+Operating_costs!Z19 -> 0
C29: =+Translations!A287 -> 10. INCOME BEFORE TAXES | D29: 0 | E29: =E7+E8-E9-E17-E19+E25-E26+E27-E28 -> 0 | F29: 0 | G29: 0 | H29: 0 | I29: 0 | J29: 0 | K29: 0 | L29: 0 | M29: 0 | N29: 0 | O29: 200 | P29: 200 | Q29: 200 | R29: 200 | S29: 200 | T29: 200 | U29: 200 | V29: 200 | W29: 200 | X29: 200
C30: =+Translations!A288 -> EBT | E30: =IFERROR((E29)/(E7+E8),0) -> 0 | F30: =IFERROR((F29)/(F7+F8),0) -> 0 | G30: 0 | H30: 0 | I30: 0 | J30: 0 | K30: 0 | L30: 0 | M30: 0 | N30: 0 | O30: 0.04 | P30: 0.04 | Q30: 0.04 | R30: 0.04 | S30: 0.04 | T30: 0.04 | U30: 0.04 | V30: 0.04 | W30: 0.04 | X30: 0.04
C31: =+Translations!A289 -> 11. Income taxes | E31: =IF(E29>0,'Other parameters'!$C$15*E29,0) -> 0 | F31: =IF(F29>0,'Other parameters'!$C$15*F29,0) -> 0 | G31: =IF(G29>0,'Other parameters'!$C$15*G29,0) -> 0 | H31: =IF(H29>0,'Other parameters'!$C$15*H29,0) -> 0 | I31: =IF(I29>0,'Other parameters'!$C$15*I29,0) -> 0 | J31: =IF(J29>0,'Other parameters'!$C$15*J29,0) -> 0 | K31: =IF(K29>0,'Other parameters'!$C$15*K29,0) -> 0 | L31: =IF(L29>0,'Other parameters'!$C$15*L29,0) -> 0 | M31: =IF(M29>0,'Other parameters'!$C$15*M29,0) -> 0 | N31: =IF(N29>0,'Other parameters'!$C$15*N29,0) -> 0 | O31: =IF(O29>0,'Other parameters'!$C$15*O29,0) -> 40 | P31: =IF(P29>0,'Other parameters'!$C$15*P29,0) -> 40 | Q31: =IF(Q29>0,'Other parameters'!$C$15*Q29,0) -> 40 | R31: =IF(R29>0,'Other parameters'!$C$15*R29,0) -> 40 | S31: =IF(S29>0,'Other parameters'!$C$15*S29,0) -> 40 | T31: =IF(T29>0,'Other parameters'!$C$15*T29,0) -> 40 | U31: =IF(U29>0,'Other parameters'!$C$15*U29,0) -> 40 | V31: =IF(V29>0,'Other parameters'!$C$15*V29,0) -> 40 | W31: =IF(W29>0,'Other parameters'!$C$15*W29,0) -> 40 | X31: =IF(X29>0,'Other parameters'!$C$15*X29,0) -> 40
C32: =+Translations!A290 -> 12. NET INCOME | D32: 0 | E32: =E29-E31 -> 0 | F32: =F29-F31 -> 0 | G32: 0 | H32: 0 | I32: 0 | J32: 0 | K32: 0 | L32: 0 | M32: 0 | N32: 0 | O32: 160 | P32: 160 | Q32: 160 | R32: 160 | S32: 160 | T32: =T29-T31 -> 160 | U32: 160 | V32: 160 | W32: 160 | X32: 160
C33: =+Translations!A291 -> 13. Number of employees | E33: =+'Operating costs'!D73 -> 0 | F33: =+'Operating costs'!E73 -> 0 | G33: =+'Operating costs'!F73 -> 0 | H33: =+'Operating costs'!G73 -> 0 | I33: =+'Operating costs'!H73 -> 0 | J33: =+'Operating costs'!I73 -> 0 | K33: =+'Operating costs'!J73 -> 0 | L33: =+'Operating costs'!K73 -> 0 | M33: =+'Operating costs'!L73 -> 0 | N33: =+'Operating costs'!M73 -> 0 | O33: =+'Operating costs'!N73 -> 0 | P33: =+'Operating costs'!O73 -> 0 | Q33: =+'Operating costs'!P73 -> 0 | R33: =+'Operating costs'!Q73 -> 0 | S33: =+'Operating costs'!R73 -> 0 | T33: =+'Operating costs'!S73 -> 0 | U33: =+'Operating costs'!T73 -> 0 | V33: =+'Operating costs'!U73 -> 0 | W33: =+'Operating costs'!V73 -> 0 | X33: =+'Operating costs'!W73 -> 0

Sheet Balance_sheet
C5: =+Translations!A293 -> Balance sheet on 31st of December in € | E5: =+Home!K12 -> 2017 | F5: =+E5+1 -> 2018 | G5: =+F5+1 -> 2019 | H5: 2020 | I5: 2021 | J5: 2022 | K5: 2023 | L5: 2024 | M5: 2025 | N5: 2026 | O5: 2027 | P5: 2028 | Q5: 2029 | R5: 2030 | S5: 2031 | T5: 2032 | U5: 2033 | V5: 2034 | W5: 2035 | X5: 2036
F6: plan | G6: plan | H6: plan | I6: plan | J6: plan | K6: plan | L6: plan | M6: plan | N6: plan | O6: plan | P6: plan | Q6: plan | R6: plan | S6: plan | T6: plan | U6: plan | V6: plan | W6: plan | X6: plan
C7: =+Translations!A294 -> A. FIXED ASSETS | E7: =E8+E9+E12 -> 0 | F7: 0 | G7: 0 | H7: 0 | I7: 0 | J7: 0 | K7: 0 | L7: 0 | M7: 0 | N7: 0 | O7: 0 | P7: 0 | Q7: 0 | R7: 0 | S7: 0 | T7: 0 | U7: 0 | V7: 0 | W7: 0 | X7: 0
C8: =+Translations!A295 -> I. Intangible assets and long-term deferred costs and accrued revenues | D8: 0 | E8: =+Assets!G52 -> 0 | F8: =+Assets!H52 -> 0 | G8: =+Assets!I52 -> 0 | H8: =+Assets!J52 -> 0 | I8: =+Assets!K52 -> 0 | J8: =+Assets!L52 -> 0 | K8: =+Assets!M52 -> 0 | L8: =+Assets!N52 -> 0 | M8: =+Assets!O52 -> 0 | N8: =+Assets!P52 -> 0 | O8: =+Assets!Q52 -> 0 | P8: =+Assets!R52 -> 0 | Q8: =+Assets!S52 -> 0 | R8: =+Assets!T52 -> 0 | S8: =+Assets!U52 -> 0 | T8: =+Assets!V52 -> 0 | U8: =+Assets!W52 -> 0 | V8: =+Assets!X52 -> 0 | W8: =+Assets!Y52 -> 0 | X8: =+Assets!Z52 -> 0
C9: =+Translations!A296 -> II. Property, plant and equipment | D9: 1 | E9: =SUM(E10:E11) -> 0 | F9: =SUM(F10:F11) -> 0 | G9: 0 | H9: 0 | I9: 0 | J9: 0 | K9: 0 | L9: 0 | M9: 0 | N9: 0 | O9: 0 | P9: 0 | Q9: 0 | R9: 0 | S9: 0 | T9: 0 | U9: 0 | V9: 0 | W9: 0 | X9: 0
C10: =+Translations!A297 -> 1. Buildings and constructions | D10: 2 | E10: =+Assets!G53 -> 0 | F10: =+Assets!H53 -> 0 | G10: =+Assets!I53 -> 0 | H10: =+Assets!J53 -> 0 | I10: =+Assets!K53 -> 0 | J10: =+Assets!L53 -> 0 | K10: =+Assets!M53 -> 0 | L10: =+Assets!N53 -> 0 | M10: =+Assets!O53 -> 0 | N10: =+Assets!P53 -> 0 | O10: =+Assets!Q53 -> 0 | P10: =+Assets!R53 -> 0 | Q10: =+Assets!S53 -> 0 | R10: =+Assets!T53 -> 0 | S10: =+Assets!U53 -> 0 | T10: =+Assets!V53 -> 0 | U10: =+Assets!W53 -> 0 | V10: =+Assets!X53 -> 0 | W10: =+Assets!Y53 -> 0 | X10: =+Assets!Z53 -> 0
C11: =+Translations!A298 -> 2. Equipment, plant, vehicles, mechanization | D11: 3 | E11: =+Assets!G54 -> 0 | F11: =+Assets!H54 -> 0 | G11: =+Assets!I54 -> 0 | H11: =+Assets!J54 -> 0 | I11: =+Assets!K54 -> 0 | J11: =+Assets!L54 -> 0 | K11: =+Assets!M54 -> 0 | L11: =+Assets!N54 -> 0 | M11: =+Assets!O54 -> 0 | N11: =+Assets!P54 -> 0 | O11: =+Assets!Q54 -> 0 | P11: =+Assets!R54 -> 0 | Q11: =+Assets!S54 -> 0 | R11: =+Assets!T54 -> 0 | S11: =+Assets!U54 -> 0 | T11: =+Assets!V54 -> 0 | U11: =+Assets!W54 -> 0 | V11: =+Assets!X54 -> 0 | W11: =+Assets!Y54 -> 0 | X11: =+Assets!Z54 -> 0
C12: =+Translations!A299 -> III. Long-term accounts receivable | D12: 4 | E12: =+Assets!G31 -> 0 | F12: =+Assets!H31 -> 0 | G12: =+Assets!I31 -> 0 | H12: =+Assets!J31 -> 0 | I12: =+Assets!K31 -> 0 | J12: =+Assets!L31 -> 0 | K12: =+Assets!M31 -> 0 | L12: =+Assets!N31 -> 0 | M12: =+Assets!O31 -> 0 | N12: =+Assets!P31 -> 0 | O12: =+Assets!Q31 -> 0 | P12: =+Assets!R31 -> 0 | Q12: =+Assets!S31 -> 0 | R12: =+Assets!T31 -> 0 | S12: =+Assets!U31 -> 0 | T12: =+Assets!V31 -> 0 | U12: =+Assets!W31 -> 0 | V12: =+Assets!X31 -> 0 | W12: =+Assets!Y31 -> 0 | X12: =+Assets!Z31 -> 0
C13: =+Translations!A300 -> B. CURRENT ASSETS | E13: =+E14+E15+E16 -> 0 | F13: 0 | G13: 0 | H13: 0 | I13: 0 | J13: 0 | K13: 0 | L13: 0 | M13: 0 | N13: 0 | O13: 570.9589041 | P13: 730.9589041 | Q13: 890.9589041 | R13: 1050.958904 | S13: 1210.958904 | T13: 1370.958904 | U13: 1530.958904 | V13: 1690.958904 | W13: 1850.958904 | X13: 2010.958904
C14: =+Translations!A301 -> I. Inventories | E14: =+Assets!G15 -> 0 | F14: =+Assets!H15 -> 0 | G14: =+Assets!I15 -> 0 | H14: =+Assets!J15 -> 0 | I14: =+Assets!K15 -> 0 | J14: =+Assets!L15 -> 0 | K14: =+Assets!M15 -> 0 | L14: =+Assets!N15 -> 0 | M14: =+Assets!O15 -> 0 | N14: =+Assets!P15 -> 0 | O14: =+Assets!Q15 -> 0 | P14: =+Assets!R15 -> 0 | Q14: =+Assets!S15 -> 0 | R14: =+Assets!T15 -> 0 | S14: =+Assets!U15 -> 0 | T14: =+Assets!V15 -> 0 | U14: =+Assets!W15 -> 0 | V14: =+Assets!X15 -> 0 | W14: =+Assets!Y15 -> 0 | X14: =+Assets!Z15 -> 0
C15: =+Translations!A302 -> II. Accounts receivable | E15: =+Assets!G28 -> 0 | F15: =+Assets!H28 -> 0 | G15: =+Assets!I28 -> 0 | H15: =+Assets!J28 -> 0 | I15: =+Assets!K28 -> 0 | J15: =+Assets!L28 -> 0 | K15: =+Assets!M28 -> 0 | L15: =+Assets!N28 -> 0 | M15: =+Assets!O28 -> 0 | N15: =+Assets!P28 -> 0 | O15: =+Assets!Q28 -> 410.9589041 | P15: =+Assets!R28 -> 410.9589041 | Q15: =+Assets!S28 -> 410.9589041 | R15: =+Assets!T28 -> 410.9589041 | S15: =+Assets!U28 -> 410.9589041 | T15: =+Assets!V28 -> 410.9589041 | U15: =+Assets!W28 -> 410.9589041 | V15: =+Assets!X28 -> 410.9589041 | W15: =+Assets!Y28 -> 410.9589041 | X15: =+Assets!Z28 -> 410.9589041
C16: =+Translations!A303 -> III. Cash and cash equivalents | E16: =+CashFlow_statement!D32 -> 0 | F16: =+CashFlow_statement!E32 -> 0 | G16: =+CashFlow_statement!F32 -> 0 | H16: =+CashFlow_statement!G32 -> 0 | I16: =+CashFlow_statement!H32 -> 0 | J16: =+CashFlow_statement!I32 -> 0 | K16: =+CashFlow_statement!J32 -> 0 | L16: =+CashFlow_statement!K32 -> 0 | M16: =+CashFlow_statement!L32 -> 0 | N16: =+CashFlow_statement!M32 -> 0 | O16: =+CashFlow_statement!N32 -> 160 | P16: =+CashFlow_statement!O32 -> 320 | Q16: =+CashFlow_statement!P32 -> 480 | R16: =+CashFlow_statement!Q32 -> 640 | S16: =+CashFlow_statement!R32 -> 800 | T16: =+CashFlow_statement!S32 -> 960 | U16: =+CashFlow_statement!T32 -> 1120 | V16: =+CashFlow_statement!U32 -> 1280 | W16: =+CashFlow_statement!V32 -> 1440 | X16: =+CashFlow_statement!W32 -> 1600
C17: =+Translations!A304 -> TOTAL ASSETS | E17: =E7+E13 -> 0 | F17: 0 | G17: 0 | H17: 0 | I17: 0 | J17: 0 | K17: 0 | L17: 0 | M17: 0 | N17: 0 | O17: 570.9589041 | P17: 730.9589041 | Q17: 890.9589041 | R17: 1050.958904 | S17: 1210.958904 | T17: 1370.958904 | U17: 1530.958904 | V17: 1690.958904 | W17: 1850.958904 | X17: 2010.958904
C19: =+Translations!A305 -> A. OWNER'S EQUITY | E19: =+Liabilities_and_Equity!G60 -> 0 | F19: =+Liabilities_and_Equity!H60 -> 0 | G19: =+Liabilities_and_Equity!I60 -> 0 | H19: =+Liabilities_and_Equity!J60 -> 0 | I19: =+Liabilities_and_Equity!K60 -> 0 | J19: =+Liabilities_and_Equity!L60 -> 0 | K19: =+Liabilities_and_Equity!M60 -> 0 | L19: =+Liabilities_and_Equity!N60 -> 0 | M19: =+Liabilities_and_Equity!O60 -> 0 | N19: =+Liabilities_and_Equity!P60 -> 0 | O19: =+Liabilities_and_Equity!Q60 -> 160 | P19: =+Liabilities_and_Equity!R60 -> 320 | Q19: =+Liabilities_and_Equity!S60 -> 480 | R19: =+Liabilities_and_Equity!T60 -> 640 | S19: =+Liabilities_and_Equity!U60 -> 800 | T19: =+Liabilities_and_Equity!V60 -> 960 | U19: =+Liabilities_and_Equity!W60 -> 1120 | V19: =+Liabilities_and_Equity!X60 -> 1280 | W19: =+Liabilities_and_Equity!Y60 -> 1440 | X19: =+Liabilities_and_Equity!Z60 -> 1600
C20: =+Translations!A306 -> B. PROVISIONS AND LONG-TERM ACCRUED COSTS AND DEFERRED REVENUES | E20: =+Liabilities_and_Equity!G71 -> 0 | F20: =+Liabilities_and_Equity!H71 -> 0 | G20: =+Liabilities_and_Equity!I71 -> 0 | H20: =+Liabilities_and_Equity!J71 -> 0 | I20: =+Liabilities_and_Equity!K71 -> 0 | J20: =+Liabilities_and_Equity!L71 -> 0 | K20: =+Liabilities_and_Equity!M71 -> 0 | L20: =+Liabilities_and_Equity!N71 -> 0 | M20: =+Liabilities_and_Equity!O71 -> 0 | N20: =+Liabilities_and_Equity!P71 -> 0 | O20: =+Liabilities_and_Equity!Q71 -> 0 | P20: =+Liabilities_and_Equity!R71 -> 0 | Q20: =+Liabilities_and_Equity!S71 -> 0 | R20: =+Liabilities_and_Equity!T71 -> 0 | S20: =+Liabilities_and_Equity!U71 -> 0 | T20: =+Liabilities_and_Equity!V71 -> 0 | U20: =+Liabilities_and_Equity!W71 -> 0 | V20: =+Liabilities_and_Equity!X71 -> 0 | W20: =+Liabilities_and_Equity!Y71 -> 0 | X20: =+Liabilities_and_Equity!Z71 -> 0
C21: =+Translations!A307 -> C. LONG-TERM LIABILITIES | E21: =SUM(E22:E23) -> 0 | F21: 0 | G21: 0 | H21: 0 | I21: 0 | J21: 0 | K21: 0 | L21: 0 | M21: 0 | N21: 0 | O21: 0 | P21: 0 | Q21: 0 | R21: 0 | S21: 0 | T21: =SUM(T22:T23) -> 0 | U21: 0 | V21: 0 | W21: 0 | X21: 0
C22: =+Translations!A308 -> I. Long-term financial liabilities | D22: 0 | E22: =+Liabilities_and_Equity!G42-Liabilities_and_Equity!H47 -> 0 | F22: =+Liabilities_and_Equity!H42-Liabilities_and_Equity!I47 -> 0 | G22: =+Liabilities_and_Equity!I42-Liabilities_and_Equity!J47 -> 0 | H22: =+Liabilities_and_Equity!J42-Liabilities_and_Equity!K47 -> 0 | I22: =+Liabilities_and_Equity!K42-Liabilities_and_Equity!L47 -> 0 | J22: =+Liabilities_and_Equity!L42-Liabilities_and_Equity!M47 -> 0 | K22: =+Liabilities_and_Equity!M42-Liabilities_and_Equity!N47 -> 0 | L22: =+Liabilities_and_Equity!N42-Liabilities_and_Equity!O47 -> 0 | M22: =+Liabilities_and_Equity!O42-Liabilities_and_Equity!P47 -> 0 | N22: =+Liabilities_and_Equity!P42-Liabilities_and_Equity!Q47 -> 0 | O22: =+Liabilities_and_Equity!Q42-Liabilities_and_Equity!R47 -> 0 | P22: =+Liabilities_and_Equity!R42-Liabilities_and_Equity!S47 -> 0 | Q22: =+Liabilities_and_Equity!S42-Liabilities_and_Equity!T47 -> 0 | R22: =+Liabilities_and_Equity!T42-Liabilities_and_Equity!U47 -> 0 | S22: =+Liabilities_and_Equity!U42-Liabilities_and_Equity!V47 -> 0 | T22: =+Liabilities_and_Equity!V42-Liabilities_and_Equity!W47 -> 0 | U22: =+Liabilities_and_Equity!W42-Liabilities_and_Equity!X47 -> 0 | V22: =+Liabilities_and_Equity!X42-Liabilities_and_Equity!Y47 -> 0 | W22: =+Liabilities_and_Equity!Y42-Liabilities_and_Equity!Z47 -> 0 | X22: =+Liabilities_and_Equity!Z42-Liabilities_and_Equity!AA47 -> 0
C23: =+Translations!A309 -> II. Long-term accounts payable | D23: 1 | E23: =+Liabilities_and_Equity!G16 -> 0 | F23: =+Liabilities_and_Equity!H16 -> 0 | G23: =+Liabilities_and_Equity!I16 -> 0 | H23: =+Liabilities_and_Equity!J16 -> 0 | I23: =+Liabilities_and_Equity!K16 -> 0 | J23: =+Liabilities_and_Equity!L16 -> 0 | K23: =+Liabilities_and_Equity!M16 -> 0 | L23: =+Liabilities_and_Equity!N16 -> 0 | M23: =+Liabilities_and_Equity!O16 -> 0 | N23: =+Liabilities_and_Equity!P16 -> 0 | O23: =+Liabilities_and_Equity!Q16 -> 0 | P23: =+Liabilities_and_Equity!R16 -> 0 | Q23: =+Liabilities_and_Equity!S16 -> 0 | R23: =+Liabilities_and_Equity!T16 -> 0 | S23: =+Liabilities_and_Equity!U16 -> 0 | T23: =+Liabilities_and_Equity!V16 -> 0 | U23: =+Liabilities_and_Equity!W16 -> 0 | V23: =+Liabilities_and_Equity!X16 -> 0 | W23: =+Liabilities_and_Equity!Y16 -> 0 | X23: =+Liabilities_and_Equity!Z16 -> 0
C24: =+Translations!A310 -> D. CURRENT LIABILITIES | D24: 0 | E24: =SUM(E25:E26) -> 0 | F24: =SUM(F25:F26) -> 0 | G24: 0 | H24: 0 | I24: 0 | J24: 0 | K24: 0 | L24: 0 | M24: 0 | N24: 0 | O24: 410.9589041 | P24: 410.9589041 | Q24: 410.9589041 | R24: 410.9589041 | S24: 410.9589041 | T24: 410.9589041 | U24: 410.9589041 | V24: 410.9589041 | W24: 410.9589041 | X24: 410.9589041
C25: =+Translations!A311 -> I. Short-term financial liabilities | D25: 0 | E25: =+Liabilities_and_Equity!H47 -> 0 | F25: =+Liabilities_and_Equity!I47 -> 0 | G25: =+Liabilities_and_Equity!J47 -> 0 | H25: =+Liabilities_and_Equity!K47 -> 0 | I25: =+Liabilities_and_Equity!L47 -> 0 | J25: =+Liabilities_and_Equity!M47 -> 0 | K25: =+Liabilities_and_Equity!N47 -> 0 | L25: =+Liabilities_and_Equity!O47 -> 0 | M25: =+Liabilities_and_Equity!P47 -> 0 | N25: =+Liabilities_and_Equity!Q47 -> 0 | O25: =+Liabilities_and_Equity!R47 -> 0 | P25: =+Liabilities_and_Equity!S47 -> 0 | Q25: =+Liabilities_and_Equity!T47 -> 0 | R25: =+Liabilities_and_Equity!U47 -> 0 | S25: =+Liabilities_and_Equity!V47 -> 0 | T25: =+Liabilities_and_Equity!W47 -> 0 | U25: =+Liabilities_and_Equity!X47 -> 0 | V25: =+Liabilities_and_Equity!Y47 -> 0 | W25: =+Liabilities_and_Equity!Z47 -> 0 | X25: =+Liabilities_and_Equity!AA47 -> 0
C26: =+Translations!A312 -> II. Accounts payable | D26: 1 | E26: =+Liabilities_and_Equity!G13 -> 0 | F26: =+Liabilities_and_Equity!H13 -> 0 | G26: =+Liabilities_and_Equity!I13 -> 0 | H26: =+Liabilities_and_Equity!J13 -> 0 | I26: =+Liabilities_and_Equity!K13 -> 0 | J26: =+Liabilities_and_Equity!L13 -> 0 | K26: =+Liabilities_and_Equity!M13 -> 0 | L26: =+Liabilities_and_Equity!N13 -> 0 | M26: =+Liabilities_and_Equity!O13 -> 0 | N26: =+Liabilities_and_Equity!P13 -> 0 | O26: =+Liabilities_and_Equity!Q13 -> 410.9589041 | P26: =+Liabilities_and_Equity!R13 -> 410.9589041 | Q26: =+Liabilities_and_Equity!S13 -> 410.9589041 | R26: =+Liabilities_and_Equity!T13 -> 410.9589041 | S26: =+Liabilities_and_Equity!U13 -> 410.9589041 | T26: =+Liabilities_and_Equity!V13 -> 410.9589041 | U26: =+Liabilities_and_Equity!W13 -> 410.9589041 | V26: =+Liabilities_and_Equity!X13 -> 410.9589041 | W26: =+Liabilities_and_Equity!Y13 -> 410.9589041 | X26: =+Liabilities_and_Equity!Z13 -> 410.9589041
C27: =+Translations!A313 -> TOTAL LIABILITIES AND OWNER'S EQUITY | E27: =E19+E20+E21+E24 -> 0 | F27: 0 | G27: 0 | H27: 0 | I27: 0 | J27: 0 | K27: 0 | L27: 0 | M27: 0 | N27: 0 | O27: 570.9589041 | P27: 730.9589041 | Q27: 890.9589041 | R27: 1050.958904 | S27: 1210.958904 | T27: 1370.958904 | U27: 1530.958904 | V27: 1690.958904 | W27: 1850.958904 | X27: 2010.958904

Sheet CashFlow_statement
C5: =+Translations!A315 -> Cash-flow statement in € | D5: =+Home!K12 -> 2017 | E5: =+D5+1 -> 2018 | F5: =+E5+1 -> 2019 | G5: 2020 | H5: 2021 | I5: 2022 | J5: 2023 | K5: 2024 | L5: 2025 | M5: 2026 | N5: 2027 | O5: 2028 | P5: 2029 | Q5: 2030 | R5: 2031 | S5: 2032 | T5: 2033 | U5: 2034 | V5: 2035 | W5: 2036
E6: plan | F6: plan | G6: plan | H6: plan | I6: plan | J6: plan | K6: plan | L6: plan | M6: plan | N6: plan | O6: plan | P6: plan | Q6: plan | R6: plan | S6: plan | T6: plan | U6: plan | V6: plan | W6: plan
C7: =+Translations!A316 -> A. CASH FLOW FROM OPERATING ACTIVITIES
C8: =+Translations!A317 -> 1. Income before taxes | D8: =+Income_statement!E29 -> 0 | E8: =+Income_statement!F29 -> 0 | F8: =+Income_statement!G29 -> 0 | G8: =+Income_statement!H29 -> 0 | H8: =+Income_statement!I29 -> 0 | I8: =+Income_statement!J29 -> 0 | J8: =+Income_statement!K29 -> 0 | K8: =+Income_statement!L29 -> 0 | L8: =+Income_statement!M29 -> 0 | M8: =+Income_statement!N29 -> 0 | N8: =+Income_statement!O29 -> 200 | O8: =+Income_statement!P29 -> 200 | P8: =+Income_statement!Q29 -> 200 | Q8: =+Income_statement!R29 -> 200 | R8: =+Income_statement!S29 -> 200 | S8: =+Income_statement!T29 -> 200 | T8: =+Income_statement!U29 -> 200 | U8: =+Income_statement!V29 -> 200 | V8: =+Income_statement!W29 -> 200 | W8: =+Income_statement!X29 -> 200
C9: =+Translations!A318 -> 2. Depreciation and amortization | D9: =+Income_statement!E19 -> 0 | E9: =+Income_statement!F19 -> 0 | F9: =+Income_statement!G19 -> 0 | G9: =+Income_statement!H19 -> 0 | H9: =+Income_statement!I19 -> 0 | I9: =+Income_statement!J19 -> 0 | J9: =+Income_statement!K19 -> 0 | K9: =+Income_statement!L19 -> 0 | L9: =+Income_statement!M19 -> 0 | M9: =+Income_statement!N19 -> 0 | N9: =+Income_statement!O19 -> 0 | O9: =+Income_statement!P19 -> 0 | P9: =+Income_statement!Q19 -> 0 | Q9: =+Income_statement!R19 -> 0 | R9: =+Income_statement!S19 -> 0 | S9: =+Income_statement!T19 -> 0 | T9: =+Income_statement!U19 -> 0 | U9: =+Income_statement!V19 -> 0 | V9: =+Income_statement!W19 -> 0 | W9: =+Income_statement!X19 -> 0
C10: =+Translations!A319 -> 3. Income taxes | D10: =-Income_statement!E31 -> 0 | E10: =-Income_statement!F31 -> 0 | F10: =-Income_statement!G31 -> 0 | G10: =-Income_statement!H31 -> 0 | H10: =-Income_statement!I31 -> 0 | I10: =-Income_statement!J31 -> 0 | J10: =-Income_statement!K31 -> 0 | K10: =-Income_statement!L31 -> 0 | L10: =-Income_statement!M31 -> 0 | M10: =-Income_statement!N31 -> 0 | N10: =-Income_statement!O31 -> -40 | O10: =-Income_statement!P31 -> -40 | P10: =-Income_statement!Q31 -> -40 | Q10: =-Income_statement!R31 -> -40 | R10: =-Income_statement!S31 -> -40 | S10: =-Income_statement!T31 -> -40 | T10: =-Income_statement!U31 -> -40 | U10: =-Income_statement!V31 -> -40 | V10: =-Income_statement!W31 -> -40 | W10: =-Income_statement!X31 -> -40
C11: =+Translations!A320 -> 4. Decrease (- increase) in accounts receivable | D11: =0-Balance_sheet!E15-Balance_sheet!E12 -> 0 | E11: =+Balance_sheet!E15-Balance_sheet!F15+Balance_sheet!E12-Balance_sheet!F12 -> 0 | F11: =+Balance_sheet!F15-Balance_sheet!G15+Balance_sheet!F12-Balance_sheet!G12 -> 0 | G11: =+Balance_sheet!G15-Balance_sheet!H15+Balance_sheet!G12-Balance_sheet!H12 -> 0 | H11: =+Balance_sheet!H15-Balance_sheet!I15+Balance_sheet!H12-Balance_sheet!I12 -> 0 | I11: =+Balance_sheet!I15-Balance_sheet!J15+Balance_sheet!I12-Balance_sheet!J12 -> 0 | J11: =+Balance_sheet!J15-Balance_sheet!K15+Balance_sheet!J12-Balance_sheet!K12 -> 0 | K11: =+Balance_sheet!K15-Balance_sheet!L15+Balance_sheet!K12-Balance_sheet!L12 -> 0 | L11: =+Balance_sheet!L15-Balance_sheet!M15+Balance_sheet!L12-Balance_sheet!M12 -> 0 | M11: =+Balance_sheet!M15-Balance_sheet!N15+Balance_sheet!M12-Balance_sheet!N12 -> 0 | N11: =+Balance_sheet!N15-Balance_sheet!O15+Balance_sheet!N12-Balance_sheet!O12 -> -410.9589041 | O11: =+Balance_sheet!O15-Balance_sheet!P15+Balance_sheet!O12-Balance_sheet!P12 -> 0 | P11: =+Balance_sheet!P15-Balance_sheet!Q15+Balance_sheet!P12-Balance_sheet!Q12 -> 0 | Q11: =+Balance_sheet!Q15-Balance_sheet!R15+Balance_sheet!Q12-Balance_sheet!R12 -> 0 | R11: =+Balance_sheet!R15-Balance_sheet!S15+Balance_sheet!R12-Balance_sheet!S12 -> 0 | S11: =+Balance_sheet!S15-Balance_sheet!T15+Balance_sheet!S12-Balance_sheet!T12 -> 0 | T11: =+Balance_sheet!T15-Balance_sheet!U15+Balance_sheet!T12-Balance_sheet!U12 -> 0 | U11: =+Balance_sheet!U15-Balance_sheet!V15+Balance_sheet!U12-Balance_sheet!V12 -> 0 | V11: =+Balance_sheet!V15-Balance_sheet!W15+Balance_sheet!V12-Balance_sheet!W12 -> 0 | W11: =+Balance_sheet!W15-Balance_sheet!X15+Balance_sheet!W12-Balance_sheet!X12 -> 0
C12: =+Translations!A321 -> 5. Decrease (- increase) in inventories | D12: =0-Balance_sheet!E14 -> 0 | E12: =+Balance_sheet!E14-Balance_sheet!F14 -> 0 | F12: =+Balance_sheet!F14-Balance_sheet!G14 -> 0 | G12: =+Balance_sheet!G14-Balance_sheet!H14 -> 0 | H12: =+Balance_sheet!H14-Balance_sheet!I14 -> 0 | I12: =+Balance_sheet!I14-Balance_sheet!J14 -> 0 | J12: =+Balance_sheet!J14-Balance_sheet!K14 -> 0 | K12: =+Balance_sheet!K14-Balance_sheet!L14 -> 0 | L12: =+Balance_sheet!L14-Balance_sheet!M14 -> 0 | M12: =+Balance_sheet!M14-Balance_sheet!N14 -> 0 | N12: =+Balance_sheet!N14-Balance_sheet!O14 -> 0 | O12: =+Balance_sheet!O14-Balance_sheet!P14 -> 0 | P12: =+Balance_sheet!P14-Balance_sheet!Q14 -> 0 | Q12: =+Balance_sheet!Q14-Balance_sheet!R14 -> 0 | R12: =+Balance_sheet!R14-Balance_sheet!S14 -> 0 | S12: =+Balance_sheet!S14-Balance_sheet!T14 -> 0 | T12: =+Balance_sheet!T14-Balance_sheet!U14 -> 0 | U12: =+Balance_sheet!U14-Balance_sheet!V14 -> 0 | V12: =+Balance_sheet!V14-Balance_sheet!W14 -> 0 | W12: =+Balance_sheet!W14-Balance_sheet!X14 -> 0
C13: =+Translations!A322 -> 6. Increase (- decrease) in accounts payable | D13: =Balance_sheet!E26+Balance_sheet!E23-0 -> 0 | E13: =Balance_sheet!F26-Balance_sheet!E26+Balance_sheet!F23-Balance_sheet!E23 -> 0 | F13: =Balance_sheet!G26-Balance_sheet!F26+Balance_sheet!G23-Balance_sheet!F23 -> 0 | G13: =Balance_sheet!H26-Balance_sheet!G26+Balance_sheet!H23-Balance_sheet!G23 -> 0 | H13: =Balance_sheet!I26-Balance_sheet!H26+Balance_sheet!I23-Balance_sheet!H23 -> 0 | I13: =Balance_sheet!J26-Balance_sheet!I26+Balance_sheet!J23-Balance_sheet!I23 -> 0 | J13: =Balance_sheet!K26-Balance_sheet!J26+Balance_sheet!K23-Balance_sheet!J23 -> 0 | K13: =Balance_sheet!L26-Balance_sheet!K26+Balance_sheet!L23-Balance_sheet!K23 -> 0 | L13: =Balance_sheet!M26-Balance_sheet!L26+Balance_sheet!M23-Balance_sheet!L23 -> 0 | M13: =Balance_sheet!N26-Balance_sheet!M26+Balance_sheet!N23-Balance_sheet!M23 -> 0 | N13: =Balance_sheet!O26-Balance_sheet!N26+Balance_sheet!O23-Balance_sheet!N23 -> 410.9589041 | O13: =Balance_sheet!P26-Balance_sheet!O26+Balance_sheet!P23-Balance_sheet!O23 -> 0 | P13: =Balance_sheet!Q26-Balance_sheet!P26+Balance_sheet!Q23-Balance_sheet!P23 -> 0 | Q13: =Balance_sheet!R26-Balance_sheet!Q26+Balance_sheet!R23-Balance_sheet!Q23 -> 0 | R13: =Balance_sheet!S26-Balance_sheet!R26+Balance_sheet!S23-Balance_sheet!R23 -> 0 | S13: =Balance_sheet!T26-Balance_sheet!S26+Balance_sheet!T23-Balance_sheet!S23 -> 0 | T13: =Balance_sheet!U26-Balance_sheet!T26+Balance_sheet!U23-Balance_sheet!T23 -> 0 | U13: =Balance_sheet!V26-Balance_sheet!U26+Balance_sheet!V23-Balance_sheet!U23 -> 0 | V13: =Balance_sheet!W26-Balance_sheet!V26+Balance_sheet!W23-Balance_sheet!V23 -> 0 | W13: =Balance_sheet!X26-Balance_sheet!W26+Balance_sheet!X23-Balance_sheet!W23 -> 0
C14: =+Translations!A323 -> 7. Financial costs | D14: =+Income_statement!E26 -> 0 | E14: =+Income_statement!F26 -> 0 | F14: =+Income_statement!G26 -> 0 | G14: =+Income_statement!H26 -> 0 | H14: =+Income_statement!I26 -> 0 | I14: =+Income_statement!J26 -> 0 | J14: =+Income_statement!K26 -> 0 | K14: =+Income_statement!L26 -> 0 | L14: =+Income_statement!M26 -> 0 | M14: =+Income_statement!N26 -> 0 | N14: =+Income_statement!O26 -> 0 | O14: =+Income_statement!P26 -> 0 | P14: =+Income_statement!Q26 -> 0 | Q14: =+Income_statement!R26 -> 0 | R14: =+Income_statement!S26 -> 0 | S14: =+Income_statement!T26 -> 0 | T14: =+Income_statement!U26 -> 0 | U14: =+Income_statement!V26 -> 0 | V14: =+Income_statement!W26 -> 0 | W14: =+Income_statement!X26 -> 0
C15: =+Translations!A324 -> 8. Income related to long-term accrued costs and deferred revenues (subsidies) | D15: =+-Liabilities_and_Equity!G70 -> 0 | E15: =+-Liabilities_and_Equity!H70 -> 0 | F15: =+-Liabilities_and_Equity!I70 -> 0 | G15: =+-Liabilities_and_Equity!J70 -> 0 | H15: =+-Liabilities_and_Equity!K70 -> 0 | I15: =+-Liabilities_and_Equity!L70 -> 0 | J15: =+-Liabilities_and_Equity!M70 -> 0 | K15: =+-Liabilities_and_Equity!N70 -> 0 | L15: =+-Liabilities_and_Equity!O70 -> 0 | M15: =+-Liabilities_and_Equity!P70 -> 0 | N15: =+-Liabilities_and_Equity!Q70 -> 0 | O15: =+-Liabilities_and_Equity!R70 -> 0 | P15: =+-Liabilities_and_Equity!S70 -> 0 | Q15: =+-Liabilities_and_Equity!T70 -> 0 | R15: =+-Liabilities_and_Equity!U70 -> 0 | S15: =+-Liabilities_and_Equity!V70 -> 0 | T15: =+-Liabilities_and_Equity!W70 -> 0 | U15: =+-Liabilities_and_Equity!X70 -> 0 | V15: =+-Liabilities_and_Equity!Y70 -> 0 | W15: =+-Liabilities_and_Equity!Z70 -> 0
C16: =+Translations!A325 -> Net cash flow from operating activities | D16: =SUM(D8:D15) -> 0 | E16: 0 | F16: 0 | G16: 0 | H16: 0 | I16: 0 | J16: 0 | K16: 0 | L16: 0 | M16: 0 | N16: 160 | O16: 160 | P16: 160 | Q16: 160 | R16: 160 | S16: =SUM(S8:S15) -> 160 | T16: 160 | U16: 160 | V16: 160 | W16: 160
C18: =+Translations!A326 -> B. CASH FLOW FROM INVESTING ACTIVITIES
C19: =+Translations!A327 -> 1. Receipts (+) and disbursements (-) in intangible assets | D19: =0-Income_statement!E20-Balance_sheet!E8 -> 0 | E19: =+Balance_sheet!E8-Income_statement!F20-Balance_sheet!F8 -> 0 | F19: =+Balance_sheet!F8-Income_statement!G20-Balance_sheet!G8 -> 0 | G19: =+Balance_sheet!G8-Income_statement!H20-Balance_sheet!H8 -> 0 | H19: =+Balance_sheet!H8-Income_statement!I20-Balance_sheet!I8 -> 0 | I19: =+Balance_sheet!I8-Income_statement!J20-Balance_sheet!J8 -> 0 | J19: =+Balance_sheet!J8-Income_statement!K20-Balance_sheet!K8 -> 0 | K19: =+Balance_sheet!K8-Income_statement!L20-Balance_sheet!L8 -> 0 | L19: =+Balance_sheet!L8-Income_statement!M20-Balance_sheet!M8 -> 0 | M19: =+Balance_sheet!M8-Income_statement!N20-Balance_sheet!N8 -> 0 | N19: =+Balance_sheet!N8-Income_statement!O20-Balance_sheet!O8 -> 0 | O19: =+Balance_sheet!O8-Income_statement!P20-Balance_sheet!P8 -> 0 | P19: =+Balance_sheet!P8-Income_statement!Q20-Balance_sheet!Q8 -> 0 | Q19: =+Balance_sheet!Q8-Income_statement!R20-Balance_sheet!R8 -> 0 | R19: =+Balance_sheet!R8-Income_statement!S20-Balance_sheet!S8 -> 0 | S19: =+Balance_sheet!S8-Income_statement!T20-Balance_sheet!T8 -> 0 | T19: =+Balance_sheet!T8-Income_statement!U20-Balance_sheet!U8 -> 0 | U19: =+Balance_sheet!U8-Income_statement!V20-Balance_sheet!V8 -> 0 | V19: =+Balance_sheet!V8-Income_statement!W20-Balance_sheet!W8 -> 0 | W19: =+Balance_sheet!W8-Income_statement!X20-Balance_sheet!X8 -> 0
C20: =+Translations!A328 -> 2. Receipts (+) and disbursements (-) in property, plant and equipment | D20: =0-Balance_sheet!E9-Income_statement!E21 -> 0 | E20: =+Balance_sheet!E9-Balance_sheet!F9-Income_statement!F21 -> 0 | F20: =+Balance_sheet!F9-Balance_sheet!G9-Income_statement!G21 -> 0 | G20: =+Balance_sheet!G9-Balance_sheet!H9-Income_statement!H21 -> 0 | H20: =+Balance_sheet!H9-Balance_sheet!I9-Income_statement!I21 -> 0 | I20: =+Balance_sheet!I9-Balance_sheet!J9-Income_statement!J21 -> 0 | J20: =+Balance_sheet!J9-Balance_sheet!K9-Income_statement!K21 -> 0 | K20: =+Balance_sheet!K9-Balance_sheet!L9-Income_statement!L21 -> 0 | L20: =+Balance_sheet!L9-Balance_sheet!M9-Income_statement!M21 -> 0 | M20: =+Balance_sheet!M9-Balance_sheet!N9-Income_statement!N21 -> 0 | N20: =+Balance_sheet!N9-Balance_sheet!O9-Income_statement!O21 -> 0 | O20: =+Balance_sheet!O9-Balance_sheet!P9-Income_statement!P21 -> 0 | P20: =+Balance_sheet!P9-Balance_sheet!Q9-Income_statement!Q21 -> 0 | Q20: =+Balance_sheet!Q9-Balance_sheet!R9-Income_statement!R21 -> 0 | R20: =+Balance_sheet!R9-Balance_sheet!S9-Income_statement!S21 -> 0 | S20: =+Balance_sheet!S9-Balance_sheet!T9-Income_statement!T21 -> 0 | T20: =+Balance_sheet!T9-Balance_sheet!U9-Income_statement!U21 -> 0 | U20: =+Balance_sheet!U9-Balance_sheet!V9-Income_statement!V21 -> 0 | V20: =+Balance_sheet!V9-Balance_sheet!W9-Income_statement!W21 -> 0 | W20: =+Balance_sheet!W9-Balance_sheet!X9-Income_statement!X21 -> 0
C22: =+Translations!A330 -> Net cash flow from investing activities | D22: =SUM(D19:D21) -> 0 | E22: 0 | F22: 0 | G22: 0 | H22: 0 | I22: 0 | J22: 0 | K22: 0 | L22: 0 | M22: 0 | N22: 0 | O22: 0 | P22: 0 | Q22: 0 | R22: 0 | S22: =SUM(S19:S21) -> 0 | T22: 0 | U22: 0 | V22: 0 | W22: 0
C24: =+Translations!A331 -> C. CASH FLOW FROM FINANCING ACTIVITIES
C25: =+Translations!A332 -> 1. Receipts from capital pay-in (+) and dividends paid (-) | D25: =+Liabilities_and_Equity!G60-0-Liabilities_and_Equity!G59 -> 0 | E25: =+Liabilities_and_Equity!H60-Liabilities_and_Equity!G60-Liabilities_and_Equity!H59 -> 0 | F25: =+Liabilities_and_Equity!I60-Liabilities_and_Equity!H60-Liabilities_and_Equity!I59 -> 0 | G25: =+Liabilities_and_Equity!J60-Liabilities_and_Equity!I60-Liabilities_and_Equity!J59 -> 0 | H25: =+Liabilities_and_Equity!K60-Liabilities_and_Equity!J60-Liabilities_and_Equity!K59 -> 0 | I25: =+Liabilities_and_Equity!L60-Liabilities_and_Equity!K60-Liabilities_and_Equity!L59 -> 0 | J25: =+Liabilities_and_Equity!M60-Liabilities_and_Equity!L60-Liabilities_and_Equity!M59 -> 0 | K25: =+Liabilities_and_Equity!N60-Liabilities_and_Equity!M60-Liabilities_and_Equity!N59 -> 0 | L25: =+Liabilities_and_Equity!O60-Liabilities_and_Equity!N60-Liabilities_and_Equity!O59 -> 0 | M25: =+Liabilities_and_Equity!P60-Liabilities_and_Equity!O60-Liabilities_and_Equity!P59 -> 0 | N25: =+Liabilities_and_Equity!Q60-Liabilities_and_Equity!P60-Liabilities_and_Equity!Q59 -> 0 | O25: =+Liabilities_and_Equity!R60-Liabilities_and_Equity!Q60-Liabilities_and_Equity!R59 -> 0 | P25: =+Liabilities_and_Equity!S60-Liabilities_and_Equity!R60-Liabilities_and_Equity!S59 -> 0 | Q25: =+Liabilities_and_Equity!T60-Liabilities_and_Equity!S60-Liabilities_and_Equity!T59 -> 0 | R25: =+Liabilities_and_Equity!U60-Liabilities_and_Equity!T60-Liabilities_and_Equity!U59 -> 0 | S25: =+Liabilities_and_Equity!V60-Liabilities_and_Equity!U60-Liabilities_and_Equity!V59 -> 0 | T25: =+Liabilities_and_Equity!W60-Liabilities_and_Equity!V60-Liabilities_and_Equity!W59 -> 0 | U25: =+Liabilities_and_Equity!X60-Liabilities_and_Equity!W60-Liabilities_and_Equity!X59 -> 0 | V25: =+Liabilities_and_Equity!Y60-Liabilities_and_Equity!X60-Liabilities_and_Equity!Y59 -> 0 | W25: =+Liabilities_and_Equity!Z60-Liabilities_and_Equity!Y60-Liabilities_and_Equity!Z59 -> 0
C26: =+Translations!A333 -> 2. Receipts (+) and disbursements (-) in financial liabilities and accrued costs and deferred revenues | D26: =+Investment_and_Financing!F24+Investment_and_Financing!F26+Investment_and_Financing!F27-Liabilities_and_Equity!G47-Liabilities_and_Equity!G52 -> 0 | E26: =+Balance_sheet!F22-Balance_sheet!E22+Balance_sheet!F25-Balance_sheet!E25-Income_statement!F26 -> 0 | F26: =+Balance_sheet!G22-Balance_sheet!F22+Balance_sheet!G25-Balance_sheet!F25-Income_statement!G26 -> 0 | G26: =+Balance_sheet!H22-Balance_sheet!G22+Balance_sheet!H25-Balance_sheet!G25-Income_statement!H26 -> 0 | H26: =+Balance_sheet!I22-Balance_sheet!H22+Balance_sheet!I25-Balance_sheet!H25-Income_statement!I26 -> 0 | I26: =+Balance_sheet!J22-Balance_sheet!I22+Balance_sheet!J25-Balance_sheet!I25-Income_statement!J26 -> 0 | J26: =+Balance_sheet!K22-Balance_sheet!J22+Balance_sheet!K25-Balance_sheet!J25-Income_statement!K26 -> 0 | K26: =+Balance_sheet!L22-Balance_sheet!K22+Balance_sheet!L25-Balance_sheet!K25-Income_statement!L26 -> 0 | L26: =+Balance_sheet!M22-Balance_sheet!L22+Balance_sheet!M25-Balance_sheet!L25-Income_statement!M26 -> 0 | M26: =+Balance_sheet!N22-Balance_sheet!M22+Balance_sheet!N25-Balance_sheet!M25-Income_statement!N26 -> 0 | N26: =+Balance_sheet!O22-Balance_sheet!N22+Balance_sheet!O25-Balance_sheet!N25-Income_statement!O26 -> 0 | O26: =+Balance_sheet!P22-Balance_sheet!O22+Balance_sheet!P25-Balance_sheet!O25-Income_statement!P26 -> 0 | P26: =+Balance_sheet!Q22-Balance_sheet!P22+Balance_sheet!Q25-Balance_sheet!P25-Income_statement!Q26 -> 0 | Q26: =+Balance_sheet!R22-Balance_sheet!Q22+Balance_sheet!R25-Balance_sheet!Q25-Income_statement!R26 -> 0 | R26: =+Balance_sheet!S22-Balance_sheet!R22+Balance_sheet!S25-Balance_sheet!R25-Income_statement!S26 -> 0 | S26: =+Balance_sheet!T22-Balance_sheet!S22+Balance_sheet!T25-Balance_sheet!S25-Income_statement!T26 -> 0 | T26: =+Balance_sheet!U22-Balance_sheet!T22+Balance_sheet!U25-Balance_sheet!T25-Income_statement!U26 -> 0 | U26: =+Balance_sheet!V22-Balance_sheet!U22+Balance_sheet!V25-Balance_sheet!U25-Income_statement!V26 -> 0 | V26: =+Balance_sheet!W22-Balance_sheet!V22+Balance_sheet!W25-Balance_sheet!V25-Income_statement!W26 -> 0 | W26: =+Balance_sheet!X22-Balance_sheet!W22+Balance_sheet!X25-Balance_sheet!W25-Income_statement!X26 -> 0
C27: =+Translations!A334 -> Net cash flow from financing activities | D27: =SUM(D25:D26) -> 0 | E27: 0 | F27: 0 | G27: 0 | H27: 0 | I27: 0 | J27: 0 | K27: 0 | L27: 0 | M27: 0 | N27: 0 | O27: 0 | P27: 0 | Q27: 0 | R27: 0 | S27: 0 | T27: 0 | U27: 0 | V27: 0 | W27: 0
C29: =+Translations!A335 -> D. NET BALANCE IN CASH AND CASH EQUIVALENTS
C30: =+Translations!A336 -> 1. Net cash flow | D30: =D16+D22+D27 -> 0 | E30: 0 | F30: 0 | G30: 0 | H30: 0 | I30: 0 | J30: 0 | K30: 0 | L30: 0 | M30: 0 | N30: 160 | O30: 160 | P30: 160 | Q30: 160 | R30: 160 | S30: 160 | T30: 160 | U30: 160 | V30: 160 | W30: 160
C31: =+Translations!A337 -> 2. Cash and cash equivalents, beginning of year | D31: 0 | E31: =D32 -> 0 | F31: =E32 -> 0 | G31: 0 | H31: 0 | I31: 0 | J31: 0 | K31: 0 | L31: 0 | M31: 0 | N31: 0 | O31: 160 | P31: 320 | Q31: 480 | R31: 640 | S31: 800 | T31: 960 | U31: 1120 | V31: 1280 | W31: 1440
C32: =+Translations!A338 -> 3. Cash and cash equivalents, end of year | D32: =SUM(D30:D31) -> 0 | E32: 0 | F32: 0 | G32: 0 | H32: 0 | I32: 0 | J32: 0 | K32: 0 | L32: 0 | M32: 0 | N32: 160 | O32: 320 | P32: 480 | Q32: 640 | R32: 800 | S32: =SUM(S30:S31) -> 960 | T32: 1120 | U32: 1280 | V32: 1440 | W32: 1600

Sheet Internal_rate_of_return
B6: =+Translations!A340 -> Profitability | F6: =+Translations!A341 -> Cash flow
B7: =+Translations!A342 -> Initial capital investment (discounted for received subsidies) | F7: =+Investment_and_Financing!F23+Investment_and_Financing!F24 -> 0
B8: =+Translations!A343 -> Private equity invested | F8: =+Investment_and_Financing!F23 -> 0
B9: =+Translations!A344 -> Equity net present value (NPV) | F9: =SUM(D15:F25) -> 0
B10: =+Translations!A345 -> Equity internal rate of return (IRR) | F10: =IFERROR(IRR(C15:C25),-0.22) -> -0.22
B12: =+Translations!A347 -> CASH FLOW in € | D12: =+Translations!A346 -> Discount rate: | F12: =+'Other parameters'!C13 -> 0.04
B14: =+Translations!A348 -> Year | C14: =+Translations!A341 -> Cash flow | D14: =+Translations!A349 -> Discounted Cash flow | G14: Payback C1 | J14: Payback C2 | K14: Payback C3 | L14: Payback C4 | M14: Payback result
B15: C0 | C15: =+-F8 -> 0 | D15: =+C15 -> 0 | I15: 0 | J15: 0 | K15: 0 | L15: 0
B16: CF1 | C16: =+CashFlow_statement!D30 -> 0 | D16: =+C16/(1+F12) -> 0 | I16: =SUM(D15:E16) -> 0 | J16: =SUM(D16) -> 0 | K16: =+(-D15)/D16 ->  | L16: =0+K16 ->  | M16: =IF(AND(K16>=0,K16<=1),L16, "") -> 
B17: CF2 | C17: =+CashFlow_statement!E30 -> 0 | D17: =+C17/((1+F12)^2) -> 0 | I17: =SUM(D15:E17) -> 0 | J17: =SUM(D16:E17) -> 0 | K17: =((-I16)/D17) ->  | L17: =1+K17 ->  | M17: =IF(AND(K17>=0,K17<=1),L17, "") -> 
B18: CF3 | C18: =+CashFlow_statement!F30 -> 0 | D18: =+C18/((1+F12)^3) -> 0 | I18: =SUM(D15:E18) -> 0 | J18: 0 | L18: =2+K18 ->  | M18: =IF(AND(K18>=0,K18<=1),L18, "") -> 
B19: CF4 | C19: =+CashFlow_statement!G30 -> 0 | D19: =+C19/((1+F12)^4) -> 0 | I19: =SUM(D15:E19) -> 0 | J19: 0 | L19: =3+K19 ->  | M19: =IF(AND(K19>=0,K19<=1),L19, "") -> 
B20: CF5 | C20: =+CashFlow_statement!H30 -> 0 | D20: =+C20/((1+F12)^5) -> 0 | I20: =SUM(D15:E20) -> 0 | J20: 0 | L20: =4+K20 ->  | M20: =IF(AND(K20>=0,K20<=1),L20, "") -> 
B21: CF6 | C21: =+CashFlow_statement!I30 -> 0 | D21: =+C21/((1+F12)^6) -> 0 | I21: =SUM(D15:E21) -> 0 | J21: 0 | L21: =5+K21 -> 
B22: CF7 | C22: =+CashFlow_statement!J30 -> 0 | D22: =+C22/((1+F12)^7) -> 0 | I22: =SUM(D15:E22) -> 0 | J22: 0 | L22: =6+K22 -> 
B23: CF8 | C23: =+CashFlow_statement!K30 -> 0 | D23: =+C23/((1+F12)^8) -> 0 | I23: =SUM(D15:E23) -> 0 | J23: 0 | L23: =7+K23 -> 
B24: CF9 | C24: =+CashFlow_statement!L30 -> 0 | D24: =+C24/((1+F12)^9) -> 0 | I24: =SUM(D15:E24) -> 0 | J24: 0 | L24: =8+K24 -> 
B25: CF10 | C25: =+CashFlow_statement!M30 -> 0 | D25: =+C25/((1+F12)^10) -> 0 | I25: =SUM(D15:E25) -> 0 | J25: 0 | L25: =9+K25 -> 
B26: CF11 | C26: =+CashFlow_statement!N30 -> 160 | D26: =+C26/((1+F12)^11) -> 103.9329491 | I26: =SUM(D15:E26) -> 103.9329491 | J26: 103.9329491 | K26: 0 | L26: =10+K26 -> 10 | M26: 10
B27: CF12 | C27: =+CashFlow_statement!O30 -> 160 | D27: =+C27/((1+F12)^12) -> 99.93552793 | I27: =SUM(D15:E27) -> 203.868477 | J27: 203.868477 | K27: -1.04 | L27: =11+K27 -> 9.96
B28: CF13 | C28: =+CashFlow_statement!P30 -> 160 | D28: =+C28/((1+F12)^13) -> 96.09185378 | I28: =SUM(D15:E28) -> 299.9603308 | J28: 196.0273817 | K28: -2.1216 | L28: =12+K28 -> 9.8784
B29: CF14 | C29: =+CashFlow_statement!Q30 -> 160 | D29: =+C29/((1+F12)^14) -> 92.39601325 | I29: =SUM(D15:E29) -> 392.356344 | J29: 188.487867 | K29: -3.246464 | L29: =13+K29 -> 9.753536
B30: CF15 | C30: =+CashFlow_statement!R30 -> 160 | D30: =+C30/((1+F12)^15) -> 88.84232043 | I30: =SUM(D15:E30) -> 481.1986645 | J30: 181.2383337 | K30: -4.41632256 | L30: =14+K30 -> 9.58367744
B31: CF16 | C31: =+CashFlow_statement!S30 -> 160 | D31: =+C31/((1+F12)^16) -> 85.42530811 | I31: =SUM(D15:E31) -> 566.6239726 | J31: 174.2676285 | K31: -5.632975462 | L31: =15+K31 -> 9.367024538
B32: CF17 | C32: =+CashFlow_statement!T30 -> 160 | D32: =+C32/((1+F12)^17) -> 82.13971934 | I32: =SUM(D15:E32) -> 648.7636919 | J32: 167.5650274 | K32: -6.898294481 | L32: =16+K32 -> 9.101705519
B33: CF18 | C33: =+CashFlow_statement!U30 -> 160 | D33: =+C33/((1+F12)^18) -> 78.98049936 | I33: =SUM(D15:E33) -> 727.7441913 | J33: 161.1202187 | K33: -8.21422626 | L33: =17+K33 -> 8.78577374
B34: CF19 | C34: =+CashFlow_statement!V30 -> 160 | D34: =+C34/((1+F12)^19) -> 75.94278785 | I34: =SUM(D15:E34) -> 803.6869791 | J34: 154.9232872 | K34: -9.582795311 | L34: =18+K34 -> 8.417204689
B35: CF20 | C35: =+CashFlow_statement!W30 -> 160 | D35: =+C35/((1+F12)^20) -> 73.02191139 | I35: =SUM(D15:E35) -> 876.7088905 | J35: 148.9646992 | K35: -11.00610712 | L35: =19+K35 -> 7.993892877
B36: =+Translations!A350 -> TOTAL | C36: =SUM(C15:C25) -> 0 | D36: =+Translations!A397 -> Payback: | E36: =IF(M36>0,CONCATENATE(ROUND(M36,2)," ",Translations!A393),Translations!A394) -> over 10 years | M36: =IF(ISERROR(MIN(M16:M35)),0,MIN(M16:M35)) -> 0
M37: =IF(M36<=10,M36,0) -> 0

Sheet Sensitivity_analysis

Sheet Project_summary
C8: =+Translations!A362 -> Projected investment cost in € | D8: =+Translations!A363 -> Amount | E8: =+Translations!A364 -> Share %
C10: =+Translations!A365 -> A. PROPERTY, PLANT AND EQUIPMENT | D10: =+Investment_and_Financing!F12 -> 0 | E10: =+Investment_and_Financing!G12 -> 0
C11: =+Translations!A366 -> B. PROJECT AND INVESTMENT DOCUMENTATION | D11: =+Investment_and_Financing!F13 -> 0 | E11: =+Investment_and_Financing!G13 -> 0
C12: =+Translations!A367 -> C. INTANGIBLE ASSETS | D12: =+Investment_and_Financing!F14 -> 0 | E12: =+Investment_and_Financing!G14 -> 0
C13: =+Translations!A368 -> D. INVESTMENT COST (A+B+C) | D13: =+Investment_and_Financing!F15 -> 0 | E13: =+Investment_and_Financing!G15 -> 0
C14: =+Translations!A369 -> E. INITIAL WORKING CAPITAL | D14: =+Investment_and_Financing!F16 -> 0 | E14: =+Investment_and_Financing!G16 -> 0
C15: =+Translations!A370 -> F. TOTAL INVESTMENT COST (D+E) | D15: =+Investment_and_Financing!F17 -> 0 | E15: =+Investment_and_Financing!G17 -> 0
C19: =+Translations!A371 -> Sources of investment cost financing in € | D19: =+Translations!A372 -> Amount | E19: =+Translations!A373 -> Share %
C21: =+Translations!A374 -> A. PRIVATE EQUITY | D21: =+Investment_and_Financing!F23 -> 0 | E21: =+Investment_and_Financing!G23 -> 0
C22: =+Translations!A375 -> B. BANK LOANS | D22: =+Investment_and_Financing!F24 -> 0 | E22: =+Investment_and_Financing!G24 -> 0
C23: =+Translations!A376 -> C. CONNECTION FEES | D23: =+Investment_and_Financing!F25 -> 0 | E23: =+Investment_and_Financing!G25 -> 0
C24: =+Translations!A377 -> D. INVESTMENT SUBSIDIES | D24: =+Investment_and_Financing!F26 -> 0 | E24: =+Investment_and_Financing!G26 -> 0
C25: =+Translations!A378 -> E. TOTAL FINANCING (A+B+C+D) | D25: =+Investment_and_Financing!F28 -> 0 | E25: =+Investment_and_Financing!G28 -> 0
C29: =+Translations!A379 -> Project performance in € | E29: =+Income_statement!E5 -> 2017 | F29: =+Income_statement!F5 -> 2018 | G29: =+Income_statement!G5 -> 2019 | H29: =+Income_statement!H5 -> 2020 | I29: =+Income_statement!I5 -> 2021
C31: =+Translations!A380 -> 1. Total income | E31: =+Income_statement!E7+Income_statement!E8+Income_statement!E25+Income_statement!E27 -> 0 | F31: =+Income_statement!F7+Income_statement!F8+Income_statement!F25+Income_statement!F27 -> 0 | G31: =+Income_statement!G7+Income_statement!G8+Income_statement!G25+Income_statement!G27 -> 0 | H31: =+Income_statement!H7+Income_statement!H8+Income_statement!H25+Income_statement!H27 -> 0 | I31: =+Income_statement!I7+Income_statement!I8+Income_statement!I25+Income_statement!I27 -> 0
C32: =+Translations!A381 -> 2. Total costs of goods and services | E32: =+Income_statement!E9 -> 0 | F32: =+Income_statement!F9 -> 0 | G32: =+Income_statement!G9 -> 0 | H32: =+Income_statement!H9 -> 0 | I32: =+Income_statement!I9 -> 0
C33: =+Translations!A382 -> 3. Cost of labour | E33: =+Income_statement!E17 -> 0 | F33: =+Income_statement!F17 -> 0 | G33: =+Income_statement!G17 -> 0 | H33: =+Income_statement!H17 -> 0 | I33: =+Income_statement!I17 -> 0
C34: =+Translations!A383 -> 4. Depreciation and amortization | E34: =+Income_statement!E19 -> 0 | F34: =+Income_statement!F19 -> 0 | G34: =+Income_statement!G19 -> 0 | H34: =+Income_statement!H19 -> 0 | I34: =+Income_statement!I19 -> 0
C35: =+Translations!A384 -> 5. Financial costs | E35: =+Income_statement!E26 -> 0 | F35: =+Income_statement!F26 -> 0 | G35: =+Income_statement!G26 -> 0 | H35: =+Income_statement!H26 -> 0 | I35: =+Income_statement!I26 -> 0
C36: =+Translations!A385 -> 6. Other costs | E36: =+Income_statement!E28 -> 0 | F36: =+Income_statement!F28 -> 0 | G36: =+Income_statement!G28 -> 0 | H36: =+Income_statement!H28 -> 0 | I36: =+Income_statement!I28 -> 0
C37: =+Translations!A386 -> 7. EBT | E37: =+E31-E32-E33-E34-E35-E36 -> 0 | F37: =+F31-F32-F33-F34-F35-F36 -> 0 | G37: 0 | H37: 0 | I37: 0
C39: =+Translations!A387 -> Balance sum | E39: =+Balance_sheet!E17 -> 0 | F39: =+Balance_sheet!F17 -> 0 | G39: =+Balance_sheet!G17 -> 0 | H39: =+Balance_sheet!H17 -> 0 | I39: =+Balance_sheet!I17 -> 0
C40: =+Translations!A388 -> Cash Flow | E40: =+CashFlow_statement!D30 -> 0 | F40: =+CashFlow_statement!E30 -> 0 | G40: =+CashFlow_statement!F30 -> 0 | H40: =+CashFlow_statement!G30 -> 0 | I40: =+CashFlow_statement!H30 -> 0
C41: =+Translations!A413 -> Cost of MWh heat sold | E41: =IF(ISERROR(Operating_costs!G21/Revenues!D40),0,Operating_costs!G21/Revenues!D40) -> 0 | F41: =IF(ISERROR(Operating_costs!H21/Revenues!E40),0,Operating_costs!H21/Revenues!E40) -> 0 | G41: =IF(ISERROR(Operating_costs!I21/Revenues!F40),0,Operating_costs!I21/Revenues!F40) -> 0 | H41: =IF(ISERROR(Operating_costs!J21/Revenues!G40),0,Operating_costs!J21/Revenues!G40) -> 0 | I41: =IF(ISERROR(Operating_costs!K21/Revenues!H40),0,Operating_costs!K21/Revenues!H40) -> 0
C42: =+Translations!A414 -> Cost of MWh energy sold (heat + electricity) | E42: =IF(ISERROR(Operating_costs!G21/(Revenues!D40+Revenues!D11)),0,Operating_costs!G21/(Revenues!D40+Revenues!D11)) -> 0 | F42: =IF(ISERROR(Operating_costs!H21/(Revenues!E40+Revenues!E11)),0,Operating_costs!H21/(Revenues!E40+Revenues!E11)) -> 0 | G42: =IF(ISERROR(Operating_costs!I21/(Revenues!F40+Revenues!F11)),0,Operating_costs!I21/(Revenues!F40+Revenues!F11)) -> 0 | H42: =IF(ISERROR(Operating_costs!J21/(Revenues!G40+Revenues!G11)),0,Operating_costs!J21/(Revenues!G40+Revenues!G11)) -> 0 | I42: =IF(ISERROR(Operating_costs!K21/(Revenues!H40+Revenues!H11)),0,Operating_costs!K21/(Revenues!H40+Revenues!H11)) -> 0
C44: =+Translations!A389 -> Private equity invested | E44: =+Internal_rate_of_return!F8 -> 0
C45: =+Translations!A390 -> Net present value (NPV) | E45: =+Internal_rate_of_return!F9 -> 0
C46: =+Translations!A391 -> Equity internal rate of return (IRR) | E46: =+Internal_rate_of_return!F10 -> -0.22
C47: =CONCATENATE("Payback (",Translations!A392," ",Internal_rate_of_return!F12*100,"%",")") -> Payback (discount rate: 4%) | E47: =+Internal_rate_of_return!E36 -> over 10 years

Sheet SA - Costs
A2: Faktor | B2: Payback | C2: IRR | D2: Price | E2: Payback | F2: IRR
A3: 0.5 | B3: 1.721922115 | C3: 0.6459512741 | D3: 0.5 | E3: =IF(B3=0,NA(),B3) -> 1.721922115 | F3: =IF(C3=-0.22,NA(),C3) -> 0.6459512741
A4: 0.51 | B4: 1.736057055 | C4: 0.641466873 | D4: 0.51 | E4: =IF(B4=0,NA(),B4) -> 1.736057055 | F4: 0.641466873
A5: 0.52 | B5: 1.750425977 | C5: 0.6369866559 | D5: 0.52 | E5: 1.750425977 | F5: 0.6369866559
A6: 0.53 | B6: 1.765034741 | C6: 0.6325106505 | D6: 0.53 | E6: 1.765034741 | F6: 0.6325106505
A7: 0.54 | B7: 1.779889402 | C7: 0.6280388843 | D7: 0.54 | E7: 1.779889402 | F7: 0.6280388843
A8: 0.55 | B8: 1.79499622 | C8: 0.6235713845 | D8: 0.55 | E8: 1.79499622 | F8: 0.6235713845
A9: 0.56 | B9: 1.810361672 | C9: 0.6191081783 | D9: 0.56 | E9: 1.810361672 | F9: 0.6191081783
A10: 0.57 | B10: 1.825992457 | C10: 0.6146492925 | D10: 0.57 | E10: 1.825992457 | F10: 0.6146492925
A11: 0.58 | B11: 1.841895507 | C11: 0.6101947537 | D11: 0.58 | E11: 1.841895507 | F11: 0.6101947537
A12: 0.59 | B12: 1.858077999 | C12: 0.6057445884 | D12: 0.59 | E12: 1.858077999 | F12: 0.6057445884
A13: 0.6 | B13: 1.874547363 | C13: 0.6012988226 | D13: 0.6 | E13: 1.874547363 | F13: 0.6012988226
A14: 0.61 | B14: 1.891311295 | C14: 0.5968574822 | D14: 0.61 | E14: 1.891311295 | F14: 0.5968574822
A15: 0.62 | B15: 1.90837777 | C15: 0.5924205926 | D15: 0.62 | E15: 1.90837777 | F15: 0.5924205926
A16: 0.63 | B16: 1.925755052 | C16: 0.5879881792 | D16: 0.63 | E16: 1.925755052 | F16: 0.5879881792
A17: 0.64 | B17: 1.94345171 | C17: 0.5835602667 | D17: 0.64 | E17: 1.94345171 | F17: 0.5835602667
A18: 0.65 | B18: 1.96147663 | C18: 0.5791368797 | D18: 0.65 | E18: 1.96147663 | F18: 0.5791368797
A19: 0.66 | B19: 1.979839032 | C19: 0.5747180423 | D19: 0.66 | E19: 1.979839032 | F19: 0.5747180423
A20: 0.67 | B20: 1.998548482 | C20: 0.5703037784 | D20: 0.67 | E20: 1.998548482 | F20: 0.5703037784
A21: 0.68 | B21: 2.015764345 | C21: 0.5658941113 | D21: 0.68 | E21: 2.015764345 | F21: 0.5658941113
A22: 0.69 | B22: 2.033122908 | C22: 0.5614890638 | D22: 0.69 | E22: 2.033122908 | F22: 0.5614890638
A23: 0.7 | B23: 2.050783031 | C23: 0.5570886585 | D23: 0.7 | E23: 2.050783031 | F23: 0.5570886585
A24: 0.71 | B24: 2.068752641 | C24: 0.5526929174 | D24: 0.71 | E24: 2.068752641 | F24: 0.5526929174
A25: 0.72 | B25: 2.087039946 | C25: 0.5483018621 | D25: 0.72 | E25: 2.087039946 | F25: 0.5483018621
A26: 0.73 | B26: 2.105653446 | C26: 0.5439155135 | D26: 0.73 | E26: 2.105653446 | F26: 0.5439155135
A27: 0.74 | B27: 2.124601947 | C27: 0.5395338923 | D27: 0.74 | E27: 2.124601947 | F27: 0.5395338923
A28: 0.75 | B28: 2.143894574 | C28: 0.5351570182 | D28: 0.75 | E28: 2.143894574 | F28: 0.5351570182
A29: 0.76 | B29: 2.163540789 | C29: 0.5307849108 | D29: 0.76 | E29: 2.163540789 | F29: 0.5307849108
A30: 0.77 | B30: 2.183550402 | C30: 0.5264175887 | D30: 0.77 | E30: 2.183550402 | F30: 0.5264175887
A31: 0.78 | B31: 2.20393359 | C31: 0.5220550703 | D31: 0.78 | E31: 2.20393359 | F31: 0.5220550703
A32: 0.79 | B32: 2.224700913 | C32: 0.5176973729 | D32: 0.79 | E32: 2.224700913 | F32: 0.5176973729
A33: 0.8 | B33: 2.245863333 | C33: 0.5133445136 | D33: 0.8 | E33: 2.245863333 | F33: 0.5133445136
A34: 0.81 | B34: 2.267432234 | C34: 0.5089965084 | D34: 0.81 | E34: 2.267432234 | F34: 0.5089965084
A35: 0.82 | B35: 2.289419441 | C35: 0.5046533729 | D35: 0.82 | E35: 2.289419441 | F35: 0.5046533729
A36: 0.83 | B36: 2.311837241 | C36: 0.5003151217 | D36: 0.83 | E36: 2.311837241 | F36: 0.5003151217
A37: 0.84 | B37: 2.33469841 | C37: 0.495981769 | D37: 0.84 | E37: 2.33469841 | F37: 0.495981769
A38: 0.85 | B38: 2.35801623 | C38: 0.4916533278 | D38: 0.85 | E38: 2.35801623 | F38: 0.4916533278
A39: 0.86 | B39: 2.381804524 | C39: 0.4873298106 | D39: 0.86 | E39: 2.381804524 | F39: 0.4873298106
A40: 0.87 | B40: 2.406077674 | C40: 0.4830112289 | D40: 0.87 | E40: 2.406077674 | F40: 0.4830112289
A41: 0.88 | B41: 2.430850656 | C41: 0.4786975934 | D41: 0.88 | E41: 2.430850656 | F41: 0.4786975934
A42: 0.89 | B42: 2.456139071 | C42: 0.4743889139 | D42: 0.89 | E42: 2.456139071 | F42: 0.4743889139
A43: 0.9 | B43: 2.481959174 | C43: 0.4700851993 | D43: 0.9 | E43: 2.481959174 | F43: 0.4700851993
A44: 0.91 | B44: 2.508327911 | C44: 0.4657864574 | D44: 0.91 | E44: 2.508327911 | F44: 0.4657864574
A45: 0.92 | B45: 2.535262955 | C45: 0.4614926953 | D45: 0.92 | E45: 2.535262955 | F45: 0.4614926953
A46: 0.93 | B46: 2.56278275 | C46: 0.4572039189 | D46: 0.93 | E46: 2.56278275 | F46: 0.4572039189
A47: 0.94 | B47: 2.590906544 | C47: 0.452920133 | D47: 0.94 | E47: 2.590906544 | F47: 0.452920133
A48: 0.95 | B48: 2.619654445 | C48: 0.4486413416 | D48: 0.95 | E48: 2.619654445 | F48: 0.4486413416
A49: 0.96 | B49: 2.649047459 | C49: 0.4443675474 | D49: 0.96 | E49: 2.649047459 | F49: 0.4443675474
A50: 0.97 | B50: 2.679107548 | C50: 0.4400987519 | D50: 0.97 | E50: 2.679107548 | F50: 0.4400987519
A51: 0.98 | B51: 2.709857682 | C51: 0.4358349558 | D51: 0.98 | E51: 2.709857682 | F51: 0.4358349558
A52: 0.99 | B52: 2.741321897 | C52: 0.4315761583 | D52: 0.99 | E52: 2.741321897 | F52: 0.4315761583
A53: 1 | B53: 2.773525358 | C53: 0.4273223574 | D53: 1 | E53: 2.773525358 | F53: 0.4273223574
A54: 1.01 | B54: 2.806494429 | C54: 0.4230735499 | D54: 1.01 | E54: 2.806494429 | F54: 0.4230735499
A55: 1.02 | B55: 2.84025674 | C55: 0.4188297315 | D55: 1.02 | E55: 2.84025674 | F55: 0.4188297315
A56: 1.03 | B56: 2.874841267 | C56: 0.4145908963 | D56: 1.03 | E56: 2.874841267 | F56: 0.4145908963
A57: 1.04 | B57: 2.910278417 | C57: 0.4103570372 | D57: 1.04 | E57: 2.910278417 | F57: 0.4103570372
A58: 1.05 | B58: 2.946600113 | C58: 0.4061281457 | D58: 1.05 | E58: 2.946600113 | F58: 0.4061281457
A59: 1.06 | B59: 2.983839892 | C59: 0.4019042118 | D59: 1.06 | E59: 2.983839892 | F59: 0.4019042118
A60: 1.07 | B60: 3.01885233 | C60: 0.3976852242 | D60: 1.07 | E60: 3.01885233 | F60: 0.3976852242
A61: 1.08 | B61: 3.052281484 | C61: 0.39347117 | D61: 1.08 | E61: 3.052281484 | F61: 0.39347117
A62: 1.09 | B62: 3.086459281 | C62: 0.3892620348 | D62: 1.09 | E62: 3.086459281 | F62: 0.3892620348
A63: 1.1 | B63: 3.121411155 | C63: 0.3850578027 | D63: 1.1 | E63: 3.121411155 | F63: 0.3850578027
A64: 1.11 | B64: 3.157163704 | C64: 0.3808584561 | D64: 1.11 | E64: 3.157163704 | F64: 0.3808584561
A65: 1.12 | B65: 3.19374476 | C65: 0.3766639759 | D65: 1.12 | E65: 3.19374476 | F65: 0.3766639759
A66: 1.13 | B66: 3.23118346 | C66: 0.3724743411 | D66: 1.13 | E66: 3.23118346 | F66: 0.3724743411
A67: 1.14 | B67: 3.269510322 | C67: 0.3682895292 | D67: 1.14 | E67: 3.269510322 | F67: =IF(C67=-0.22,NA(),C67) -> 0.3682895292
A68: 1.15 | B68: 3.308757331 | C68: 0.364109516 | D68: 1.15 | E68: =IF(B68=0,NA(),B68) -> 3.308757331 | F68: 0.364109516
A69: 1.16 | B69: 3.348958025 | C69: 0.3599342753 | D69: 1.16 | E69: 3.348958025 | F69: 0.3599342753
A70: 1.17 | B70: 3.390147594 | C70: 0.3557637793 | D70: 1.17 | E70: 3.390147594 | F70: 0.3557637793
A71: 1.18 | B71: 3.432362978 | C71: 0.351597998 | D71: 1.18 | E71: 3.432362978 | F71: 0.351597998
A72: 1.19 | B72: 3.475642983 | C72: 0.3474368999 | D72: 1.19 | E72: 3.475642983 | F72: 0.3474368999
A73: 1.2 | B73: 3.520028396 | C73: 0.3432804514 | D73: 1.2 | E73: 3.520028396 | F73: 0.3432804514
A74: 1.21 | B74: 3.565562113 | C74: 0.3391286167 | D74: 1.21 | E74: 3.565562113 | F74: 0.3391286167
A75: 1.22 | B75: 3.612289281 | C75: 0.3349813583 | D75: 1.22 | E75: 3.612289281 | F75: 0.3349813583
A76: 1.23 | B76: 3.660257444 | C76: 0.3308386363 | D76: 1.23 | E76: 3.660257444 | F76: 0.3308386363
A77: 1.24 | B77: 3.709516706 | C77: 0.3267004091 | D77: 1.24 | E77: 3.709516706 | F77: 0.3267004091
A78: 1.25 | B78: 3.760119903 | C78: 0.3225666325 | D78: 1.25 | E78: 3.760119903 | F78: 0.3225666325
A79: 1.26 | B79: 3.812122797 | C79: 0.3184372603 | D79: 1.26 | E79: 3.812122797 | F79: 0.3184372603
A80: 1.27 | B80: 3.865584275 | C80: 0.3143122442 | D80: 1.27 | E80: 3.865584275 | F80: 0.3143122442
A81: 1.28 | B81: 3.920566576 | C81: 0.3101915332 | D81: 1.28 | E81: 3.920566576 | F81: 0.3101915332
A82: 1.29 | B82: 3.977135532 | C82: 0.3060750744 | D82: 1.29 | E82: 3.977135532 | F82: 0.3060750744
A83: 1.3 | B83: 4.029303551 | C83: 0.3019628121 | D83: 1.3 | E83: 4.029303551 | F83: 0.3019628121
A84: 1.31 | B84: 4.078788178 | C84: 0.2978546886 | D84: 1.31 | E84: 4.078788178 | F84: 0.2978546886
A85: 1.32 | B85: 4.129503377 | C85: 0.2937506432 | D85: 1.32 | E85: 4.129503377 | F85: 0.2937506432
A86: 1.33 | B86: 4.18149563 | C86: 0.2896506131 | D86: 1.33 | E86: 4.18149563 | F86: 0.2896506131
A87: 1.34 | B87: 4.234813786 | C87: 0.2855545327 | D87: 1.34 | E87: 4.234813786 | F87: =IF(C87=-0.22,NA(),C87) -> 0.2855545327
A88: 1.35 | B88: 4.289509222 | C88: 0.2814623337 | D88: 1.35 | E88: 4.289509222 | F88: =IF(C88=-0.22,NA(),C88) -> 0.2814623337
A89: 1.36 | B89: 4.345636 | C89: 0.2773739453 | D89: 1.36 | E89: 4.345636 | F89: 0.2773739453
A90: 1.37 | B90: 4.403251052 | C90: 0.2732892937 | D90: 1.37 | E90: 4.403251052 | F90: 0.2732892937
A91: 1.38 | B91: 4.462414367 | C91: 0.2692083026 | D91: 1.38 | E91: 4.462414367 | F91: 0.2692083026
A92: 1.39 | B92: 4.523189205 | C92: 0.2651308925 | D92: 1.39 | E92: 4.523189205 | F92: 0.2651308925
A93: 1.4 | B93: 4.585642318 | C93: 0.2610569812 | D93: 1.4 | E93: 4.585642318 | F93: 0.2610569812
A94: 1.41 | B94: 4.649844197 | C94: 0.2569864834 | D94: 1.41 | E94: 4.649844197 | F94: 0.2569864834
A95: 1.42 | B95: 4.715869336 | C95: 0.2529193109 | D95: 1.42 | E95: 4.715869336 | F95: 0.2529193109
A96: 1.43 | B96: 4.783796522 | C96: 0.2488553723 | D96: 1.43 | E96: 4.783796522 | F96: 0.2488553723
A97: 1.44 | B97: 4.853709147 | C97: 0.244794573 | D97: 1.44 | E97: 4.853709147 | F97: 0.244794573
A98: 1.45 | B98: 4.92569555 | C98: 0.2407368151 | D98: 1.45 | E98: 4.92569555 | F98: 0.2407368151
A99: 1.46 | B99: 4.999849391 | C99: 0.2366819977 | D99: 1.46 | E99: 4.999849391 | F99: 0.2366819977
A100: 1.47 | B100: 5.061949012 | C100: 0.2326300163 | D100: 1.47 | E100: 5.061949012 | F100: 0.2326300163
A101: 1.48 | B101: 5.12558127 | C101: 0.2285807629 | D101: 1.48 | E101: 5.12558127 | F101: 0.2285807629
A102: 1.49 | B102: 5.190833699 | C102: 0.2245341262 | D102: 1.49 | E102: 5.190833699 | F102: 0.2245341262
A103: 1.5 | B103: 5.257768974 | C103: 0.2204899911 | D103: 1.5 | E103: 5.257768974 | F103: 0.2204899911

Sheet SA - Revenues
D1: to še poštimati in je to to
A2: Faktor | B2: Payback | C2: IRR | D2: Price | E2: Payback | F2: IRR | G2: Price temp
A3: 0.5 | B3: 0 | C3: -0.0474597256 | D3: 60.5 | E3: =IF(B3=0,NA(),B3) ->  | F3: =IF(C3=-0.22,NA(),C3) -> -0.0474597256 | G3: =+Revenues!$C$36*A3 -> 0
A4: 0.51 | B4: 0 | C4: -0.03336615241 | D4: 61.71 | E4: =IF(B4=0,NA(),B4) ->  | F4: =IF(C4=-0.22,NA(),C4) -> -0.03336615241 | G4: =+Revenues!$C$36*A4 -> 0
A5: 0.52 | B5: 0 | C5: -0.01981786178 | D5: 62.92 | F5: -0.01981786178 | G5: =+Revenues!$C$36*A5 -> 0
A6: 0.53 | B6: 0 | C6: -0.006750847718 | D6: 64.13 | F6: -0.006750847718 | G6: =+Revenues!$C$36*A6 -> 0
A7: 0.54 | B7: 9.829535845 | C7: 0.005888678713 | D7: 65.34 | E7: 9.829535845 | F7: 0.005888678713 | G7: =+Revenues!$C$36*A7 -> 0
A8: 0.55 | B8: 9.491401871 | C8: 0.01814635147 | D8: 66.55 | E8: 9.491401871 | F8: 0.01814635147 | G8: =+Revenues!$C$36*A8 -> 0
A9: 0.56 | B9: 9.183160177 | C9: 0.03006121727 | D9: 67.76 | E9: 9.183160177 | F9: 0.03006121727 | G9: =+Revenues!$C$36*A9 -> 0
A10: 0.57 | B10: 8.882107523 | C10: 0.04166694434 | D10: 68.97 | E10: 8.882107523 | F10: 0.04166694434 | G10: =+Revenues!$C$36*A10 -> 0
A11: 0.58 | B11: 8.575292725 | C11: 0.05299276625 | D11: 70.18 | E11: 8.575292725 | F11: 0.05299276625 | G11: =+Revenues!$C$36*A11 -> 0
A12: 0.59 | B12: 8.294873899 | C12: 0.06406422743 | D12: 71.39 | E12: 8.294873899 | F12: 0.06406422743 | G12: =+Revenues!$C$36*A12 -> 0
A13: 0.6 | B13: 8.037585175 | C13: 0.0749037783 | D13: 72.6 | E13: 8.037585175 | F13: 0.0749037783 | G13: =+Revenues!$C$36*A13 -> 0
A14: 0.61 | B14: 7.762544258 | C14: 0.08553125493 | D14: 73.81 | E14: 7.762544258 | F14: 0.08553125493 | G14: =+Revenues!$C$36*A14 -> 0
A15: 0.62 | B15: 7.50393767 | C15: 0.09596426913 | D15: 75.02 | E15: 7.50393767 | F15: 0.09596426913 | G15: =+Revenues!$C$36*A15 -> 0
A16: 0.63 | B16: 7.266269628 | C16: 0.1062185282 | D16: 76.23 | E16: 7.266269628 | F16: 0.1062185282 | G16: =+Revenues!$C$36*A16 -> 0
A17: 0.64 | B17: 7.047096085 | C17: 0.1163080991 | D17: 77.44 | E17: 7.047096085 | F17: 0.1163080991 | G17: =+Revenues!$C$36*A17 -> 0
A18: 0.65 | B18: 6.814290755 | C18: 0.1262456283 | D18: 78.65 | E18: 6.814290755 | F18: 0.1262456283 | G18: =+Revenues!$C$36*A18 -> 0
A19: 0.66 | B19: 6.591535752 | C19: 0.1360425256 | D19: 79.86 | E19: 6.591535752 | F19: 0.1360425256 | G19: =+Revenues!$C$36*A19 -> 0
A20: 0.67 | B20: 6.385932486 | C20: 0.1457091195 | D20: 81.07 | E20: 6.385932486 | F20: 0.1457091195 | G20: =+Revenues!$C$36*A20 -> 0
A21: 0.68 | B21: 6.195573416 | C21: 0.1552547882 | D21: 82.28 | E21: 6.195573416 | F21: 0.1552547882 | G21: =+Revenues!$C$36*A21 -> 0
A22: 0.69 | B22: 6.018823753 | C22: 0.1646880718 | D22: 83.49 | E22: 6.018823753 | F22: 0.1646880718 | G22: =+Revenues!$C$36*A22 -> 0
A23: 0.7 | B23: 5.826397413 | C23: 0.174016768 | D23: 84.7 | E23: 5.826397413 | F23: 0.174016768 | G23: =+Revenues!$C$36*A23 -> 0
A24: 0.71 | B24: 5.644778325 | C24: 0.1832480145 | D24: 85.91 | E24: 5.644778325 | F24: 0.1832480145 | G24: =+Revenues!$C$36*A24 -> 0
A25: 0.72 | B25: 5.476107232 | C25: 0.1923883602 | D25: 87.12 | E25: 5.476107232 | F25: 0.1923883602 | G25: =+Revenues!$C$36*A25 -> 0
A26: 0.73 | B26: 5.319047159 | C26: 0.201443827 | D26: 88.33 | E26: 5.319047159 | F26: 0.201443827 | G26: =+Revenues!$C$36*A26 -> 0
A27: 0.74 | B27: 5.172439075 | C27: 0.2104199636 | D27: 89.54 | E27: 5.172439075 | F27: 0.2104199636 | G27: =+Revenues!$C$36*A27 -> 0
A28: 0.75 | B28: 5.035273244 | C28: 0.2193218929 | D28: 90.75 | E28: 5.035273244 | F28: 0.2193218929 | G28: =+Revenues!$C$36*A28 -> 0
A29: 0.76 | B29: 4.889205069 | C29: 0.2281543526 | D29: 91.96 | E29: 4.889205069 | F29: 0.2281543526 | G29: =+Revenues!$C$36*A29 -> 0
A30: 0.77 | B30: 4.746604847 | C30: 0.2369217322 | D30: 93.17 | E30: 4.746604847 | F30: 0.2369217322 | G30: =+Revenues!$C$36*A30 -> 0
A31: 0.78 | B31: 4.613227058 | C31: 0.2456281051 | D31: 94.38 | E31: 4.613227058 | F31: 0.2456281051 | G31: =+Revenues!$C$36*A31 -> 0
A32: 0.79 | B32: 4.488205058 | C32: 0.2542772567 | D32: 95.59 | E32: 4.488205058 | F32: 0.2542772567 | G32: =+Revenues!$C$36*A32 -> 0
A33: 0.8 | B33: 4.370777492 | C33: 0.2628727098 | D33: 96.8 | E33: 4.370777492 | F33: 0.2628727098 | G33: =+Revenues!$C$36*A33 -> 0
A34: 0.81 | B34: 4.260272774 | C34: 0.2714177477 | D34: 98.01 | E34: 4.260272774 | F34: 0.2714177477 | G34: =+Revenues!$C$36*A34 -> 0
A35: 0.82 | B35: 4.156096236 | C35: 0.2799154336 | D35: 99.22 | E35: 4.156096236 | F35: 0.2799154336 | G35: =+Revenues!$C$36*A35 -> 0
A36: 0.83 | B36: 4.057719425 | C36: 0.2883686292 | D36: 100.43 | E36: 4.057719425 | F36: 0.2883686292 | G36: =+Revenues!$C$36*A36 -> 0
A37: 0.84 | B37: 3.958377512 | C37: 0.2967800106 | D37: 101.64 | E37: 3.958377512 | F37: 0.2967800106 | G37: =+Revenues!$C$36*A37 -> 0
A38: 0.85 | B38: 3.854916332 | C38: 0.3051520833 | D38: 102.85 | E38: 3.854916332 | F38: 0.3051520833 | G38: =+Revenues!$C$36*A38 -> 0
A39: 0.86 | B39: 3.757272011 | C39: 0.3134871951 | D39: 104.06 | E39: 3.757272011 | F39: 0.3134871951 | G39: =+Revenues!$C$36*A39 -> 0
A40: 0.87 | B40: 3.664967402 | C40: 0.321787548 | D40: 105.27 | E40: 3.664967402 | F40: 0.321787548 | G40: =+Revenues!$C$36*A40 -> 0
A41: 0.88 | B41: 3.577576157 | C41: 0.3300552092 | D41: 106.48 | E41: 3.577576157 | F41: 0.3300552092 | G41: =+Revenues!$C$36*A41 -> 0
A42: 0.89 | B42: 3.49471614 | C42: 0.3382921208 | D42: 107.69 | E42: 3.49471614 | F42: 0.3382921208 | G42: =+Revenues!$C$36*A42 -> 0
A43: 0.9 | B43: 3.416043841 | C43: 0.346500109 | D43: 108.9 | E43: 3.416043841 | F43: 0.346500109 | G43: =+Revenues!$C$36*A43 -> 0
A44: 0.91 | B44: 3.341249615 | C44: 0.3546808919 | D44: 110.11 | E44: 3.341249615 | F44: 0.3546808919 | G44: =+Revenues!$C$36*A44 -> 0
A45: 0.92 | B45: 3.270053612 | C45: 0.3628360869 | D45: 111.32 | E45: 3.270053612 | F45: 0.3628360869 | G45: =+Revenues!$C$36*A45 -> 0
A46: 0.93 | B46: 3.202202273 | C46: 0.3709672182 | D46: 112.53 | E46: 3.202202273 | F46: 0.3709672182 | G46: =+Revenues!$C$36*A46 -> 0
A47: 0.94 | B47: 3.137465319 | C47: 0.3790757221 | D47: 113.74 | E47: 3.137465319 | F47: 0.3790757221 | G47: =+Revenues!$C$36*A47 -> 0
A48: 0.95 | B48: 3.075633134 | C48: 0.3871629536 | D48: 114.95 | E48: 3.075633134 | F48: 0.3871629536 | G48: =+Revenues!$C$36*A48 -> 0
A49: 0.96 | B49: 3.016514501 | C49: 0.395230191 | D49: 116.16 | E49: 3.016514501 | F49: 0.395230191 | G49: =+Revenues!$C$36*A49 -> 0
A50: 0.97 | B50: 2.953496942 | C50: 0.4032786413 | D50: 117.37 | E50: 2.953496942 | F50: 0.4032786413 | G50: =+Revenues!$C$36*A50 -> 0
A51: 0.98 | B51: 2.890778485 | C51: 0.4113094443 | D51: 118.58 | E51: 2.890778485 | F51: 0.4113094443 | G51: =+Revenues!$C$36*A51 -> 0
A52: 0.99 | B52: 2.830848601 | C52: 0.419323677 | D52: 119.79 | E52: 2.830848601 | F52: 0.419323677 | G52: =+Revenues!$C$36*A52 -> 0
A53: 1 | B53: 2.773525358 | C53: 0.4273223574 | D53: 121 | E53: 2.773525358 | F53: 0.4273223574 | G53: =+Revenues!$C$36*A53 -> 0
A54: 1.01 | B54: 2.718642313 | C54: 0.4353064478 | D54: 122.21 | E54: 2.718642313 | F54: 0.4353064478 | G54: =+Revenues!$C$36*A54 -> 0
A55: 1.02 | B55: 2.666046896 | C55: 0.4432768584 | D55: 123.42 | E55: 2.666046896 | F55: 0.4432768584 | G55: =+Revenues!$C$36*A55 -> 0
A56: 1.03 | B56: 2.615599 | C56: 0.4512344505 | D56: 124.63 | E56: 2.615599 | F56: 0.4512344505 | G56: =+Revenues!$C$36*A56 -> 0
A57: 1.04 | B57: 2.567169728 | C57: 0.4591800388 | D57: 125.84 | E57: 2.567169728 | F57: 0.4591800388 | G57: =+Revenues!$C$36*A57 -> 0
A58: 1.05 | B58: 2.520640296 | C58: 0.4671143944 | D58: 127.05 | E58: 2.520640296 | F58: 0.4671143944 | G58: =+Revenues!$C$36*A58 -> 0
A59: 1.06 | B59: 2.475901061 | C59: 0.4750382475 | D59: 128.26 | E59: 2.475901061 | F59: 0.4750382475 | G59: =+Revenues!$C$36*A59 -> 0
A60: 1.07 | B60: 2.432850658 | C60: 0.4829522893 | D60: 129.47 | E60: 2.432850658 | F60: 0.4829522893 | G60: =+Revenues!$C$36*A60 -> 0
A61: 1.08 | B61: 2.391395232 | C61: 0.4908571744 | D61: 130.68 | E61: 2.391395232 | F61: 0.4908571744 | G61: =+Revenues!$C$36*A61 -> 0
A62: 1.09 | B62: 2.351447758 | C62: 0.4987535226 | D62: 131.89 | E62: 2.351447758 | F62: 0.4987535226 | G62: =+Revenues!$C$36*A62 -> 0
A63: 1.1 | B63: 2.312927425 | C63: 0.5066419211 | D63: 133.1 | E63: 2.312927425 | F63: 0.5066419211 | G63: =+Revenues!$C$36*A63 -> 0
A64: 1.11 | B64: 2.275759099 | C64: 0.514522926 | D64: 134.31 | E64: 2.275759099 | F64: 0.514522926 | G64: =+Revenues!$C$36*A64 -> 0
A65: 1.12 | B65: 2.239872827 | C65: 0.5223970643 | D65: 135.52 | E65: 2.239872827 | F65: 0.5223970643 | G65: =+Revenues!$C$36*A65 -> 0
A66: 1.13 | B66: 2.205203401 | C66: 0.530264835 | D66: 136.73 | E66: 2.205203401 | F66: 0.530264835 | G66: =+Revenues!$C$36*A66 -> 0
A67: 1.14 | B67: 2.17168996 | C67: 0.5381267108 | D67: 137.94 | E67: 2.17168996 | F67: 0.5381267108 | G67: =+Revenues!$C$36*A67 -> 0
A68: 1.15 | B68: 2.139275636 | C68: 0.5459831397 | D68: 139.15 | E68: =IF(B68=0,NA(),B68) -> 2.139275636 | F68: =IF(C68=-0.22,NA(),C68) -> 0.5459831397 | G68: =+Revenues!$C$36*A68 -> 0
A69: 1.16 | B69: 2.107907232 | C69: 0.5538345459 | D69: 140.36 | E69: 2.107907232 | F69: 0.5538345459 | G69: =+Revenues!$C$36*A69 -> 0
A70: 1.17 | B70: 2.077534927 | C70: 0.5616813313 | D70: 141.57 | E70: 2.077534927 | F70: 0.5616813313 | G70: =+Revenues!$C$36*A70 -> 0
A71: 1.18 | B71: 2.048112016 | C71: 0.5695238765 | D71: 142.78 | E71: 2.048112016 | F71: 0.5695238765 | G71: =+Revenues!$C$36*A71 -> 0
A72: 1.19 | B72: 2.019594671 | C72: 0.5773625422 | D72: 143.99 | E72: 2.019594671 | F72: 0.5773625422 | G72: =+Revenues!$C$36*A72 -> 0
A73: 1.2 | B73: 1.990833671 | C73: 0.5851976695 | D73: 145.2 | E73: 1.990833671 | F73: 0.5851976695 | G73: =+Revenues!$C$36*A73 -> 0
A74: 1.21 | B74: 1.960354175 | C74: 0.5930295818 | D74: 146.41 | E74: 1.960354175 | F74: 0.5930295818 | G74: =+Revenues!$C$36*A74 -> 0
A75: 1.22 | B75: 1.930825137 | C75: 0.6008585852 | D75: 147.62 | E75: 1.930825137 | F75: 0.6008585852 | G75: =+Revenues!$C$36*A75 -> 0
A76: 1.23 | B76: 1.902202782 | C76: 0.6086849691 | D76: 148.83 | E76: 1.902202782 | F76: 0.6086849691 | G76: =+Revenues!$C$36*A76 -> 0
A77: 1.24 | B77: 1.874445982 | C77: 0.6165090078 | D77: 150.04 | E77: 1.874445982 | F77: 0.6165090078 | G77: =+Revenues!$C$36*A77 -> 0
A78: 1.25 | B78: 1.84751606 | C78: 0.6243309606 | D78: 151.25 | E78: 1.84751606 | F78: 0.6243309606 | G78: =+Revenues!$C$36*A78 -> 0
A79: 1.26 | B79: 1.821376608 | C79: 0.6321510728 | D79: 152.46 | E79: 1.821376608 | F79: 0.6321510728 | G79: =+Revenues!$C$36*A79 -> 0
A80: 1.27 | B80: 1.795993327 | C80: 0.6399695763 | D80: 153.67 | E80: 1.795993327 | F80: 0.6399695763 | G80: =+Revenues!$C$36*A80 -> 0
A81: 1.28 | B81: 1.771333872 | C81: 0.6477866906 | D81: 154.88 | E81: 1.771333872 | F81: 0.6477866906 | G81: =+Revenues!$C$36*A81 -> 0
A82: 1.29 | B82: 1.747367717 | C82: 0.6556026229 | D82: 156.09 | E82: 1.747367717 | F82: 0.6556026229 | G82: =+Revenues!$C$36*A82 -> 0
A83: 1.3 | B83: 1.72406603 | C83: 0.663417569 | D83: 157.3 | E83: 1.72406603 | F83: 0.663417569 | G83: =+Revenues!$C$36*A83 -> 0
A84: 1.31 | B84: 1.701401554 | C84: 0.6712317138 | D84: 158.51 | E84: 1.701401554 | F84: 0.6712317138 | G84: =+Revenues!$C$36*A84 -> 0
A85: 1.32 | B85: 1.679348505 | C85: 0.679045232 | D85: 159.72 | E85: 1.679348505 | F85: 0.679045232 | G85: =+Revenues!$C$36*A85 -> 0
A86: 1.33 | B86: 1.657882469 | C86: 0.6868582883 | D86: 160.93 | E86: 1.657882469 | F86: 0.6868582883 | G86: =+Revenues!$C$36*A86 -> 0
A87: 1.34 | B87: 1.636980317 | C87: 0.6946710381 | D87: 162.14 | E87: 1.636980317 | F87: 0.6946710381 | G87: =+Revenues!$C$36*A87 -> 0
A88: 1.35 | B88: 1.616620118 | C88: 0.7024836279 | D88: 163.35 | E88: 1.616620118 | F88: 0.7024836279 | G88: =+Revenues!$C$36*A88 -> 0
A89: 1.36 | B89: 1.596781063 | C89: 0.7102961959 | D89: 164.56 | E89: 1.596781063 | F89: 0.7102961959 | G89: =+Revenues!$C$36*A89 -> 0
A90: 1.37 | B90: 1.577443398 | C90: 0.7181088719 | D90: 165.77 | E90: 1.577443398 | F90: 0.7181088719 | G90: =+Revenues!$C$36*A90 -> 0
A91: 1.38 | B91: 1.558588351 | C91: 0.7259217785 | D91: 166.98 | E91: 1.558588351 | F91: 0.7259217785 | G91: =+Revenues!$C$36*A91 -> 0
A92: 1.39 | B92: 1.540198078 | C92: 0.7337350306 | D92: 168.19 | E92: 1.540198078 | F92: 0.7337350306 | G92: =+Revenues!$C$36*A92 -> 0
A93: 1.4 | B93: 1.522255603 | C93: 0.7415487365 | D93: 169.4 | E93: 1.522255603 | F93: 0.7415487365 | G93: =+Revenues!$C$36*A93 -> 0
A94: 1.41 | B94: 1.504744768 | C94: 0.7493629978 | D94: 170.61 | E94: 1.504744768 | F94: 0.7493629978 | G94: =+Revenues!$C$36*A94 -> 0
A95: 1.42 | B95: 1.487650181 | C95: 0.7571779098 | D95: 171.82 | E95: 1.487650181 | F95: 0.7571779098 | G95: =+Revenues!$C$36*A95 -> 0
A96: 1.43 | B96: 1.470957176 | C96: 0.7649935621 | D96: 173.03 | E96: 1.470957176 | F96: 0.7649935621 | G96: =+Revenues!$C$36*A96 -> 0
A97: 1.44 | B97: 1.454651765 | C97: 0.7728100384 | D97: 174.24 | E97: 1.454651765 | F97: 0.7728100384 | G97: =+Revenues!$C$36*A97 -> 0
A98: 1.45 | B98: 1.438720604 | C98: 0.780627417 | D98: 175.45 | E98: 1.438720604 | F98: 0.780627417 | G98: =+Revenues!$C$36*A98 -> 0
A99: 1.46 | B99: 1.423150955 | C99: 0.7884457714 | D99: 176.66 | E99: 1.423150955 | F99: 0.7884457714 | G99: =+Revenues!$C$36*A99 -> 0
A100: 1.47 | B100: 1.40793065 | C100: 0.79626517 | D100: 177.87 | E100: 1.40793065 | F100: 0.79626517 | G100: =+Revenues!$C$36*A100 -> 0
A101: 1.48 | B101: 1.393048062 | C101: 0.8040856768 | D101: 179.08 | E101: 1.393048062 | F101: 0.8040856768 | G101: =+Revenues!$C$36*A101 -> 0
A102: 1.49 | B102: 1.378492074 | C102: 0.8119073511 | D102: 180.29 | E102: 1.378492074 | F102: 0.8119073511 | G102: =+Revenues!$C$36*A102 -> 0
A103: 1.5 | B103: 1.364252052 | C103: 0.8197302483 | D103: 181.5 | E103: 1.364252052 | F103: 0.8197302483 | G103: =+Revenues!$C$36*A103 -> 0

Sheet Loan 1
A1: Principal | D1: =+Liabilities_and_Equity!F32 -> 0
A2: Nominal interest rate | D2: =+Liabilities_and_Equity!G32*100 -> 5 | E2: %
A3: Loan duration in months | D3: =+Liabilities_and_Equity!K32 -> 60
A4: Repayment start year | D4: =+Liabilities_and_Equity!I32 -> 2016
A6: Year | B6: Current period | C6: Number of periods left | D6: Principal left | E6: Monthly payment | F6: Interests | G6: Principal
B7: 1 | C7: =+D3 -> 60 | D7: =+D1 -> 0 | E7: =IF(ISERR(PMT($D$2/100/12,C7,-D7)),0,PMT($D$2/100/12,C7,-D7)) -> 0 | F7: =IF(ISERR(+D7*$D$2/12/100)=1,0,D7*$D$2/12/100) -> 0 | G7: =IF(ISERR(+E7-F7)=1,0,E7-F7) -> 0
B8: =+B7+1 -> 2 | C8: =+C7-1 -> 59 | D8: =(D7-G7)*(C7>1) -> 0 | E8: =IF(ISERR(PMT($D$2/100/12,C8,-D8)),0,PMT($D$2/100/12,C8,-D8)) -> 0 | F8: =IF(ISERR(+D8*$D$2/12/100)=1,0,D8*$D$2/12/100) -> 0 | G8: =IF(ISERR(+E8-F8)=1,0,E8-F8) -> 0
B9: =+B8+1 -> 3 | C9: =+C8-1 -> 58 | D9: =(D8-G8)*(C8>1) -> 0 | E9: 0 | F9: =IF(ISERR(+D9*$D$2/12/100)=1,0,D9*$D$2/12/100) -> 0 | G9: =IF(ISERR(+E9-F9)=1,0,E9-F9) -> 0
B10: 4 | C10: 57 | D10: =(D9-G9)*(C9>1) -> 0 | E10: 0 | F10: =IF(ISERR(+D10*$D$2/12/100)=1,0,D10*$D$2/12/100) -> 0 | G10: =IF(ISERR(+E10-F10)=1,0,E10-F10) -> 0
B11: 5 | C11: 56 | D11: 0 | E11: 0 | F11: 0 | G11: 0
B12: 6 | C12: 55 | D12: 0 | E12: 0 | F12: 0 | G12: 0
B13: 7 | C13: 54 | D13: 0 | E13: 0 | F13: 0 | G13: 0
B14: 8 | C14: 53 | D14: 0 | E14: 0 | F14: 0 | G14: 0
B15: 9 | C15: 52 | D15: 0 | E15: 0 | F15: 0 | G15: 0
B16: 10 | C16: 51 | D16: 0 | E16: 0 | F16: 0 | G16: 0
B17: 11 | C17: 50 | D17: 0 | E17: 0 | F17: 0 | G17: 0
B18: 12 | C18: 49 | D18: 0 | E18: 0 | F18: 0 | G18: 0
A19: =+D4 -> 2016 | B19: TOTAL | E19: =SUM(E7:E18) -> 0 | F19: =SUM(F7:F18) -> 0 | G19: =SUM(G7:G18) -> 0
B20: =+B18+1 -> 13 | C20: =+C18-1 -> 48 | D20: =(D18-G18)*(C18>1) -> 0 | E20: 0 | F20: =IF(ISERR(+D20*$D$2/12/100)=1,0,D20*$D$2/12/100) -> 0 | G20: =IF(ISERR(+E20-F20)=1,0,E20-F20) -> 0
B21: =+B20+1 -> 14 | C21: =+C20-1 -> 47 | D21: =(D20-G20)*(C20>1) -> 0 | E21: 0 | F21: =IF(ISERR(+D21*$D$2/12/100)=1,0,D21*$D$2/12/100) -> 0 | G21: =IF(ISERR(+E21-F21)=1,0,E21-F21) -> 0
B22: =+B21+1 -> 15 | C22: =+C21-1 -> 46 | D22: =(D21-G21)*(C21>1) -> 0 | E22: 0 | F22: 0 | G22: 0
B23: =+B22+1 -> 16 | C23: 45 | D23: 0 | E23: 0 | F23: 0 | G23: 0
B24: 17 | C24: 44 | D24: 0 | E24: 0 | F24: 0 | G24: 0
B25: 18 | C25: 43 | D25: 0 | E25: 0 | F25: 0 | G25: 0
B26: 19 | C26: 42 | D26: 0 | E26: 0 | F26: 0 | G26: 0
B27: 20 | C27: 41 | D27: 0 | E27: 0 | F27: 0 | G27: 0
B28: 21 | C28: 40 | D28: 0 | E28: 0 | F28: 0 | G28: 0
B29: 22 | C29: 39 | D29: 0 | E29: 0 | F29: 0 | G29: 0
B30: 23 | C30: 38 | D30: 0 | E30: 0 | F30: 0 | G30: 0
B31: 24 | C31: 37 | D31: 0 | E31: 0 | F31: 0 | G31: 0
A32: =+A19+1 -> 2017 | B32: TOTAL | E32: =SUM(E20:E31) -> 0 | F32: =SUM(F20:F31) -> 0 | G32: =SUM(G20:G31) -> 0
B33: =+B31+1 -> 25 | C33: =+C31-1 -> 36 | D33: =(D31-G31)*(C31>1) -> 0 | E33: 0 | F33: =IF(ISERR(+D33*$D$2/12/100)=1,0,D33*$D$2/12/100) -> 0 | G33: =IF(ISERR(+E33-F33)=1,0,E33-F33) -> 0
B34: =+B33+1 -> 26 | C34: =+C33-1 -> 35 | D34: =(D33-G33)*(C33>1) -> 0 | E34: 0 | F34: 0 | G34: 0
B35: =+B34+1 -> 27 | C35: =+C34-1 -> 34 | D35: =(D34-G34)*(C34>1) -> 0 | E35: 0 | F35: 0 | G35: 0
B36: =+B35+1 -> 28 | C36: 33 | D36: 0 | E36: 0 | F36: 0 | G36: 0
B37: 29 | C37: 32 | D37: 0 | E37: 0 | F37: 0 | G37: 0
B38: 30 | C38: 31 | D38: 0 | E38: 0 | F38: 0 | G38: 0
B39: 31 | C39: 30 | D39: 0 | E39: 0 | F39: 0 | G39: 0
B40: 32 | C40: 29 | D40: 0 | E40: 0 | F40: 0 | G40: 0
B41: 33 | C41: 28 | D41: 0 | E41: 0 | F41: 0 | G41: 0
B42: 34 | C42: 27 | D42: 0 | E42: 0 | F42: 0 | G42: 0
B43: 35 | C43: 26 | D43: 0 | E43: 0 | F43: 0 | G43: 0
B44: 36 | C44: 25 | D44: 0 | E44: 0 | F44: 0 | G44: 0
A45: =+A32+1 -> 2018 | B45: TOTAL | E45: =SUM(E33:E44) -> 0 | F45: =SUM(F33:F44) -> 0 | G45: =SUM(G33:G44) -> 0
B46: =+B44+1 -> 37 | C46: =+C44-1 -> 24 | D46: =(D44-G44)*(C44>1) -> 0 | E46: 0 | F46: =IF(ISERR(+D46*$D$2/12/100)=1,0,D46*$D$2/12/100) -> 0 | G46: =IF(ISERR(+E46-F46)=1,0,E46-F46) -> 0
B47: =+B46+1 -> 38 | C47: =+C46-1 -> 23 | D47: =(D46-G46)*(C46>1) -> 0 | E47: 0 | F47: 0 | G47: 0
B48: =+B47+1 -> 39 | C48: =+C47-1 -> 22 | D48: =(D47-G47)*(C47>1) -> 0 | E48: 0 | F48: 0 | G48: 0
B49: =+B48+1 -> 40 | C49: 21 | D49: 0 | E49: 0 | F49: 0 | G49: 0
B50: 41 | C50: 20 | D50: 0 | E50: 0 | F50: 0 | G50: 0
B51: 42 | C51: 19 | D51: 0 | E51: 0 | F51: 0 | G51: 0
B52: 43 | C52: 18 | D52: 0 | E52: 0 | F52: 0 | G52: 0
B53: 44 | C53: 17 | D53: 0 | E53: 0 | F53: 0 | G53: 0
B54: 45 | C54: 16 | D54: 0 | E54: 0 | F54: 0 | G54: 0
B55: 46 | C55: 15 | D55: 0 | E55: 0 | F55: 0 | G55: 0
B56: 47 | C56: 14 | D56: 0 | E56: 0 | F56: 0 | G56: 0
B57: 48 | C57: 13 | D57: 0 | E57: 0 | F57: 0 | G57: 0
A58: =+A45+1 -> 2019 | B58: TOTAL | E58: =SUM(E46:E57) -> 0 | F58: =SUM(F46:F57) -> 0 | G58: =SUM(G46:G57) -> 0
B59: =+B57+1 -> 49 | C59: =+C57-1 -> 12 | D59: =(D57-G57)*(C57>1) -> 0 | E59: 0 | F59: =IF(ISERR(+D59*$D$2/12/100)=1,0,D59*$D$2/12/100) -> 0 | G59: =IF(ISERR(+E59-F59)=1,0,E59-F59) -> 0
B60: =+B59+1 -> 50 | C60: =+C59-1 -> 11 | D60: =(D59-G59)*(C59>1) -> 0 | E60: 0 | F60: 0 | G60: 0
B61: =+B60+1 -> 51 | C61: =+C60-1 -> 10 | D61: =(D60-G60)*(C60>1) -> 0 | E61: 0 | F61: 0 | G61: 0
B62: =+B61+1 -> 52 | C62: 9 | D62: 0 | E62: 0 | F62: 0 | G62: 0
B63: 53 | C63: 8 | D63: 0 | E63: 0 | F63: 0 | G63: 0
B64: 54 | C64: 7 | D64: 0 | E64: 0 | F64: 0 | G64: 0
B65: 55 | C65: 6 | D65: 0 | E65: 0 | F65: 0 | G65: 0
B66: 56 | C66: 5 | D66: 0 | E66: 0 | F66: 0 | G66: 0
B67: 57 | C67: 4 | D67: 0 | E67: 0 | F67: 0 | G67: 0
B68: 58 | C68: 3 | D68: 0 | E68: 0 | F68: 0 | G68: 0
B69: 59 | C69: 2 | D69: 0 | E69: 0 | F69: 0 | G69: 0
B70: 60 | C70: 1 | D70: 0 | E70: 0 | F70: 0 | G70: 0
A71: =+A58+1 -> 2020 | B71: TOTAL | E71: =SUM(E59:E70) -> 0 | F71: =SUM(F59:F70) -> 0 | G71: =SUM(G59:G70) -> 0
B72: =+B70+1 -> 61 | C72: =+C70-1 -> 0 | D72: =(D70-G70)*(C70>1) -> 0 | E72: 0 | F72: =IF(ISERR(+D72*$D$2/12/100)=1,0,D72*$D$2/12/100) -> 0 | G72: =IF(ISERR(+E72-F72)=1,0,E72-F72) -> 0
B73: =+B72+1 -> 62 | C73: =+C72-1 -> -1 | D73: =(D72-G72)*(C72>1) -> 0 | E73: =IF(ISERR(PMT($D$2/100/12,C73,-D73)),0,PMT($D$2/100/12,C73,-D73)) -> 0 | F73: 0 | G73: 0
B74: =+B73+1 -> 63 | C74: =+C73-1 -> -2 | D74: =(D73-G73)*(C73>1) -> 0 | E74: 0 | F74: 0 | G74: 0
B75: =+B74+1 -> 64 | C75: -3 | D75: 0 | E75: 0 | F75: 0 | G75: 0
B76: 65 | C76: -4 | D76: 0 | E76: 0 | F76: 0 | G76: 0
B77: 66 | C77: -5 | D77: 0 | E77: 0 | F77: 0 | G77: 0
B78: 67 | C78: -6 | D78: 0 | E78: 0 | F78: 0 | G78: 0
B79: 68 | C79: -7 | D79: 0 | E79: 0 | F79: 0 | G79: 0
B80: 69 | C80: -8 | D80: 0 | E80: 0 | F80: 0 | G80: 0
B81: 70 | C81: -9 | D81: 0 | E81: 0 | F81: 0 | G81: 0
B82: 71 | C82: -10 | D82: 0 | E82: 0 | F82: 0 | G82: 0
B83: 72 | C83: -11 | D83: 0 | E83: 0 | F83: 0 | G83: 0
A84: =+A71+1 -> 2021 | B84: TOTAL | E84: =SUM(E72:E83) -> 0 | F84: =SUM(F72:F83) -> 0 | G84: =SUM(G72:G83) -> 0
B85: =+B83+1 -> 73 | C85: =+C83-1 -> -12 | D85: =(D83-G83)*(C83>1) -> 0 | E85: =IF(ISERR(PMT($D$2/100/12,C85,-D85)),0,PMT($D$2/100/12,C85,-D85)) -> 0 | F85: =IF(ISERR(+D85*$D$2/12/100)=1,0,D85*$D$2/12/100) -> 0 | G85: =IF(ISERR(+E85-F85)=1,0,E85-F85) -> 0
B86: =+B85+1 -> 74 | C86: =+C85-1 -> -13 | D86: =(D85-G85)*(C85>1) -> 0 | E86: 0 | F86: 0 | G86: 0
B87: =+B86+1 -> 75 | C87: =+C86-1 -> -14 | D87: =(D86-G86)*(C86>1) -> 0 | E87: 0 | F87: 0 | G87: 0
B88: =+B87+1 -> 76 | C88: -15 | D88: 0 | E88: 0 | F88: 0 | G88: 0
B89: 77 | C89: -16 | D89: 0 | E89: 0 | F89: 0 | G89: 0
B90: 78 | C90: -17 | D90: 0 | E90: 0 | F90: 0 | G90: 0
B91: 79 | C91: -18 | D91: 0 | E91: 0 | F91: 0 | G91: 0
B92: 80 | C92: -19 | D92: 0 | E92: 0 | F92: 0 | G92: 0
B93: 81 | C93: -20 | D93: 0 | E93: 0 | F93: 0 | G93: 0
B94: 82 | C94: -21 | D94: 0 | E94: 0 | F94: 0 | G94: 0
B95: 83 | C95: -22 | D95: 0 | E95: 0 | F95: 0 | G95: 0
B96: 84 | C96: -23 | D96: 0 | E96: 0 | F96: 0 | G96: 0
A97: =+A84+1 -> 2022 | B97: TOTAL | E97: =SUM(E85:E96) -> 0 | F97: =SUM(F85:F96) -> 0 | G97: =SUM(G85:G96) -> 0
B98: =+B96+1 -> 85 | C98: =+C96-1 -> -24 | D98: =(D96-G96)*(C96>1) -> 0 | E98: =IF(ISERR(PMT($D$2/100/12,C98,-D98)),0,PMT($D$2/100/12,C98,-D98)) -> 0 | F98: =IF(ISERR(+D98*$D$2/12/100)=1,0,D98*$D$2/12/100) -> 0 | G98: =IF(ISERR(+E98-F98)=1,0,E98-F98) -> 0
B99: =+B98+1 -> 86 | C99: =+C98-1 -> -25 | D99: =(D98-G98)*(C98>1) -> 0 | E99: 0 | F99: 0 | G99: 0
B100: =+B99+1 -> 87 | C100: =+C99-1 -> -26 | D100: =(D99-G99)*(C99>1) -> 0 | E100: 0 | F100: 0 | G100: 0
B101: =+B100+1 -> 88 | C101: -27 | D101: 0 | E101: 0 | F101: 0 | G101: 0
B102: 89 | C102: -28 | D102: 0 | E102: 0 | F102: 0 | G102: 0
B103: 90 | C103: -29 | D103: 0 | E103: 0 | F103: 0 | G103: 0
B104: 91 | C104: -30 | D104: 0 | E104: 0 | F104: 0 | G104: 0
B105: 92 | C105: -31 | D105: 0 | E105: 0 | F105: 0 | G105: 0
B106: 93 | C106: -32 | D106: 0 | E106: 0 | F106: 0 | G106: 0
B107: 94 | C107: -33 | D107: 0 | E107: 0 | F107: 0 | G107: 0
B108: 95 | C108: -34 | D108: 0 | E108: 0 | F108: 0 | G108: 0
B109: 96 | C109: -35 | D109: 0 | E109: 0 | F109: 0 | G109: 0
A110: =+A97+1 -> 2023 | B110: TOTAL | E110: =SUM(E98:E109) -> 0 | F110: =SUM(F98:F109) -> 0 | G110: =SUM(G98:G109) -> 0
B111: =+B109+1 -> 97 | C111: =+C109-1 -> -36 | D111: =(D109-G109)*(C109>1) -> 0 | E111: =IF(ISERR(PMT($D$2/100/12,C111,-D111)),0,PMT($D$2/100/12,C111,-D111)) -> 0 | F111: =IF(ISERR(+D111*$D$2/12/100)=1,0,D111*$D$2/12/100) -> 0 | G111: =IF(ISERR(+E111-F111)=1,0,E111-F111) -> 0
B112: =+B111+1 -> 98 | C112: =+C111-1 -> -37 | D112: =(D111-G111)*(C111>1) -> 0 | E112: 0 | F112: 0 | G112: 0
B113: =+B112+1 -> 99 | C113: =+C112-1 -> -38 | D113: =(D112-G112)*(C112>1) -> 0 | E113: 0 | F113: 0 | G113: 0
B114: =+B113+1 -> 100 | C114: -39 | D114: 0 | E114: 0 | F114: 0 | G114: 0
B115: 101 | C115: -40 | D115: 0 | E115: 0 | F115: 0 | G115: 0
B116: 102 | C116: -41 | D116: 0 | E116: 0 | F116: 0 | G116: 0
B117: 103 | C117: -42 | D117: 0 | E117: 0 | F117: 0 | G117: 0
B118: 104 | C118: -43 | D118: 0 | E118: 0 | F118: 0 | G118: 0
B119: 105 | C119: -44 | D119: 0 | E119: 0 | F119: 0 | G119: 0
B120: 106 | C120: -45 | D120: 0 | E120: 0 | F120: 0 | G120: 0
B121: 107 | C121: -46 | D121: 0 | E121: 0 | F121: 0 | G121: 0
B122: 108 | C122: -47 | D122: 0 | E122: 0 | F122: 0 | G122: 0
A123: =+A110+1 -> 2024 | B123: TOTAL | E123: =SUM(E111:E122) -> 0 | F123: =SUM(F111:F122) -> 0 | G123: =SUM(G111:G122) -> 0
B124: =+B122+1 -> 109 | C124: =+C122-1 -> -48 | D124: =(D122-G122)*(C122>1) -> 0 | E124: =IF(ISERR(PMT($D$2/100/12,C124,-D124)),0,PMT($D$2/100/12,C124,-D124)) -> 0 | F124: =IF(ISERR(+D124*$D$2/12/100)=1,0,D124*$D$2/12/100) -> 0 | G124: =IF(ISERR(+E124-F124)=1,0,E124-F124) -> 0
B125: =+B124+1 -> 110 | C125: =+C124-1 -> -49 | D125: =(D124-G124)*(C124>1) -> 0 | E125: 0 | F125: 0 | G125: 0
B126: =+B125+1 -> 111 | C126: =+C125-1 -> -50 | D126: =(D125-G125)*(C125>1) -> 0 | E126: 0 | F126: 0 | G126: 0
B127: =+B126+1 -> 112 | C127: -51 | D127: 0 | E127: 0 | F127: 0 | G127: 0
B128: 113 | C128: -52 | D128: 0 | E128: 0 | F128: 0 | G128: 0
B129: 114 | C129: -53 | D129: 0 | E129: 0 | F129: 0 | G129: 0
B130: 115 | C130: -54 | D130: 0 | E130: 0 | F130: 0 | G130: 0
B131: 116 | C131: -55 | D131: 0 | E131: 0 | F131: 0 | G131: 0
B132: 117 | C132: -56 | D132: 0 | E132: 0 | F132: 0 | G132: 0
B133: 118 | C133: -57 | D133: 0 | E133: 0 | F133: 0 | G133: 0
B134: 119 | C134: -58 | D134: 0 | E134: 0 | F134: 0 | G134: 0
B135: 120 | C135: -59 | D135: 0 | E135: 0 | F135: 0 | G135: 0
A136: =+A123+1 -> 2025 | B136: TOTAL | E136: =SUM(E124:E135) -> 0 | F136: =SUM(F124:F135) -> 0 | G136: =SUM(G124:G135) -> 0
B137: =+B135+1 -> 121 | C137: =+C135-1 -> -60 | D137: =(D135-G135)*(C135>1) -> 0 | E137: =IF(ISERR(PMT($D$2/100/12,C137,-D137)),0,PMT($D$2/100/12,C137,-D137)) -> 0 | F137: =IF(ISERR(+D137*$D$2/12/100)=1,0,D137*$D$2/12/100) -> 0 | G137: =IF(ISERR(+E137-F137)=1,0,E137-F137) -> 0
B138: =+B137+1 -> 122 | C138: =+C137-1 -> -61 | D138: =(D137-G137)*(C137>1) -> 0 | E138: 0 | F138: 0 | G138: 0
B139: =+B138+1 -> 123 | C139: =+C138-1 -> -62 | D139: =(D138-G138)*(C138>1) -> 0 | E139: 0 | F139: 0 | G139: 0
B140: =+B139+1 -> 124 | C140: -63 | D140: 0 | E140: 0 | F140: 0 | G140: 0
B141: 125 | C141: -64 | D141: 0 | E141: 0 | F141: 0 | G141: 0
B142: 126 | C142: -65 | D142: 0 | E142: 0 | F142: 0 | G142: 0
B143: 127 | C143: -66 | D143: 0 | E143: 0 | F143: 0 | G143: 0
B144: 128 | C144: -67 | D144: 0 | E144: 0 | F144: 0 | G144: 0
B145: 129 | C145: -68 | D145: 0 | E145: 0 | F145: 0 | G145: 0
B146: 130 | C146: -69 | D146: 0 | E146: 0 | F146: 0 | G146: 0
B147: 131 | C147: -70 | D147: 0 | E147: 0 | F147: 0 | G147: 0
B148: 132 | C148: -71 | D148: 0 | E148: 0 | F148: 0 | G148: 0
A149: =+A136+1 -> 2026 | B149: TOTAL | E149: =SUM(E137:E148) -> 0 | F149: =SUM(F137:F148) -> 0 | G149: =SUM(G137:G148) -> 0
B150: =+B148+1 -> 133 | C150: =+C148-1 -> -72 | D150: =(D148-G148)*(C148>1) -> 0 | E150: =IF(ISERR(PMT($D$2/100/12,C150,-D150)),0,PMT($D$2/100/12,C150,-D150)) -> 0 | F150: =IF(ISERR(+D150*$D$2/12/100)=1,0,D150*$D$2/12/100) -> 0 | G150: =IF(ISERR(+E150-F150)=1,0,E150-F150) -> 0
B151: =+B150+1 -> 134 | C151: =+C150-1 -> -73 | D151: =(D150-G150)*(C150>1) -> 0 | E151: 0 | F151: 0 | G151: 0
B152: =+B151+1 -> 135 | C152: =+C151-1 -> -74 | D152: =(D151-G151)*(C151>1) -> 0 | E152: 0 | F152: 0 | G152: 0
B153: =+B152+1 -> 136 | C153: -75 | D153: 0 | E153: 0 | F153: 0 | G153: 0
B154: 137 | C154: -76 | D154: 0 | E154: 0 | F154: 0 | G154: 0
B155: 138 | C155: -77 | D155: 0 | E155: 0 | F155: 0 | G155: 0
B156: 139 | C156: -78 | D156: 0 | E156: 0 | F156: 0 | G156: 0
B157: 140 | C157: -79 | D157: 0 | E157: 0 | F157: 0 | G157: 0
B158: 141 | C158: -80 | D158: 0 | E158: 0 | F158: 0 | G158: 0
B159: 142 | C159: -81 | D159: 0 | E159: 0 | F159: 0 | G159: 0
B160: 143 | C160: -82 | D160: 0 | E160: 0 | F160: 0 | G160: 0
B161: 144 | C161: -83 | D161: 0 | E161: 0 | F161: 0 | G161: 0
A162: =+A149+1 -> 2027 | B162: TOTAL | E162: =SUM(E150:E161) -> 0 | F162: =SUM(F150:F161) -> 0 | G162: =SUM(G150:G161) -> 0
B163: =+B161+1 -> 145 | C163: =+C161-1 -> -84 | D163: =(D161-G161)*(C161>1) -> 0 | E163: =IF(ISERR(PMT($D$2/100/12,C163,-D163)),0,PMT($D$2/100/12,C163,-D163)) -> 0 | F163: =IF(ISERR(+D163*$D$2/12/100)=1,0,D163*$D$2/12/100) -> 0 | G163: =IF(ISERR(+E163-F163)=1,0,E163-F163) -> 0
B164: =+B163+1 -> 146 | C164: =+C163-1 -> -85 | D164: =(D163-G163)*(C163>1) -> 0 | E164: 0 | F164: 0 | G164: 0
B165: =+B164+1 -> 147 | C165: =+C164-1 -> -86 | D165: =(D164-G164)*(C164>1) -> 0 | E165: 0 | F165: 0 | G165: 0
B166: =+B165+1 -> 148 | C166: -87 | D166: 0 | E166: 0 | F166: 0 | G166: 0
B167: 149 | C167: -88 | D167: 0 | E167: 0 | F167: 0 | G167: 0
B168: 150 | C168: -89 | D168: 0 | E168: 0 | F168: 0 | G168: 0
B169: 151 | C169: -90 | D169: 0 | E169: 0 | F169: 0 | G169: 0
B170: 152 | C170: -91 | D170: 0 | E170: 0 | F170: 0 | G170: 0
B171: 153 | C171: -92 | D171: 0 | E171: 0 | F171: 0 | G171: 0
B172: 154 | C172: -93 | D172: 0 | E172: 0 | F172: 0 | G172: 0
B173: 155 | C173: -94 | D173: 0 | E173: 0 | F173: 0 | G173: 0
B174: 156 | C174: -95 | D174: 0 | E174: 0 | F174: 0 | G174: 0
A175: =+A162+1 -> 2028 | B175: TOTAL | E175: =SUM(E163:E174) -> 0 | F175: =SUM(F163:F174) -> 0 | G175: =SUM(G163:G174) -> 0
B176: =+B174+1 -> 157 | C176: =+C174-1 -> -96 | D176: =(D174-G174)*(C174>1) -> 0 | E176: =IF(ISERR(PMT($D$2/100/12,C176,-D176)),0,PMT($D$2/100/12,C176,-D176)) -> 0 | F176: =IF(ISERR(+D176*$D$2/12/100)=1,0,D176*$D$2/12/100) -> 0 | G176: =IF(ISERR(+E176-F176)=1,0,E176-F176) -> 0
B177: =+B176+1 -> 158 | C177: =+C176-1 -> -97 | D177: =(D176-G176)*(C176>1) -> 0 | E177: 0 | F177: 0 | G177: 0
B178: =+B177+1 -> 159 | C178: =+C177-1 -> -98 | D178: =(D177-G177)*(C177>1) -> 0 | E178: 0 | F178: 0 | G178: 0
B179: =+B178+1 -> 160 | C179: -99 | D179: 0 | E179: 0 | F179: 0 | G179: 0
B180: 161 | C180: -100 | D180: 0 | E180: 0 | F180: 0 | G180: 0
B181: 162 | C181: -101 | D181: 0 | E181: 0 | F181: 0 | G181: 0
B182: 163 | C182: -102 | D182: 0 | E182: 0 | F182: 0 | G182: 0
B183: 164 | C183: -103 | D183: 0 | E183: 0 | F183: 0 | G183: 0
B184: 165 | C184: -104 | D184: 0 | E184: 0 | F184: 0 | G184: 0
B185: 166 | C185: -105 | D185: 0 | E185: 0 | F185: 0 | G185: 0
B186: 167 | C186: -106 | D186: 0 | E186: 0 | F186: 0 | G186: 0
B187: 168 | C187: -107 | D187: 0 | E187: 0 | F187: 0 | G187: 0
A188: =+A175+1 -> 2029 | B188: TOTAL | E188: =SUM(E176:E187) -> 0 | F188: =SUM(F176:F187) -> 0 | G188: =SUM(G176:G187) -> 0
B189: =+B187+1 -> 169 | C189: =+C187-1 -> -108 | D189: =(D187-G187)*(C187>1) -> 0 | E189: =IF(ISERR(PMT($D$2/100/12,C189,-D189)),0,PMT($D$2/100/12,C189,-D189)) -> 0 | F189: =IF(ISERR(+D189*$D$2/12/100)=1,0,D189*$D$2/12/100) -> 0 | G189: =IF(ISERR(+E189-F189)=1,0,E189-F189) -> 0
B190: =+B189+1 -> 170 | C190: =+C189-1 -> -109 | D190: =(D189-G189)*(C189>1) -> 0 | E190: 0 | F190: 0 | G190: 0
B191: =+B190+1 -> 171 | C191: =+C190-1 -> -110 | D191: =(D190-G190)*(C190>1) -> 0 | E191: 0 | F191: 0 | G191: 0
B192: =+B191+1 -> 172 | C192: -111 | D192: 0 | E192: 0 | F192: 0 | G192: 0
B193: 173 | C193: -112 | D193: 0 | E193: 0 | F193: 0 | G193: 0
B194: 174 | C194: -113 | D194: 0 | E194: 0 | F194: 0 | G194: 0
B195: 175 | C195: -114 | D195: 0 | E195: 0 | F195: 0 | G195: 0
B196: 176 | C196: -115 | D196: 0 | E196: 0 | F196: 0 | G196: 0
B197: 177 | C197: -116 | D197: 0 | E197: 0 | F197: 0 | G197: 0
B198: 178 | C198: -117 | D198: 0 | E198: 0 | F198: 0 | G198: 0
B199: 179 | C199: -118 | D199: 0 | E199: 0 | F199: 0 | G199: 0
B200: 180 | C200: -119 | D200: 0 | E200: 0 | F200: 0 | G200: 0
A201: =+A188+1 -> 2030 | B201: TOTAL | E201: =SUM(E189:E200) -> 0 | F201: =SUM(F189:F200) -> 0 | G201: =SUM(G189:G200) -> 0
... 65 more rows

Sheet Loan 2
A1: Principal | D1: =+Liabilities_and_Equity!F33 -> 0
A2: Nominal interest rate | D2: =+Liabilities_and_Equity!G33*100 -> 5 | E2: %
A3: Loan duration in months | D3: =+Liabilities_and_Equity!K33 -> 120
A4: Repayment start year | D4: =+Liabilities_and_Equity!I33 -> 2016
A6: Year | B6: Current period | C6: Number of periods left | D6: Principal left | E6: Monthly payment | F6: Interests | G6: Principal
B7: 1 | C7: =+D3 -> 120 | D7: =+D1 -> 0 | E7: =IF(ISERR(PMT($D$2/100/12,C7,-D7)),0,PMT($D$2/100/12,C7,-D7)) -> 0 | F7: =IF(ISERR(+D7*$D$2/12/100)=1,0,D7*$D$2/12/100) -> 0 | G7: =IF(ISERR(+E7-F7)=1,0,E7-F7) -> 0
B8: =+B7+1 -> 2 | C8: =+C7-1 -> 119 | D8: =(D7-G7)*(C7>1) -> 0 | E8: =IF(ISERR(PMT($D$2/100/12,C8,-D8)),0,PMT($D$2/100/12,C8,-D8)) -> 0 | F8: =IF(ISERR(+D8*$D$2/12/100)=1,0,D8*$D$2/12/100) -> 0 | G8: =IF(ISERR(+E8-F8)=1,0,E8-F8) -> 0
B9: =+B8+1 -> 3 | C9: =+C8-1 -> 118 | D9: =(D8-G8)*(C8>1) -> 0 | E9: 0 | F9: =IF(ISERR(+D9*$D$2/12/100)=1,0,D9*$D$2/12/100) -> 0 | G9: =IF(ISERR(+E9-F9)=1,0,E9-F9) -> 0
B10: 4 | C10: 117 | D10: =(D9-G9)*(C9>1) -> 0 | E10: 0 | F10: =IF(ISERR(+D10*$D$2/12/100)=1,0,D10*$D$2/12/100) -> 0 | G10: =IF(ISERR(+E10-F10)=1,0,E10-F10) -> 0
B11: 5 | C11: 116 | D11: 0 | E11: 0 | F11: 0 | G11: 0
B12: 6 | C12: 115 | D12: 0 | E12: 0 | F12: 0 | G12: 0
B13: 7 | C13: 114 | D13: 0 | E13: 0 | F13: 0 | G13: 0
B14: 8 | C14: 113 | D14: 0 | E14: 0 | F14: 0 | G14: 0
B15: 9 | C15: 112 | D15: 0 | E15: 0 | F15: 0 | G15: 0
B16: 10 | C16: 111 | D16: 0 | E16: 0 | F16: 0 | G16: 0
B17: 11 | C17: 110 | D17: 0 | E17: 0 | F17: 0 | G17: 0
B18: 12 | C18: 109 | D18: 0 | E18: 0 | F18: 0 | G18: 0
A19: =+D4 -> 2016 | B19: TOTAL | E19: =SUM(E7:E18) -> 0 | F19: =SUM(F7:F18) -> 0 | G19: =SUM(G7:G18) -> 0
B20: =+B18+1 -> 13 | C20: =+C18-1 -> 108 | D20: =(D18-G18)*(C18>1) -> 0 | E20: =IF(ISERR(PMT($D$2/100/12,C20,-D20)),0,PMT($D$2/100/12,C20,-D20)) -> 0 | F20: =IF(ISERR(+D20*$D$2/12/100)=1,0,D20*$D$2/12/100) -> 0 | G20: =IF(ISERR(+E20-F20)=1,0,E20-F20) -> 0
B21: =+B20+1 -> 14 | C21: =+C20-1 -> 107 | D21: =(D20-G20)*(C20>1) -> 0 | E21: =IF(ISERR(PMT($D$2/100/12,C21,-D21)),0,PMT($D$2/100/12,C21,-D21)) -> 0 | F21: 0 | G21: 0
B22: =+B21+1 -> 15 | C22: =+C21-1 -> 106 | D22: =(D21-G21)*(C21>1) -> 0 | E22: 0 | F22: 0 | G22: 0
B23: =+B22+1 -> 16 | C23: 105 | D23: 0 | E23: 0 | F23: 0 | G23: 0
B24: 17 | C24: 104 | D24: 0 | E24: 0 | F24: 0 | G24: 0
B25: 18 | C25: 103 | D25: 0 | E25: 0 | F25: 0 | G25: 0
B26: 19 | C26: 102 | D26: 0 | E26: 0 | F26: 0 | G26: 0
B27: 20 | C27: 101 | D27: 0 | E27: 0 | F27: 0 | G27: 0
B28: 21 | C28: 100 | D28: 0 | E28: 0 | F28: 0 | G28: 0
B29: 22 | C29: 99 | D29: 0 | E29: 0 | F29: 0 | G29: 0
B30: 23 | C30: 98 | D30: 0 | E30: 0 | F30: 0 | G30: 0
B31: 24 | C31: 97 | D31: 0 | E31: 0 | F31: 0 | G31: 0
A32: =+A19+1 -> 2017 | B32: TOTAL | E32: =SUM(E20:E31) -> 0 | F32: =SUM(F20:F31) -> 0 | G32: =SUM(G20:G31) -> 0
B33: =+B31+1 -> 25 | C33: =+C31-1 -> 96 | D33: =(D31-G31)*(C31>1) -> 0 | E33: =IF(ISERR(PMT($D$2/100/12,C33,-D33)),0,PMT($D$2/100/12,C33,-D33)) -> 0 | F33: =IF(ISERR(+D33*$D$2/12/100)=1,0,D33*$D$2/12/100) -> 0 | G33: =IF(ISERR(+E33-F33)=1,0,E33-F33) -> 0
B34: =+B33+1 -> 26 | C34: =+C33-1 -> 95 | D34: =(D33-G33)*(C33>1) -> 0 | E34: =IF(ISERR(PMT($D$2/100/12,C34,-D34)),0,PMT($D$2/100/12,C34,-D34)) -> 0 | F34: 0 | G34: 0
B35: =+B34+1 -> 27 | C35: =+C34-1 -> 94 | D35: =(D34-G34)*(C34>1) -> 0 | E35: 0 | F35: 0 | G35: 0
B36: =+B35+1 -> 28 | C36: 93 | D36: 0 | E36: 0 | F36: 0 | G36: 0
B37: 29 | C37: 92 | D37: 0 | E37: 0 | F37: 0 | G37: 0
B38: 30 | C38: 91 | D38: 0 | E38: 0 | F38: 0 | G38: 0
B39: 31 | C39: 90 | D39: 0 | E39: 0 | F39: 0 | G39: 0
B40: 32 | C40: 89 | D40: 0 | E40: 0 | F40: 0 | G40: 0
B41: 33 | C41: 88 | D41: 0 | E41: 0 | F41: 0 | G41: 0
B42: 34 | C42: 87 | D42: 0 | E42: 0 | F42: 0 | G42: 0
B43: 35 | C43: 86 | D43: 0 | E43: 0 | F43: 0 | G43: 0
B44: 36 | C44: 85 | D44: 0 | E44: 0 | F44: 0 | G44: 0
A45: =+A32+1 -> 2018 | B45: TOTAL | E45: =SUM(E33:E44) -> 0 | F45: =SUM(F33:F44) -> 0 | G45: =SUM(G33:G44) -> 0
B46: =+B44+1 -> 37 | C46: =+C44-1 -> 84 | D46: =(D44-G44)*(C44>1) -> 0 | E46: =IF(ISERR(PMT($D$2/100/12,C46,-D46)),0,PMT($D$2/100/12,C46,-D46)) -> 0 | F46: =IF(ISERR(+D46*$D$2/12/100)=1,0,D46*$D$2/12/100) -> 0 | G46: =IF(ISERR(+E46-F46)=1,0,E46-F46) -> 0
B47: =+B46+1 -> 38 | C47: =+C46-1 -> 83 | D47: =(D46-G46)*(C46>1) -> 0 | E47: =IF(ISERR(PMT($D$2/100/12,C47,-D47)),0,PMT($D$2/100/12,C47,-D47)) -> 0 | F47: 0 | G47: 0
B48: =+B47+1 -> 39 | C48: =+C47-1 -> 82 | D48: =(D47-G47)*(C47>1) -> 0 | E48: 0 | F48: 0 | G48: 0
B49: =+B48+1 -> 40 | C49: 81 | D49: 0 | E49: 0 | F49: 0 | G49: 0
B50: 41 | C50: 80 | D50: 0 | E50: 0 | F50: 0 | G50: 0
B51: 42 | C51: 79 | D51: 0 | E51: 0 | F51: 0 | G51: 0
B52: 43 | C52: 78 | D52: 0 | E52: 0 | F52: 0 | G52: 0
B53: 44 | C53: 77 | D53: 0 | E53: 0 | F53: 0 | G53: 0
B54: 45 | C54: 76 | D54: 0 | E54: 0 | F54: 0 | G54: 0
B55: 46 | C55: 75 | D55: 0 | E55: 0 | F55: 0 | G55: 0
B56: 47 | C56: 74 | D56: 0 | E56: 0 | F56: 0 | G56: 0
B57: 48 | C57: 73 | D57: 0 | E57: 0 | F57: 0 | G57: 0
A58: =+A45+1 -> 2019 | B58: TOTAL | E58: =SUM(E46:E57) -> 0 | F58: =SUM(F46:F57) -> 0 | G58: =SUM(G46:G57) -> 0
B59: =+B57+1 -> 49 | C59: =+C57-1 -> 72 | D59: =(D57-G57)*(C57>1) -> 0 | E59: =IF(ISERR(PMT($D$2/100/12,C59,-D59)),0,PMT($D$2/100/12,C59,-D59)) -> 0 | F59: =IF(ISERR(+D59*$D$2/12/100)=1,0,D59*$D$2/12/100) -> 0 | G59: =IF(ISERR(+E59-F59)=1,0,E59-F59) -> 0
B60: =+B59+1 -> 50 | C60: =+C59-1 -> 71 | D60: =(D59-G59)*(C59>1) -> 0 | E60: =IF(ISERR(PMT($D$2/100/12,C60,-D60)),0,PMT($D$2/100/12,C60,-D60)) -> 0 | F60: 0 | G60: 0
B61: =+B60+1 -> 51 | C61: =+C60-1 -> 70 | D61: =(D60-G60)*(C60>1) -> 0 | E61: 0 | F61: 0 | G61: 0
B62: =+B61+1 -> 52 | C62: 69 | D62: 0 | E62: 0 | F62: 0 | G62: 0
B63: 53 | C63: 68 | D63: 0 | E63: 0 | F63: 0 | G63: 0
B64: 54 | C64: 67 | D64: 0 | E64: 0 | F64: 0 | G64: 0
B65: 55 | C65: 66 | D65: 0 | E65: 0 | F65: 0 | G65: 0
B66: 56 | C66: 65 | D66: 0 | E66: 0 | F66: 0 | G66: 0
B67: 57 | C67: 64 | D67: 0 | E67: 0 | F67: 0 | G67: 0
B68: 58 | C68: 63 | D68: 0 | E68: 0 | F68: 0 | G68: 0
B69: 59 | C69: 62 | D69: 0 | E69: 0 | F69: 0 | G69: 0
B70: 60 | C70: 61 | D70: 0 | E70: 0 | F70: 0 | G70: 0
A71: =+A58+1 -> 2020 | B71: TOTAL | E71: =SUM(E59:E70) -> 0 | F71: =SUM(F59:F70) -> 0 | G71: =SUM(G59:G70) -> 0
B72: =+B70+1 -> 61 | C72: =+C70-1 -> 60 | D72: =(D70-G70)*(C70>1) -> 0 | E72: =IF(ISERR(PMT($D$2/100/12,C72,-D72)),0,PMT($D$2/100/12,C72,-D72)) -> 0 | F72: =IF(ISERR(+D72*$D$2/12/100)=1,0,D72*$D$2/12/100) -> 0 | G72: =IF(ISERR(+E72-F72)=1,0,E72-F72) -> 0
B73: =+B72+1 -> 62 | C73: =+C72-1 -> 59 | D73: =(D72-G72)*(C72>1) -> 0 | E73: =IF(ISERR(PMT($D$2/100/12,C73,-D73)),0,PMT($D$2/100/12,C73,-D73)) -> 0 | F73: 0 | G73: 0
B74: =+B73+1 -> 63 | C74: =+C73-1 -> 58 | D74: =(D73-G73)*(C73>1) -> 0 | E74: 0 | F74: 0 | G74: 0
B75: =+B74+1 -> 64 | C75: 57 | D75: 0 | E75: 0 | F75: 0 | G75: 0
B76: 65 | C76: 56 | D76: 0 | E76: 0 | F76: 0 | G76: 0
B77: 66 | C77: 55 | D77: 0 | E77: 0 | F77: 0 | G77: 0
B78: 67 | C78: 54 | D78: 0 | E78: 0 | F78: 0 | G78: 0
B79: 68 | C79: 53 | D79: 0 | E79: 0 | F79: 0 | G79: 0
B80: 69 | C80: 52 | D80: 0 | E80: 0 | F80: 0 | G80: 0
B81: 70 | C81: 51 | D81: 0 | E81: 0 | F81: 0 | G81: 0
B82: 71 | C82: 50 | D82: 0 | E82: 0 | F82: 0 | G82: 0
B83: 72 | C83: 49 | D83: 0 | E83: 0 | F83: 0 | G83: 0
A84: =+A71+1 -> 2021 | B84: TOTAL | E84: =SUM(E72:E83) -> 0 | F84: =SUM(F72:F83) -> 0 | G84: =SUM(G72:G83) -> 0
B85: =+B83+1 -> 73 | C85: =+C83-1 -> 48 | D85: =(D83-G83)*(C83>1) -> 0 | E85: =IF(ISERR(PMT($D$2/100/12,C85,-D85)),0,PMT($D$2/100/12,C85,-D85)) -> 0 | F85: =IF(ISERR(+D85*$D$2/12/100)=1,0,D85*$D$2/12/100) -> 0 | G85: =IF(ISERR(+E85-F85)=1,0,E85-F85) -> 0
B86: =+B85+1 -> 74 | C86: =+C85-1 -> 47 | D86: =(D85-G85)*(C85>1) -> 0 | E86: =IF(ISERR(PMT($D$2/100/12,C86,-D86)),0,PMT($D$2/100/12,C86,-D86)) -> 0 | F86: 0 | G86: 0
B87: =+B86+1 -> 75 | C87: =+C86-1 -> 46 | D87: =(D86-G86)*(C86>1) -> 0 | E87: 0 | F87: 0 | G87: 0
B88: =+B87+1 -> 76 | C88: 45 | D88: 0 | E88: 0 | F88: 0 | G88: 0
B89: 77 | C89: 44 | D89: 0 | E89: 0 | F89: 0 | G89: 0
B90: 78 | C90: 43 | D90: 0 | E90: 0 | F90: 0 | G90: 0
B91: 79 | C91: 42 | D91: 0 | E91: 0 | F91: 0 | G91: 0
B92: 80 | C92: 41 | D92: 0 | E92: 0 | F92: 0 | G92: 0
B93: 81 | C93: 40 | D93: 0 | E93: 0 | F93: 0 | G93: 0
B94: 82 | C94: 39 | D94: 0 | E94: 0 | F94: 0 | G94: 0
B95: 83 | C95: 38 | D95: 0 | E95: 0 | F95: 0 | G95: 0
B96: 84 | C96: 37 | D96: 0 | E96: 0 | F96: 0 | G96: 0
A97: =+A84+1 -> 2022 | B97: TOTAL | E97: =SUM(E85:E96) -> 0 | F97: =SUM(F85:F96) -> 0 | G97: =SUM(G85:G96) -> 0
B98: =+B96+1 -> 85 | C98: =+C96-1 -> 36 | D98: =(D96-G96)*(C96>1) -> 0 | E98: =IF(ISERR(PMT($D$2/100/12,C98,-D98)),0,PMT($D$2/100/12,C98,-D98)) -> 0 | F98: =IF(ISERR(+D98*$D$2/12/100)=1,0,D98*$D$2/12/100) -> 0 | G98: =IF(ISERR(+E98-F98)=1,0,E98-F98) -> 0
B99: =+B98+1 -> 86 | C99: =+C98-1 -> 35 | D99: =(D98-G98)*(C98>1) -> 0 | E99: =IF(ISERR(PMT($D$2/100/12,C99,-D99)),0,PMT($D$2/100/12,C99,-D99)) -> 0 | F99: 0 | G99: 0
B100: =+B99+1 -> 87 | C100: =+C99-1 -> 34 | D100: =(D99-G99)*(C99>1) -> 0 | E100: 0 | F100: 0 | G100: 0
B101: =+B100+1 -> 88 | C101: 33 | D101: 0 | E101: 0 | F101: 0 | G101: 0
B102: 89 | C102: 32 | D102: 0 | E102: 0 | F102: 0 | G102: 0
B103: 90 | C103: 31 | D103: 0 | E103: 0 | F103: 0 | G103: 0
B104: 91 | C104: 30 | D104: 0 | E104: 0 | F104: 0 | G104: 0
B105: 92 | C105: 29 | D105: 0 | E105: 0 | F105: 0 | G105: 0
B106: 93 | C106: 28 | D106: 0 | E106: 0 | F106: 0 | G106: 0
B107: 94 | C107: 27 | D107: 0 | E107: 0 | F107: 0 | G107: 0
B108: 95 | C108: 26 | D108: 0 | E108: 0 | F108: 0 | G108: 0
B109: 96 | C109: 25 | D109: 0 | E109: 0 | F109: 0 | G109: 0
A110: =+A97+1 -> 2023 | B110: TOTAL | E110: =SUM(E98:E109) -> 0 | F110: =SUM(F98:F109) -> 0 | G110: =SUM(G98:G109) -> 0
B111: =+B109+1 -> 97 | C111: =+C109-1 -> 24 | D111: =(D109-G109)*(C109>1) -> 0 | E111: =IF(ISERR(PMT($D$2/100/12,C111,-D111)),0,PMT($D$2/100/12,C111,-D111)) -> 0 | F111: =IF(ISERR(+D111*$D$2/12/100)=1,0,D111*$D$2/12/100) -> 0 | G111: =IF(ISERR(+E111-F111)=1,0,E111-F111) -> 0
B112: =+B111+1 -> 98 | C112: =+C111-1 -> 23 | D112: =(D111-G111)*(C111>1) -> 0 | E112: =IF(ISERR(PMT($D$2/100/12,C112,-D112)),0,PMT($D$2/100/12,C112,-D112)) -> 0 | F112: 0 | G112: 0
B113: =+B112+1 -> 99 | C113: =+C112-1 -> 22 | D113: =(D112-G112)*(C112>1) -> 0 | E113: 0 | F113: 0 | G113: 0
B114: =+B113+1 -> 100 | C114: 21 | D114: 0 | E114: 0 | F114: 0 | G114: 0
B115: 101 | C115: 20 | D115: 0 | E115: 0 | F115: 0 | G115: 0
B116: 102 | C116: 19 | D116: 0 | E116: 0 | F116: 0 | G116: 0
B117: 103 | C117: 18 | D117: 0 | E117: 0 | F117: 0 | G117: 0
B118: 104 | C118: 17 | D118: 0 | E118: 0 | F118: 0 | G118: 0
B119: 105 | C119: 16 | D119: 0 | E119: 0 | F119: 0 | G119: 0
B120: 106 | C120: 15 | D120: 0 | E120: 0 | F120: 0 | G120: 0
B121: 107 | C121: 14 | D121: 0 | E121: 0 | F121: 0 | G121: 0
B122: 108 | C122: 13 | D122: 0 | E122: 0 | F122: 0 | G122: 0
A123: =+A110+1 -> 2024 | B123: TOTAL | E123: =SUM(E111:E122) -> 0 | F123: =SUM(F111:F122) -> 0 | G123: =SUM(G111:G122) -> 0
B124: =+B122+1 -> 109 | C124: =+C122-1 -> 12 | D124: =(D122-G122)*(C122>1) -> 0 | E124: =IF(ISERR(PMT($D$2/100/12,C124,-D124)),0,PMT($D$2/100/12,C124,-D124)) -> 0 | F124: =IF(ISERR(+D124*$D$2/12/100)=1,0,D124*$D$2/12/100) -> 0 | G124: =IF(ISERR(+E124-F124)=1,0,E124-F124) -> 0
B125: =+B124+1 -> 110 | C125: =+C124-1 -> 11 | D125: =(D124-G124)*(C124>1) -> 0 | E125: =IF(ISERR(PMT($D$2/100/12,C125,-D125)),0,PMT($D$2/100/12,C125,-D125)) -> 0 | F125: 0 | G125: 0
B126: =+B125+1 -> 111 | C126: =+C125-1 -> 10 | D126: =(D125-G125)*(C125>1) -> 0 | E126: 0 | F126: 0 | G126: 0
B127: =+B126+1 -> 112 | C127: 9 | D127: 0 | E127: 0 | F127: 0 | G127: 0
B128: 113 | C128: 8 | D128: 0 | E128: 0 | F128: 0 | G128: 0
B129: 114 | C129: 7 | D129: 0 | E129: 0 | F129: 0 | G129: 0
B130: 115 | C130: 6 | D130: 0 | E130: 0 | F130: 0 | G130: 0
B131: 116 | C131: 5 | D131: 0 | E131: 0 | F131: 0 | G131: 0
B132: 117 | C132: 4 | D132: 0 | E132: 0 | F132: 0 | G132: 0
B133: 118 | C133: 3 | D133: 0 | E133: 0 | F133: 0 | G133: 0
B134: 119 | C134: 2 | D134: 0 | E134: 0 | F134: 0 | G134: 0
B135: 120 | C135: 1 | D135: 0 | E135: 0 | F135: 0 | G135: 0
A136: =+A123+1 -> 2025 | B136: TOTAL | E136: =SUM(E124:E135) -> 0 | F136: =SUM(F124:F135) -> 0 | G136: =SUM(G124:G135) -> 0
B137: =+B135+1 -> 121 | C137: =+C135-1 -> 0 | D137: =(D135-G135)*(C135>1) -> 0 | E137: =IF(ISERR(PMT($D$2/100/12,C137,-D137)),0,PMT($D$2/100/12,C137,-D137)) -> 0 | F137: =IF(ISERR(+D137*$D$2/12/100)=1,0,D137*$D$2/12/100) -> 0 | G137: =IF(ISERR(+E137-F137)=1,0,E137-F137) -> 0
B138: =+B137+1 -> 122 | C138: =+C137-1 -> -1 | D138: =(D137-G137)*(C137>1) -> 0 | E138: =IF(ISERR(PMT($D$2/100/12,C138,-D138)),0,PMT($D$2/100/12,C138,-D138)) -> 0 | F138: 0 | G138: 0
B139: =+B138+1 -> 123 | C139: =+C138-1 -> -2 | D139: =(D138-G138)*(C138>1) -> 0 | E139: 0 | F139: 0 | G139: 0
B140: =+B139+1 -> 124 | C140: -3 | D140: 0 | E140: 0 | F140: 0 | G140: 0
B141: 125 | C141: -4 | D141: 0 | E141: 0 | F141: 0 | G141: 0
B142: 126 | C142: -5 | D142: 0 | E142: 0 | F142: 0 | G142: 0
B143: 127 | C143: -6 | D143: 0 | E143: 0 | F143: 0 | G143: 0
B144: 128 | C144: -7 | D144: 0 | E144: 0 | F144: 0 | G144: 0
B145: 129 | C145: -8 | D145: 0 | E145: 0 | F145: 0 | G145: 0
B146: 130 | C146: -9 | D146: 0 | E146: 0 | F146: 0 | G146: 0
B147: 131 | C147: -10 | D147: 0 | E147: 0 | F147: 0 | G147: 0
B148: 132 | C148: -11 | D148: 0 | E148: 0 | F148: 0 | G148: 0
A149: =+A136+1 -> 2026 | B149: TOTAL | E149: =SUM(E137:E148) -> 0 | F149: =SUM(F137:F148) -> 0 | G149: =SUM(G137:G148) -> 0
B150: =+B148+1 -> 133 | C150: =+C148-1 -> -12 | D150: =(D148-G148)*(C148>1) -> 0 | E150: =IF(ISERR(PMT($D$2/100/12,C150,-D150)),0,PMT($D$2/100/12,C150,-D150)) -> 0 | F150: =IF(ISERR(+D150*$D$2/12/100)=1,0,D150*$D$2/12/100) -> 0 | G150: =IF(ISERR(+E150-F150)=1,0,E150-F150) -> 0
B151: =+B150+1 -> 134 | C151: =+C150-1 -> -13 | D151: =(D150-G150)*(C150>1) -> 0 | E151: =IF(ISERR(PMT($D$2/100/12,C151,-D151)),0,PMT($D$2/100/12,C151,-D151)) -> 0 | F151: 0 | G151: 0
B152: =+B151+1 -> 135 | C152: =+C151-1 -> -14 | D152: =(D151-G151)*(C151>1) -> 0 | E152: 0 | F152: 0 | G152: 0
B153: =+B152+1 -> 136 | C153: -15 | D153: 0 | E153: 0 | F153: 0 | G153: 0
B154: 137 | C154: -16 | D154: 0 | E154: 0 | F154: 0 | G154: 0
B155: 138 | C155: -17 | D155: 0 | E155: 0 | F155: 0 | G155: 0
B156: 139 | C156: -18 | D156: 0 | E156: 0 | F156: 0 | G156: 0
B157: 140 | C157: -19 | D157: 0 | E157: 0 | F157: 0 | G157: 0
B158: 141 | C158: -20 | D158: 0 | E158: 0 | F158: 0 | G158: 0
B159: 142 | C159: -21 | D159: 0 | E159: 0 | F159: 0 | G159: 0
B160: 143 | C160: -22 | D160: 0 | E160: 0 | F160: 0 | G160: 0
B161: 144 | C161: -23 | D161: 0 | E161: 0 | F161: 0 | G161: 0
A162: =+A149+1 -> 2027 | B162: TOTAL | E162: =SUM(E150:E161) -> 0 | F162: =SUM(F150:F161) -> 0 | G162: =SUM(G150:G161) -> 0
B163: =+B161+1 -> 145 | C163: =+C161-1 -> -24 | D163: =(D161-G161)*(C161>1) -> 0 | E163: =IF(ISERR(PMT($D$2/100/12,C163,-D163)),0,PMT($D$2/100/12,C163,-D163)) -> 0 | F163: =IF(ISERR(+D163*$D$2/12/100)=1,0,D163*$D$2/12/100) -> 0 | G163: =IF(ISERR(+E163-F163)=1,0,E163-F163) -> 0
B164: =+B163+1 -> 146 | C164: =+C163-1 -> -25 | D164: =(D163-G163)*(C163>1) -> 0 | E164: =IF(ISERR(PMT($D$2/100/12,C164,-D164)),0,PMT($D$2/100/12,C164,-D164)) -> 0 | F164: 0 | G164: 0
B165: =+B164+1 -> 147 | C165: =+C164-1 -> -26 | D165: =(D164-G164)*(C164>1) -> 0 | E165: 0 | F165: 0 | G165: 0
B166: =+B165+1 -> 148 | C166: -27 | D166: 0 | E166: 0 | F166: 0 | G166: 0
B167: 149 | C167: -28 | D167: 0 | E167: 0 | F167: 0 | G167: 0
B168: 150 | C168: -29 | D168: 0 | E168: 0 | F168: 0 | G168: 0
B169: 151 | C169: -30 | D169: 0 | E169: 0 | F169: 0 | G169: 0
B170: 152 | C170: -31 | D170: 0 | E170: 0 | F170: 0 | G170: 0
B171: 153 | C171: -32 | D171: 0 | E171: 0 | F171: 0 | G171: 0
B172: 154 | C172: -33 | D172: 0 | E172: 0 | F172: 0 | G172: 0
B173: 155 | C173: -34 | D173: 0 | E173: 0 | F173: 0 | G173: 0
B174: 156 | C174: -35 | D174: 0 | E174: 0 | F174: 0 | G174: 0
A175: =+A162+1 -> 2028 | B175: TOTAL | E175: =SUM(E163:E174) -> 0 | F175: =SUM(F163:F174) -> 0 | G175: =SUM(G163:G174) -> 0
B176: =+B174+1 -> 157 | C176: =+C174-1 -> -36 | D176: =(D174-G174)*(C174>1) -> 0 | E176: =IF(ISERR(PMT($D$2/100/12,C176,-D176)),0,PMT($D$2/100/12,C176,-D176)) -> 0 | F176: =IF(ISERR(+D176*$D$2/12/100)=1,0,D176*$D$2/12/100) -> 0 | G176: =IF(ISERR(+E176-F176)=1,0,E176-F176) -> 0
B177: =+B176+1 -> 158 | C177: =+C176-1 -> -37 | D177: =(D176-G176)*(C176>1) -> 0 | E177: =IF(ISERR(PMT($D$2/100/12,C177,-D177)),0,PMT($D$2/100/12,C177,-D177)) -> 0 | F177: 0 | G177: 0
B178: =+B177+1 -> 159 | C178: =+C177-1 -> -38 | D178: =(D177-G177)*(C177>1) -> 0 | E178: 0 | F178: 0 | G178: 0
B179: =+B178+1 -> 160 | C179: -39 | D179: 0 | E179: 0 | F179: 0 | G179: 0
B180: 161 | C180: -40 | D180: 0 | E180: 0 | F180: 0 | G180: 0
B181: 162 | C181: -41 | D181: 0 | E181: 0 | F181: 0 | G181: 0
B182: 163 | C182: -42 | D182: 0 | E182: 0 | F182: 0 | G182: 0
B183: 164 | C183: -43 | D183: 0 | E183: 0 | F183: 0 | G183: 0
B184: 165 | C184: -44 | D184: 0 | E184: 0 | F184: 0 | G184: 0
B185: 166 | C185: -45 | D185: 0 | E185: 0 | F185: 0 | G185: 0
B186: 167 | C186: -46 | D186: 0 | E186: 0 | F186: 0 | G186: 0
B187: 168 | C187: -47 | D187: 0 | E187: 0 | F187: 0 | G187: 0
A188: =+A175+1 -> 2029 | B188: TOTAL | E188: =SUM(E176:E187) -> 0 | F188: =SUM(F176:F187) -> 0 | G188: =SUM(G176:G187) -> 0
B189: =+B187+1 -> 169 | C189: =+C187-1 -> -48 | D189: =(D187-G187)*(C187>1) -> 0 | E189: =IF(ISERR(PMT($D$2/100/12,C189,-D189)),0,PMT($D$2/100/12,C189,-D189)) -> 0 | F189: =IF(ISERR(+D189*$D$2/12/100)=1,0,D189*$D$2/12/100) -> 0 | G189: =IF(ISERR(+E189-F189)=1,0,E189-F189) -> 0
B190: =+B189+1 -> 170 | C190: =+C189-1 -> -49 | D190: =(D189-G189)*(C189>1) -> 0 | E190: =IF(ISERR(PMT($D$2/100/12,C190,-D190)),0,PMT($D$2/100/12,C190,-D190)) -> 0 | F190: 0 | G190: 0
B191: =+B190+1 -> 171 | C191: =+C190-1 -> -50 | D191: =(D190-G190)*(C190>1) -> 0 | E191: 0 | F191: 0 | G191: 0
B192: =+B191+1 -> 172 | C192: -51 | D192: 0 | E192: 0 | F192: 0 | G192: 0
B193: 173 | C193: -52 | D193: 0 | E193: 0 | F193: 0 | G193: 0
B194: 174 | C194: -53 | D194: 0 | E194: 0 | F194: 0 | G194: 0
B195: 175 | C195: -54 | D195: 0 | E195: 0 | F195: 0 | G195: 0
B196: 176 | C196: -55 | D196: 0 | E196: 0 | F196: 0 | G196: 0
B197: 177 | C197: -56 | D197: 0 | E197: 0 | F197: 0 | G197: 0
B198: 178 | C198: -57 | D198: 0 | E198: 0 | F198: 0 | G198: 0
B199: 179 | C199: -58 | D199: 0 | E199: 0 | F199: 0 | G199: 0
B200: 180 | C200: -59 | D200: 0 | E200: 0 | F200: 0 | G200: 0
A201: =+A188+1 -> 2030 | B201: TOTAL | E201: =SUM(E189:E200) -> 0 | F201: =SUM(F189:F200) -> 0 | G201: =SUM(G189:G200) -> 0
... 65 more rows

Sheet Loan 3
A1: Principal | D1: =+Liabilities_and_Equity!F34 -> 0
A2: Nominal interest rate | D2: =+Liabilities_and_Equity!G34*100 -> 5 | E2: %
A3: Loan duration in months | D3: =+Liabilities_and_Equity!K34 -> 60
A4: Repayment start year | D4: =+Liabilities_and_Equity!I34 -> 2016
A6: Year | B6: Current period | C6: Number of periods left | D6: Principal left | E6: Monthly payment | F6: Interests | G6: Principal
B7: 1 | C7: =+D3 -> 60 | D7: =+D1 -> 0 | E7: =IF(ISERR(PMT($D$2/100/12,C7,-D7)),0,PMT($D$2/100/12,C7,-D7)) -> 0 | F7: =IF(ISERR(+D7*$D$2/12/100)=1,0,D7*$D$2/12/100) -> 0 | G7: =IF(ISERR(+E7-F7)=1,0,E7-F7) -> 0
B8: =+B7+1 -> 2 | C8: =+C7-1 -> 59 | D8: =(D7-G7)*(C7>1) -> 0 | E8: =IF(ISERR(PMT($D$2/100/12,C8,-D8)),0,PMT($D$2/100/12,C8,-D8)) -> 0 | F8: =IF(ISERR(+D8*$D$2/12/100)=1,0,D8*$D$2/12/100) -> 0 | G8: =IF(ISERR(+E8-F8)=1,0,E8-F8) -> 0
B9: =+B8+1 -> 3 | C9: =+C8-1 -> 58 | D9: =(D8-G8)*(C8>1) -> 0 | E9: 0 | F9: =IF(ISERR(+D9*$D$2/12/100)=1,0,D9*$D$2/12/100) -> 0 | G9: =IF(ISERR(+E9-F9)=1,0,E9-F9) -> 0
B10: 4 | C10: 57 | D10: =(D9-G9)*(C9>1) -> 0 | E10: 0 | F10: =IF(ISERR(+D10*$D$2/12/100)=1,0,D10*$D$2/12/100) -> 0 | G10: =IF(ISERR(+E10-F10)=1,0,E10-F10) -> 0
B11: 5 | C11: 56 | D11: 0 | E11: 0 | F11: 0 | G11: 0
B12: 6 | C12: 55 | D12: 0 | E12: 0 | F12: 0 | G12: 0
B13: 7 | C13: 54 | D13: 0 | E13: 0 | F13: 0 | G13: 0
B14: 8 | C14: 53 | D14: 0 | E14: 0 | F14: 0 | G14: 0
B15: 9 | C15: 52 | D15: 0 | E15: 0 | F15: 0 | G15: 0
B16: 10 | C16: 51 | D16: 0 | E16: 0 | F16: 0 | G16: 0
B17: 11 | C17: 50 | D17: 0 | E17: 0 | F17: 0 | G17: 0
B18: 12 | C18: 49 | D18: 0 | E18: 0 | F18: 0 | G18: 0
A19: =+D4 -> 2016 | B19: TOTAL | E19: =SUM(E7:E18) -> 0 | F19: =SUM(F7:F18) -> 0 | G19: =SUM(G7:G18) -> 0
B20: =+B18+1 -> 13 | C20: =+C18-1 -> 48 | D20: =(D18-G18)*(C18>1) -> 0 | E20: =IF(ISERR(PMT($D$2/100/12,C20,-D20)),0,PMT($D$2/100/12,C20,-D20)) -> 0 | F20: =IF(ISERR(+D20*$D$2/12/100)=1,0,D20*$D$2/12/100) -> 0 | G20: =IF(ISERR(+E20-F20)=1,0,E20-F20) -> 0
B21: =+B20+1 -> 14 | C21: =+C20-1 -> 47 | D21: =(D20-G20)*(C20>1) -> 0 | E21: =IF(ISERR(PMT($D$2/100/12,C21,-D21)),0,PMT($D$2/100/12,C21,-D21)) -> 0 | F21: 0 | G21: 0
B22: =+B21+1 -> 15 | C22: =+C21-1 -> 46 | D22: =(D21-G21)*(C21>1) -> 0 | E22: 0 | F22: 0 | G22: 0
B23: =+B22+1 -> 16 | C23: 45 | D23: 0 | E23: 0 | F23: 0 | G23: 0
B24: 17 | C24: 44 | D24: 0 | E24: 0 | F24: 0 | G24: 0
B25: 18 | C25: 43 | D25: 0 | E25: 0 | F25: 0 | G25: 0
B26: 19 | C26: 42 | D26: 0 | E26: 0 | F26: 0 | G26: 0
B27: 20 | C27: 41 | D27: 0 | E27: 0 | F27: 0 | G27: 0
B28: 21 | C28: 40 | D28: 0 | E28: 0 | F28: 0 | G28: 0
B29: 22 | C29: 39 | D29: 0 | E29: 0 | F29: 0 | G29: 0
B30: 23 | C30: 38 | D30: 0 | E30: 0 | F30: 0 | G30: 0
B31: 24 | C31: 37 | D31: 0 | E31: 0 | F31: 0 | G31: 0
A32: =+A19+1 -> 2017 | B32: TOTAL | E32: =SUM(E20:E31) -> 0 | F32: =SUM(F20:F31) -> 0 | G32: =SUM(G20:G31) -> 0
B33: =+B31+1 -> 25 | C33: =+C31-1 -> 36 | D33: =(D31-G31)*(C31>1) -> 0 | E33: =IF(ISERR(PMT($D$2/100/12,C33,-D33)),0,PMT($D$2/100/12,C33,-D33)) -> 0 | F33: =IF(ISERR(+D33*$D$2/12/100)=1,0,D33*$D$2/12/100) -> 0 | G33: =IF(ISERR(+E33-F33)=1,0,E33-F33) -> 0
B34: =+B33+1 -> 26 | C34: =+C33-1 -> 35 | D34: =(D33-G33)*(C33>1) -> 0 | E34: =IF(ISERR(PMT($D$2/100/12,C34,-D34)),0,PMT($D$2/100/12,C34,-D34)) -> 0 | F34: 0 | G34: 0
B35: =+B34+1 -> 27 | C35: =+C34-1 -> 34 | D35: =(D34-G34)*(C34>1) -> 0 | E35: 0 | F35: 0 | G35: 0
B36: =+B35+1 -> 28 | C36: 33 | D36: 0 | E36: 0 | F36: 0 | G36: 0
B37: 29 | C37: 32 | D37: 0 | E37: 0 | F37: 0 | G37: 0
B38: 30 | C38: 31 | D38: 0 | E38: 0 | F38: 0 | G38: 0
B39: 31 | C39: 30 | D39: 0 | E39: 0 | F39: 0 | G39: 0
B40: 32 | C40: 29 | D40: 0 | E40: 0 | F40: 0 | G40: 0
B41: 33 | C41: 28 | D41: 0 | E41: 0 | F41: 0 | G41: 0
B42: 34 | C42: 27 | D42: 0 | E42: 0 | F42: 0 | G42: 0
B43: 35 | C43: 26 | D43: 0 | E43: 0 | F43: 0 | G43: 0
B44: 36 | C44: 25 | D44: 0 | E44: 0 | F44: 0 | G44: 0
A45: =+A32+1 -> 2018 | B45: TOTAL | E45: =SUM(E33:E44) -> 0 | F45: =SUM(F33:F44) -> 0 | G45: =SUM(G33:G44) -> 0
B46: =+B44+1 -> 37 | C46: =+C44-1 -> 24 | D46: =(D44-G44)*(C44>1) -> 0 | E46: =IF(ISERR(PMT($D$2/100/12,C46,-D46)),0,PMT($D$2/100/12,C46,-D46)) -> 0 | F46: =IF(ISERR(+D46*$D$2/12/100)=1,0,D46*$D$2/12/100) -> 0 | G46: =IF(ISERR(+E46-F46)=1,0,E46-F46) -> 0
B47: =+B46+1 -> 38 | C47: =+C46-1 -> 23 | D47: =(D46-G46)*(C46>1) -> 0 | E47: =IF(ISERR(PMT($D$2/100/12,C47,-D47)),0,PMT($D$2/100/12,C47,-D47)) -> 0 | F47: 0 | G47: 0
B48: =+B47+1 -> 39 | C48: =+C47-1 -> 22 | D48: =(D47-G47)*(C47>1) -> 0 | E48: 0 | F48: 0 | G48: 0
B49: =+B48+1 -> 40 | C49: 21 | D49: 0 | E49: 0 | F49: 0 | G49: 0
B50: 41 | C50: 20 | D50: 0 | E50: 0 | F50: 0 | G50: 0
B51: 42 | C51: 19 | D51: 0 | E51: 0 | F51: 0 | G51: 0
B52: 43 | C52: 18 | D52: 0 | E52: 0 | F52: 0 | G52: 0
B53: 44 | C53: 17 | D53: 0 | E53: 0 | F53: 0 | G53: 0
B54: 45 | C54: 16 | D54: 0 | E54: 0 | F54: 0 | G54: 0
B55: 46 | C55: 15 | D55: 0 | E55: 0 | F55: 0 | G55: 0
B56: 47 | C56: 14 | D56: 0 | E56: 0 | F56: 0 | G56: 0
B57: 48 | C57: 13 | D57: 0 | E57: 0 | F57: 0 | G57: 0
A58: =+A45+1 -> 2019 | B58: TOTAL | E58: =SUM(E46:E57) -> 0 | F58: =SUM(F46:F57) -> 0 | G58: =SUM(G46:G57) -> 0
B59: =+B57+1 -> 49 | C59: =+C57-1 -> 12 | D59: =(D57-G57)*(C57>1) -> 0 | E59: =IF(ISERR(PMT($D$2/100/12,C59,-D59)),0,PMT($D$2/100/12,C59,-D59)) -> 0 | F59: =IF(ISERR(+D59*$D$2/12/100)=1,0,D59*$D$2/12/100) -> 0 | G59: =IF(ISERR(+E59-F59)=1,0,E59-F59) -> 0
B60: =+B59+1 -> 50 | C60: =+C59-1 -> 11 | D60: =(D59-G59)*(C59>1) -> 0 | E60: =IF(ISERR(PMT($D$2/100/12,C60,-D60)),0,PMT($D$2/100/12,C60,-D60)) -> 0 | F60: 0 | G60: 0
B61: =+B60+1 -> 51 | C61: =+C60-1 -> 10 | D61: =(D60-G60)*(C60>1) -> 0 | E61: 0 | F61: 0 | G61: 0
B62: =+B61+1 -> 52 | C62: 9 | D62: 0 | E62: 0 | F62: 0 | G62: 0
B63: 53 | C63: 8 | D63: 0 | E63: 0 | F63: 0 | G63: 0
B64: 54 | C64: 7 | D64: 0 | E64: 0 | F64: 0 | G64: 0
B65: 55 | C65: 6 | D65: 0 | E65: 0 | F65: 0 | G65: 0
B66: 56 | C66: 5 | D66: 0 | E66: 0 | F66: 0 | G66: 0
B67: 57 | C67: 4 | D67: 0 | E67: 0 | F67: 0 | G67: 0
B68: 58 | C68: 3 | D68: 0 | E68: 0 | F68: 0 | G68: 0
B69: 59 | C69: 2 | D69: 0 | E69: 0 | F69: 0 | G69: 0
B70: 60 | C70: 1 | D70: 0 | E70: 0 | F70: 0 | G70: 0
A71: =+A58+1 -> 2020 | B71: TOTAL | E71: =SUM(E59:E70) -> 0 | F71: =SUM(F59:F70) -> 0 | G71: =SUM(G59:G70) -> 0
B72: =+B70+1 -> 61 | C72: =+C70-1 -> 0 | D72: =(D70-G70)*(C70>1) -> 0 | E72: =IF(ISERR(PMT($D$2/100/12,C72,-D72)),0,PMT($D$2/100/12,C72,-D72)) -> 0 | F72: =IF(ISERR(+D72*$D$2/12/100)=1,0,D72*$D$2/12/100) -> 0 | G72: =IF(ISERR(+E72-F72)=1,0,E72-F72) -> 0
B73: =+B72+1 -> 62 | C73: =+C72-1 -> -1 | D73: =(D72-G72)*(C72>1) -> 0 | E73: =IF(ISERR(PMT($D$2/100/12,C73,-D73)),0,PMT($D$2/100/12,C73,-D73)) -> 0 | F73: 0 | G73: 0
B74: =+B73+1 -> 63 | C74: =+C73-1 -> -2 | D74: =(D73-G73)*(C73>1) -> 0 | E74: 0 | F74: 0 | G74: 0
B75: =+B74+1 -> 64 | C75: -3 | D75: 0 | E75: 0 | F75: 0 | G75: 0
B76: 65 | C76: -4 | D76: 0 | E76: 0 | F76: 0 | G76: 0
B77: 66 | C77: -5 | D77: 0 | E77: 0 | F77: 0 | G77: 0
B78: 67 | C78: -6 | D78: 0 | E78: 0 | F78: 0 | G78: 0
B79: 68 | C79: -7 | D79: 0 | E79: 0 | F79: 0 | G79: 0
B80: 69 | C80: -8 | D80: 0 | E80: 0 | F80: 0 | G80: 0
B81: 70 | C81: -9 | D81: 0 | E81: 0 | F81: 0 | G81: 0
B82: 71 | C82: -10 | D82: 0 | E82: 0 | F82: 0 | G82: 0
B83: 72 | C83: -11 | D83: 0 | E83: 0 | F83: 0 | G83: 0
A84: =+A71+1 -> 2021 | B84: TOTAL | E84: =SUM(E72:E83) -> 0 | F84: =SUM(F72:F83) -> 0 | G84: =SUM(G72:G83) -> 0
B85: =+B83+1 -> 73 | C85: =+C83-1 -> -12 | D85: =(D83-G83)*(C83>1) -> 0 | E85: =IF(ISERR(PMT($D$2/100/12,C85,-D85)),0,PMT($D$2/100/12,C85,-D85)) -> 0 | F85: =IF(ISERR(+D85*$D$2/12/100)=1,0,D85*$D$2/12/100) -> 0 | G85: =IF(ISERR(+E85-F85)=1,0,E85-F85) -> 0
B86: =+B85+1 -> 74 | C86: =+C85-1 -> -13 | D86: =(D85-G85)*(C85>1) -> 0 | E86: =IF(ISERR(PMT($D$2/100/12,C86,-D86)),0,PMT($D$2/100/12,C86,-D86)) -> 0 | F86: 0 | G86: 0
B87: =+B86+1 -> 75 | C87: =+C86-1 -> -14 | D87: =(D86-G86)*(C86>1) -> 0 | E87: 0 | F87: 0 | G87: 0
B88: =+B87+1 -> 76 | C88: -15 | D88: 0 | E88: 0 | F88: 0 | G88: 0
B89: 77 | C89: -16 | D89: 0 | E89: 0 | F89: 0 | G89: 0
B90: 78 | C90: -17 | D90: 0 | E90: 0 | F90: 0 | G90: 0
B91: 79 | C91: -18 | D91: 0 | E91: 0 | F91: 0 | G91: 0
B92: 80 | C92: -19 | D92: 0 | E92: 0 | F92: 0 | G92: 0
B93: 81 | C93: -20 | D93: 0 | E93: 0 | F93: 0 | G93: 0
B94: 82 | C94: -21 | D94: 0 | E94: 0 | F94: 0 | G94: 0
B95: 83 | C95: -22 | D95: 0 | E95: 0 | F95: 0 | G95: 0
B96: 84 | C96: -23 | D96: 0 | E96: 0 | F96: 0 | G96: 0
A97: =+A84+1 -> 2022 | B97: TOTAL | E97: =SUM(E85:E96) -> 0 | F97: =SUM(F85:F96) -> 0 | G97: =SUM(G85:G96) -> 0
B98: =+B96+1 -> 85 | C98: =+C96-1 -> -24 | D98: =(D96-G96)*(C96>1) -> 0 | E98: =IF(ISERR(PMT($D$2/100/12,C98,-D98)),0,PMT($D$2/100/12,C98,-D98)) -> 0 | F98: =IF(ISERR(+D98*$D$2/12/100)=1,0,D98*$D$2/12/100) -> 0 | G98: =IF(ISERR(+E98-F98)=1,0,E98-F98) -> 0
B99: =+B98+1 -> 86 | C99: =+C98-1 -> -25 | D99: =(D98-G98)*(C98>1) -> 0 | E99: =IF(ISERR(PMT($D$2/100/12,C99,-D99)),0,PMT($D$2/100/12,C99,-D99)) -> 0 | F99: 0 | G99: 0
B100: =+B99+1 -> 87 | C100: =+C99-1 -> -26 | D100: =(D99-G99)*(C99>1) -> 0 | E100: 0 | F100: 0 | G100: 0
B101: =+B100+1 -> 88 | C101: -27 | D101: 0 | E101: 0 | F101: 0 | G101: 0
B102: 89 | C102: -28 | D102: 0 | E102: 0 | F102: 0 | G102: 0
B103: 90 | C103: -29 | D103: 0 | E103: 0 | F103: 0 | G103: 0
B104: 91 | C104: -30 | D104: 0 | E104: 0 | F104: 0 | G104: 0
B105: 92 | C105: -31 | D105: 0 | E105: 0 | F105: 0 | G105: 0
B106: 93 | C106: -32 | D106: 0 | E106: 0 | F106: 0 | G106: 0
B107: 94 | C107: -33 | D107: 0 | E107: 0 | F107: 0 | G107: 0
B108: 95 | C108: -34 | D108: 0 | E108: 0 | F108: 0 | G108: 0
B109: 96 | C109: -35 | D109: 0 | E109: 0 | F109: 0 | G109: 0
A110: =+A97+1 -> 2023 | B110: TOTAL | E110: =SUM(E98:E109) -> 0 | F110: =SUM(F98:F109) -> 0 | G110: =SUM(G98:G109) -> 0
B111: =+B109+1 -> 97 | C111: =+C109-1 -> -36 | D111: =(D109-G109)*(C109>1) -> 0 | E111: =IF(ISERR(PMT($D$2/100/12,C111,-D111)),0,PMT($D$2/100/12,C111,-D111)) -> 0 | F111: =IF(ISERR(+D111*$D$2/12/100)=1,0,D111*$D$2/12/100) -> 0 | G111: =IF(ISERR(+E111-F111)=1,0,E111-F111) -> 0
B112: =+B111+1 -> 98 | C112: =+C111-1 -> -37 | D112: =(D111-G111)*(C111>1) -> 0 | E112: =IF(ISERR(PMT($D$2/100/12,C112,-D112)),0,PMT($D$2/100/12,C112,-D112)) -> 0 | F112: 0 | G112: 0
B113: =+B112+1 -> 99 | C113: =+C112-1 -> -38 | D113: =(D112-G112)*(C112>1) -> 0 | E113: 0 | F113: 0 | G113: 0
B114: =+B113+1 -> 100 | C114: -39 | D114: 0 | E114: 0 | F114: 0 | G114: 0
B115: 101 | C115: -40 | D115: 0 | E115: 0 | F115: 0 | G115: 0
B116: 102 | C116: -41 | D116: 0 | E116: 0 | F116: 0 | G116: 0
B117: 103 | C117: -42 | D117: 0 | E117: 0 | F117: 0 | G117: 0
B118: 104 | C118: -43 | D118: 0 | E118: 0 | F118: 0 | G118: 0
B119: 105 | C119: -44 | D119: 0 | E119: 0 | F119: 0 | G119: 0
B120: 106 | C120: -45 | D120: 0 | E120: 0 | F120: 0 | G120: 0
B121: 107 | C121: -46 | D121: 0 | E121: 0 | F121: 0 | G121: 0
B122: 108 | C122: -47 | D122: 0 | E122: 0 | F122: 0 | G122: 0
A123: =+A110+1 -> 2024 | B123: TOTAL | E123: =SUM(E111:E122) -> 0 | F123: =SUM(F111:F122) -> 0 | G123: =SUM(G111:G122) -> 0
B124: =+B122+1 -> 109 | C124: =+C122-1 -> -48 | D124: =(D122-G122)*(C122>1) -> 0 | E124: =IF(ISERR(PMT($D$2/100/12,C124,-D124)),0,PMT($D$2/100/12,C124,-D124)) -> 0 | F124: =IF(ISERR(+D124*$D$2/12/100)=1,0,D124*$D$2/12/100) -> 0 | G124: =IF(ISERR(+E124-F124)=1,0,E124-F124) -> 0
B125: =+B124+1 -> 110 | C125: =+C124-1 -> -49 | D125: =(D124-G124)*(C124>1) -> 0 | E125: =IF(ISERR(PMT($D$2/100/12,C125,-D125)),0,PMT($D$2/100/12,C125,-D125)) -> 0 | F125: 0 | G125: 0
B126: =+B125+1 -> 111 | C126: =+C125-1 -> -50 | D126: =(D125-G125)*(C125>1) -> 0 | E126: 0 | F126: 0 | G126: 0
B127: =+B126+1 -> 112 | C127: -51 | D127: 0 | E127: 0 | F127: 0 | G127: 0
B128: 113 | C128: -52 | D128: 0 | E128: 0 | F128: 0 | G128: 0
B129: 114 | C129: -53 | D129: 0 | E129: 0 | F129: 0 | G129: 0
B130: 115 | C130: -54 | D130: 0 | E130: 0 | F130: 0 | G130: 0
B131: 116 | C131: -55 | D131: 0 | E131: 0 | F131: 0 | G131: 0
B132: 117 | C132: -56 | D132: 0 | E132: 0 | F132: 0 | G132: 0
B133: 118 | C133: -57 | D133: 0 | E133: 0 | F133: 0 | G133: 0
B134: 119 | C134: -58 | D134: 0 | E134: 0 | F134: 0 | G134: 0
B135: 120 | C135: -59 | D135: 0 | E135: 0 | F135: 0 | G135: 0
A136: =+A123+1 -> 2025 | B136: TOTAL | E136: =SUM(E124:E135) -> 0 | F136: =SUM(F124:F135) -> 0 | G136: =SUM(G124:G135) -> 0
B137: =+B135+1 -> 121 | C137: =+C135-1 -> -60 | D137: =(D135-G135)*(C135>1) -> 0 | E137: =IF(ISERR(PMT($D$2/100/12,C137,-D137)),0,PMT($D$2/100/12,C137,-D137)) -> 0 | F137: =IF(ISERR(+D137*$D$2/12/100)=1,0,D137*$D$2/12/100) -> 0 | G137: =IF(ISERR(+E137-F137)=1,0,E137-F137) -> 0
B138: =+B137+1 -> 122 | C138: =+C137-1 -> -61 | D138: =(D137-G137)*(C137>1) -> 0 | E138: =IF(ISERR(PMT($D$2/100/12,C138,-D138)),0,PMT($D$2/100/12,C138,-D138)) -> 0 | F138: 0 | G138: 0
B139: =+B138+1 -> 123 | C139: =+C138-1 -> -62 | D139: =(D138-G138)*(C138>1) -> 0 | E139: 0 | F139: 0 | G139: 0
B140: =+B139+1 -> 124 | C140: -63 | D140: 0 | E140: 0 | F140: 0 | G140: 0
B141: 125 | C141: -64 | D141: 0 | E141: 0 | F141: 0 | G141: 0
B142: 126 | C142: -65 | D142: 0 | E142: 0 | F142: 0 | G142: 0
B143: 127 | C143: -66 | D143: 0 | E143: 0 | F143: 0 | G143: 0
B144: 128 | C144: -67 | D144: 0 | E144: 0 | F144: 0 | G144: 0
B145: 129 | C145: -68 | D145: 0 | E145: 0 | F145: 0 | G145: 0
B146: 130 | C146: -69 | D146: 0 | E146: 0 | F146: 0 | G146: 0
B147: 131 | C147: -70 | D147: 0 | E147: 0 | F147: 0 | G147: 0
B148: 132 | C148: -71 | D148: 0 | E148: 0 | F148: 0 | G148: 0
A149: =+A136+1 -> 2026 | B149: TOTAL | E149: =SUM(E137:E148) -> 0 | F149: =SUM(F137:F148) -> 0 | G149: =SUM(G137:G148) -> 0
B150: =+B148+1 -> 133 | C150: =+C148-1 -> -72 | D150: =(D148-G148)*(C148>1) -> 0 | E150: =IF(ISERR(PMT($D$2/100/12,C150,-D150)),0,PMT($D$2/100/12,C150,-D150)) -> 0 | F150: =IF(ISERR(+D150*$D$2/12/100)=1,0,D150*$D$2/12/100) -> 0 | G150: =IF(ISERR(+E150-F150)=1,0,E150-F150) -> 0
B151: =+B150+1 -> 134 | C151: =+C150-1 -> -73 | D151: =(D150-G150)*(C150>1) -> 0 | E151: =IF(ISERR(PMT($D$2/100/12,C151,-D151)),0,PMT($D$2/100/12,C151,-D151)) -> 0 | F151: 0 | G151: 0
B152: =+B151+1 -> 135 | C152: =+C151-1 -> -74 | D152: =(D151-G151)*(C151>1) -> 0 | E152: 0 | F152: 0 | G152: 0
B153: =+B152+1 -> 136 | C153: -75 | D153: 0 | E153: 0 | F153: 0 | G153: 0
B154: 137 | C154: -76 | D154: 0 | E154: 0 | F154: 0 | G154: 0
B155: 138 | C155: -77 | D155: 0 | E155: 0 | F155: 0 | G155: 0
B156: 139 | C156: -78 | D156: 0 | E156: 0 | F156: 0 | G156: 0
B157: 140 | C157: -79 | D157: 0 | E157: 0 | F157: 0 | G157: 0
B158: 141 | C158: -80 | D158: 0 | E158: 0 | F158: 0 | G158: 0
B159: 142 | C159: -81 | D159: 0 | E159: 0 | F159: 0 | G159: 0
B160: 143 | C160: -82 | D160: 0 | E160: 0 | F160: 0 | G160: 0
B161: 144 | C161: -83 | D161: 0 | E161: 0 | F161: 0 | G161: 0
A162: =+A149+1 -> 2027 | B162: TOTAL | E162: =SUM(E150:E161) -> 0 | F162: =SUM(F150:F161) -> 0 | G162: =SUM(G150:G161) -> 0
B163: =+B161+1 -> 145 | C163: =+C161-1 -> -84 | D163: =(D161-G161)*(C161>1) -> 0 | E163: =IF(ISERR(PMT($D$2/100/12,C163,-D163)),0,PMT($D$2/100/12,C163,-D163)) -> 0 | F163: =IF(ISERR(+D163*$D$2/12/100)=1,0,D163*$D$2/12/100) -> 0 | G163: =IF(ISERR(+E163-F163)=1,0,E163-F163) -> 0
B164: =+B163+1 -> 146 | C164: =+C163-1 -> -85 | D164: =(D163-G163)*(C163>1) -> 0 | E164: =IF(ISERR(PMT($D$2/100/12,C164,-D164)),0,PMT($D$2/100/12,C164,-D164)) -> 0 | F164: 0 | G164: 0
B165: =+B164+1 -> 147 | C165: =+C164-1 -> -86 | D165: =(D164-G164)*(C164>1) -> 0 | E165: 0 | F165: 0 | G165: 0
B166: =+B165+1 -> 148 | C166: -87 | D166: 0 | E166: 0 | F166: 0 | G166: 0
B167: 149 | C167: -88 | D167: 0 | E167: 0 | F167: 0 | G167: 0
B168: 150 | C168: -89 | D168: 0 | E168: 0 | F168: 0 | G168: 0
B169: 151 | C169: -90 | D169: 0 | E169: 0 | F169: 0 | G169: 0
B170: 152 | C170: -91 | D170: 0 | E170: 0 | F170: 0 | G170: 0
B171: 153 | C171: -92 | D171: 0 | E171: 0 | F171: 0 | G171: 0
B172: 154 | C172: -93 | D172: 0 | E172: 0 | F172: 0 | G172: 0
B173: 155 | C173: -94 | D173: 0 | E173: 0 | F173: 0 | G173: 0
B174: 156 | C174: -95 | D174: 0 | E174: 0 | F174: 0 | G174: 0
A175: =+A162+1 -> 2028 | B175: TOTAL | E175: =SUM(E163:E174) -> 0 | F175: =SUM(F163:F174) -> 0 | G175: =SUM(G163:G174) -> 0
B176: =+B174+1 -> 157 | C176: =+C174-1 -> -96 | D176: =(D174-G174)*(C174>1) -> 0 | E176: =IF(ISERR(PMT($D$2/100/12,C176,-D176)),0,PMT($D$2/100/12,C176,-D176)) -> 0 | F176: =IF(ISERR(+D176*$D$2/12/100)=1,0,D176*$D$2/12/100) -> 0 | G176: =IF(ISERR(+E176-F176)=1,0,E176-F176) -> 0
B177: =+B176+1 -> 158 | C177: =+C176-1 -> -97 | D177: =(D176-G176)*(C176>1) -> 0 | E177: =IF(ISERR(PMT($D$2/100/12,C177,-D177)),0,PMT($D$2/100/12,C177,-D177)) -> 0 | F177: 0 | G177: 0
B178: =+B177+1 -> 159 | C178: =+C177-1 -> -98 | D178: =(D177-G177)*(C177>1) -> 0 | E178: 0 | F178: 0 | G178: 0
B179: =+B178+1 -> 160 | C179: -99 | D179: 0 | E179: 0 | F179: 0 | G179: 0
B180: 161 | C180: -100 | D180: 0 | E180: 0 | F180: 0 | G180: 0
B181: 162 | C181: -101 | D181: 0 | E181: 0 | F181: 0 | G181: 0
B182: 163 | C182: -102 | D182: 0 | E182: 0 | F182: 0 | G182: 0
B183: 164 | C183: -103 | D183: 0 | E183: 0 | F183: 0 | G183: 0
B184: 165 | C184: -104 | D184: 0 | E184: 0 | F184: 0 | G184: 0
B185: 166 | C185: -105 | D185: 0 | E185: 0 | F185: 0 | G185: 0
B186: 167 | C186: -106 | D186: 0 | E186: 0 | F186: 0 | G186: 0
B187: 168 | C187: -107 | D187: 0 | E187: 0 | F187: 0 | G187: 0
A188: =+A175+1 -> 2029 | B188: TOTAL | E188: =SUM(E176:E187) -> 0 | F188: =SUM(F176:F187) -> 0 | G188: =SUM(G176:G187) -> 0
B189: =+B187+1 -> 169 | C189: =+C187-1 -> -108 | D189: =(D187-G187)*(C187>1) -> 0 | E189: =IF(ISERR(PMT($D$2/100/12,C189,-D189)),0,PMT($D$2/100/12,C189,-D189)) -> 0 | F189: =IF(ISERR(+D189*$D$2/12/100)=1,0,D189*$D$2/12/100) -> 0 | G189: =IF(ISERR(+E189-F189)=1,0,E189-F189) -> 0
B190: =+B189+1 -> 170 | C190: =+C189-1 -> -109 | D190: =(D189-G189)*(C189>1) -> 0 | E190: =IF(ISERR(PMT($D$2/100/12,C190,-D190)),0,PMT($D$2/100/12,C190,-D190)) -> 0 | F190: 0 | G190: 0
B191: =+B190+1 -> 171 | C191: =+C190-1 -> -110 | D191: =(D190-G190)*(C190>1) -> 0 | E191: 0 | F191: 0 | G191: 0
B192: =+B191+1 -> 172 | C192: -111 | D192: 0 | E192: 0 | F192: 0 | G192: 0
B193: 173 | C193: -112 | D193: 0 | E193: 0 | F193: 0 | G193: 0
B194: 174 | C194: -113 | D194: 0 | E194: 0 | F194: 0 | G194: 0
B195: 175 | C195: -114 | D195: 0 | E195: 0 | F195: 0 | G195: 0
B196: 176 | C196: -115 | D196: 0 | E196: 0 | F196: 0 | G196: 0
B197: 177 | C197: -116 | D197: 0 | E197: 0 | F197: 0 | G197: 0
B198: 178 | C198: -117 | D198: 0 | E198: 0 | F198: 0 | G198: 0
B199: 179 | C199: -118 | D199: 0 | E199: 0 | F199: 0 | G199: 0
B200: 180 | C200: -119 | D200: 0 | E200: 0 | F200: 0 | G200: 0
A201: =+A188+1 -> 2030 | B201: TOTAL | E201: =SUM(E189:E200) -> 0 | F201: =SUM(F189:F200) -> 0 | G201: =SUM(G189:G200) -> 0
... 65 more rows

Sheet Bridge financing loan
A1: Principal | D1: =+Liabilities_and_Equity!F37 -> 0
A2: Nominal interest rate | D2: =+Liabilities_and_Equity!G37*100 ->  | E2: %
A3: Payment due after | D3: =+Liabilities_and_Equity!I37 ->  | E3: months
A4: Project start year | D4: =+Home!K12 -> 2017
A6: Year | B6: Current period | C6: Number of periods left | D6: Principal left | E6: Interests | F6: Principal payment
B7: 1 | C7: =+D3 ->  | D7: =+$D$1*(C7>0) -> 0 | E7: =($D$1*$D$2/12/100)*(C7>0) ->  | F7: =+($D$1-D7)*(C7>-1) -> 0
B8: =+B7+1 -> 2 | C8: =+C7-1 ->  | D8: =+$D$1*(C8>0) ->  | E8: =($D$1*$D$2/12/100)*(C8>0) -> 
B9: =+B8+1 -> 3 | C9: =+C8-1 ->  | E9: =($D$1*$D$2/12/100)*(C9>0) -> 
B10: 4 | E10: =($D$1*$D$2/12/100)*(C10>0) -> 
B11: 5 | E11: =($D$1*$D$2/12/100)*(C11>0) -> 
B12: 6
B13: 7
B14: 8 | F14: =+($D$1-D14)*(C14>-1) -> 
B15: 9 | F15: =+($D$1-D15)*(C15>-1) -> 
B16: 10
B17: 11
B18: 12
A19: =+D4 -> 2017 | B19: TOTAL | D19: =+D18 ->  | E19: =SUM(E7:E18) ->  | F19: =SUM(F7:F18) -> 
B20: =+B18+1 -> 13 | C20: =+C18-1 ->  | D20: =+$D$1*(C20>0) -> 
B21: =+B20+1 -> 14 | C21: =+C20-1 ->  | D21: =+$D$1*(C21>0) -> 
B22: =+B21+1 -> 15 | C22: =+C21-1 -> 
B23: =+B22+1 -> 16
B24: 17
B25: 18
B26: 19
B27: 20
B28: 21
B29: 22
B30: 23
B31: 24
A32: =+A19+1 -> 2018 | B32: TOTAL | D32: =+D31 ->  | E32: =SUM(E20:E31) ->  | F32: =SUM(F20:F31) -> 
B33: =+B31+1 -> 25 | C33: =+C31-1 ->  | D33: =+$D$1*(C33>0) -> 
B34: =+B33+1 -> 26 | C34: =+C33-1 ->  | D34: =+$D$1*(C34>0) -> 
B35: =+B34+1 -> 27 | C35: =+C34-1 -> 
B36: =+B35+1 -> 28
B37: 29
B38: 30
B39: 31
B40: 32
B41: 33
B42: 34
B43: 35
B44: 36
A45: =+A32+1 -> 2019 | B45: TOTAL | D45: =+D44 ->  | E45: =SUM(E33:E44) ->  | F45: =SUM(F33:F44) -> 
B46: =+B44+1 -> 37 | C46: =+C44-1 ->  | D46: =+$D$1*(C46>0) -> 
B47: =+B46+1 -> 38 | C47: =+C46-1 ->  | D47: =+$D$1*(C47>0) -> 
B48: =+B47+1 -> 39 | C48: =+C47-1 -> 
B49: =+B48+1 -> 40
B50: 41
B51: 42
B52: 43
B53: 44
B54: 45
B55: 46
B56: 47
B57: 48
A58: =+A45+1 -> 2020 | B58: TOTAL | D58: =+D57 ->  | E58: =SUM(E46:E57) ->  | F58: =SUM(F46:F57) -> 
B59: =+B57+1 -> 49 | C59: =+C57-1 ->  | D59: =+$D$1*(C59>0) -> 
B60: =+B59+1 -> 50 | C60: =+C59-1 ->  | D60: =+$D$1*(C60>0) -> 
B61: =+B60+1 -> 51 | C61: =+C60-1 -> 
B62: =+B61+1 -> 52
B63: 53
B64: 54
B65: 55
B66: 56
B67: 57
B68: 58
B69: 59
B70: 60
A71: =+A58+1 -> 2021 | B71: TOTAL | D71: =+D70 ->  | E71: =SUM(E59:E70) ->  | F71: =SUM(F59:F70) -> 
B72: =+B70+1 -> 61 | C72: =+C70-1 ->  | D72: =+$D$1*(C72>0) -> 
B73: =+B72+1 -> 62 | C73: =+C72-1 ->  | D73: =+$D$1*(C73>0) -> 
B74: =+B73+1 -> 63 | C74: =+C73-1 -> 
B75: =+B74+1 -> 64 | E75: =($D$1*$D$2/12/100)*(C75>0) -> 
B76: 65
B77: 66
B78: 67
B79: 68 | F79: =+($D$1-D79)*(C79>-1) -> 
B80: 69
B81: 70
B82: 71
B83: 72
A84: =+A71+1 -> 2022 | B84: TOTAL | D84: =+D83 ->  | E84: =SUM(E72:E83) ->  | F84: =SUM(F72:F83) -> 
B85: =+B83+1 -> 73 | C85: =+C83-1 ->  | D85: =+$D$1*(C85>0) ->  | E85: =($D$1*$D$2/12/100)*(C85>0) ->  | F85: =+($D$1-D85)*(C85>-1) -> 
B86: =+B85+1 -> 74 | C86: =+C85-1 ->  | D86: =+$D$1*(C86>0) -> 
B87: =+B86+1 -> 75 | C87: =+C86-1 -> 
B88: =+B87+1 -> 76
B89: 77
B90: 78
B91: 79
B92: 80
B93: 81
B94: 82
B95: 83
B96: 84
A97: =+A84+1 -> 2023 | B97: TOTAL | D97: =+D96 ->  | E97: =SUM(E85:E96) ->  | F97: =SUM(F85:F96) -> 
B98: =+B96+1 -> 85 | C98: =+C96-1 ->  | D98: =+$D$1*(C98>0) ->  | E98: =($D$1*$D$2/12/100)*(C98>0) ->  | F98: =+($D$1-D98)*(C98>-1) -> 
B99: =+B98+1 -> 86 | C99: =+C98-1 ->  | D99: =+$D$1*(C99>0) -> 
B100: =+B99+1 -> 87 | C100: =+C99-1 -> 
B101: =+B100+1 -> 88
B102: 89
B103: 90
B104: 91
B105: 92
B106: 93
B107: 94
B108: 95
B109: 96
A110: =+A97+1 -> 2024 | B110: TOTAL | D110: =+D109 ->  | E110: =SUM(E98:E109) ->  | F110: =SUM(F98:F109) -> 
B111: =+B109+1 -> 97 | C111: =+C109-1 ->  | D111: =+$D$1*(C111>0) ->  | E111: =($D$1*$D$2/12/100)*(C111>0) ->  | F111: =+($D$1-D111)*(C111>-1) -> 
B112: =+B111+1 -> 98 | C112: =+C111-1 ->  | D112: =+$D$1*(C112>0) -> 
B113: =+B112+1 -> 99 | C113: =+C112-1 -> 
B114: =+B113+1 -> 100
B115: 101
B116: 102
B117: 103
B118: 104
B119: 105
B120: 106
B121: 107
B122: 108
A123: =+A110+1 -> 2025 | B123: TOTAL | D123: =+D122 ->  | E123: =SUM(E111:E122) ->  | F123: =SUM(F111:F122) -> 
B124: =+B122+1 -> 109 | C124: =+C122-1 ->  | D124: =+$D$1*(C124>0) ->  | E124: =($D$1*$D$2/12/100)*(C124>0) ->  | F124: =+($D$1-D124)*(C124>-1) -> 
B125: =+B124+1 -> 110 | C125: =+C124-1 ->  | D125: =+$D$1*(C125>0) -> 
B126: =+B125+1 -> 111 | C126: =+C125-1 -> 
B127: =+B126+1 -> 112
B128: 113
B129: 114
B130: 115
B131: 116
B132: 117
B133: 118
B134: 119
B135: 120
A136: =+A123+1 -> 2026 | B136: TOTAL | D136: =+D135 ->  | E136: =SUM(E124:E135) ->  | F136: =IF((F19+F32+F45+F58+F71+F84+F97+F110+F123+F124+F125+F126+F127+F128+F129+F130+F131+F132+F133+F134+F135)=0,D136,SUM(F124:F135)) -> 

Sheet Translations
A1: EN | B1: EN | C1: MKD | D1: AT-DE | E1: HR | F1: SI | G1: SRB | H1: BIH
A2: INPUT PARAMETERS | B2: INPUT PARAMETERS | C2: ВЛЕЗНИ ПАРАМЕТРИ | D2: EINGABEPARAMETER | E2: ULAZNI PARAMETRI | F2: VHODNI PODATKI | G2: ULAZNI PODACI | H2: ULAZNI PODACI
A3: Investment and financing | B3: Investment and financing | C3: Инвестирање и финансирање | D3: Investition und Finanzierung | E3: Investicija i financiranje | F3: Investicija in viri financiranja | G3: Investicija i finansiranje | H3: Investicija i finansiranje
A4: INVESTMENT AND FINANCING | B4: INVESTMENT AND FINANCING | F4: INVESTMENT AND FINANCING
A5: INVESTMENT AND FINANCING | B5: INVESTMENT AND FINANCING | C5: ИНВЕСТИРАЊЕ И ФИНАНСИРАЊЕ | D5: INVESTITION UND FINANZIERUNG | E5: INVESTICIJA I FINANCIRANJE | F5: INVESTICIJA IN VIRI FINANCIRANJA | G5: INVESTICIJA I FINANSIRANJE | H5: INVESTICIJA I FINANSIRANJE
A6: Investment cost | B6: Investment cost | C6: Инвестициски трошоци | D6: Investitionskosten | E6: Investicijski troškovi | F6: Investicijski stroški | G6: Investicioni troškovi | H6: Investicijski troškovi
A7: TOTAL | B7: TOTAL | C7: ВКУПНО | D7: GESAMT | E7: UKUPNO | F7: SKUPAJ | G7: UKUPNO | H7: TOTAL
A8: Equipment/Machinery | B8: Equipment/Machinery | C8: Машини и опрема | D8: Ausrüstung/Maschinen | E8: Oprema/strojevi | F8: Stroji in oprema | G8: Mašine i oprema | H8: Oprema/strojevi
A9: Buildings and construction works | B9: Buildings and construction works | C9: Објекти и градежна работа | D9: Gebäude und Bauarbeiten | E9: Zgrade i građevinski radovi | F9: Objekti in gradbena dela | G9: Objekti i gradjevinski radovi | H9: Objekti i građevinski radovi
A10: Plot | B10: Plot | C10: Земјиште | D10: Grundstück | E10: Zemljište | F10: Zemljišče | G10: Zemljište | H10: Zemljište
A11: Project and investment documentation | B11: Project and investment documentation | C11: Проектна и инвестициска документација | D11: Projekt und Investitions-Dokumentation | E11: Projektna i investicijska dokumentacija | F11: Projektna in investicijska dokumentacija | G11: Projektna i investiciona dokumentacija | H11: Projektna i investiciona dokumentacija
A12: Intangible assets (patents, licenses, software) | B12: Intangible assets (patents, licenses, software) | C12: Нематеријални средства (патенти, лиценци, софтвер) | D12: Immaterielle Vermögenswerte (Patente, Lizenzen, Software) | E12: Nematerijalna sredstva (patenti, licence, programski alati) | F12: Neopredmetena sredstva (patenti, licence, programska oprema) | G12: Nematerijalna sredstva (patenti, licence, softver) | H12: Nematerijalna imovina (patenti, licencije, software)
A13: Initial working capital | B13: Initial working capital | C13: Почетен работен капитал | D13: Anfängliches Betriebskapital | E13: Početni radni kapital | F13: Začetna obratna sredstva | G13: Početni obrtni kapital | H13: Početni radni kapital
A14: % of investment | B14: % of investment | C14: % од инвестицијата | D14: % der Investition | E14: % investicije | F14: % investicije | G14: % investicije | H14: % investicije
A15: Financing sources | B15: Financing sources | C15: Извори на финансии | D15: Finanzierungsquellen | E15: Izvori financiranja | F15: Viri financiranja | G15: Izvori finansiranja | H15: Izvori finansiranja
A16: Private equity | B16: Private equity | C16: Приватен капитал | D16: Privates Eigenkapital | E16: Vlastita sredstva | F16: Lastna sredstva | G16: Sopstvena sredstva | H16: Privatni kapital
A17: Loan 1 | B17: Loan 1 | C17: Заем 1 | D17: Kredit 1 | E17: Kredit 1 | F17: Posojilo 1 | G17: Kredit 1 | H17: Kredit 1
A18: Loan 2 | B18: Loan 2 | C18: Заем 2 | D18: Kredit 2 | E18: Kredit 2 | F18: Posojilo 2 | G18: Kredit 2 | H18: Kredit 2
A19: Loan 3 | B19: Loan 3 | C19: Заем 3 | D19: Kredit 3 | E19: Kredit 3 | F19: Posojilo 3 | G19: Kredit 3 | H19: Kredit 3
A20: Connection fees | B20: Connection fees | C20: Трошоци за приклучок | D20: Anschlussgebühr | E20: Naknada za priključak | F20: Priključnine | G20: Takse za priključak | H20: Naknade za priključak
A21: Investment subsidies | B21: Investment subsidies | C21: Инвестициски субвенции | D21: Investitionsförderung | E21: Subvencije za investicije | F21: Investicijske subvencije | G21: Investicioni subvencije | H21: Subvencije za investiciju
A22: Interest rate | B22: Interest rate | C22: Каматна стапка | D22: Zinssatz | E22: Kamatna stopa | F22: Obrestna mera | G22: Kamatna stopa | H22: Kamatna stopa
A23: Loan duration in months | B23: Loan duration in months | C23: Траење на заемот во месеци | D23: Kreditlaufzeit in Monaten | E23: Vrijeme trajanja kredita u mjesecima | F23: Trajanje posojila v mesecih | G23: Trajanje kredita u mesecima | H23: Trajanje kredita u mjesecima
A24: Repayment start year | B24: Repayment start year | C24: Почетна година на отплата | D24: Rückzahlungsbeginn im Jahr | E24: Godina početka otplačivanja kredita | F24: Leto začetka odplačevanja | G24: Početna godina otplate | H24: Godina početka otplate
A25: Payment delay in months | B25: Payment delay in months | C25: Одлагање на плаќањето во месеци | D25: Zahlungsverzögerung in Monaten | E25: Moratorij u mjesecima | F25: Moratorij v mesecih | G25: Grejs period | H25: Odgoda plaćanja u mjesecima
A26: Bridging loan interest rate | B26: Bridging loan interest rate | C26: Каматна стапка на краткорочен заем | D26: Überbrückungskredit Zinssatz | E26: Kamatna stopa mostnog kredita | F26: Obrestna mera premostitvenega posojila | G26: Kamatna stopa premošćavanje kredita | H26: Kamatna stopa zatvaranja kredita
A27: Costs | B27: Costs | C27: Трошоци | D27: Kosten | E27: Troškovi | F27: Stroški | G27: Troškovi | H27: Troškovi
A28: ANNUAL COSTS - COST DEFINITION | B28: ANNUAL COSTS - COST DEFINITION | C28: ГОДИШНИ ТРОШОЦИ - ДЕФИНИРАЊЕ НА ТРОШОЦИ | D28: JÄHRLICHE KOSTEN - KOSTEN DEFINITION | E28: GODIŠNJI TROŠKOVI-DEFINICIJA TROŠKOVA | F28: LETNI STROŠKI - OPREDELITEV STROŠKOV | G28: GODIŠNJI TROŠKOVI - DEFINICIJA | H28: Godišnji troškovi - Definicija troškova
A29: Operating costs | B29: Operating costs | C29: Оперативни трошоци | D29: Betriebskosten | E29: Troškovi pogona | F29: Poslovni stroški | G29: Proizvodni troškovi | H29: Operativni troškovi
A30: Cost of biomass | B30: Cost of biomass | C30: Трошоци за биомаса | D30: Biomasse Kosten | E30: Troškovi biomase | F30: Strošek biomase | G30: Troškovi biomase | H30: Troškovi biomase
A31: Type of biomass | B31: Type of biomass | C31: Вид на биомаса | D31: Art der Biomasse | E31: Vrsta biomase | F31: Vrsta biomase | G31: Vrsta biomase | H31: Vrsta biomase
A32: Wood chips | B32: Wood chips | C32: Drven čips | D32: Hackschnitzel | E32: Drvna sječka | F32: Lesni sekanci | G32: Sečka | H32: Piljevina
A33: Pellets | B33: Pellets | C33: Peleti | D33: Pellets | E33: Peleti | F33: Peleti | G33: Pelet | H33: Peleti
A34: Straw | B34: Straw | C34: Slama | D34: Stroh | E34: Slama | F34: Slama | G34: Slama | H34: Slama
A35: Other | B35: Other | C35: Drugo | D35: Anderes | E35: Drugo | F35: Drugo | G35: Ostalo | H35: Drugo
A36: Water content | B36: Water content | C36: Влажност | D36: Wassergehalt | E36: Udio vlage | F36: Vsebnost vode | G36: Sadržaj vlage | H36: Sadržaj vlage
A37: Heating value | B37: Heating value | C37: Топлинска вредност | D37: Heizwert | E37: Ogrjevna vrijednost | F37: Kurilna vrednost | G37: Toplotna moć | H37: Kalorična vrijednosti
A38: Price | B38: Price | C38: Цена | D38: Preis | E38: Cijena | F38: Cena | G38: Cena | H38: Cijena
A39: PRICE constant y2y change | B39: PRICE constant y2y change | C39: Коефициент на годишна промена на цената | D39: PREIS konstante jährliche Änderung | E39: CIJENA - konstantna godišnja promjena | F39: CENA konstantna letna sprememba | G39: CENA konstatna godišnja promena | H39: CIJENA stalna y2y promjena
A40: Yes | B40: Yes | C40: Da | D40: Ja | E40: Da | F40: Da | G40: Da | H40: Da
A41: No | B41: No | C41: Ne | D41: Nein | E41: Ne | F41: Ne | G41: Ne | H41: Ne
A42: Volume | B42: Volume | C42: Волумен | D42: Menge | E42: Količina | F42: Količina | G42: Količina | H42: Količina
A43: VOLUME constant y2y change | B43: VOLUME constant y2y change | C43: Коефициент на годишна промена на количина | D43: MENGE konstante jährliche Änderung | E43: KOLIČINA - konstantna godišnja promjena | F43: KOLIČINA konstantna letna sprememba | G43: KOLIČINA konstatna godišnja eskalacija | H43: Količina stalna y2y promjena
A44: t/year | B44: t/year | C44: t/годишно | D44: t pro Jahr | E44: t/godina | F44: t/leto | G44: t/godišnje | H44: t/god
A45: Biomass | B45: Biomass | C45: Биомаса | D45: Biomasse | E45: Biomasa | F45: Biomasa | G45: Biomasa | H45: biomasa
A46: Year | B46: Year | C46: Година | D46: Jahr | E46: Godina | F46: Leto | G46: Godina | H46: Godina
A47: Price in €/MWh | B47: Price in €/MWh | C47: Цена во €/MWh | D47: Preis in €/MWh | E47: Cijena u €/MWh | F47: Cena v €/MWh | G47: Cena u €/MWh | H47: Cijena u €/MWh
A48: Volume in MWh | B48: Volume in MWh | C48: Количина во MWh | D48: Menge in MWh | E48: Količina u MWh | F48: Količina v MWh | G48: Količina u MWh | H48: Količina u MWh
A49: Cost in € | B49: Cost in € | C49: Трошоци во € | D49: Kosten in € | E49: Trošak u € | F49: Strošek v € | G49: Troškovi u € | H49: Trošak u €
A50: Cost of natural gas | B50: Cost of natural gas | C50: Цена на природен гас | D50: Kosten für Erdgas | E50: Cijena prirodnog plina | F50: Strošek zemeljskega plina | G50: Troškovi prirodnog gasa | H50: Trošak prirodnog gasa
A51: m3/year | B51: m3/year | C51: m3/годишно | D51: m³ pro Jahr | E51: m3/godina | F51: m3/leto | G51: m3/godišnje | H51: m3/god
A52: Natural gas | B52: Natural gas | C52: Природен гас | D52: Erdgas | E52: Prirodni plin | F52: Zemeljski plin | G52: Prirodni gas | H52: Prirodni gas
A53: Price in €/m3 | B53: Price in €/m3 | C53: Цена во €/m3 | D53: Preis in €/m3 | E53: Cijena u €/m3 | F53: Cena v €/m3 | G53: Cena u €/m3 | H53: Cijena u €/m3
A54: Volume in m3 | B54: Volume in m3 | C54: Количина во m3 | D54: Menge in m3 | E54: Količina u m3 | F54: Količina v m3 | G54: Količina u m3 | H54: Količina u m3
A55: Cost of heating oil | B55: Cost of heating oil | C55: Цена на гориво за ложење | D55: Kosten für Heizöl | E55: Cijena loživog ulja | F55: Strošek kurilnega olja | G55: Troškovi ulja za loženje | H55: Trošak lož ulja
A56: l/year | B56: l/year | C56: l/годишно | D56: l pro Jahr | E56: l/godina | F56: l/leto | G56: l/godišnje | H56: l/god
A57: Heating oil | B57: Heating oil | C57: Гориво за ложење | D57: Heizöl | E57: Loživo ulje | F57: Kurilno olje | G57: Ulje za loženje | H57: Lož ulje
A58: Price in €/l | B58: Price in €/l | C58: Цена во €/l | D58: Preis in €/l | E58: Cijena u €/l | F58: Cena v €/l | G58: Cena u €/l | H58: Cijena u €/l
A59: Volume in l | B59: Volume in l | C59: Количина во l | D59: Menge in l | E59: Količina u l | F59: Količina v l | G59: Količina u l | H59: Količina u l
A60: Cost of electricity | B60: Cost of electricity | C60: Цена на електрична енергија | D60: Kosten für Strom | E60: Cijena električne energije | F60: Strošek elektrike | G60: Troškovi električne energije | H60: Troškovi električne energije
A61: MWh/year | B61: MWh/year | C61: MWh/годишно | D61: MWh pro Jahr | E61: MWh/godina | F61: MWh/leto | G61: MWh/godišnje | H61: MWh/god
A62: Electricity | B62: Electricity | C62: Електрична енергија | D62: Strom | E62: Električna energija | F62: Elektrika | G62: Električna energija | H62: Električna energija
A63: Cost of waste heat acquisition | B63: Cost of waste heat acquisition | C63: Цена за користење на отпадна топлина | D63: Kosten für Abwärmenutzung | E63: Trošak dobave otpadne topline | F63: Strošek pridobitve odpadne toplote | G63: Troškovi nabavke otpadne toplote | H63: Trošak korištenja otpadne topline
A64: Waste heat | B64: Waste heat | C64: Отпадна топлина | D64: Abwärme | E64: Otpadna toplina | F64: Odpadna toplota | G64: Otpadna toplota | H64: Otpadna toplina
A65: Cost of operation and maintainance | B65: Cost of operation and maintainance | C65: Трошоци за одржување и работа | D65: Kosten für Betrieb und Wartung | E65: Trošak pogona i održavanja | F65: Stroški obratovanja in vzdrževanja | G65: Troškovi proizvodnje i održavanja | H65: Troškovi pogona i održavanja
A66: % of investment | B66: % of investment | C66: % од инвестицијата | D66: % der Investition | E66: % investicije | F66: % investicije | G66: % investicije | H66: % investicije
A67: constant y2y change | B67: constant y2y change | C67: коефициент на годишна промена | D67: konstante jährliche Änderung | E67: konstantna godišnja promjena | F67: konstantna letna sprememba | G67: konstatna godišnja promena | H67: stalna y2y promjena
A68: Operation and maintainance | B68: Operation and maintainance | C68: Одржување и работа | D68: Betrieb und Wartung | E68: Pogon i održavanje | F68: Obratovanje in vzdrževanje | G68: Proizvodnja i održavanje | H68: Pogon i održavanje
A69: Cost of services | B69: Cost of services | C69: Цена на услугите | D69: Kosten für Dienstleistungen | E69: Trošak usluga | F69: Stroški storitev | G69: Troškovi usluga | H69: Troškovi održavanja
A70: Cost of management, insurance and lease | B70: Cost of management, insurance and lease | C70: Трошоци за управување, осигурување и закуп | D70: Kosten für Management, Versicherung und Miete | E70: Trošak upravljanja, osiguranja i zakupa | F70: Strošek upravljanja, zavarovanja in zakupa | G70: Troškovi upravljanja, osiguranja i zakupa | H70: Troškovi upravljanja, osiguranja i zakupa
A71: Management, insurance and lease | B71: Management, insurance and lease | C71: Управување, осигурување и закуп | D71: Management, Versicherung und Miete | E71: Upravljanje, osiguranje i zakup | F71: Upravljanje, zavarovanje in zakup | G71: Upravljanje, osiguranje i zakup | H71: Upravljanje, osiguranje i leasing
A72: Cost of promotional activities | B72: Cost of promotional activities | C72: Трошоци за маркетинг | D72: Kosten für Werbeaktionen | E72: Trošak promotivnih aktivnosti | F72: Stroški marketinških aktivnosti | G72: Troškovi promotivnih aktivnosti | H72: Trošak promotivnih aktivnosti
A73: Promotional activities | B73: Promotional activities | C73: Маркетинг | D73: Werbeaktionen | E73: Promotivne aktivnosti | F73: Marketinške aktivnosti | G73: Promotivne aktivnosti | H73: Promotivne aktivnosti
A74: Cost of other services | B74: Cost of other services | C74: Цена за други услуги | D74: Kosten für andere Leistungen | E74: Trošak ostalih usluga | F74: Stroški ostalih storitev | G74: Troškovi ostalih usluga | H74: Troškovi ostalih usluga
A75: Other services | B75: Other services | C75: Други услуги | D75: Andere Leistungen | E75: Ostale usluge | F75: Ostale storitve | G75: Ostale usluge | H75: Ostale usluge
A76: Labour | B76: Labour | C76: Работа | D76: Personal | E76: Rad | F76: Delo | G76: Rad | H76: Rad
A77: Cost of labour | B77: Cost of labour | C77: Цена за работа | D77: Personalkosten | E77: Trošak rada | F77: Stroški dela | G77: Troškovi rada | H77: Troškovi rada
A78: y2y salary cost change | B78: y2y salary cost change | C78: Промена на трошоци за плата од година во година | D78: Jährliche Personalkostenänderung | E78: Godišnja promjena plaće | F78: letna sprememba plač | G78: godišnja promena plate | H78: y2y promjena troška plata
A79: constant amount of employees | B79: constant amount of employees | C79: Број на стални вработени | D79: Konstante Mitarbeiteranzahl | E79: Konstantni broj zaposlenika | F79: konstantna količina zaposlenih | G79: Konstani broj zaposlenih | H79: Stalni broj zaposlenika
A80: Employment activities | B80: Employment activities | C80: Активности за вработување | D80: Beschäftigungsaktivitäten | E80: Aktivnosti za zapošljavanje | F80: Zaposlovalne aktivnosti | G80: Aktivnosti zaposlenih | H80: Aktivnostii zapošljavanja
A81: Number of new employees | B81: Number of new employees | C81: Број на нови вработени | D81: Anzahl neuer Mitarbeiter | E81: Broj novih zaposlenika | F81: Število novo zaposlenih | G81: Broj novozaposlenih | H81: Broj novih zaposlenika
A82: Average yearly salary cost per new employee | B82: Average yearly salary cost per new employee | C82: Просечна годишна плата за нов вработен | D82: Jährliches durchschnittliches Gehalt je neuen Mitarbeiter | E82: Prosječni godišnji troškovi plaće za novog zaposlenika | F82: Povprečni letni strošek plače novo zaposlenih | G82: Prosečna godišnja zarada po novozaposlenom | H82: Prosječni godišnji trošak plaća po novom zaposleniku
A83: Total yearly salary cost of all employees | B83: Total yearly salary cost of all employees | C83: Вкупни годишни трошоци за плата за сите вработени | D83: Gesamtes jährliches Gehalt aller Mitarbeiter | E83: Ukupni godišnji trošak plaće svih zaposlenika | F83: Skupni letni strošek plač vseh zaposlenih | G83: Ukupna godišnja zarada zaposlenih | H83: Ukupni godišnji troškovi plaća za sve zaposlenike
A84: Total number of employees | B84: Total number of employees | C84: Вкупен број на вработени | D84: Gesamtanzahl an Mitarbeitern | E84: Ukupni broj zaposlenih | F84: Skupno število zaposlenih | G84: Ukupan broj zaposlenih | H84: Ukupan broj zaposlenih
A85: Amount | B85: Amount | C85: Количина | D85: Betrag | E85: Količina | F85: Količina | G85: Količina | H85: Iznos
A86: Other expenses and losses | B86: Other expenses and losses | C86: Други расходи и загуби | D86: Andere Ausgaben und Verluste | E86: Ostali rashodi i gubici | F86: Drugi odhodki in izgube | G86: Ostali troškovi i gubici | H86: Ostali troškovi i gubici
A87: Other costs | B87: Other costs | C87: Други трошоци | D87: Andere Kosten | E87: Ostali troškovi | F87: Ostali stroški | G87: Ostali troškovi | H87: Ostali troškovi
A88: Revenues | B88: Revenues | C88: Приходи | D88: Einnahmen | E88: Prihodi | F88: Prihodki | G88: Prihodi | H88: Prihodi
A89: ANNUAL REVENUES - REVENUE DEFINITION | B89: ANNUAL REVENUES - REVENUE DEFINITION | C89: ГОДИШНИ ПРИХОДИ - ДЕФИНИЦИЈА НА ПРИХОДИ | D89: JÄHRLICHE EINNAHMEN - EINNAHMEN DEFINITION | E89: GODIŠNJI PRIHODI - DEFINICIJA PRIHODA | F89: LETNI PRIHODKI - OPREDELITEV PRIHODKOV | G89: GODIŠNJI PRIHODI - DEFINICIJA | H89: Godišnjih prihodi - Definicija prihoda
A90: Operating revenues | B90: Operating revenues | C90: Оперативни приходи | D90: Einnahmen aus Betrieb | E90: Poslovni prihodi | F90: Poslovni prihodki | G90: Proizvodni prihodi | H90: Operativni prihodi
A91: Electricity revenues | B91: Electricity revenues | C91: Приходи од електрична енергија | D91: Einnahmen durch Strom | E91: Prihodi od prodaje električne energije | F91: Prihodki od prodaje elektrike | G91: Prihodi od prodaje električne energije | H91: Prihodi od prodaje električne energije
A92: Average electricity price | B92: Average electricity price | C92: Просечна цена на електрична енергија | D92: Durchschnittliche Strompreis | E92: Prosječna cijena električne energije | F92: Povprečna cena elektrike | G92: Prosečna prodajna cena električne energije | H92: Prosječna cijena električne energije
A93: Revenues in € | B93: Revenues in € | C93: Приходи во € | D93: Einnahmen in € | E93: Prihodi u € | F93: Prihodki v € | G93: Prihodi u € | H93: Prihodi u €
A94: Heat revenues | B94: Heat revenues | C94: Приходи од топлинска енергија | D94: Einnahmen durch Wärme | E94: Prihodi od prodaje toplinske energije | F94: Prihodki od prodaje toplote | G94: Prihodi od prodaje toplote | H94: Prihodi od prodaje topline
A95: Heat price model | B95: Heat price model | C95: Модел за утврдување на цената на топлинската енергија | D95: Wärmepreismodell | E95: Model određivanja cijene toplinske energije | F95: Model določanja cene toplote | G95: Model naplate toplote | H95: Model cijena topline
A96: Direct input of the heat price | B96: Direct input of the heat price | C96: Neposreden vnes vo cenata na toplinskata energija | D96: Direkteingabe des Wärmepreises | E96: Izravan unos cijene toplinske energije | F96: Neposredni vnos cene toplote | G96: Unos cene toplote | H96: Izravni unos cijene toplinske energije
A97: Calculation from basic price, metering price and consumption | B97: Calculation from basic price, metering price and consumption | C97: Presmetka vrz osnova na angažirana moknost, merenje i potrošuvačka | D97: Berechnung vom Grundpreis, Messpreis und Verbrauch | E97: Izračun na temelju priključne snage, mjerenja i potrošnje | F97: Izračun na podlagi priključne moči, merjenja in porabe | G97: Fiskni i varijabilni deo po potrošnji | H97: Proračun na osnovu bazne cijene, mjerenja i potrošne
A98: Calculation on the basis of price discount for larger consumption | B98: Calculation on the basis of price discount for larger consumption | C98: Presmetka vrz osnova na popust za pogolema potrošuvačka | D98: Berechnung auf Basis Preisnachlass für größere Verbräuche | E98: Izračun na temelju popusta za velike potrošače | F98: Izračun na podlagi popusta na velikost porabe | G98: Popust na količinu | H98: Proračun na osnovu popusta na cijenu za veću potrošnju
A99: Thermal energy price - Direct input of the heat price | B99: Thermal energy price - Direct input of the heat price | C99: Цена на топлинска енергија - Непосреден внес во цената на топлинската енергија | D99: Wärmepreis - Direkteingabe des Wärmepreises | E99: Cijena toplinske energije - Izravan unos cijene toplinske energije | F99: Cena toplotne energije - Neposredni vnos cene toplote | G99: Cena toplote - Unos cene toplote | H99: Cijena toplinske energije - Izravni unos cijene toplinske energije
A100: Thermal energy price - Calculation from basic price, metering price and consumption | B100: Thermal energy price - Calculation from basic price, metering price and consumption | C100: Цена на топлинска енергија - Пресметка врз основа на ангажирана моќност, мерење и потрошувачка | D100: Wärmepreis - Berechnung vom Grundpreis, Messpreis und Verbrauch | E100: Cijena toplinske energije - Izračun na temelju priključne snage, mjerenja i potrošnje | F100: Cena toplotne energije - Izračun na podlagi priključne moči, merjenja in porabe | G100: Cena toplote - Fiskni i varijabilni deo po potrošnji | H100: Cijena toplinske energije - Proračun na osnovu bazne cijene, mjerenja i potrošne
A101: Thermal energy price - Calculation on the basis of price discount for larger consumption | B101: Thermal energy price - Calculation on the basis of price discount for larger consumption | C101: Цена на топлинска енергија - Пресметка врз основа на попуст за поголема потрошувачка | D101: Wärmepreis - Berechnung auf Basis Preisnachlass für größere Verbräuche | E101: Cijena toplinske energije - Izračun na temelju popusta za velike potrošače | F101: Cena toplotne energije - Izračun na podlagi popusta na velikost porabe | G101: Cena toplote - Popust na količinu | H101: Cijena toplinske energije - Proračun popusta na cijenu za veću potrošnju
A102: Thermal energy price | B102: Thermal energy price | C102: Цена на топлинска енергија | D102: Wärmepreis | E102: Cijena toplinske energije | F102: Cena toplotne energije | G102: Cena toplote | H102: Cijena toplinske energije
A103: Category | B103: Category | C103: Категорија | D103: Kategorie | E103: Kategorija | F103: Kategorija | G103: Kategorija | H103: Kategorija
A104: Class 1 | B104: Class 1 | C104: Класа 1 | D104: Klasse 1 | E104: Razred 1 | F104: Razred 1 | G104: Razred 1 | H104: Klasa 1
A105: Class 2 | B105: Class 2 | C105: Класа 2 | D105: Klasse 2 | E105: Razred 2 | F105: Razred 2 | G105: Razred 2 | H105: Klasa 2
A106: Class 3 | B106: Class 3 | C106: Класа 3 | D106: Klasse 3 | E106: Razred 3 | F106: Razred 3 | G106: Razred 3 | H106: Klasa 3
A107: Class 4 | B107: Class 4 | C107: Класа 4 | D107: Klasse 4 | E107: Razred 4 | F107: Razred 4 | G107: Razred 4 | H107: Klasa 4
A108: Class 5 | B108: Class 5 | C108: Класа 5 | D108: Klasse 5 | E108: Razred 5 | F108: Razred 5 | G108: Razred 5 | H108: Klasa 5
A109: Lower limit from MWh/year | B109: Lower limit from MWh/year | C109: Долна граница на MWh/годишно | D109: Untere Grenze von MWh pro Jahr | E109: Doljnja granica od MWh/god | F109: Spodnja meja od MWh/leto | G109: Donja granica MWh/godišnje | H109: Donja granica od MWh/godina
A110: Upper limit up to MWh/year | B110: Upper limit up to MWh/year | C110: Горна граница на MWh/годишно | D110: Obere Grenze von MWh pro Jahr | E110: Gornja granica do MWh/god | F110: Zgornja meja do MWh/leto | G110: Gornja granica MWh/godišnje | H110: Gornja granica do MWh/god
A111: Price discount factor | B111: Price discount factor | C111: Фактор на попуст | D111: Preisnachlassfaktor | E111: Faktor popusta | F111: Faktor popusta | G111: Faktor diskontovanja | H111: Diskontni faktor cijene
A112: Price €/MWh | B112: Price €/MWh | C112: Цена во €/MWh | D112: Preis €/MWh | E112: Cijena €/MWh | F112: Cena €/MWh | G112: Cena €/MWh | H112: Cijena €/MWh
A113: % of heat sold | B113: % of heat sold | C113: % од пласирана топлинска енергија | D113: % der verkauften Wärme | E113: % prodane toplinske energije | F113: % prodane toplote | G113: % od prodate toplote | H113: % prodate toplnske energije
A114: Total demand MWh/year | B114: Total demand MWh/year | C114: Вкупна потрошувачка МWh/годишно | D114: Gesamtbedarf MWh pro Jahr | E114: Ukupne toplinske potrebe MWh/godina | F114: Skupni odjem MWh/leto | G114: Ukupna potrošnja MWh/godišnje | H114: Ukupna potrošnja MWh/godina
A115: Average heat price | B115: Average heat price | C115: Просечна цена на топлинска енергија | D115: Durchschnittlicher Wärmepreis | E115: Prosječna cijena toplinske energije | F115: Povprečna cena toplote | G115: Prosečna cena toplote | H115: Prosječna cijena toplinske energije
A116: Total amount of heat sold | B116: Total amount of heat sold | C116: Вкупно пласирана топлинска енергија | D116: Gesamtverkaufte Wärmemenge | E116: Ukupna količina prodane toplinske energije | F116: Skupna količina prodane toplote | G116: Ukupna količina prodate toplote | H116: Ukupna količina prodate toplinske energije
A117: Customer type | B117: Customer type | C117: Тип на потрошувач | D117: Verbrauchertyp | E117: Vrsta potrošača | F117: Tip odjemnika | G117: Tip potrošača | H117: Kategorija kupca
A118: Average connection power kW | B118: Average connection power kW | C118: Просечна моќност на приклучок kW | D118: Durchschnittliche Anschlussleistung kW | E118: Prosječna priključna snaga kW | F118: Povprečna priključna moč kW | G118: Prosečna snaga priključka kW | H118: Prosječna priključna snaga kW
A119: Basic price (fixed) €/kW/year | B119: Basic price (fixed) €/kW/year | C119: Цена по ангажирана моќност (фиксна) €/kW | D119: Grundpreis (fix) € pro kW pro Jahr | E119: Priključna snaga (fiksno) €/kW/godina | F119: Priključna moč (fiksno) €/kW/leto | G119: Fiksni deo €/kW/godišnje | H119: Osnovna cijena (fiksna) €/kW/god
A120: Metering price €/year | B120: Metering price €/year | C120: Цена на мерење €/годишно | D120: Messpreis € pro Jahr | E120: Cijena mjerenja €/godina | F120: Cena merjenja €/leto | G120: Trošak merenja €/godišnje | H120: Cijena mjerenja €/godišnje
A121: Consumption price (variable) €/MWh | B121: Consumption price (variable) €/MWh | C121: Цена за потрошена топлинска енергија (варијабилно) €/МWh | D121: Arbeitspreis (variabel) €/MWh | E121: Cijena potrošene toplinske energije (varijabilno) €/MWh | F121: Cena porabe (variabilno) €/MWh | G121: Varijabilni deo €/MWh | H121: Cijena potrošnje (promjenjivo) €/MWh
A122: Average consumption per consumer MWh/year | B122: Average consumption per consumer MWh/year | C122: Просечна потрошувачка по потрошувач МWh/годишно | D122: Mittlerer Verbrauch je Kunde MWh pro Jahr | E122: Prosječna potrošnja po potrošaču MWh/god | F122: Povprečna poraba na odjemnika MWh/leto | G122: Prosečna potrošnja potrošača MWh/godišnje | H122: Prosječna potrošnja po potrošaču MWh/godina
A123: Average heat price €/MWh | B123: Average heat price €/MWh | C123: Просечна цена на топлинска енергија €/MWh | D123: Mittlerer Wärmepreis €/MWh | E123: Prosječna cijena toplinske energije €/MWh | F123: Povprečna cena toplote €/MWh | G123: Prosečna cena toplote €/MWh | H123: Prosječna cijena toplinske energije €/MWh
A124: Heat | B124: Heat | C124: Топлина | D124: Wärme | E124: Toplinska energija | F124: Toplota | G124: Toplota | H124: Toplina
A125: Operating subsidies, aids and other sources of operating revenues | B125: Operating subsidies, aids and other sources of operating revenues | C125: Оперативни субвенции, помош и други извори на оперативни приходи | D125: Zuschüsse, Förderungen und sonstige Betriebseinnahmen | E125: Subvencioniranje rada postrojenja i ostali prihodi od poslovanja | F125: Obratovalne subvencije, pomoči in drugi viri poslovnih prihodkov | G125: Operativni subvencije, pomoć i drugi izvori poslovnih prihoda | H125: Operativna subvencija i drugi izvori prihoda poslovanja
A126: Operating subsidies | B126: Operating subsidies | C126: Оперативни субвенции | D126: Betriebszuschüsse | E126: Subvencioniranje rada postrojenja | F126: Obratovalne subvencije | G126: Operativni subvencije | H126: Operativna subvencija
A127: Other sources of revenues | B127: Other sources of revenues | C127: Други извори на приходи | D127: Sonstige Einnahmen | E127: Ostali prihodi od poslovanja | F127: Drugi viri prihodkov | G127: Ostali izvori prihoda | H127: Ostali izvori prihoda
A128: Revenues from financial activities | B128: Revenues from financial activities | C128: Приходи од финансиски активности | D128: Einnahmen aus Finanztätigkeiten | E128: Prihodi od financijskih aktivnosti | F128: Prihodki od finančnih aktivnosti | G128: Prihod na osnovu finansijskih aktivnosti | H128: Prihodi od financijskih aktivnosti
A129: Financial revenues | B129: Financial revenues | C129: Финансиски приходи | D129: Finanzerträge | E129: Financijski prihodi | F129: Finančni prihodki | G129: Finansijski prihodi | H129: Financijski prihodi
A130: Other revenues and gains | B130: Other revenues and gains | C130: Други приходи и добивки | D130: Sonstige Erträge und Gewinne | E130: Ostali prihodi i dobici | F130: Drugi prihodki in dobički | G130: Ostali prihodi i dobici | H130: Ostali prihodi i dobici
A131: Other revenues | B131: Other revenues | C131: Други приходи | D131: Sonstige Erträge | E131: Ostali prihodi | F131: Drugi prihodki | G131: Ostali prihodi | H131: Ostali prihodi
A132: Other parameters | B132: Other parameters | C132: Други параметри | D132: Sonstige Parameter | E132: Ostali podaci | F132: Ostali podatki | G132: Ostali parametri | H132: Ostali parametri
A133: OTHER PROJECT PARAMETERS | B133: OTHER PROJECT PARAMETERS | C133: ДРУГИ ПАРАМЕТРИ НА ПРОЕКТОТ | D133: SONSTIGE PROJEKT PARAMETER | E133: OSTALI PODACI PROJEKTA | F133: OSTALI PODATKI PROJEKTA | G133: OSTALI PARAMETRI PROJEKTA | H133: OSTALI PARAMETRI PROJEKTA
A134: Cash conversion cycle | B134: Cash conversion cycle | C134: Период за обрт на готовината | D134: Kaptialbindungsdauer | E134: Novčani ciklus | F134: Denarni cikel | G134: Ciklus obrtnih sredstava | H134: Novčani ciklus
A135: Average days of inventory | B135: Average days of inventory | C135: Просечен период на задржување на залиха пред продажба | D135: Durchschnittliche Lagerdauer | E135: Prosječno vrijeme trajanje zaliha | F135: Povprečni čas vezave zalog | G135: Prosečno trajanje zaliha | H135: Prosječni dani inventara
A136: Accounts receivable collection period | B136: Accounts receivable collection period | C136: Период на наплаќање нa сметки | D136: Durchschnittliche Inkassoperiode | E136: Prosječno vrijeme naplate potraživanja | F136: Povprečni čas vezave poslovnih terjatev | G136: Prosečno trajanje potraživanja | H136: Rok naplate potraživanja
A137: Days payable | B137: Days payable | C137: Неподмирени долгови | D137: Durchschnittliches Liferantenzahlungsziel | E137: Prosječno vrijeme isplate obveza | F137: Povprečni čas vezave poslovnih obveznosti | G137: Rok plaćanja u danima | H137: Rok plaćanja potraživanja
A138: Annual depreciation rates | B138: Annual depreciation rates | C138: Годишна стапка на амортизација | D138: Jährliche Abschreibungsrate | E138: Godišnje stope amortizacije | F138: Letne amortizacijske stopnje | G138: Godišnja stopa amortizacije | H138: Godišnja stopa amortizacije
A139: Intangible assets | B139: Intangible assets | C139: Нематеријални средства | D139: Immaterielle Vermögenswerte | E139: Nematerijalna sredstva | F139: Neopredmetena sredstva | G139: Nematerijalna sredstva | H139: Nematerijalna imovina
A140: Buildings and constructions | B140: Buildings and constructions | C140: Објекти и градежна работа | D140: Gebäude und Bauarbeiten | E140: Zgrade i građevinski radovi | F140: Objekti in gradbena dela | G140: Objekti i gradjevinski radovi | H140: Objekti i građevinski radovi
A141: Equipment, plant, vehicles, mechanization | B141: Equipment, plant, vehicles, mechanization | C141: Опрема, постројка, возила, механизација | D141: Ausrüstung, Anlage, Fahrzeuge, Mechanisierung | E141: Oprema, postrojenje, vozila, strojevi | F141: Oprema, naprave, vozila, stroji | G141: Oprema, postrojenja, vozila, mehanizacija | H141: Oprema, postrojenja, vozila, mehanizacija
A142: Profitability calculation | B142: Profitability calculation | C142: Пресметка на профитабилноста | D142: Wirtschaftlichkeitsberechnung | E142: Izračun profitabilnosti poslovanja | F142: Izračun donosnosti poslovanja | G142: Računanje profitabilnosti | H142: Proračun profitabilnosti
A143: Discount rate | B143: Discount rate | C143: Дисконтна стапка | D143: Abzinsfaktor | E143: Diskontna stopa | F143: Diskontna stopnja | G143: Diskontna stopa | H143: Diskontna stopa
A144: Taxation | B144: Taxation | C144: Оданочување | D144: Einkommenssteuer | E144: Oporezivanje | F144: Obdavčitev | G144: Porezi | H144: Oporezivanje
A145: Corporate income tax | B145: Corporate income tax | C145: Данок на добивка | D145: Körperschaftssteuer | E145: Porez na dohodak | F145: Davek na dobiček | G145: Porez na dobit | H145: Porez na dobit
A146: days | B146: days | C146: денови | D146: Tage | E146: dani | F146: dni | G146: dana | H146: Dani
A147: PROJECT PERFORMANCE | B147: PROJECT PERFORMANCE | C147: РЕЗУЛТАТИ ОД ПРОЕКТОТ | D147: PROJEKTERGEBNISSE | E147: REZULTATI PROJEKTA | F147: REZULTATI PROJEKTA | G147: REZULTATI PROJEKTA | H147: IZVEDBA PROJEKTA
A148: Investment and financing | B148: Investment and financing | C148: Инвестиции и финансии | D148: Investition und Finanzierung | E148: Investicija i načini financiranja | F148: Investicija in viri financiranja | G148: Investicije i finansiranje | H148: Investicija i finansiranje
A149: Projected investment cost in € | B149: Projected investment cost in € | C149: Вкупни инвестициски трошоци во € | D149: Prognostizierte Investitionskosten in € | E149: Predviđeni investicijski troškovi u € | F149: Predvideni investicijski stroški v € | G149: Planirani investicioni troškovi € | H149: Predviđena investicija u €
A150: 1. Buildings and construction works | B150: 1. Buildings and construction works | C150: 1. Објекти и градешна работа | D150: 1. Gebäude und Bauarbeiten | E150: 1. Zgrade i građevinski radovi | F150: 1. Objekti in gradbena dela | G150: 1. Objekti i gradjevinski radovi | H150: 1. Objekti i građevinski radovi
A151: 2. Plot | B151: 2. Plot | C151: 2. Земјиште | D151: 2. Grundstück | E151: 2. Zemljište | F151: 2. Zemljišče | G151: 2. Zemljište | H151: 2. Zemljište
A152: 3. Equipment/Machinery | B152: 3. Equipment/Machinery | C152: 3. Опрема/Машини | D152: 3. Ausrüstung/Maschinen | E152: 3. Oprema/strojevi | F152: 3. Stroji/Oprema | G152: 3. Mašine/oprema | H152: 3. Oprema/strojevi
A153: A. PROPERTY, PLANT AND EQUIPMENT | B153: A. PROPERTY, PLANT AND EQUIPMENT | C153: А. ЗЕМЈИШТЕ, ПОСТРОЈКИ И ОПРЕМА | D153: A. ANLAGEVERMÖGEN | E153: A. NEKRETNINE, POSTROJENJE I OPREMA | F153: A. NEPREMIČNINE, STROJI IN OPREMA | G153: A. NEKRETNINE, POSTROJENJA I OPREMA | H153: A. NEKRETNINE, POSTROJENJA I OPREMA
A154: B. PROJECT AND INVESTMENT DOCUMENTATION | B154: B. PROJECT AND INVESTMENT DOCUMENTATION | C154: Б. ПРОЕКТНА И ИНВЕСТИЦИСКА ДОКУМЕНТАЦИЈА | D154: B. PROJEKT UND INVESTITIONS-DOKUMENTATION | E154: B. PROJEKTNA I INVESTICIJSKA DOKUMENTACIJA | F154: B. PROJEKTNA IN INVESTICIJSKA DOKUMENTACIJA | G154: B. PROJEKTNA I INVESTICIONA DOKUMENTACIJA | H154: B. PROJEKTNA I INVESTICIONA DOKUMENTACIJA
A155: C. INTANGIBLE ASSETS | B155: C. INTANGIBLE ASSETS | C155: В. НЕМАТЕРИЈАЛНИ СРЕДСТВА | D155: C. IMMATERIELLE VERMÖGENSWERTE | E155: C. NEMATERIJALNA SREDSTVA | F155: C. NEOPREDMETENA SREDSTVA | G155: C. NEMATERIJALNA SREDSTVA | H155: C. NEMATERIJALNA IMOVINA
A156: D. INVESTMENT COST (A+B+C) | B156: D. INVESTMENT COST (A+B+C) | C156: Г. ИНВЕСТИЦИСКИ ТРОШОЦИ (А+Б+В) | D156: D. INVESTITIONSKOSTEN (A+B+C) | E156: D. INVESTICIJSKI TROŠKOVI (A+B+C) | F156: D. INVESTICIJSKI STROŠKI (A+B+C) | G156: D. INVESTICIONI TROŠKOVI (A+B+C) | H156: D. INVESTICIJSKI TROŠKOVI (A+B+C)
A157: E. INITIAL WORKING CAPITAL | B157: E. INITIAL WORKING CAPITAL | C157: Д. ПОЧЕТЕН РАБОТЕН КАПИТАЛ | D157: E. ANFÄNGLICHES BETRIEBSKAPITAL | E157: E. POČETNI RADNI KAPITAL | F157: E. ZAČETNA OBRATNA SREDSTVA | G157: E. POČETNI OBRTNI KAPITAL | H157: E. POČETNI RADNI KAPITAL
A158: F. TOTAL INVESTMENT COST (D+E) | B158: F. TOTAL INVESTMENT COST (D+E) | C158: Ѓ. ВКУПНИ ИНВЕСТИЦИСКИ ТРОШОЦИ (Г+Д) | D158: F. GESAMTINVESTITIONSKOSTEN (D+E) | E158: F. UKUPNI INVESTICIJSKI TROŠKOVI (D+E) | F158: F. SKUPAJ INVESTICIJSKI STROŠKI (D+E) | G158: F. UKUPNI INVESTICIONI TROŠKOVI (D+E) | H158: F. TOTAL INVESTICIJSKI TROŠKOVI (D+E)
A159: Sources of investment cost financing in € | B159: Sources of investment cost financing in € | C159: Извори за финансирање на инвестициските трошоци | D159: Finanzierungsquellen der Investitionskosten in € | E159: Načini financiranja investicijskih troškova u € | F159: Viri financiranja investicijskih stroškov v € | G159: Izvori finansiranja investicionih troškova u € | H159: Izvori financiranja investicijskih troškova u €
A160: A. PRIVATE EQUITY | B160: A. PRIVATE EQUITY | C160: А. ПРИВАТЕН КАПИТАЛ | D160: A. PRIVATES EIGENKAPITAL | E160: A. VLASTITA SREDSTVA | F160: A. LASTNA SREDSTVA | G160: A. SOPSTVENA SREDSTVA | H160: A. PRIVATNI KAPITAL
A161: B. BANK LOANS | B161: B. BANK LOANS | C161: Б. ЗАЕМ ОД БАНКА | D161: B. BANKDARLEHEN | E161: B. BANKOVNI KREDITI | F161: B. BANČNA POSOJILA | G161: B. BANKARSKI KREDITI | H161: B. KREDIT - BANKA
A162: C. CONNECTION FEES | B162: C. CONNECTION FEES | C162: В. ТРОШОЦИ ЗА ПРИКЛУЧУВАЊЕ НА ПОТРОШУВАЧИ | D162: C. ANSCHLUSSGEBÜHR | E162: C. NAKNADA ZA PRIKLJUČAK | F162: C. PRIKLJUČNINE | G162: C. TAKSE ZA PRIKLJUČAK | H162: C. NAKNADE ZA PRIKLJUČAK
A163: D. INVESTMENT SUBSIDIES | B163: D. INVESTMENT SUBSIDIES | C163: Г. ИНВЕСТИЦИСКИ СУБВЕНЦИИ | D163: D. INVESTITIONSFÖRDERUNG | E163: D. SUBVENCIJE ZA INVESTICIJE | F163: D. INVESTICIJSKE SUBVENCIJE | G163: D. INVESTICIONI SUBVENCIJE | H163: D. SUBVENCIJE ZA INVESTICIJU
A164: Bridging loan | B164: Bridging loan | C164: Краткорочни заеми | D164: Überbrückungskredit | E164: Mostni kredit | F164: Premostitveno posojilo | G164: Premošćavanje kredit | H164: Kredit premoštavanja
A165: E. TOTAL FINANCING (A+B+C+D) | B165: E. TOTAL FINANCING (A+B+C+D) | C165: Д. ВКУПНИ ИЗВОРИ НА ФИНАНСИРАЊЕ (А+Б+В+Г) | D165: E. GESAMTFINANZIERUNG (A+B+C+D) | E165: E. UKUPNO FINANCIRANJE (A+B+C+D) | F165: E. SKUPAJ VIRI FINANCIRANJA (A+B+C+D) | G165: E. UKUPNI IZVORI FINANSIRANJA (A+B+C+D) | H165: E. TOTAL IZVORI FINANCIRANJA (A+B+C+D)
A166: Value | B166: Value | C166: Вредност | D166: Betrag | E166: Vrijednost | F166: Vrednost | G166: Vrednost | H166: Vrijednost
A167: Share % | B167: Share % | C167: Удел % | D167: Anteil % | E167: Udio % | F167: Delež % | G167: Udeo % | H167: Udio %
A168: Revenues | B168: Revenues | C168: Приходи | D168: Einnahmen | E168: Prihodi | F168: Prihodki | G168: Prihodi | H168: Prihodi
A169: Source of revenue in € | B169: Source of revenue in € | C169: Извори на приходи во € | D169: Quelle der Einnahmen in € | E169: Izvor prihoda u € | F169: Vir prihodkov v € | G169: Izvori prihoda u € | H169: Izvor prihoda u €
A170: 1. ELECTRICITY REVENUES | B170: 1. ELECTRICITY REVENUES | C170: 1. ПРИХОДИ ОД ЕЛЕКТРИЧНА ЕНЕРГИЈА | D170: 1. EINNAHMEN DURCH STROM | E170: 1. PRIHODI OD PRODAJE ELEKTRIČNE ENERGIJE | F170: 1. PRIHODKI OD PRODAJE ELEKTRIKE | G170: 1. PRIHODI OD PRODAJE ELEKTRIČNE ENERGIJE | H170: 1. PRIHODI OD PRODAJE ELEKTRIČNE ENERGIJE
A171: 2. HEAT REVENUES | B171: 2. HEAT REVENUES | C171: 2. ПРИХОДИ ОД ТОПЛИНСКА ЕНЕРГИЈА | D171: 2. EINNAHMEN DURCH WÄRME | E171: 2. PRIHODI OD PRODAJE TOPLINSKE ENERGIJE | F171: 2. PRIHODKI OD PRODAJE TOPLOTE | G171: 2. PRIHODI OD PRODAJE TOPLOTE | H171: 2. PRIHODI OD PRODAJE TOPLINE
A172: 3. OPERATING SUBSIDIES | B172: 3. OPERATING SUBSIDIES | C172: 3. СУБВЕНЦИИ | D172: 3. BETRIEBSFÖRDERUNGEN | E172: 3. SUBVENCIONIRANJE RADA POSTROJENJA | F172: 3. OBRATOVALNE SUBVENCIJE | G172: 3. OPERATIVNI SUBVENCIJE | H172: 3. OPERATIVNA SUBVENCIJA
A173: A. GROSS OPERATING REVENUES | B173: A. GROSS OPERATING REVENUES | C173: А. Бруто приходи | D173: A. BRUTTO BETRIEBSEINNAHMEN | E173: A. BRUTO PRIHODI POSLOVANJA | F173: A. KOSMATI POSLOVNI PRIHODKI | G173: A. BRUTO POSLOVNI PRIHODI | H173: A BRUTO OPERATIVNI PRIHODI
A174: 1. INVESTMENT SUBSIDIES | B174: 1. INVESTMENT SUBSIDIES | C174: 1. ИНВЕСТИЦИСКИ СУБВЕНЦИИ | D174: 1. INVESTITIONSFÖRDERUNG | E174: 1. SUBVENCIJE ZA INVESTICIJU | F174: 1. INVESTICIJSKE SUBVENCIJE | G174: 1. INVESTICIONI SUBVENCIJE | H174: 1. SUBVENCIJE INVESTICIJE
A175: 2. FINANCIAL REVENUES | B175: 2. FINANCIAL REVENUES | C175: 2. ФИНАНСИСКИ ПРИХОДИ | D175: 2. FINANZERLÖSE | E175: 2. FINANCIJSKI PRIHODI | F175: 2. FINANČNI PRIHODKI | G175: 2. FINANSIJSKI PRIHODI | H175: 2. FINANSIJSKI PRIHODI
A176: 3. OTHER REVENUES | B176: 3. OTHER REVENUES | C176: 3. ДРУГИ ПРИХОДИ | D176: 3. SONSTIGE ERTRÄGE | E176: 3. OSTALI PRIHODI | F176: 3. DRUGI PRIHODKI | G176: 3. OSTALI PRIHODI | H176: 3. OSTALI PRIHODI
A177: B. OTHER SOURCES OF REVENUES | B177: B. OTHER SOURCES OF REVENUES | C177: Б. ДРУГИ ИЗВОРИ НА ПРИХОДИ | D177: B. SONSTIGE EINNAHMEQUELLEN | E177: B. OSTALI IZVORI PRIHODA | F177: B. OSTALI VIRI PRIHODKOV | G177: B. OSTALI PRIHODI | H177: B. DRUGI IZVORI PRIHODA
A178: C. TOTAL REVENUES (A + B) | B178: C. TOTAL REVENUES (A + B) | C178: В. ВКУПНО ПРИХОДИ (A+Б) | D178: C. GESAMTE EINNAHMEN (A + B) | E178: C. UKUPNI PRIHODI (A+B) | F178: C. SKUPAJ PRIHODKI (A + B) | G178: C. UKUPNI PRIHODI (A+B) | H178: C. UKUPNI PRIHODI (A + B)
A179: Costs | B179: Costs | C179: Трошоци | D179: Kosten | E179: Troškovi | F179: Stroški | G179: Troškovi | H179: Troškovi
A180: Cost type in € | B180: Cost type in € | C180: Вид на трошоци во € | D180: Kostenart in € | E180: Vrsta troška u € | F180: Vrsta stroška v € | G180: Vrsta troškova u € | H180: Vrsta troška u €
A181: 1. Energy source costs | B181: 1. Energy source costs | C181: 1. Трошоци за гориво | D181: 1. Energiequellen Kosten | E181: 1. Trošak (cijena) energenta | F181: 1. Stroški virov energije | G181: 1. Troškovi energije | H181: 1. Troškovi izvora energije
A182: 2. Operation and maintainance costs | B182: 2. Operation and maintainance costs | C182: 2. Трошоци за одржување и работа | D182: 2. Betriebs- und Wartungskosten | E182: 2. Troškovi pogona i održavanja | F182: 2. Obratovalni in vzdrževalni stroški | G182: 2. Troškovi proizvodnje i održavanja | H182: 2. Troškovi pogona i održavanja
A183: A. TOTAL OPERATING COSTS (1+2) | B183: A. TOTAL OPERATING COSTS (1+2) | C183: А. ВКУПНИ ОПЕРАТИВНИ ТРОШОЦИ (1+2) | D183: A. GESAMTE BETRIEBSKOSTEN (1 + 2) | E183: A. UKUPNI TROŠKOVI POGONA (1+2) | F183: A. SKUPAJ POSLOVNI STROŠKI (1+2) | G183: A. UKUPNI PROIZVODNI TROŠKOVI (1+2) | H183: A. UKUPNI TROŠKOVI POGONA (1 + 2)
A184: 1. Cost of management, insurance and lease | B184: 1. Cost of management, insurance and lease | C184: 1. Трошоци за управување, осигурување и закуп | D184: 1. Kosten für Management, Versicherung und Miete | E184: 1. Trošak upravljanja, osiguranja i zakupa | F184: 1. Strošek upravljanja, zavarovanja in zakupa | G184: 1. Troškovi upravljanja, osiguranja i zakupa | H184: 1. Troškovi upravljanja, osiguranja i zakupa
A185: 2. Cost of promotional activities | B185: 2. Cost of promotional activities | C185: 2. Трошоци за маркетинг | D185: 2. Kosten für Werbeaktionen | E185: 2. Trošak promotivnih aktivnosti | F185: 2. Stroški marketinških aktivnosti | G185: 2. Troškovi promotivnih aktivnosti | H185: 2. Trošak promotivnih aktivnosti
A186: 3. Cost of other services | B186: 3. Cost of other services | C186: 3. Трошоци за други услуги | D186: 3. Kosten für andere Leistungen | E186: 3. Trošak ostalih usluga | F186: 3. Stroški ostalih storitev | G186: 3. Troškovi ostalih usluga | H186: 3. Troškovi ostalih usluga
A187: B. TOTAL COSTS OF SERVICES (1+2+3) | B187: B. TOTAL COSTS OF SERVICES (1+2+3) | C187: Б. ВКУПНИ ТРОШОЦИ ЗА УСЛУГИТЕ (1+2+3) | D187: B. SERVICEKOSTEN GESAMT (1 + 2 + 3) | E187: B. UKUPNI TROŠKOVI USLUGA (1+2+3) | F187: B. SKUPAJ STROŠKI STORITEV (1+2+3) | G187: B. UKUPNI TROŠKOVI USLUGA (1+2+3) | H187: B. UKUPNI TROŠKOVI ODRŽAVANJA (1 + 2 + 3)
A188: C. COSTS OF LABOUR | B188: C. COSTS OF LABOUR | C188: В. ТРОШОЦИ ЗА РАБОТА | D188: C. PERSONALKOSTEN | E188: C. TROŠAK RADA | F188: C. STROŠKI DELA | G188: C. TROŠKOVI RADA | H188: C. TROŠKOVI RADA
A189: D. DEPRECIATION AND AMORTIZATION COSTS | B189: D. DEPRECIATION AND AMORTIZATION COSTS | C189: Г. ТРОШОЦИ ЗА АМОРТИЗАЦИЈА | D189: D. ABSCHREIBUNG UND AMORTISATIONSKOSTEN | E189: D. TROŠKOVI AMORTIZACIJE MATERIJALNIH I NEMATERIJALNIH SREDSTAVA | F189: D. STROŠKI ODPISA VREDNOSTI IN AMORTIZACIJE | G189: D. SMANJENJE VREDNOSTI I TROŠKOVI AMORTIZACIJE | H189: D. TROŠKOVI OTPISA VRIJEDNOSTI I AMORTIZACIJE
A190: E. FINANCIAL COSTS | B190: E. FINANCIAL COSTS | C190: Д. ФИНАНСИСКИ ТРОШОЦИ | D190: E. FINANZIERUNGSKOSTEN | E190: E. FINANCIJSKI TROŠKOVI | F190: E. FINANČNI STROŠKI | G190: E. FINANSIJSKI TROŠKOVI | H190: E. FINANSIJSKI TROŠKOVI
A191: F. OTHER EXPENSES AND LOSSES | B191: F. OTHER EXPENSES AND LOSSES | C191: Ѓ. ДРУГИ РАСХОДИ И ЗАГУБИ | D191: F. ANDERE AUSGABEN UND VERLUSTE | E191: F. OSTALI RASHODI I GUBICI | F191: F. DRUGI ODHODKI IN IZGUBE | G191: F. OSTALI TROŠKOVI I GUBICI | H191: F. OSTALI TROŠKOVI I GUBICI
A192: G. INCOME TAXES | B192: G. INCOME TAXES | C192: Е. ДАНОК НА ДОБИВКА | D192: G. KÖRPERSCHAFTSSTEUER | E192: G. POREZ NA DOHODAK | F192: G. DAVEK NA DOBIČEK | G192: G. POREZ NA DOBIT | H192: G. POREZ NA DOBIT
A193: H. TOTAL COSTS (A+B+C+D+E+F+G) | B193: H. TOTAL COSTS (A+B+C+D+E+F+G) | C193: Ж. ВКУПНИ ТРОШОЦИ (А+Б+В+Г+Д+Ѓ) | D193: H. GESAMTKOSTEN (A+B+C+D+E+F+G) | E193: H. UKUPNI TROŠKOVI (A+B+C+D+E+F+G) | F193: H. SKUPAJ STROŠKI (A+B+C+D+E+F+G) | G193: H. UKUPNI TROŠKOVI (A+B+C+D+E+F+G) | H193: H. UKUPNI TROŠKOVI (A+B+C+D+E+F+G)
A194: Assets | B194: Assets | C194: Средства | D194: Vermögen | E194: Sredstva | F194: Sredstva | G194: Sredstva | H194: Sredstva
A195: Inventories in stock and resources needed in € | B195: Inventories in stock and resources needed in € | C195: Залихи на лагер и потребни ресурси во € | D195: Lagerbestand und benötigtes Kapital in € | E195: Stanje zaliha i potrebna količina sredstava za financiranje u € | F195: Stanje zalog in potrebna višina sredstev za financiranje v € | G195: Zalihe i potrebna sredstva za finansiranje u € | H195: Zalihe na skladištu i potrebni resursi u €
A196: A. Average days of inventory | B196: A. Average days of inventory | C196: А. Просечен број на денови во залиха | D196: A. Durchschnittliche Tage des Inventars | E196: A. Prosječno vrijeme trajanje zaliha | F196: A. Povprečni čas vezave zalog | G196: A. Prosečno trajanje zaliha | H196: A. Prosječni dani inventara
A197: B. Inventory turnover ratio | B197: B. Inventory turnover ratio | C197: Б. Коефициент на обрт на залихите | D197: B. Inventarumschlagsquote | E197: B. Koeficijent obrtaja zaliha | F197: B. Koeficient obračanja zalog | G197: B. Koeficijent obrta zaliha | H197: B. Koeficijent povrata uloženog?
A198: C. INVENTORIES IN STOCK ON 31ST OF DECEMBER | B198: C. INVENTORIES IN STOCK ON 31ST OF DECEMBER | C198: В. ЗАЛИХИ НА ЛАГЕР НА 31 ДЕКЕМВРИ | D198: C. LAGERBESTAND AM 31. DEZEMBER | E198: C. STANJE ZALIHA NA 31.12. | F198: C. STANJE ZALOG NA DAN 31. DECEMBER | G198: C. STANJE ZALIHA NA DAN 31. 12. | H198: C. ZALIHE NA SKLADIŠTU NA 31. DECEMBAR
A199: D. RESOURCES NEEDED TO FINANCE INVENTORIES | B199: D. RESOURCES NEEDED TO FINANCE INVENTORIES | C199: Г. ПОТРЕБНИ РЕСУРСИ ЗА ФИНАНСИРАЊЕ НА ЗАЛИХИ | D199: D. BENÖTIGTES KAPITAL ZUR FINANZIERUNG DER VORRÄTE | E199: D. POTREBNA SREDTSVA ZA FINANCIRANJE ZALIHA | F199: D. POTREBNA VIŠINA SREDSTEV ZA FINANCIRANJE ZALOG | G199: D. POTREBNA SREDSTVA ZA FINANSIRANJE ZALIHA | H199: D. POTREBNA SREDSTVA ZA FINANSIRANJE INVENTARA
A200: Accounts receivable and resources needed in € | B200: Accounts receivable and resources needed in € | C200: Сметки за наплата и потребни ресурси во € | D200: Forderungen und Aufwändungen in € | E200: Stanje potraživanja i iznos sredstava potrebnih za financiranje u € | F200: Stanje terjatev in potrebna višina sredstev za financiranje v € | G200: Stanje potraživanja i potrebna sredstva za finansiranje u € | H200: Potraživanja i potrebni resursi u €
... 214 more rows

Sheet Support
A1: Investment and financing
A2: Investment_and_Financing
A4: =+Translations!A32 -> Wood chips | B4: x
A5: =+Translations!A33 -> Pellets | B5: x
A6: =+Translations!A34 -> Straw | B6: x
A7: =+Translations!A35 -> Other | B7: x
A9: 0
A10: 1
A12: =+Translations!A40 -> Yes | B12: x
A13: =+Translations!A41 -> No | B13: x
A15: =+Home!K12 -> 2017
A16: =+A15 -> 2017
A17: =+A16+1 -> 2018
A18: 2019
A19: 2020
A20: 2021
A21: 2022
A22: 2023
A24: =+Translations!A96 -> Direct input of the heat price | B24: x
A25: =+Translations!A97 -> Calculation from basic price, metering price and consumption | B25: x
A26: =+Translations!A98 -> Calculation on the basis of price discount for larger consumption | B26: x
A28: =+Translations!A405 -> FULL: Technical + Financial module | B28: x
A29: =+Translations!A406 -> ECONOMY: Financial module only | B29: x
A31: 2017
A32: 2018
A33: 2019
A34: 2020
A35: 2021
A36: 2022
A37: 2023
A38: 2024
A39: 2025
A40: 2026
A41: 2027
A42: 2028
A43: 2029
A44: 2030
A45: 2031
A47: =+Translations!A407 -> 10 years | B47: x
A48: =+Translations!A408 -> 15 years | B48: x
A49: =+Translations!A409 -> 20 years | B49: x
A51: English
A52: Slovenski
A53: Hrvatski
A54: Makedonski
A55: Bosanski
A56: Srpski
A57: Deutsch

Sheet Manual
A4: Manual for the Economic calculation tool for small modular district heating and cooling projects Version: 1.1
